{"text_format":"1","workbook":"xlsx","n_sheets":34,"sheets":["Instructions","PEW","Summary Worksheet","Navigation","Schedule 1a-Compensation","Schedule 1b-Monitoring Hrs","Schedule 2a-Health Insurance","Schedule 2b-Dental Insurance","Schedule 2c-Life Insurance","Schedule 2d-Retirement","Schedule 2e-Other Benefit 1","Schedule 2f-Other Benefit 2","Schedule 2g-Other Benefit 3","Schedule 2h-Other Benefit 4","Schedule 2i-Other Benefit 5","Schedule 3-Equipment Over $5000","Schedule 4-Equip. Under $5000","Schedule 5-Office Supplies","Schedule 6-Printing & Postage","Schedule 7-Office Space Rental","Schedule 7a-Office Space Owned","Schedule 8-Utilities","Schedule 9-Insurance Premiums","Schedule 10-Contracted Serv","Schedule 11-Equip-Rental","Schedule 12-Communications","Schedule 13-Advertising","Schedule 14-Dues","Schedule 15-Other Admin.","Schedule 16-Pro.Ops-Travel","Schedule 17-Instate Travel","Schedule 18-Project. OutofState","Schedule 19-Staff & Site Trng","Schedule 20-Indirect Costs"],"not_rendered":{"charts":0,"images":30,"macros":1,"external_links":2,"defined_names":68,"comments":1,"pivot_tables":0},"unopened":[],"bounds":{"document_bytes":16777216,"sheet_cells":100000,"rows_first":2000,"rows_last":500,"rows_between":2000,"halvings":0,"cell_chars":16384,"cell_head_chars":4096},"cells_cut":0,"cells_raw":0,"read":"whole","date_system":"1900"}

{"sheet":"Instructions","index":0,"n_rows":17,"n_cols":1,"rows_kept":17,"cut":false,"hidden":false,"merged":[[5,0,5,9],[0,0,0,9],[1,0,1,9],[2,0,2,9],[3,0,3,9],[4,0,4,9],[6,0,6,9],[7,0,7,9],[8,0,8,9],[9,0,9,9],[10,0,10,9],[16,0,16,9],[12,0,12,9],[11,0,11,9],[13,0,13,9],[14,0,14,9],[15,0,15,9]]}
["Florida Department of Health"]
["Instructions Worksheet for the Child Care Food Program PEW/Budget"]
["(for use by Prospective Sponsors of Unaffiliated Child Care Centers only)"]
["Instructions Notes for Completing the Child Care Food Program (CCFP) Projected Earnings Worksheet and Budget"]
["After you have collected the enrollment data from all of your sites, follow the steps below to complete the Projected Earnings Worksheet (PEW), followed by the Automated  Budget.  The PEW and Automated Budget (starts with the Summary Worksheet and Nagivation) each have a separate tab at the bottom of this excel file.  When completing the PEW and the Summary Worksheet tab of the Automated Budget, you will enter information into the green-shaded fields only.  As you complete the green-shaded fields and the budget schedules, the worksheet will do the calculations for you.  After completing the PEW/Automated Budget excel worksheet, submit the excel worksheet and a printed, signed and dated copy of only the Summary Worksheet tab to your financial specialist.  If you do not know who your financial specialist is, please contact 850-245-4323 and ask to speak with a financial specialist."]
["Instructions for Completing the Child Care Food Program (CCFP) Projected Earnings Worksheet"]
["1) Input the authorization number (program type followed by digits, X-####) and the applicant's Legal Name."]
["2) Using the total combined enrollment data from each center's Enrollment Roster, enter the total number of Free, Reduced, and Non-Needy classified children in the enrollment section.  The Average Attendance per day will automatically calculate based on the Enrollment section and the State average attendance for Child Care Centers.  This number will be less than the total number of enrolled children."]
["3) In the Days Operating section, calculate the average number of days per week the centers that will be participating under your sponsorship will be open and enter this number next to the \"Total Number of days operating per week\" (up to 7 days if all of the Child Care Centers are licensed to operate on the weekends), and the average number of months the centers are open during a year (usually 12 months).  The number of operating days per month will be automatically calculated based on the average number of days the center is open per week."]
["4) Under the Put a \"Y\" in each category that applies section, type the letter Y for each meal type your organization plans to claim. The form will automatically calculate the number of meals in the Total Number of Meals Served in Month to Eligible Children section based on the state average by meal type."]
["5) Now the worksheet will do the calculations starting with the Total Number of Meals Served in One Month to Eligible Children, which is calculated based on the data entered in the other sections and the average state percentage of attendance for each meal type.  Additionally, the worksheet will calculate the Total Projected Meal Earnings for One Year, the Projected Commodity Reimbursement for One Year, the Total Projected Earnings for One year, and the Sponsor Administrative Cap.  The Sponsor Administrative Cap is the maximum amount that your organization can deduct from the Total Projected Meal Earnings for One Year to reimburse your organization for administrative expenditures.  Your organization cannot retain more than the lesser of the Sponsor Administrative Cap or your Administrative Expenditures.  The Sponsor Administrative Cap will appear on the Summary Worksheet tab of the Automated Budget."]
["Instructions for Completing the Child Care Food Program (CCFP) Budget"]
["1) Go to www.flhealth.gov/ccfp"]
["2) To the left, click on Regulations, Guidance, and Recordkeeping."]
["3) Scroll down to the section heading PEW/Budget or PEW/Management Plan Budget for Prospective CCFP Contractors and click on Instructions for D/U Automated Budget to open the PDF file."]
["4) Within the PDF file, you will find the  instructions for completing the automated budget."]
["5) After completing the Carryover/PAEW/Automated Budget, submit the excel worksheet and a printed, signed and dated copy of only the Summary Worksheet tab to your financial specialist.  If you do not know who your financial specialist is, please contact 850-245-4323 and ask to speak with a financial specialist."]

{"sheet":"PEW","index":1,"n_rows":42,"n_cols":16,"rows_kept":42,"cut":false,"hidden":false,"merged":[[30,0,31,4],[40,15,40,16],[41,6,42,8],[41,9,42,10],[41,12,42,14],[41,15,42,16],[37,9,37,10],[37,12,37,13],[38,0,42,4],[38,12,38,13],[40,6,40,8],[40,9,40,10],[36,9,36,10],[36,12,36,13],[33,15,33,16],[34,15,34,16],[35,6,35,13],[18,6,19,16],[30,7,30,8],[30,11,30,12],[30,14,30,16],[21,15,21,16],[20,7,20,8],[20,11,20,12],[20,14,20,16],[27,15,27,16],[28,15,28,16],[29,15,29,16],[31,15,31,16],[32,15,32,16],[26,15,26,16],[22,0,22,4],[22,15,22,16],[23,15,23,16],[24,15,24,16],[25,7,25,8],[25,11,25,12],[25,14,25,16],[10,12,10,13],[10,15,11,16],[11,1,11,4],[11,6,11,7],[11,9,11,10],[11,12,11,13],[13,0,13,4],[14,10,14,11],[15,10,15,11],[16,10,16,11],[9,6,9,7],[9,9,9,10],[10,1,10,4],[10,6,10,7],[10,9,10,10],[14,1,15,4],[9,12,9,13],[9,15,9,16],[4,1,4,2],[4,5,4,7],[6,0,6,4],[6,6,6,16],[7,0,7,4],[7,6,7,16],[8,1,8,4],[8,6,8,8],[8,9,8,11],[8,12,8,14],[8,15,8,16],[3,0,3,16],[0,0,0,16],[1,0,2,1],[1,2,2,3],[1,4,2,7],[1,8,2,16]]}
["Projected Earnings Worksheet for Prospective Sponsors of Unaffiliated Child Care Centers - FY 2020-2021"]
["Auth #",null,null,null,"Organization Name"]
[]
[]
[null,"Requires User Input",null,null,null,"Automatically Calculates"]
[]
["Please anwer these Questions",null,null,null,null,null,"Rates"]
["Enrollment",null,null,null,null,null,"July 1, 2020 - June 30, 2021"]
[null,"Number of children eligible for free meals",null,null,null,null,"Breakfast",null,null,"Lunch/Supper",null,null,"Snacks",null,null,"Cash-in-Lieu"]
[null,"Number of children eligible for reduced meals",null,null,null,null,"Free ( F )",null,1.89,"Free ( F )",null,3.51,"Free ( F )",null,0.96,0.245]
[null,"Number of children eligible for non-needy meals",null,null,null,null,"Reduced ( R )",null,1.59,"Reduced ( R )",null,3.11,"Reduced ( R )",null,0.48]
[{"$f":"SUM(A9:A11)","v":0},"Total Number of enrolled children (a+b+c)",null,null,null,null,"Non-needy ( N )",null,0.32,"Non-needy ( N )",null,0.33,"Non-needy ( N )",null,0.08]
[null,null,null,null,null,null,"1)  Calculation to Determine Percentage"]
["Average Attendance per day",null,null,null,null,null,"Divide the number of eligible children in each category by the total number of children enrolled."]
[{"$f":"ROUNDUP(0.73520633*A12,0)","v":0},"(Cannot exceed total number of enrolled childred",null,null,null,null,"a) Number F",null,{"$f":"A9","v":0},"/","Total Enrolled",null,{"$f":"A12","v":0},"=",{"$f":"IFERROR(I15/M15,0)","v":0}]
[null,null,null,null,null,null,"b) Number R",null,{"$f":"A10","v":0},"/","Total Enrolled",null,{"$f":"A12","v":0},"=",{"$f":"IFERROR(I16/M16,0)","v":0}]
[null,null,null,null,null,null,"c) Number N",null,{"$f":"A11","v":0},"/","Total Enrolled",null,{"$f":"A12","v":0},"=",{"$f":"IFERROR(I17/M17,0)","v":0}]
["Days Operating",null,null,null,null,null,"2)  Calculation to Determine Free/Reduced Distribution for each Meal Type"]
[null,"Total number of days operating per week",null,null,null,null,"Multiply the category percentage calculated in Step 1 by the number of meals served for each meal type and then by the current reimbursement rates and then by the assigned meal reimbursement rate."]
[{"$f":"(A19*51)/12","v":0},"Total number of days operating per month"]
[null,"Total number of months operating per year",null,null,null,null,"Br","Category %",null,"# Meals Served",null,"# meals by category",null,"Rate","Reimbursement Amount"]
[null,null,null,null,null,null,"a) F %",{"$f":"O15","v":0},"x",{"$f":"A33","v":0},"=",{"$f":"ROUND(H22*J22,0)","v":0},"x",{"$f":"I10","v":1.89},"=",{"$f":"ROUNDDOWN(L22*N22,2)","v":0}]
["Meal Types (Put a \"Y\" in each category that applies:",null,null,null,null,null,"b) R %",{"$f":"O16","v":0},"x",{"$f":"A33","v":0},"=",{"$f":"ROUND(H23*J23,0)","v":0},"x",{"$f":"I11","v":1.59},"=",{"$f":"ROUNDDOWN(L23*N23,2)","v":0}]
[null,"Claiming Breakfast (Br)?",null,null,null,null,"c) N %",{"$f":"O17","v":0},"x",{"$f":"A33","v":0},"=",{"$f":"ROUND(H24*J24,0)","v":0},"x",{"$f":"I12","v":0.32},"=",{"$f":"ROUNDDOWN(L24*N24,2)","v":0}]
[null,"Claiming Morning Snack(Snacks)?",null,null,null,null,"Total Number of Breakfast Claimed",null,null,null,null,{"$f":"SUM(L22:L24)","v":0},null,null,null,{"$f":"SUM(P22:Q24)","v":0}]
[null,"Claiming Lunch (Lu)?",null,null,null,null,"Lu/Su","Category %",null,"# Meals Served",null,"# meals by category",null,"Rate","Reimbursement Amount"]
[null,"Claiming Afternoon Snack (Snacks)?",null,null,null,null,"a) F %",{"$f":"O15","v":0},"x",{"$f":"A35+A37","v":0},"=",{"$f":"ROUND(H27*J27,0)","v":0},"x",{"$f":"L10","v":3.51},"=",{"$f":"ROUNDDOWN(L27*N27,2)","v":0}]
[null,"Claiming Supper (Su)?",null,null,null,null,"b) R %",{"$f":"O16","v":0},"x",{"$f":"A35+A37","v":0},"=",{"$f":"ROUND(H28*J28,0)","v":0},"x",{"$f":"L11","v":3.11},"=",{"$f":"ROUNDDOWN(L28*N28,2)","v":0}]
[null,"Claiming Evening Snack (Snacks)?",null,null,null,null,"c) N %",{"$f":"O17","v":0},"x",{"$f":"A35+A37","v":0},"=",0,"x",{"$f":"L12","v":0.33},"=",0]
[null,null,null,null,null,null,"Total Number of Lunch/Supper Claimed",null,null,null,null,{"$f":"SUM(L27:L29)","v":0},null,null,null,{"$f":"SUM(P27:Q29)","v":0}]
["Total Number of Meals Served in Month to Eligible Children",null,null,null,null,null,"Snacks","Category %",null,"# Meals Served",null,"# meals by category",null,"Rate","Reimbursement Amount"]
[null,null,null,null,null,null,"a) F %",{"$f":"O15","v":0},"x",{"$f":"A34+A36+A38","v":0},"=",{"$f":"ROUND(H32*J32,0)","v":0},"x",{"$f":"O10","v":0.96},"=",{"$f":"ROUNDDOWN(L32*N32,2)","v":0}]
[{"$f":"IF(A24<>\"Y\",\"0\",$A$15*$A$20)*0.724181492","v":0},"Breakfast",null,null,null,null,"b) R %",{"$f":"O16","v":0},"x",{"$f":"A34+A36+A38","v":0},"=",{"$f":"ROUND(H33*J33,0)","v":0},"x",{"$f":"O11","v":0.48},"=",{"$f":"ROUNDDOWN(L33*N33,2)","v":0}]
[{"$f":"IF(A25<>\"Y\",\"0\",$A$15*$A$20)*0.7241814919","v":0},"Morning Snack",null,null,null,null,"c) N %",{"$f":"O17","v":0},"x",{"$f":"A34+A36+A38","v":0},"=",{"$f":"ROUND(H34*J34,0)","v":0},"x",{"$f":"O12","v":0.08},"=",0]
[{"$f":"IF(A26<>\"Y\",\"0\",$A$15*$A$20)*0.859656033","v":0},"Lunch",null,null,null,null,"Total Number of Snacks Claimed",null,null,null,null,{"$f":"SUM(L32:L34)","v":0},null,null,null,{"$f":"SUM(P32:Q34)","v":0}]
[{"$f":"IF(A27<>\"Y\",\"0\",$A$15*$A$20)*0.979476471","v":0},"Afternoon Snack",null,null,null,null,"Commodities Reimbursement*"]
[{"$f":"IF(A28<>\"Y\",\"0\",$A$15*$A$20)*0.658243772","v":0},"Supper",null,null,null,null,"a) Lunch",{"$f":"A35","v":0},"x",{"$f":"P10","v":0.245},null,null,{"$f":"ROUNDDOWN(H37*J37,2)","v":0}]
[{"$f":"IF(A29<>\"Y\",\"0\",$A$15*$A$20)*0.365983408","v":0},"Evening Snack",null,null,null,null,"b) Supper",{"$f":"A37","v":0},"x",{"$f":"P10","v":0.245},null,null,{"$f":"ROUNDDOWN(H38*J38,2)","v":0}]
["*PLEASE NOTE:  The cash-in-lieu-of commodity payments received by an institution shall be used only to purchase food products that are produced in the United States for use in the program.  Institutions must maintain sufficient records to document the proper use of these payments.   ",null,null,null,null,null,"Projected Commodity Reimbursement (1yr)",null,null,null,null,null,{"$f":"(SUM(M37:M38)*A21)","v":0}]
[]
[null,null,null,null,null,null,"Projected Meals Earning (1yr)",null,null,{"$f":"A21*(P25+P30+P35)","v":0},null,null,"Total Projected Earnings 1yr",null,null,{"$f":"J41+M39","v":0}]
[null,null,null,null,null,null,"Projected Commodity Reimbursement (1yr)",null,null,{"$f":"J41*0.15","v":0},null,null,"Projected Earnings Rounded for use in the Budget",null,null,{"$f":"ROUND(P41,0)","v":0}]

{"sheet":"Summary Worksheet","index":2,"n_rows":70,"n_cols":9,"rows_kept":70,"cut":false,"hidden":false,"merged":[[8,0,9,1],[64,3,64,4],[59,2,59,3],[6,4,9,4],[47,2,47,3],[50,2,50,7],[53,4,55,7],[53,3,56,3]]}
[null,"Automated Budget for Prospective Sponsors of Unaffiliated Centers"]
[]
[]
[null,"      Enter Fiscal Year: "]
[]
[null,"      Enter Authorization Number: ",{"$f":"PEW!C2","v":0}]
[null,null,null,null,"Projected Admin. Earnings Amount:"]
[null,"     Enter Amendment #:  \n(If applicable)    "]
[]
[null,null,null,null,null,{"$f":"PEW!J42","v":0},null,"Total Projected Admin. Budget",{"$f":"H48","v":0}]
[]
[null,null,"Please note: The fields in the Budget Summary are automatically calculated from Schedules 1-20. "]
[]
[null,null,null,null,"Total Allowable Costs to CCFP","Total Amount to be Charged to CCFP*","Allowable CCFP Costs Covered by Other (Non-CCFP) Funding Source(s)                                                                                                                        ","Total Admin. Budget                     (All  Funding Sources)"]
[null,null,null," ","(a)","(b)",{"$f":"\"(c)\"","v":"(c)"},{"$f":"\"(b) + (c)\"","v":"(b) + (c)"}]
[null,"Schedule #","ADMINISTRATIVE LABOR"]
[null,"1a","Employee Compensation & Employer Taxes",null,{"$f":"ROUND(('Schedule 1a-Compensation'!Q78),0)","v":0},{"$f":"ROUND(('Schedule 1a-Compensation'!R78),0)","v":0},{"$f":"ROUND(('Schedule 1a-Compensation'!S78),0)","v":0},{"$f":"ROUND((SUM(F17:G17)),0)","v":0}]
[null,"2a-i","Benefits",null,{"$f":"ROUND(('Schedule 2a-Health Insurance'!S78+'Schedule 2b-Dental Insurance'!S78+'Schedule 2c-Life Insurance'!S78+'Schedule 2d-Retirement'!S78+'Schedule 2e-Other Benefit 1'!S78+'Schedule 2f-Other Benefit 2'!S78+'Schedule 2g-Other Benefit 3'!S78+'Schedule 2h-Other Benefit 4'!S78+'Schedule 2i-Other Benefit 5'!S78),0)","v":0},{"$f":"ROUND(('Schedule 2a-Health Insurance'!T78+'Schedule 2b-Dental Insurance'!T78+'Schedule 2c-Life Insurance'!T78+'Schedule 2d-Retirement'!T78+'Schedule 2e-Other Benefit 1'!T78+'Schedule 2f-Other Benefit 2'!T78+'Schedule 2g-Other Benefit 3'!T78+'Schedule 2h-Other Benefit 4'!T78+'Schedule 2i-Other Benefit 5'!T78),0)","v":0},{"$f":"ROUND(('Schedule 2a-Health Insurance'!U78+'Schedule 2b-Dental Insurance'!U78+'Schedule 2c-Life Insurance'!U78+'Schedule 2d-Retirement'!U78+'Schedule 2e-Other Benefit 1'!U78+'Schedule 2f-Other Benefit 2'!U78+'Schedule 2g-Other Benefit 3'!U78+'Schedule 2h-Other Benefit 4'!U78+'Schedule 2i-Other Benefit 5'!U78),0)","v":0},{"$f":"ROUND((SUM(F18:G18)),0)","v":0}]
[null,null,"Subtotal Administrative Labor",null,{"$f":"ROUND((SUM(E17:E18)),0)","v":0},{"$f":"ROUND((SUM(F17:F18)),0)","v":0},{"$f":"ROUND((SUM(G17:G18)),0)","v":0},{"$f":"ROUND((SUM(H17:H18)),0)","v":0}]
[null,null,"ADMINISTRATIVE SUPPLIES"]
[null,3,"Equipment $5,000 and over",null,{"$f":"ROUND(('Schedule 3-Equipment Over $5000'!I34),0)","v":0},{"$f":"ROUND(('Schedule 3-Equipment Over $5000'!J34),0)","v":0},{"$f":"ROUND(('Schedule 3-Equipment Over $5000'!K34),0)","v":0},{"$f":"ROUND((SUM(F21:G21)),0)","v":0}]
[null,4,"Equipment/Furniture under $5,000",null,{"$f":"ROUND(('Schedule 4-Equip. Under $5000'!F43),0)","v":0},{"$f":"ROUND(('Schedule 4-Equip. Under $5000'!G43),0)","v":0},{"$f":"ROUND(('Schedule 4-Equip. Under $5000'!H43),0)","v":0},{"$f":"ROUND((SUM(F22:G22)),0)","v":0}]
[null,5,"Office Supplies",null,{"$f":"ROUND(('Schedule 5-Office Supplies'!K52),0)","v":0},{"$f":"ROUND(('Schedule 5-Office Supplies'!L52),0)","v":0},{"$f":"ROUND(('Schedule 5-Office Supplies'!M52),0)","v":0},{"$f":"ROUND((SUM(F23:G23)),0)","v":0}]
[null,6,"Printing and Postage",null,{"$f":"ROUND(('Schedule 6-Printing & Postage'!K50),0)","v":0},{"$f":"ROUND(('Schedule 6-Printing & Postage'!L50),0)","v":0},{"$f":"ROUND(('Schedule 6-Printing & Postage'!M50),0)","v":0},{"$f":"ROUND((SUM(F24:G24)),0)","v":0}]
[null,null,"Subtotal Administrative Supplies",null,{"$f":"ROUND((SUM(E21:E24)),0)","v":0},{"$f":"ROUND((SUM(F21:F24)),0)","v":0},{"$f":"ROUND((SUM(G21:G24)),0)","v":0},{"$f":"ROUND((SUM(H21:H24)),0)","v":0}]
[null,null,"ADMINISTRATIVE SERVICES"]
[null,7,"Office Space Rental or Lease",null,{"$f":"ROUND(('Schedule 7-Office Space Rental'!G45),0)","v":0},{"$f":"ROUND(('Schedule 7-Office Space Rental'!H45),0)","v":0},{"$f":"ROUND(('Schedule 7-Office Space Rental'!I45),0)","v":0},{"$f":"ROUND((SUM(F27:G27)),0)","v":0}]
[null,"7a","Office Space Owned",null,{"$f":"ROUND(('Schedule 7a-Office Space Owned'!G38),0)","v":0},{"$f":"ROUND(('Schedule 7a-Office Space Owned'!H38),0)","v":0},{"$f":"ROUND(('Schedule 7a-Office Space Owned'!I38),0)","v":0},0]
[null,8,"Utilities",null,{"$f":"ROUND(('Schedule 8-Utilities'!I50),0)","v":0},{"$f":"ROUND(('Schedule 8-Utilities'!J50),0)","v":0},{"$f":"ROUND(('Schedule 8-Utilities'!K50),0)","v":0},0]
[null,9,"Insurance Premiums",null,{"$f":"ROUND(('Schedule 9-Insurance Premiums'!K50),0)","v":0},{"$f":"ROUND(('Schedule 9-Insurance Premiums'!L50),0)","v":0},{"$f":"ROUND(('Schedule 9-Insurance Premiums'!M50),0)","v":0},0]
[null,10,"Contracted/Professional Services",null,{"$f":"ROUND(('Schedule 10-Contracted Serv'!I51),0)","v":0},{"$f":"ROUND(('Schedule 10-Contracted Serv'!J51),0)","v":0},{"$f":"ROUND(('Schedule 10-Contracted Serv'!K51),0)","v":0},0]
[null,11,"Equipment Rental/Lease",null,{"$f":"ROUND(('Schedule 11-Equip-Rental'!I50),0)","v":0},{"$f":"ROUND(('Schedule 11-Equip-Rental'!J50),0)","v":0},{"$f":"ROUND(('Schedule 11-Equip-Rental'!K50),0)","v":0},0]
[null,12,"Communications",null,{"$f":"ROUND(('Schedule 12-Communications'!I56),0)","v":0},{"$f":"ROUND(('Schedule 12-Communications'!J56),0)","v":0},{"$f":"ROUND(('Schedule 12-Communications'!K56),0)","v":0},0]
[null,13,"Advertising/Public Information Services",null,{"$f":"ROUND(('Schedule 13-Advertising'!J43),0)","v":0},{"$f":"ROUND(('Schedule 13-Advertising'!K43),0)","v":0},{"$f":"ROUND(('Schedule 13-Advertising'!L43),0)","v":0},0]
[null,14,"Due/Memberships/Subscriptions",null,{"$f":"ROUND(('Schedule 14-Dues'!K45),0)","v":0},{"$f":"ROUND(('Schedule 14-Dues'!L45),0)","v":0},{"$f":"ROUND(('Schedule 14-Dues'!M45),0)","v":0},0]
[null,15,"Other Admin Svcs. & Supplemental Budget",null,{"$f":"ROUND(('Schedule 15-Other Admin.'!I51),0)","v":0},{"$f":"ROUND(('Schedule 15-Other Admin.'!J51),0)","v":0},{"$f":"ROUND(('Schedule 15-Other Admin.'!K51),0)","v":0},0]
[null,null,"Subtotal Administrative Services",null,{"$f":"ROUND((SUM(E27:E36)),0)","v":0},{"$f":"ROUND((SUM(F27:F36)),0)","v":0},{"$f":"ROUND((SUM(G27:G36)),0)","v":0},{"$f":"ROUND((SUM(H27:H36)),0)","v":0}]
[null,null,"ADMINISTRATIVE TRAVEL"]
[null,16,"Program Operations Travel",null,{"$f":"ROUND(('Schedule 16-Pro.Ops-Travel'!U44),0)","v":0},{"$f":"ROUND(('Schedule 16-Pro.Ops-Travel'!V44),0)","v":0},{"$f":"ROUND(('Schedule 16-Pro.Ops-Travel'!W44),0)","v":0},{"$f":"ROUND((SUM(F39:G39)),0)","v":0}]
[null,17,"In-State Travel",null,{"$f":"ROUND(('Schedule 17-Instate Travel'!P29),0)","v":0},{"$f":"ROUND(('Schedule 17-Instate Travel'!Q29),0)","v":0},{"$f":"ROUND(('Schedule 17-Instate Travel'!R29),0)","v":0},{"$f":"ROUND((SUM(F40:G40)),0)","v":0}]
[null,18,"Out-of-State Travel",null,{"$f":"ROUND(('Schedule 18-Project. OutofState'!P29),0)","v":0},{"$f":"ROUND(('Schedule 18-Project. OutofState'!Q29),0)","v":0},{"$f":"ROUND(('Schedule 18-Project. OutofState'!R29),0)","v":0},{"$f":"ROUND((SUM(F41:G41)),0)","v":0}]
[null,null,"Subtotal Administrative Travel",null,{"$f":"ROUND((SUM(E39:E41)),0)","v":0},{"$f":"ROUND((SUM(F39:F41)),0)","v":0},{"$f":"ROUND((SUM(G39:G41)),0)","v":0},{"$f":"ROUND((SUM(H39:H41)),0)","v":0}]
[null,null,"TRAINING AND EDUCATION"]
[null,19,"Staff and Site Training",null,{"$f":"ROUND(('Schedule 19-Staff & Site Trng'!I48),0)","v":0},{"$f":"ROUND(('Schedule 19-Staff & Site Trng'!J48),0)","v":0},{"$f":"ROUND(('Schedule 19-Staff & Site Trng'!K48),0)","v":0},{"$f":"ROUND((SUM(F44:G44)),0)","v":0}]
[null,null,"INDIRECT COSTS"]
[null,20,"Indirect Costs - attach copy of plan",null,{"$f":"ROUND(('Schedule 20-Indirect Costs'!D20),0)","v":0},{"$f":"ROUND(('Schedule 20-Indirect Costs'!E20),0)","v":0},{"$f":"ROUND(('Schedule 20-Indirect Costs'!F20),0)","v":0},{"$f":"ROUND((SUM(F46:G46)),0)","v":0}]
[]
[null,null,"GRAND TOTAL",null,{"$f":"ROUND((E19+E25+E37+E42+E44+E46),0)","v":0},{"$f":"ROUND((F19+F25+F37+F42+F44+F46),0)","v":0},{"$f":"ROUND((G19+G25+G37+G42+G44+G46),0)","v":0},{"$f":"ROUND((H19+H25+H37+H42+H44+H46),0)","v":0}]
[null,null,null,null,null,{"$f":"IF(I10-F48<>0,\"Error: The Administrative Cost Total of Column (b) must equal the Admin. Cost amount in the yellow box above.\",IF(I10-F48=0,0))","v":0}]
[]
[null,null,"*The Grand Total of Column (b) - Total Amound to be Charged to CCFP - must match or be less than the Projected Admin Earnings Amount from the PEW.  If the Grand Total of column (b) cell is GREEN, than the budget is acceptable.  If the Grand Total of column (b) cell is RED, then the Total Amount to be Charged to CCFP exceeds the Projected Admin. Earnings Amount and changes to the budget must be made and line item amounts need to be changed to Allowable CCFP Costs Covered by Other (Non-CCFP) funding source(s)."]
[]
[null,null,"Check the source(s) of funds your organization has available to pay for potential over-claims of CCFP reimbursement (choose at least one):"]
[null,null,null,"If OTHER was selected, give description in the green box"]
[]
[]
[]
[null,null,"Does your organziation currently employ staff or officers or directors who are related by blood or marriage?"]
[]
[]
[null,null,"Sponsor Representative: Name (Print)",null,"Signature",null,null,"Date"]
[null,null,"DOH Use Only"]
[null,null,"Approved    _____Yes         _____ No",null," "]
[]
[null,null,"DOH Representative: Name (Print)","Signature",null,null,null,"Date"]
[]
[null,null," ",null,null," "]
[]
[]
[null,null," "]

{"sheet":"Navigation","index":3,"n_rows":27,"n_cols":16,"rows_kept":27,"cut":false,"hidden":false,"merged":[[10,3,11,18]]}
[null,{"$f":"'Summary Worksheet'!B1","v":"Automated Budget for Prospective Sponsors of Unaffiliated Centers"}]
[]
[null,"Navigation"]
[null,null,"Fiscal Year",{"$f":"'Summary Worksheet'!C4","v":0}]
[]
[null,null,"Aurhotization Number",{"$f":"'Summary Worksheet'!C6","v":0}]
[]
[null,null,"Amendment",{"$f":"'Summary Worksheet'!C8","v":0}]
[]
[]
[null,null,null,"To view and edit budget schedules, please check the corresponding box."]
[]
[]
[null,null,null,"Labor",null,null,null,null,null,"Administrative Supplies",null,null,null,null,null,"Administrative Travel"]
[]
[]
[]
[]
[null,null,null,"Benefits - Traditional"]
[null,null,null,null,null,null,null,null,null,null,null,null,null,null,null,"Training & Education"]
[null,null,null,null,null,null,null,null,null,"Administrative Services"]
[]
[null,null,null,null,null,null,null,null,null,null,null,null,null,null,null,"Indirect Costs"]
[]
[]
[]
[null,null,null,"Benefits - Additional"]

{"sheet":"Schedule 1a-Compensation","index":4,"n_rows":89,"n_cols":19,"rows_kept":89,"cut":false,"hidden":true,"merged":[[93,6,93,10],[94,6,94,10],[88,11,88,15],[89,11,89,15],[90,11,90,15],[91,11,91,15],[92,11,92,15],[93,11,93,15],[94,11,94,15],[89,6,89,10],[90,6,90,10],[91,6,91,10],[92,6,92,10],[16,0,41,0],[42,0,76,0],[79,16,81,17],[14,18,15,18],[11,12,12,13],[11,1,12,2],[11,14,11,18],[12,14,12,15],[88,1,88,5],[88,6,88,10],[11,3,12,11],[12,16,12,18],[14,15,15,15]]}
[null,{"$f":"'Summary Worksheet'!$B$1","v":"Automated Budget for Prospective Sponsors of Unaffiliated Centers"}]
[]
[null,"SCHEDULE 1    -      EMPLOYEE COMPENSATION"]
[null,null,"          Fiscal Year:  ",{"$f":"'Summary Worksheet'!$C$4","v":0},null,null,null,null,null,null,null,null,null,null,null,"Please note these error codes:",null,null,"Example:"]
[null,null,null,null,null,null,null,null,null,null,null,null,null,null,null,"You need to enter information into highlighted cell: "]
[null,null," Authorization Number:  ",{"$f":"'Summary Worksheet'!$C$6","v":0},null,null,null,null,null,null,null,null,null,null,null,"Do not enter data into this celll:"]
[null,null,null,null,null,null,null,null,null,null,null,null,null,null,null,"You need to delete the data in this this cell:",null,null,2000]
[null,null,"     Amendment #:  ",{"$f":"'Summary Worksheet'!$C$8","v":0},null,null,null,null,null,null,null,null,null,null,null,"CCFP months may not exceed employer months:"]
[null,null,null,null,null,null,null,null,null,null,null,null,null,null,null,"CCFP hours may not exceed employr hours"]
[null,null,"FICA Tax Rate: ",7.6499999999999999E-2,null,null,null,null,null,null,null,null,null,null,null,"Monitoring hours may not exceed CCFP hours"]
[]
[null,"Employee Info",null,"COMPENSATION INFORMATION",null,null,null,null,null,null,null,null,"Employer Tax",null,"CCFP TOTALS"]
[null,null,null,null,null,null,null,null,null,null,null,null,null,null,null,null,"CCFP Administrative Budget Total"]
[null,1,{"$f":"B14+1","v":2},3,4,5,6,7,8,9,10,11,12,13,14,15,16,17,18]
[null,"Employee Name and Title","Employee Type"," Hourly Employee Gross Hourly Rate","Salaried Employee Gross Monthly Rate ","Total Hours  Employee Works per month for the agency             (e.g. 173)","Number of Months ","Total Rate Cost to Employer","Total Hours Worked for CCFP per month","Total Hours CCFP Monitoring per month","Percent of Total Hours Worked for CCFP","Monthly Salary Cost to CCFP                                                                                                                        ","Total FICA Tax per month    ","Monthly FICA Tax Paid by CCFP  ","Monthly Cost to CCFP","Number of Months to be charged to CCFP","Allowable  Costs to CCFP Administrative Budget","Amount to be Charged to CCFP Administratvie Budget","Allowable Costs to CCFP  Administrative Budget Covered by Other (Non-CCFP) Funding Source(s) (column 16 minus column 17)"]
[null,null,"(Use Drop Down Menu)","(Hourly Employees Only)","(Salaried Employees Only)",null,null,"(click here for more information)",null,null,"(column \n7/ 6)","(column\n 3x8)","(click here to see comment)","(column 8 x 10  )","(column 9+13)",null,"(Designation from column 1, column 14 x 15)"]
["Monitoring staff.",null,null,null,null,173,12,{"$f":"IF(B17<>\"\",IF(C17<>\"\",IF(B17<>\"\",IF(AND(C17=\"Hourly\",E17<=0),ROUND((D17*F17*G17),2),IF(AND(C17=\"Salaried\",D17<=0),ROUND((E17*G17),2),0)),0),0),0)","v":0},0,0,{"$f":"IF(H17>0,I17/F17,0)","v":0},{"$f":"IF(E17>0,ROUND((K17*E17),2),IF(D17>0,ROUND((K17*D17*F17),2),0))","v":0},{"$f":"IF(H17>0,IF(C17=\"Salaried\",(E17*$D$10),IF(C17=\"Hourly\",(D17*F17*$D$10),0)),0)","v":0},{"$f":"ROUND((K17*M17),2)","v":0},{"$f":"ROUND((SUM(L17,N17)),2)","v":0},12,{"$f":"IF(AND(G17>=P17,F17>=I17,I17>=J17),ROUND((O17*P17),2),0)","v":0},0,{"$f":"Q17-R17","v":0}]
[null,null,null,null,null,173,12,{"$f":"IF(B18<>\"\",IF(C18<>\"\",IF(B18<>\"\",IF(AND(C18=\"Hourly\",E18<=0),ROUND((D18*F18*G18),2),IF(AND(C18=\"Salaried\",D18<=0),ROUND((E18*G18),2),0)),0),0),0)","v":0},0,0,{"$f":"IF(H18>0,I18/F18,0)","v":0},0,0,0,0,12,{"$f":"IF(AND(G18>=P18,F18>=I18,I18>=J18),ROUND((O18*P18),2),0)","v":0},0,{"$f":"Q18-R18","v":0}]
[null,null,null,null,null,173,12,0,0,0,0,0,0,0,0,12,0,0,0]
[null,null,null,null,null,173,12,0,0,0,0,0,0,0,0,12,0,0,0]
[null,null,null,null,null,173,12,0,0,0,0,0,0,0,0,12,0,0,0]
[null,null,null,null,null,173,12,0,0,0,0,0,0,0,0,12,0,0,0]
[null,null,null,null,null,173,12,0,0,0,0,0,0,0,0,12,0,0,0]
[null,null,null,null,null,173,12,0,0,0,0,0,0,0,0,12,0,0,0]
[null,null,null,null,null,173,12,0,0,0,0,0,0,0,0,12,0,0,0]
[null,null,null,null,null,173,12,0,0,0,0,0,0,0,0,12,0,0,0]
[null,null,null,null,null,173,12,0,0,0,0,0,0,0,0,12,0,0,0]
[null,null,null,null,null,173,12,0,0,0,0,0,0,0,0,12,0,0,0]
[null,null,null,null,null,173,12,0,0,0,0,0,0,0,0,12,0,0,0]
[null,null,null,null,null,173,12,0,0,0,0,0,0,0,0,12,0,0,0]
[null,null,null,null,null,173,12,0,0,0,0,0,0,0,0,12,0,0,0]
[null,null,null,null,null,173,12,0,0,0,0,0,0,0,0,12,0,0,0]
[null,null,null,null,null,173,12,0,0,0,0,0,0,0,0,12,0,0,0]
[null,null,null,null,null,173,12,0,0,0,0,0,0,0,0,12,0,0,0]
[null,null,null,null,null,173,12,0,0,0,0,0,0,0,0,12,0,0,0]
[null,null,null,null,null,173,12,0,0,0,0,0,0,0,0,12,0,0,0]
[null,null,null,null,null,173,12,0,0,0,0,0,0,0,0,12,0,0,0]
[null,null,null,null,null,173,12,0,0,0,0,0,0,0,0,12,0,0,0]
[null,null,null,null,null,173,12,0,0,0,0,0,0,0,0,12,0,0,0]
[null,null,null,null,null,173,12,0,0,0,0,0,0,0,0,12,0,0,0]
[null,null,null,null,null,173,12,0,0,0,0,0,0,0,0,12,0,0,0]
[null,null,null,null,null,173,12,0,0,0,0,0,0,0,0,12,0,0,0]
["Any function.",null,null,null,null,173,12,0,0,null,0,0,0,0,0,12,0,0,0]
[null,null,null,null,null,173,12,0,0,null,0,0,0,0,0,12,0,0,0]
[null,null,null,null,null,173,12,0,0,null,0,0,0,0,0,12,0,0,0]
[null,null,null,null,null,173,12,0,0,null,0,0,0,0,0,12,0,0,0]
[null,null,null,null,null,173,12,0,0,null,0,0,0,0,0,12,0,0,0]
[null,null,null,null,null,173,12,0,0,null,0,0,0,0,0,12,0,0,0]
[null,null,null,null,null,173,12,0,0,null,0,0,0,0,0,12,0,0,0]
[null,null,null,null,null,173,12,0,0,null,0,0,0,0,0,12,0,0,0]
[null,null,null,null,null,173,12,0,0,null,0,0,0,0,0,12,0,0,0]
[null,null,null,null,null,173,12,0,0,null,0,0,0,0,0,12,0,0,0]
[null,null,null,null,null,173,12,0,0,null,0,0,0,0,0,12,0,0,0]
[null,null,null,null,null,173,12,0,0,null,0,0,0,0,0,12,0,0,0]
[null,null,null,null,null,173,12,0,0,null,0,0,0,0,0,12,0,0,0]
[null,null,null,null,null,173,12,0,0,null,0,0,0,0,0,12,0,0,0]
[null,null,null,null,null,173,12,0,0,null,0,0,0,0,0,12,0,0,0]
[null,null,null,null,null,173,12,0,0,null,0,0,0,0,0,12,0,0,0]
[null,null,null,null,null,173,12,0,0,null,0,0,0,0,0,12,0,0,0]
[null,null,null,null,null,173,12,0,0,null,0,0,0,0,0,12,0,0,0]
[null,null,null,null,null,173,12,0,0,null,0,0,0,0,0,12,0,0,0]
[null,null,null,null,null,173,12,0,0,null,0,0,0,0,0,12,0,0,0]
[null,null,null,null,null,173,12,0,0,null,0,0,0,0,0,12,0,0,0]
[null,null,null,null,null,173,12,0,0,null,0,0,0,0,0,12,0,0,0]
[null,null,null,null,null,173,12,0,0,null,0,0,0,0,0,12,0,0,0]
[null,null,null,null,null,173,12,0,0,null,0,0,0,0,0,12,0,0,0]
[null,null,null,null,null,173,12,0,0,null,0,0,0,0,0,12,0,0,0]
[null,null,null,null,null,173,12,0,0,null,0,0,0,0,0,12,0,0,0]
[null,null,null,null,null,173,12,0,0,null,0,0,0,0,0,12,0,0,0]
[null,null,null,null,null,173,12,0,0,null,0,0,0,0,0,12,0,0,0]
[null,null,null,null,null,173,12,0,0,null,0,0,0,0,0,12,0,0,0]
[null,null,null,null,null,173,12,0,0,null,0,0,0,0,0,12,0,0,0]
[null,null,null,null,null,173,12,0,0,null,0,0,0,0,0,12,0,0,0]
[null,null,null,null,null,173,12,0,0,null,0,0,0,0,0,12,0,0,0]
[null,null,null,null,null,173,12,0,0,null,0,0,0,0,0,12,0,0,0]
[null,null,null,null,null,173,12,0,0,null,0,0,0,0,0,12,0,0,0]
[null,null,null,null,null,173,12,0,0,null,0,0,0,0,0,12,0,0,0]
[null,null,null,{"$f":"SUM(D17:D77)","v":0},{"$f":"SUM(E17:E77)","v":0},null,null,{"$f":"SUM(H17:H77)","v":0},null,null,null,{"$f":"SUM(L17:L77)","v":0},{"$f":"SUM(M17:M77)","v":0},{"$f":"SUM(N17:N77)","v":0},{"$f":"SUM(O17:O77)","v":0},null,{"$f":"SUM(Q17:Q77)","v":0},{"$f":"SUM(R17:R77)","v":0},{"$f":"SUM(S17:S77)","v":0}]
[null,null,null,null,null,null,null,null,null,null,null,null,null," "]
[null,"Enter data in Columns 1, 2, 3, 4, 5, 6, 8, 9, 15, and 17  to calculate schedule 1a.",null,null,null,null,null,null,null,null,null,null,null,null,null,null,"Total Allowable Costs to CCFP Administrative Budget                            (Columns 17+18 must equal the total in Column 16.)",null,{"$f":"R78+S78","v":0}]
[null,null,null,null,null,null,null,null,null,null,null,null,null,null,null,null,null,null,{"$f":"Q78-S80","v":0}]
[]
[null,"If this is a budget amendment and staff have received a compensation increase, they must be entered twice according to their new and old compensation rates and defined time periods."]
[null,"Staff that perform monitoring need to be listed in rows 17-32, and must indicate how many monitoring hours they perform in column 10. "]
[]
[null,"Telecommuting:  Sponsor must submit telecommuting request and detailed justification including but not limited to the name of the employee(s), position(s), job responsibilities, and location, to the CCFP for prior approval."]
[null,"List any other funding source(s) used by your organization to cover CCFP labor costs. "]
[]
[null,"List Other Non-CCFP Administrative Funding Source(s)",null,null,null,null,"List Supporting Documentation for Schedule 1a",null,null,null,null,"Comments"]

{"sheet":"Schedule 1b-Monitoring Hrs","index":5,"n_rows":50,"n_cols":9,"rows_kept":50,"cut":false,"hidden":true,"merged":[[14,1,15,1],[18,6,18,8],[14,3,15,3],[14,4,15,4],[16,6,16,8],[36,6,36,8],[37,6,37,8],[14,2,15,2],[14,6,15,8],[17,6,17,8],[22,6,22,8],[19,6,19,8],[20,6,20,8],[21,6,21,8],[38,6,38,8],[39,6,39,8],[46,1,47,8],[23,6,23,8],[24,6,24,8],[25,6,25,8],[26,6,26,8],[29,6,29,8],[27,6,27,8],[28,6,28,8],[41,6,41,8],[31,6,31,8],[32,6,32,8],[33,6,33,8],[34,6,34,8],[35,6,35,8]]}
[null,{"$f":"'Summary Worksheet'!$B$1","v":"Automated Budget for Prospective Sponsors of Unaffiliated Centers"}]
[]
[null,"SCHEDULE 1b     -      REQUIRED STAFF MONITORING RATIOS  "]
[null,null,"Fiscal Year:  ",{"$f":"'Summary Worksheet'!$C$4","v":0}]
[]
[null,null,"Authorization Number:  ",{"$f":"'Summary Worksheet'!$C$6","v":0}]
[]
[null,null,"Amendment #:  ",{"$f":"'Summary Worksheet'!$C$8","v":0}]
[]
[]
[null,null,"DCH Sponsor: # of Sponsored Homes",0,null,null,null,"# of Required Equivalent Full-Time Monitoring Positions",{"$f":"IF(D11<50,0,IF(D11/150<=1,1,IF(D11/150<=2,2,IF(D11/150<=3,3,IF(D11/150<=4,4,IF(D11/150<=5,5,IF(D11/150<=6,6,IF(D11/150<=7,7))))))))","v":0}]
[null,null,null,"OR"]
[null,null,"U Sponsor: # of Sponsored Centers",0,null,null,null,"# of Required Equivalent Full-Time Monitoring Positions",{"$f":"IF(D13<25,0,IF(D13/150<=1,1,IF(D13/150<=2,2,IF(D13/150<=3,3,IF(D13/150<=4,4,IF(D13/150<=5,5,IF(D13/150<=6,6,IF(D13/150<=7,7))))))))","v":0}]
[]
[null,"Primary Function","Employee Name","Total Hours Performing Monitoring Activities Per Month","Total Hours Worked for CCFP Per Month","Percentage of Time Spent Monitoring","Description of Monitoring Activities"]
[]
[null,"Monitoring ",{"$f":"IF(AND('Schedule 1a-Compensation'!J17>0,'Schedule 1a-Compensation'!K17>0),'Schedule 1a-Compensation'!B17, 0)","v":0},{"$f":"IF(AND('Schedule 1a-Compensation'!J17>0,'Schedule 1a-Compensation'!K17>0),'Schedule 1a-Compensation'!J17,0)","v":0},{"$f":"IF(AND('Schedule 1a-Compensation'!J17>0,'Schedule 1a-Compensation'!K17>0),'Schedule 1a-Compensation'!I17,0)","v":0},{"$f":"IF(D17>0,D17/E17,0)","v":0}]
[null,"Monitoring ",{"$f":"IF(AND('Schedule 1a-Compensation'!J18>0,'Schedule 1a-Compensation'!K18>0),'Schedule 1a-Compensation'!B18, 0)","v":0},{"$f":"IF(AND('Schedule 1a-Compensation'!J18>0,'Schedule 1a-Compensation'!K18>0),'Schedule 1a-Compensation'!J18,0)","v":0},{"$f":"IF(AND('Schedule 1a-Compensation'!J18>0,'Schedule 1a-Compensation'!K18>0),'Schedule 1a-Compensation'!I18,0)","v":0},{"$f":"IF(D18>0,D18/E18,0)","v":0}]
[null,"Monitoring ",{"$f":"IF(AND('Schedule 1a-Compensation'!J19>0,'Schedule 1a-Compensation'!K19>0),'Schedule 1a-Compensation'!B19, 0)","v":0},{"$f":"IF(AND('Schedule 1a-Compensation'!J19>0,'Schedule 1a-Compensation'!K19>0),'Schedule 1a-Compensation'!J19,0)","v":0},{"$f":"IF(AND('Schedule 1a-Compensation'!J19>0,'Schedule 1a-Compensation'!K19>0),'Schedule 1a-Compensation'!I19,0)","v":0},0]
[null,"Monitoring ",{"$f":"IF(AND('Schedule 1a-Compensation'!J20>0,'Schedule 1a-Compensation'!K20>0),'Schedule 1a-Compensation'!B20, 0)","v":0},{"$f":"IF(AND('Schedule 1a-Compensation'!J20>0,'Schedule 1a-Compensation'!K20>0),'Schedule 1a-Compensation'!J20,0)","v":0},{"$f":"IF(AND('Schedule 1a-Compensation'!J20>0,'Schedule 1a-Compensation'!K20>0),'Schedule 1a-Compensation'!I20,0)","v":0},0]
[null,"Monitoring ",{"$f":"IF(AND('Schedule 1a-Compensation'!J21>0,'Schedule 1a-Compensation'!K21>0),'Schedule 1a-Compensation'!B21, 0)","v":0},{"$f":"IF(AND('Schedule 1a-Compensation'!J21>0,'Schedule 1a-Compensation'!K21>0),'Schedule 1a-Compensation'!J21,0)","v":0},{"$f":"IF(AND('Schedule 1a-Compensation'!J21>0,'Schedule 1a-Compensation'!K21>0),'Schedule 1a-Compensation'!I21,0)","v":0},0]
[null,"Monitoring ",{"$f":"IF(AND('Schedule 1a-Compensation'!J22>0,'Schedule 1a-Compensation'!K22>0),'Schedule 1a-Compensation'!B22, 0)","v":0},{"$f":"IF(AND('Schedule 1a-Compensation'!J22>0,'Schedule 1a-Compensation'!K22>0),'Schedule 1a-Compensation'!J22,0)","v":0},{"$f":"IF(AND('Schedule 1a-Compensation'!J22>0,'Schedule 1a-Compensation'!K22>0),'Schedule 1a-Compensation'!I22,0)","v":0},0]
[null,"Monitoring ",{"$f":"IF(AND('Schedule 1a-Compensation'!J23>0,'Schedule 1a-Compensation'!K23>0),'Schedule 1a-Compensation'!B23, 0)","v":0},{"$f":"IF(AND('Schedule 1a-Compensation'!J23>0,'Schedule 1a-Compensation'!K23>0),'Schedule 1a-Compensation'!J23,0)","v":0},{"$f":"IF(AND('Schedule 1a-Compensation'!J23>0,'Schedule 1a-Compensation'!K23>0),'Schedule 1a-Compensation'!I23,0)","v":0},0]
[null,"Monitoring ",{"$f":"IF(AND('Schedule 1a-Compensation'!J24>0,'Schedule 1a-Compensation'!K24>0),'Schedule 1a-Compensation'!B24, 0)","v":0},{"$f":"IF(AND('Schedule 1a-Compensation'!J24>0,'Schedule 1a-Compensation'!K24>0),'Schedule 1a-Compensation'!J24,0)","v":0},{"$f":"IF(AND('Schedule 1a-Compensation'!J24>0,'Schedule 1a-Compensation'!K24>0),'Schedule 1a-Compensation'!I24,0)","v":0},0]
[null,"Monitoring ",{"$f":"IF(AND('Schedule 1a-Compensation'!J25>0,'Schedule 1a-Compensation'!K25>0),'Schedule 1a-Compensation'!B25, 0)","v":0},{"$f":"IF(AND('Schedule 1a-Compensation'!J25>0,'Schedule 1a-Compensation'!K25>0),'Schedule 1a-Compensation'!J25,0)","v":0},{"$f":"IF(AND('Schedule 1a-Compensation'!J25>0,'Schedule 1a-Compensation'!K25>0),'Schedule 1a-Compensation'!I25,0)","v":0},0]
[null,"Monitoring ",{"$f":"IF(AND('Schedule 1a-Compensation'!J26>0,'Schedule 1a-Compensation'!K26>0),'Schedule 1a-Compensation'!B26, 0)","v":0},{"$f":"IF(AND('Schedule 1a-Compensation'!J26>0,'Schedule 1a-Compensation'!K26>0),'Schedule 1a-Compensation'!J26,0)","v":0},{"$f":"IF(AND('Schedule 1a-Compensation'!J26>0,'Schedule 1a-Compensation'!K26>0),'Schedule 1a-Compensation'!I26,0)","v":0},0]
[null,"Monitoring ",{"$f":"IF(AND('Schedule 1a-Compensation'!J27>0,'Schedule 1a-Compensation'!K27>0),'Schedule 1a-Compensation'!B27, 0)","v":0},{"$f":"IF(AND('Schedule 1a-Compensation'!J27>0,'Schedule 1a-Compensation'!K27>0),'Schedule 1a-Compensation'!J27,0)","v":0},{"$f":"IF(AND('Schedule 1a-Compensation'!J27>0,'Schedule 1a-Compensation'!K27>0),'Schedule 1a-Compensation'!I27,0)","v":0},0]
[null,"Monitoring ",{"$f":"IF(AND('Schedule 1a-Compensation'!J28>0,'Schedule 1a-Compensation'!K28>0),'Schedule 1a-Compensation'!B28, 0)","v":0},{"$f":"IF(AND('Schedule 1a-Compensation'!J28>0,'Schedule 1a-Compensation'!K28>0),'Schedule 1a-Compensation'!J28,0)","v":0},{"$f":"IF(AND('Schedule 1a-Compensation'!J28>0,'Schedule 1a-Compensation'!K28>0),'Schedule 1a-Compensation'!I28,0)","v":0},0]
[null,"Monitoring ",{"$f":"IF(AND('Schedule 1a-Compensation'!J29>0,'Schedule 1a-Compensation'!K29>0),'Schedule 1a-Compensation'!B29, 0)","v":0},{"$f":"IF(AND('Schedule 1a-Compensation'!J29>0,'Schedule 1a-Compensation'!K29>0),'Schedule 1a-Compensation'!J29,0)","v":0},{"$f":"IF(AND('Schedule 1a-Compensation'!J29>0,'Schedule 1a-Compensation'!K29>0),'Schedule 1a-Compensation'!I29,0)","v":0},0]
[null,"Monitoring ",{"$f":"IF(AND('Schedule 1a-Compensation'!J30>0,'Schedule 1a-Compensation'!K30>0),'Schedule 1a-Compensation'!B30, 0)","v":0},{"$f":"IF(AND('Schedule 1a-Compensation'!J30>0,'Schedule 1a-Compensation'!K30>0),'Schedule 1a-Compensation'!J30,0)","v":0},{"$f":"IF(AND('Schedule 1a-Compensation'!J30>0,'Schedule 1a-Compensation'!K30>0),'Schedule 1a-Compensation'!I30,0)","v":0},0]
[null,"Monitoring ",{"$f":"IF(AND('Schedule 1a-Compensation'!J31>0,'Schedule 1a-Compensation'!K31>0),'Schedule 1a-Compensation'!B31, 0)","v":0},{"$f":"IF(AND('Schedule 1a-Compensation'!J31>0,'Schedule 1a-Compensation'!K31>0),'Schedule 1a-Compensation'!J31,0)","v":0},{"$f":"IF(AND('Schedule 1a-Compensation'!J31>0,'Schedule 1a-Compensation'!K31>0),'Schedule 1a-Compensation'!I31,0)","v":0},0]
[null,"Monitoring ",{"$f":"IF(AND('Schedule 1a-Compensation'!J32>0,'Schedule 1a-Compensation'!K32>0),'Schedule 1a-Compensation'!B32, 0)","v":0},{"$f":"IF(AND('Schedule 1a-Compensation'!J32>0,'Schedule 1a-Compensation'!K32>0),'Schedule 1a-Compensation'!J32,0)","v":0},{"$f":"IF(AND('Schedule 1a-Compensation'!J32>0,'Schedule 1a-Compensation'!K32>0),'Schedule 1a-Compensation'!I32,0)","v":0},0]
[null,"Monitoring ",{"$f":"IF(AND('Schedule 1a-Compensation'!J33>0,'Schedule 1a-Compensation'!K33>0),'Schedule 1a-Compensation'!B33, 0)","v":0},{"$f":"IF(AND('Schedule 1a-Compensation'!J33>0,'Schedule 1a-Compensation'!K33>0),'Schedule 1a-Compensation'!J33,0)","v":0},{"$f":"IF(AND('Schedule 1a-Compensation'!J33>0,'Schedule 1a-Compensation'!K33>0),'Schedule 1a-Compensation'!I33,0)","v":0},0]
[null,"Monitoring ",{"$f":"IF(AND('Schedule 1a-Compensation'!J34>0,'Schedule 1a-Compensation'!K34>0),'Schedule 1a-Compensation'!B34, 0)","v":0},{"$f":"IF(AND('Schedule 1a-Compensation'!J34>0,'Schedule 1a-Compensation'!K34>0),'Schedule 1a-Compensation'!J34,0)","v":0},{"$f":"IF(AND('Schedule 1a-Compensation'!J34>0,'Schedule 1a-Compensation'!K34>0),'Schedule 1a-Compensation'!I34,0)","v":0},0]
[null,"Monitoring ",{"$f":"IF(AND('Schedule 1a-Compensation'!J35>0,'Schedule 1a-Compensation'!K35>0),'Schedule 1a-Compensation'!B35, 0)","v":0},{"$f":"IF(AND('Schedule 1a-Compensation'!J35>0,'Schedule 1a-Compensation'!K35>0),'Schedule 1a-Compensation'!J35,0)","v":0},{"$f":"IF(AND('Schedule 1a-Compensation'!J35>0,'Schedule 1a-Compensation'!K35>0),'Schedule 1a-Compensation'!I35,0)","v":0},0]
[null,"Monitoring ",{"$f":"IF(AND('Schedule 1a-Compensation'!J36>0,'Schedule 1a-Compensation'!K36>0),'Schedule 1a-Compensation'!B36, 0)","v":0},{"$f":"IF(AND('Schedule 1a-Compensation'!J36>0,'Schedule 1a-Compensation'!K36>0),'Schedule 1a-Compensation'!J36,0)","v":0},{"$f":"IF(AND('Schedule 1a-Compensation'!J36>0,'Schedule 1a-Compensation'!K36>0),'Schedule 1a-Compensation'!I36,0)","v":0},0]
[null,"Monitoring ",{"$f":"IF(AND('Schedule 1a-Compensation'!J37>0,'Schedule 1a-Compensation'!K37>0),'Schedule 1a-Compensation'!B37, 0)","v":0},{"$f":"IF(AND('Schedule 1a-Compensation'!J37>0,'Schedule 1a-Compensation'!K37>0),'Schedule 1a-Compensation'!J37,0)","v":0},{"$f":"IF(AND('Schedule 1a-Compensation'!J37>0,'Schedule 1a-Compensation'!K37>0),'Schedule 1a-Compensation'!I37,0)","v":0},0]
[null,"Monitoring ",{"$f":"IF(AND('Schedule 1a-Compensation'!J38>0,'Schedule 1a-Compensation'!K38>0),'Schedule 1a-Compensation'!B38, 0)","v":0},{"$f":"IF(AND('Schedule 1a-Compensation'!J38>0,'Schedule 1a-Compensation'!K38>0),'Schedule 1a-Compensation'!J38,0)","v":0},{"$f":"IF(AND('Schedule 1a-Compensation'!J38>0,'Schedule 1a-Compensation'!K38>0),'Schedule 1a-Compensation'!I38,0)","v":0},0]
[null,"Monitoring ",{"$f":"IF(AND('Schedule 1a-Compensation'!J39>0,'Schedule 1a-Compensation'!K39>0),'Schedule 1a-Compensation'!B39, 0)","v":0},{"$f":"IF(AND('Schedule 1a-Compensation'!J39>0,'Schedule 1a-Compensation'!K39>0),'Schedule 1a-Compensation'!J39,0)","v":0},{"$f":"IF(AND('Schedule 1a-Compensation'!J39>0,'Schedule 1a-Compensation'!K39>0),'Schedule 1a-Compensation'!I39,0)","v":0},0]
[null,"Monitoring ",{"$f":"IF(AND('Schedule 1a-Compensation'!J40>0,'Schedule 1a-Compensation'!K40>0),'Schedule 1a-Compensation'!B40, 0)","v":0},{"$f":"IF(AND('Schedule 1a-Compensation'!J40>0,'Schedule 1a-Compensation'!K40>0),'Schedule 1a-Compensation'!J40,0)","v":0},{"$f":"IF(AND('Schedule 1a-Compensation'!J40>0,'Schedule 1a-Compensation'!K40>0),'Schedule 1a-Compensation'!I40,0)","v":0},0]
[null,"Monitoring ",{"$f":"IF(AND('Schedule 1a-Compensation'!J41>0,'Schedule 1a-Compensation'!K41>0),'Schedule 1a-Compensation'!B41, 0)","v":0},{"$f":"IF(AND('Schedule 1a-Compensation'!J41>0,'Schedule 1a-Compensation'!K41>0),'Schedule 1a-Compensation'!J41,0)","v":0},{"$f":"IF(AND('Schedule 1a-Compensation'!J41>0,'Schedule 1a-Compensation'!K41>0),'Schedule 1a-Compensation'!I41,0)","v":0},0]
[null,"Monitoring ",{"$f":"IF(AND('Schedule 1a-Compensation'!J42>0,'Schedule 1a-Compensation'!K42>0),'Schedule 1a-Compensation'!B42, 0)","v":0},{"$f":"IF(AND('Schedule 1a-Compensation'!J42>0,'Schedule 1a-Compensation'!K42>0),'Schedule 1a-Compensation'!J42,0)","v":0},{"$f":"IF(AND('Schedule 1a-Compensation'!J42>0,'Schedule 1a-Compensation'!K42>0),'Schedule 1a-Compensation'!I42,0)","v":0},0]
[]
[null,null,"Total Number of Monitoring Hours Per Month",{"$f":"SUM(D17:D42)","v":0},null,null,{"$f":"D44/173","v":0},"Equivalent Full Time Position(s)"]
[]
[null,"NOTE:  All Monitoring hours must be reported on the monthly PAR Forms."]
[null,"Examples of monitoring duties include: planning, scheduling, conducting reviews and follow-up reviews; travel for monitoring; writing reports; menu reviews; training and technical assistance; supervisory reviews and monitoring; preparing the monitoring portion of the management plan; training of monitors; household contacts; and appeals of review findings. "]
[]
[]
[null,"(7CFR, Part 226.16(b)(1))  Required Staffing Ratios: Multi-site AMP Sponsor sites:  The equivalent of 1 full-time staff person for each 25 - 150 sites sponsored."]

{"sheet":"Schedule 2a-Health Insurance","index":6,"n_rows":89,"n_cols":21,"rows_kept":89,"cut":false,"hidden":true,"merged":[[94,4,94,9],[94,10,94,15],[89,1,89,3],[90,1,90,3],[91,1,91,3],[92,1,92,3],[93,1,93,3],[94,1,94,3],[90,4,90,9],[90,10,90,15],[91,4,91,9],[91,10,91,15],[92,4,92,9],[92,10,92,15],[88,1,88,3],[88,4,88,9],[88,10,88,15],[93,4,93,9],[93,10,93,15],[89,4,89,9],[89,10,89,15],[11,1,12,2],[11,3,12,9],[11,10,12,16],[79,16,80,17],[79,18,80,19],[11,17,12,17],[11,18,11,20],[12,18,12,20]]}
[null,{"$f":"'Summary Worksheet'!$B$1","v":"Automated Budget for Prospective Sponsors of Unaffiliated Centers"}]
[]
[null,"SCHEDULE 2a - HEALTH INSURANCE"]
[null,null,"      Fiscal Year:   ",{"$f":"'Summary Worksheet'!$C$4","v":0}]
[]
[null,null,"      Authorization Number:   ",{"$f":"'Summary Worksheet'!$C$6","v":0},null,null,null,null,null,"Please note these error codes:",null,null,null,"Example:"]
[null,null,null,null,null,null,null,null,null,"Total number of months emay not xceed 12"]
[null,null,"Amendment Number:",{"$f":"'Summary Worksheet'!$C$8","v":0},null,null,null,null,null,"Number of CCFP months may not exceed employer months"]
[null,null,null,null,null,null,null,null,null,"You need to delete the data in this this cell:",null,null,null,2000]
[null,null,null,null,null,null,null,null,null,"Do not enter data into this cell"]
[]
[null,"PERSONNEL INFORMATION\n(See Schedule 1a).",null,"ORIGINAL RATE",null,null,null,null,null,null,"NEW RATE\nFill this out ONLY IF this is a budget amendment and the benefit has changed rates.",null,null,null,null,null,null,null,"CCFP TOTALS"]
[null,null,null,null,null,null,null,null,null,null,null,null,null,null,null,null,null,null,"CCFP Administrative Budget Total"]
[null,1,{"$f":"B14+1","v":2},3,4,5,6,7,8,9,10,11,12,13,14,15,16,17,18,19,20]
[null,"Employee Name","CCFP % of Employer Cost","Total Monthly Cost","% Employer Covered","Number of Months","Monthly Employer Cost","Monthly Employee Cost","Monthly CCFP Cost                      ","Number of Months  Charged to CCFP ","Total Monthly Cost","  % Employer Covered","Number of Months","Monthly Employer Cost ","Monthly Employee Cost","Monthly CCFP Cost                        ","Number of Months Charged to CCFP","Total Annual Cost to Employer","Allowable Costs to CCFP Administrative Budget ","Amount to be Charged to CCFP Administrative Budget","Allowable CCFP Costs to CCFP Administrative Budget Covered by Other (Non-CCFP) Funding Source(s) "]
[null,"(Pulled from Schedule 1a)","(Pulled from Schedule 1a)",null,null,null,"(column 2  times\ncolumn 3)",null,"  (column 3 times\ncolumn 7)",null,null,null,null,"(column 11  times\n  column 12)",null,"(column 3 times column 14)",null,null,null,null,"(column 19\n minus\ncolumn 20)"]
[null,{"$f":"IF('Schedule 1a-Compensation'!H17>0,'Schedule 1a-Compensation'!B17,0)","v":0},{"$f":"IF('Schedule 1a-Compensation'!H17>0,'Schedule 1a-Compensation'!K17,0)","v":0},0,0,12,{"$f":"ROUND((D17*E17),2)","v":0},{"$f":"(D17)*(1-E17)","v":0},{"$f":"ROUND((G17*C17),2)","v":0},12,0,0,0,{"$f":"ROUND((K17*L17),2)","v":0},{"$f":"(K17)*(1-L17)","v":0},{"$f":"ROUND((N17*C17),2)","v":0},0,{"$f":"IF(AND(B17<>\"\",C17<>\"\",F17+M17<=12,J17+Q17<=12,J17<=F17,Q17<=M17),ROUND((D17*E17*F17),2)+ROUND((K17*L17*M17),2),0)","v":0},{"$f":"IF(AND(R17>0),(ROUND((I17*J17),2)+ROUND((P17*Q17),2)),0)","v":0},0,{"$f":"(S17-T17)","v":0}]
[null,{"$f":"IF('Schedule 1a-Compensation'!H18>0,'Schedule 1a-Compensation'!B18,0)","v":0},{"$f":"IF('Schedule 1a-Compensation'!H18>0,'Schedule 1a-Compensation'!K18,0)","v":0},0,0,12,{"$f":"ROUND((D18*E18),2)","v":0},{"$f":"(D18)*(1-E18)","v":0},0,12,0,0,0,{"$f":"ROUND((K18*L18),2)","v":0},{"$f":"(K18)*(1-L18)","v":0},0,0,{"$f":"IF(AND(B18<>\"\",C18<>\"\",F18+M18<=12,J18+Q18<=12,J18<=F18,Q18<=M18),ROUND((D18*E18*F18),2)+ROUND((K18*L18*M18),2),0)","v":0},{"$f":"IF(AND(R18>0),(ROUND((I18*J18),2)+ROUND((P18*Q18),2)),0)","v":0},0,{"$f":"(S18-T18)","v":0}]
[null,{"$f":"IF('Schedule 1a-Compensation'!H19>0,'Schedule 1a-Compensation'!B19,0)","v":0},{"$f":"IF('Schedule 1a-Compensation'!H19>0,'Schedule 1a-Compensation'!K19,0)","v":0},0,0,12,0,0,0,12,0,0,0,{"$f":"ROUND((K19*L19),2)","v":0},0,0,0,0,0,0,0]
[null,{"$f":"IF('Schedule 1a-Compensation'!H20>0,'Schedule 1a-Compensation'!B20,0)","v":0},{"$f":"IF('Schedule 1a-Compensation'!H20>0,'Schedule 1a-Compensation'!K20,0)","v":0},0,0,12,0,0,0,12,0,0,0,0,0,0,0,0,0,0,0]
[null,{"$f":"IF('Schedule 1a-Compensation'!H21>0,'Schedule 1a-Compensation'!B21,0)","v":0},{"$f":"IF('Schedule 1a-Compensation'!H21>0,'Schedule 1a-Compensation'!K21,0)","v":0},0,0,12,0,0,0,12,0,0,0,0,0,0,0,0,0,0,0]
[null,{"$f":"IF('Schedule 1a-Compensation'!H22>0,'Schedule 1a-Compensation'!B22,0)","v":0},{"$f":"IF('Schedule 1a-Compensation'!H22>0,'Schedule 1a-Compensation'!K22,0)","v":0},0,0,12,0,0,0,12,0,0,0,0,0,0,0,0,0,0,0]
[null,{"$f":"IF('Schedule 1a-Compensation'!H23>0,'Schedule 1a-Compensation'!B23,0)","v":0},{"$f":"IF('Schedule 1a-Compensation'!H23>0,'Schedule 1a-Compensation'!K23,0)","v":0},0,0,12,0,0,0,12,0,0,0,0,0,0,0,0,0,0,0]
[null,{"$f":"IF('Schedule 1a-Compensation'!H24>0,'Schedule 1a-Compensation'!B24,0)","v":0},{"$f":"IF('Schedule 1a-Compensation'!H24>0,'Schedule 1a-Compensation'!K24,0)","v":0},0,0,12,0,0,0,12,0,0,0,0,0,0,0,0,0,0,0]
[null,{"$f":"IF('Schedule 1a-Compensation'!H25>0,'Schedule 1a-Compensation'!B25,0)","v":0},{"$f":"IF('Schedule 1a-Compensation'!H25>0,'Schedule 1a-Compensation'!K25,0)","v":0},0,0,12,0,0,0,12,0,0,0,0,0,0,0,0,0,0,0]
[null,{"$f":"IF('Schedule 1a-Compensation'!H26>0,'Schedule 1a-Compensation'!B26,0)","v":0},{"$f":"IF('Schedule 1a-Compensation'!H26>0,'Schedule 1a-Compensation'!K26,0)","v":0},0,0,12,0,0,0,12,0,0,0,0,0,0,0,0,0,0,0]
[null,{"$f":"IF('Schedule 1a-Compensation'!H27>0,'Schedule 1a-Compensation'!B27,0)","v":0},{"$f":"IF('Schedule 1a-Compensation'!H27>0,'Schedule 1a-Compensation'!K27,0)","v":0},0,0,12,0,0,0,12,0,0,0,0,0,0,0,0,0,0,0]
[null,{"$f":"IF('Schedule 1a-Compensation'!H28>0,'Schedule 1a-Compensation'!B28,0)","v":0},{"$f":"IF('Schedule 1a-Compensation'!H28>0,'Schedule 1a-Compensation'!K28,0)","v":0},0,0,12,0,0,0,12,0,0,0,0,0,0,0,0,0,0,0]
[null,{"$f":"IF('Schedule 1a-Compensation'!H29>0,'Schedule 1a-Compensation'!B29,0)","v":0},{"$f":"IF('Schedule 1a-Compensation'!H29>0,'Schedule 1a-Compensation'!K29,0)","v":0},0,0,12,0,0,0,12,0,0,0,0,0,0,0,0,0,0,0]
[null,{"$f":"IF('Schedule 1a-Compensation'!H30>0,'Schedule 1a-Compensation'!B30,0)","v":0},{"$f":"IF('Schedule 1a-Compensation'!H30>0,'Schedule 1a-Compensation'!K30,0)","v":0},0,0,12,0,0,0,12,0,0,0,0,0,0,0,0,0,0,0]
[null,{"$f":"IF('Schedule 1a-Compensation'!H31>0,'Schedule 1a-Compensation'!B31,0)","v":0},{"$f":"IF('Schedule 1a-Compensation'!H31>0,'Schedule 1a-Compensation'!K31,0)","v":0},0,0,12,0,0,0,12,0,0,0,0,0,0,0,0,0,0,0]
[null,{"$f":"IF('Schedule 1a-Compensation'!H32>0,'Schedule 1a-Compensation'!B32,0)","v":0},{"$f":"IF('Schedule 1a-Compensation'!H32>0,'Schedule 1a-Compensation'!K32,0)","v":0},0,0,12,0,0,0,12,0,0,0,{"$f":"ROUND((K32*L32),2)","v":0},{"$f":"(K32)*(1-L32)","v":0},{"$f":"ROUND((N32*C32),2)","v":0},0,0,0,0,0]
[null,{"$f":"IF('Schedule 1a-Compensation'!H33>0,'Schedule 1a-Compensation'!B33,0)","v":0},{"$f":"IF('Schedule 1a-Compensation'!H33>0,'Schedule 1a-Compensation'!K33,0)","v":0},0,0,12,0,0,0,12,0,0,0,0,0,0,0,0,0,0,0]
[null,{"$f":"IF('Schedule 1a-Compensation'!H34>0,'Schedule 1a-Compensation'!B34,0)","v":0},{"$f":"IF('Schedule 1a-Compensation'!H34>0,'Schedule 1a-Compensation'!K34,0)","v":0},0,0,12,0,0,0,12,0,0,0,0,0,0,0,0,0,0,0]
[null,{"$f":"IF('Schedule 1a-Compensation'!H35>0,'Schedule 1a-Compensation'!B35,0)","v":0},{"$f":"IF('Schedule 1a-Compensation'!H35>0,'Schedule 1a-Compensation'!K35,0)","v":0},0,0,12,0,0,0,12,0,0,0,0,0,0,0,0,0,0,0]
[null,{"$f":"IF('Schedule 1a-Compensation'!H36>0,'Schedule 1a-Compensation'!B36,0)","v":0},{"$f":"IF('Schedule 1a-Compensation'!H36>0,'Schedule 1a-Compensation'!K36,0)","v":0},0,0,12,0,0,0,12,0,0,0,0,0,0,0,0,0,0,0]
[null,{"$f":"IF('Schedule 1a-Compensation'!H37>0,'Schedule 1a-Compensation'!B37,0)","v":0},{"$f":"IF('Schedule 1a-Compensation'!H37>0,'Schedule 1a-Compensation'!K37,0)","v":0},0,0,12,0,0,0,12,0,0,0,0,0,0,0,0,0,0,0]
[null,{"$f":"IF('Schedule 1a-Compensation'!H38>0,'Schedule 1a-Compensation'!B38,0)","v":0},{"$f":"IF('Schedule 1a-Compensation'!H38>0,'Schedule 1a-Compensation'!K38,0)","v":0},0,0,12,0,0,0,12,0,0,0,0,0,0,0,0,0,0,0]
[null,{"$f":"IF('Schedule 1a-Compensation'!H39>0,'Schedule 1a-Compensation'!B39,0)","v":0},{"$f":"IF('Schedule 1a-Compensation'!H39>0,'Schedule 1a-Compensation'!K39,0)","v":0},0,0,12,0,0,0,12,0,0,0,0,0,0,0,0,0,0,0]
[null,{"$f":"IF('Schedule 1a-Compensation'!H40>0,'Schedule 1a-Compensation'!B40,0)","v":0},{"$f":"IF('Schedule 1a-Compensation'!H40>0,'Schedule 1a-Compensation'!K40,0)","v":0},0,0,12,0,0,0,12,0,0,0,0,0,0,0,0,0,0,0]
[null,{"$f":"IF('Schedule 1a-Compensation'!H41>0,'Schedule 1a-Compensation'!B41,0)","v":0},{"$f":"IF('Schedule 1a-Compensation'!H41>0,'Schedule 1a-Compensation'!K41,0)","v":0},0,0,12,0,0,0,12,0,0,0,0,0,0,0,0,0,0,0]
[null,{"$f":"IF('Schedule 1a-Compensation'!H42>0,'Schedule 1a-Compensation'!B42,0)","v":0},{"$f":"IF('Schedule 1a-Compensation'!H42>0,'Schedule 1a-Compensation'!K42,0)","v":0},0,0,12,0,0,0,12,0,0,0,0,0,0,0,0,0,0,0]
[null,{"$f":"IF('Schedule 1a-Compensation'!H43>0,'Schedule 1a-Compensation'!B43,0)","v":0},{"$f":"IF('Schedule 1a-Compensation'!H43>0,'Schedule 1a-Compensation'!K43,0)","v":0},0,0,12,0,0,0,12,0,0,0,0,0,0,0,0,0,0,0]
[null,{"$f":"IF('Schedule 1a-Compensation'!H44>0,'Schedule 1a-Compensation'!B44,0)","v":0},{"$f":"IF('Schedule 1a-Compensation'!H44>0,'Schedule 1a-Compensation'!K44,0)","v":0},0,0,12,0,0,0,12,0,0,0,{"$f":"ROUND((K44*L44),2)","v":0},{"$f":"(K44)*(1-L44)","v":0},{"$f":"ROUND((N44*C44),2)","v":0},0,0,0,0,0]
[null,{"$f":"IF('Schedule 1a-Compensation'!H45>0,'Schedule 1a-Compensation'!B45,0)","v":0},{"$f":"IF('Schedule 1a-Compensation'!H45>0,'Schedule 1a-Compensation'!K45,0)","v":0},0,0,12,0,0,0,12,0,0,0,0,0,0,0,0,0,0,0]
[null,{"$f":"IF('Schedule 1a-Compensation'!H46>0,'Schedule 1a-Compensation'!B46,0)","v":0},{"$f":"IF('Schedule 1a-Compensation'!H46>0,'Schedule 1a-Compensation'!K46,0)","v":0},0,0,12,0,0,0,12,0,0,0,0,0,0,0,0,0,0,0]
[null,{"$f":"IF('Schedule 1a-Compensation'!H47>0,'Schedule 1a-Compensation'!B47,0)","v":0},{"$f":"IF('Schedule 1a-Compensation'!H47>0,'Schedule 1a-Compensation'!K47,0)","v":0},0,0,12,0,0,0,12,0,0,0,0,0,0,0,0,0,0,0]
[null,{"$f":"IF('Schedule 1a-Compensation'!H48>0,'Schedule 1a-Compensation'!B48,0)","v":0},{"$f":"IF('Schedule 1a-Compensation'!H48>0,'Schedule 1a-Compensation'!K48,0)","v":0},0,0,12,0,0,0,12,0,0,0,0,0,0,0,0,0,0,0]
[null,{"$f":"IF('Schedule 1a-Compensation'!H49>0,'Schedule 1a-Compensation'!B49,0)","v":0},{"$f":"IF('Schedule 1a-Compensation'!H49>0,'Schedule 1a-Compensation'!K49,0)","v":0},0,0,12,0,0,0,12,0,0,0,0,0,0,0,0,0,0,0]
[null,{"$f":"IF('Schedule 1a-Compensation'!H50>0,'Schedule 1a-Compensation'!B50,0)","v":0},{"$f":"IF('Schedule 1a-Compensation'!H50>0,'Schedule 1a-Compensation'!K50,0)","v":0},0,0,12,0,0,0,12,0,0,0,0,0,0,0,0,0,0,0]
[null,{"$f":"IF('Schedule 1a-Compensation'!H51>0,'Schedule 1a-Compensation'!B51,0)","v":0},{"$f":"IF('Schedule 1a-Compensation'!H51>0,'Schedule 1a-Compensation'!K51,0)","v":0},0,0,12,0,0,0,12,0,0,0,0,0,0,0,0,0,0,0]
[null,{"$f":"IF('Schedule 1a-Compensation'!H52>0,'Schedule 1a-Compensation'!B52,0)","v":0},{"$f":"IF('Schedule 1a-Compensation'!H52>0,'Schedule 1a-Compensation'!K52,0)","v":0},0,0,12,0,0,0,12,0,0,0,0,0,0,0,0,0,0,0]
[null,{"$f":"IF('Schedule 1a-Compensation'!H53>0,'Schedule 1a-Compensation'!B53,0)","v":0},{"$f":"IF('Schedule 1a-Compensation'!H53>0,'Schedule 1a-Compensation'!K53,0)","v":0},0,0,12,0,0,0,12,0,0,0,0,0,0,0,0,0,0,0]
[null,{"$f":"IF('Schedule 1a-Compensation'!H54>0,'Schedule 1a-Compensation'!B54,0)","v":0},{"$f":"IF('Schedule 1a-Compensation'!H54>0,'Schedule 1a-Compensation'!K54,0)","v":0},0,0,12,0,0,0,12,0,0,0,0,0,0,0,0,0,0,0]
[null,{"$f":"IF('Schedule 1a-Compensation'!H55>0,'Schedule 1a-Compensation'!B55,0)","v":0},{"$f":"IF('Schedule 1a-Compensation'!H55>0,'Schedule 1a-Compensation'!K55,0)","v":0},0,0,12,0,0,0,12,0,0,0,0,0,0,0,0,0,0,0]
[null,{"$f":"IF('Schedule 1a-Compensation'!H56>0,'Schedule 1a-Compensation'!B56,0)","v":0},{"$f":"IF('Schedule 1a-Compensation'!H56>0,'Schedule 1a-Compensation'!K56,0)","v":0},0,0,12,0,0,0,12,0,0,0,0,0,0,0,0,0,0,0]
[null,{"$f":"IF('Schedule 1a-Compensation'!H57>0,'Schedule 1a-Compensation'!B57,0)","v":0},{"$f":"IF('Schedule 1a-Compensation'!H57>0,'Schedule 1a-Compensation'!K57,0)","v":0},0,0,12,0,0,0,12,0,0,0,0,0,0,0,0,0,0,0]
[null,{"$f":"IF('Schedule 1a-Compensation'!H58>0,'Schedule 1a-Compensation'!B58,0)","v":0},{"$f":"IF('Schedule 1a-Compensation'!H58>0,'Schedule 1a-Compensation'!K58,0)","v":0},0,0,12,0,0,0,12,0,0,0,0,0,0,0,0,0,0,0]
[null,{"$f":"IF('Schedule 1a-Compensation'!H59>0,'Schedule 1a-Compensation'!B59,0)","v":0},{"$f":"IF('Schedule 1a-Compensation'!H59>0,'Schedule 1a-Compensation'!K59,0)","v":0},0,0,12,0,0,0,12,0,0,0,0,0,0,0,0,0,0,0]
[null,{"$f":"IF('Schedule 1a-Compensation'!H60>0,'Schedule 1a-Compensation'!B60,0)","v":0},{"$f":"IF('Schedule 1a-Compensation'!H60>0,'Schedule 1a-Compensation'!K60,0)","v":0},0,0,12,0,0,0,12,0,0,0,0,0,0,0,0,0,0,0]
[null,{"$f":"IF('Schedule 1a-Compensation'!H61>0,'Schedule 1a-Compensation'!B61,0)","v":0},{"$f":"IF('Schedule 1a-Compensation'!H61>0,'Schedule 1a-Compensation'!K61,0)","v":0},0,0,12,0,0,0,12,0,0,0,0,0,0,0,0,0,0,0]
[null,{"$f":"IF('Schedule 1a-Compensation'!H62>0,'Schedule 1a-Compensation'!B62,0)","v":0},{"$f":"IF('Schedule 1a-Compensation'!H62>0,'Schedule 1a-Compensation'!K62,0)","v":0},0,0,12,0,0,0,12,0,0,0,0,0,0,0,0,0,0,0]
[null,{"$f":"IF('Schedule 1a-Compensation'!H63>0,'Schedule 1a-Compensation'!B63,0)","v":0},{"$f":"IF('Schedule 1a-Compensation'!H63>0,'Schedule 1a-Compensation'!K63,0)","v":0},0,0,12,0,0,0,12,0,0,0,0,0,0,0,0,0,0,0]
[null,{"$f":"IF('Schedule 1a-Compensation'!H64>0,'Schedule 1a-Compensation'!B64,0)","v":0},{"$f":"IF('Schedule 1a-Compensation'!H64>0,'Schedule 1a-Compensation'!K64,0)","v":0},0,0,12,0,0,0,12,0,0,0,0,0,0,0,0,0,0,0]
[null,{"$f":"IF('Schedule 1a-Compensation'!H65>0,'Schedule 1a-Compensation'!B65,0)","v":0},{"$f":"IF('Schedule 1a-Compensation'!H65>0,'Schedule 1a-Compensation'!K65,0)","v":0},0,0,12,0,0,0,12,0,0,0,0,0,0,0,0,0,0,0]
[null,{"$f":"IF('Schedule 1a-Compensation'!H66>0,'Schedule 1a-Compensation'!B66,0)","v":0},{"$f":"IF('Schedule 1a-Compensation'!H66>0,'Schedule 1a-Compensation'!K66,0)","v":0},0,0,12,0,0,0,12,0,0,0,0,0,0,0,0,0,0,0]
[null,{"$f":"IF('Schedule 1a-Compensation'!H67>0,'Schedule 1a-Compensation'!B67,0)","v":0},{"$f":"IF('Schedule 1a-Compensation'!H67>0,'Schedule 1a-Compensation'!K67,0)","v":0},0,0,12,0,0,0,12,0,0,0,0,0,0,0,0,0,0,0]
[null,{"$f":"IF('Schedule 1a-Compensation'!H68>0,'Schedule 1a-Compensation'!B68,0)","v":0},{"$f":"IF('Schedule 1a-Compensation'!H68>0,'Schedule 1a-Compensation'!K68,0)","v":0},0,0,12,0,0,0,12,0,0,0,0,0,0,0,0,0,0,0]
[null,{"$f":"IF('Schedule 1a-Compensation'!H69>0,'Schedule 1a-Compensation'!B69,0)","v":0},{"$f":"IF('Schedule 1a-Compensation'!H69>0,'Schedule 1a-Compensation'!K69,0)","v":0},0,0,12,0,0,0,12,0,0,0,0,0,0,0,0,0,0,0]
[null,{"$f":"IF('Schedule 1a-Compensation'!H70>0,'Schedule 1a-Compensation'!B70,0)","v":0},{"$f":"IF('Schedule 1a-Compensation'!H70>0,'Schedule 1a-Compensation'!K70,0)","v":0},0,0,12,0,0,0,12,0,0,0,0,0,0,0,0,0,0,0]
[null,{"$f":"IF('Schedule 1a-Compensation'!H71>0,'Schedule 1a-Compensation'!B71,0)","v":0},{"$f":"IF('Schedule 1a-Compensation'!H71>0,'Schedule 1a-Compensation'!K71,0)","v":0},0,0,12,0,0,0,12,0,0,0,0,0,0,0,0,0,0,0]
[null,{"$f":"IF('Schedule 1a-Compensation'!H72>0,'Schedule 1a-Compensation'!B72,0)","v":0},{"$f":"IF('Schedule 1a-Compensation'!H72>0,'Schedule 1a-Compensation'!K72,0)","v":0},0,0,12,0,0,0,12,0,0,0,0,0,0,0,0,0,0,0]
[null,{"$f":"IF('Schedule 1a-Compensation'!H73>0,'Schedule 1a-Compensation'!B73,0)","v":0},{"$f":"IF('Schedule 1a-Compensation'!H73>0,'Schedule 1a-Compensation'!K73,0)","v":0},0,0,12,0,0,0,12,0,0,0,0,0,0,0,0,0,0,0]
[null,{"$f":"IF('Schedule 1a-Compensation'!H74>0,'Schedule 1a-Compensation'!B74,0)","v":0},{"$f":"IF('Schedule 1a-Compensation'!H74>0,'Schedule 1a-Compensation'!K74,0)","v":0},0,0,12,0,0,0,12,0,0,0,0,0,0,0,0,0,0,0]
[null,{"$f":"IF('Schedule 1a-Compensation'!H75>0,'Schedule 1a-Compensation'!B75,0)","v":0},{"$f":"IF('Schedule 1a-Compensation'!H75>0,'Schedule 1a-Compensation'!K75,0)","v":0},0,0,12,0,0,0,12,0,0,0,0,0,0,0,0,0,0,0]
[null,{"$f":"IF('Schedule 1a-Compensation'!H76>0,'Schedule 1a-Compensation'!B76,0)","v":0},{"$f":"IF('Schedule 1a-Compensation'!H76>0,'Schedule 1a-Compensation'!K76,0)","v":0},0,0,12,0,0,0,12,0,0,0,0,0,0,0,0,0,0,0]
[null,{"$f":"IF('Schedule 1a-Compensation'!H77>0,'Schedule 1a-Compensation'!B77,0)","v":0},{"$f":"IF('Schedule 1a-Compensation'!H77>0,'Schedule 1a-Compensation'!K77,0)","v":0},0,0,12,0,0,0,12,0,0,0,0,0,0,0,0,0,0,0]
[null,null," ",{"$f":"SUM(D17:D77)","v":0},null,null,{"$f":"SUM(G17:G77)","v":0},{"$f":"SUM(H17:H77)","v":0},{"$f":"SUM(I17:I77)","v":0},null,{"$f":"SUM(K17:K77)","v":0},null,null,{"$f":"SUM(N17:N77)","v":0},{"$f":"SUM(O17:O77)","v":0},{"$f":"SUM(P17:P77)","v":0},null,{"$f":"SUM(R17:R77)","v":0},0,0,0]
[]
[null,"Enter data in columns 3, 4, 5, 9, and 19 to calculate the total of schedule 2a.",null,null,null,null,null,null,null,null,null,null,null,null,null,null,null,null,"Total Allowable Costs to CCFP \n(Columns 20+21 must equal the total in Column 19.)",null,{"$f":"T78+U78","v":0}]
[null,"If this is a budget amendment and there are new benefit rates, enter data in columns 10, 11, 12 and 16. ",null,null,null,null,null,null,null,null,null,null,null,null,null,null,null,null,null,null,{"$f":"S78-U80","v":0}]
[null,"Renewed Rate section will not calculate unless the Summary Worksheet is updated to reflect the amendment number. "]
[null,"The calculation of all the benefits is totaled on the summary worksheet."]
[]
[]
[]
[null,"List any other funding source(s) used by your organization to cover the cost of CCFP employees' benefits."]
[]
[null,"List Other Non-CCFP Administrative Funding Source(s)",null,null,"List Supporting Documentation for Schedule 2a",null,null,null,null,null,"Comments"]

{"sheet":"Schedule 2b-Dental Insurance","index":7,"n_rows":89,"n_cols":21,"rows_kept":89,"cut":false,"hidden":true,"merged":[[94,1,94,3],[89,1,89,3],[90,1,90,3],[91,1,91,3],[92,1,92,3],[93,1,93,3],[93,4,93,9],[94,4,94,9],[93,10,93,15],[94,10,94,15],[91,4,91,9],[92,4,92,9],[91,10,91,15],[92,10,92,15],[89,4,89,9],[90,4,90,9],[89,10,89,15],[90,10,90,15],[79,16,80,17],[79,18,80,19],[88,1,88,3],[88,4,88,9],[88,10,88,15],[11,3,12,9],[11,10,12,16],[11,17,12,17],[12,18,12,20],[11,1,12,2],[11,18,11,20]]}
[null,{"$f":"'Summary Worksheet'!$B$1","v":"Automated Budget for Prospective Sponsors of Unaffiliated Centers"}]
[]
[null,"SCHEDULE 2b - DENTAL INSURANCE"]
[null,null,"      Fiscal Year:   ",{"$f":"'Summary Worksheet'!$C$4","v":0}]
[]
[null,null,"      Authorization Number:   ",{"$f":"'Summary Worksheet'!$C$6","v":0},null,null,null,null,null,"Please note these error codes:",null,null,null,"Example:"]
[null,null,null,null,null,null,null,null,null,"Total number of months emay not xceed 12"]
[null,null,"Amendment Number:",{"$f":"'Summary Worksheet'!$C$8","v":0},null,null,null,null,null,"Number of CCFP months may not exceed employer months"]
[null,null,null,null,null,null,null,null,null,"You need to delete the data in this this cell:",null,null,null,2000]
[null,null,null,null,null,null,null,null,null,"Do not enter data into this cell"]
[]
[null,"PERSONNEL INFORMATION\n(See Schedule 1a).",null,"ORIGINAL RATE",null,null,null,null,null,null,"NEW RATE\nFill this out ONLY IF this is a budget amendment and the benefit has changed rates.",null,null,null,null,null,null,null,"CCFP TOTALS"]
[null,null,null,null,null,null,null,null,null,null,null,null,null,null,null,null,null,null,"CCFP Administrative Budget Total"]
[null,1,{"$f":"B14+1","v":2},3,4,5,6,7,8,9,10,11,12,13,14,15,16,17,18,19,20]
[null,"Employee Name","CCFP % of Employer Cost","Total Monthly Cost","% Employer Covered","Number of Months","Monthly Employer Cost","Monthly Employee Cost","Monthly CCFP Cost                      ","Number of Months  Charged to CCFP ","Total Monthly Cost","  % Employer Covered","Number of Months","Monthly Employer Cost ","Monthly Employee Cost","Monthly CCFP Cost                        ","Number of Months Charged to CCFP","Total Annual Cost to Employer","Allowable Costs to CCFP Administrative Budget ","Amount to be Charged to CCFP Administrative Budget","Allowable CCFP Costs to CCFP Administrative Budget Covered by Other (Non-CCFP) Funding Source(s) "]
[null,"(Pulled from Schedule 1a)","(Pulled from Schedule 1a)",null,null,null,"(column 2  times\ncolumn 3)",null,"  (column 3 times\ncolumn 7)",null,null,null,null,"(column 11  times\n  column 12)",null,"(column 3 times column 14)",null,null,null,null,"(column 19\n minus\ncolumn 20)"]
[null,{"$f":"IF('Schedule 1a-Compensation'!H17>0,'Schedule 1a-Compensation'!B17,0)","v":0},{"$f":"IF('Schedule 1a-Compensation'!H17>0,'Schedule 1a-Compensation'!K17,0)","v":0},0,0,12,{"$f":"ROUND((D17*E17),2)","v":0},{"$f":"(D17)*(1-E17)","v":0},{"$f":"ROUND((G17*C17),2)","v":0},12,0,0,0,{"$f":"ROUND((K17*L17),2)","v":0},{"$f":"(K17)*(1-L17)","v":0},{"$f":"ROUND((N17*C17),2)","v":0},0,{"$f":"IF(AND(B17<>\"\",C17<>\"\",F17+M17<=12,J17+Q17<=12,J17<=F17,Q17<=M17),ROUND((D17*E17*F17),2)+ROUND((K17*L17*M17),2),0)","v":0},{"$f":"IF(AND(R17>0),(ROUND((I17*J17),2)+ROUND((P17*Q17),2)),0)","v":0},0,{"$f":"(S17-T17)","v":0}]
[null,{"$f":"IF('Schedule 1a-Compensation'!H18>0,'Schedule 1a-Compensation'!B18,0)","v":0},{"$f":"IF('Schedule 1a-Compensation'!H18>0,'Schedule 1a-Compensation'!K18,0)","v":0},0,0,12,{"$f":"ROUND((D18*E18),2)","v":0},{"$f":"(D18)*(1-E18)","v":0},0,12,0,0,0,{"$f":"ROUND((K18*L18),2)","v":0},{"$f":"(K18)*(1-L18)","v":0},0,0,{"$f":"IF(AND(B18<>\"\",C18<>\"\",F18+M18<=12,J18+Q18<=12,J18<=F18,Q18<=M18),ROUND((D18*E18*F18),2)+ROUND((K18*L18*M18),2),0)","v":0},{"$f":"IF(AND(R18>0),(ROUND((I18*J18),2)+ROUND((P18*Q18),2)),0)","v":0},0,{"$f":"(S18-T18)","v":0}]
[null,{"$f":"IF('Schedule 1a-Compensation'!H19>0,'Schedule 1a-Compensation'!B19,0)","v":0},{"$f":"IF('Schedule 1a-Compensation'!H19>0,'Schedule 1a-Compensation'!K19,0)","v":0},0,0,12,0,0,0,12,0,0,0,0,0,0,0,0,0,0,0]
[null,{"$f":"IF('Schedule 1a-Compensation'!H20>0,'Schedule 1a-Compensation'!B20,0)","v":0},{"$f":"IF('Schedule 1a-Compensation'!H20>0,'Schedule 1a-Compensation'!K20,0)","v":0},0,0,12,0,0,0,12,0,0,0,0,0,0,0,0,0,0,0]
[null,{"$f":"IF('Schedule 1a-Compensation'!H21>0,'Schedule 1a-Compensation'!B21,0)","v":0},{"$f":"IF('Schedule 1a-Compensation'!H21>0,'Schedule 1a-Compensation'!K21,0)","v":0},0,0,12,0,0,0,12,0,0,0,0,0,0,0,0,0,0,0]
[null,{"$f":"IF('Schedule 1a-Compensation'!H22>0,'Schedule 1a-Compensation'!B22,0)","v":0},{"$f":"IF('Schedule 1a-Compensation'!H22>0,'Schedule 1a-Compensation'!K22,0)","v":0},0,0,12,0,0,0,12,0,0,0,0,0,0,0,0,0,0,0]
[null,{"$f":"IF('Schedule 1a-Compensation'!H23>0,'Schedule 1a-Compensation'!B23,0)","v":0},{"$f":"IF('Schedule 1a-Compensation'!H23>0,'Schedule 1a-Compensation'!K23,0)","v":0},0,0,12,0,0,0,12,0,0,0,0,0,0,0,0,0,0,0]
[null,{"$f":"IF('Schedule 1a-Compensation'!H24>0,'Schedule 1a-Compensation'!B24,0)","v":0},{"$f":"IF('Schedule 1a-Compensation'!H24>0,'Schedule 1a-Compensation'!K24,0)","v":0},0,0,12,0,0,0,12,0,0,0,0,0,0,0,0,0,0,0]
[null,{"$f":"IF('Schedule 1a-Compensation'!H25>0,'Schedule 1a-Compensation'!B25,0)","v":0},{"$f":"IF('Schedule 1a-Compensation'!H25>0,'Schedule 1a-Compensation'!K25,0)","v":0},0,0,12,0,0,0,12,0,0,0,0,0,0,0,0,0,0,0]
[null,{"$f":"IF('Schedule 1a-Compensation'!H26>0,'Schedule 1a-Compensation'!B26,0)","v":0},{"$f":"IF('Schedule 1a-Compensation'!H26>0,'Schedule 1a-Compensation'!K26,0)","v":0},0,0,12,0,0,0,12,0,0,0,0,0,0,0,0,0,0,0]
[null,{"$f":"IF('Schedule 1a-Compensation'!H27>0,'Schedule 1a-Compensation'!B27,0)","v":0},{"$f":"IF('Schedule 1a-Compensation'!H27>0,'Schedule 1a-Compensation'!K27,0)","v":0},0,0,12,0,0,0,12,0,0,0,0,0,0,0,0,0,0,0]
[null,{"$f":"IF('Schedule 1a-Compensation'!H28>0,'Schedule 1a-Compensation'!B28,0)","v":0},{"$f":"IF('Schedule 1a-Compensation'!H28>0,'Schedule 1a-Compensation'!K28,0)","v":0},0,0,12,0,0,0,12,0,0,0,0,0,0,0,0,0,0,0]
[null,{"$f":"IF('Schedule 1a-Compensation'!H29>0,'Schedule 1a-Compensation'!B29,0)","v":0},{"$f":"IF('Schedule 1a-Compensation'!H29>0,'Schedule 1a-Compensation'!K29,0)","v":0},0,0,12,0,0,0,12,0,0,0,0,0,0,0,0,0,0,0]
[null,{"$f":"IF('Schedule 1a-Compensation'!H30>0,'Schedule 1a-Compensation'!B30,0)","v":0},{"$f":"IF('Schedule 1a-Compensation'!H30>0,'Schedule 1a-Compensation'!K30,0)","v":0},0,0,12,0,0,0,12,0,0,0,0,0,0,0,0,0,0,0]
[null,{"$f":"IF('Schedule 1a-Compensation'!H31>0,'Schedule 1a-Compensation'!B31,0)","v":0},{"$f":"IF('Schedule 1a-Compensation'!H31>0,'Schedule 1a-Compensation'!K31,0)","v":0},0,0,12,0,0,0,12,0,0,0,0,0,0,0,0,0,0,0]
[null,{"$f":"IF('Schedule 1a-Compensation'!H32>0,'Schedule 1a-Compensation'!B32,0)","v":0},{"$f":"IF('Schedule 1a-Compensation'!H32>0,'Schedule 1a-Compensation'!K32,0)","v":0},0,0,12,0,0,0,12,0,0,0,0,0,0,0,0,0,0,0]
[null,{"$f":"IF('Schedule 1a-Compensation'!H33>0,'Schedule 1a-Compensation'!B33,0)","v":0},{"$f":"IF('Schedule 1a-Compensation'!H33>0,'Schedule 1a-Compensation'!K33,0)","v":0},0,0,12,0,0,0,12,0,0,0,0,0,0,0,0,0,0,0]
[null,{"$f":"IF('Schedule 1a-Compensation'!H34>0,'Schedule 1a-Compensation'!B34,0)","v":0},{"$f":"IF('Schedule 1a-Compensation'!H34>0,'Schedule 1a-Compensation'!K34,0)","v":0},0,0,12,0,0,0,12,0,0,0,0,0,0,0,0,0,0,0]
[null,{"$f":"IF('Schedule 1a-Compensation'!H35>0,'Schedule 1a-Compensation'!B35,0)","v":0},{"$f":"IF('Schedule 1a-Compensation'!H35>0,'Schedule 1a-Compensation'!K35,0)","v":0},0,0,12,0,0,0,12,0,0,0,0,0,0,0,0,0,0,0]
[null,{"$f":"IF('Schedule 1a-Compensation'!H36>0,'Schedule 1a-Compensation'!B36,0)","v":0},{"$f":"IF('Schedule 1a-Compensation'!H36>0,'Schedule 1a-Compensation'!K36,0)","v":0},0,0,12,0,0,0,12,0,0,0,0,0,0,0,0,0,0,0]
[null,{"$f":"IF('Schedule 1a-Compensation'!H37>0,'Schedule 1a-Compensation'!B37,0)","v":0},{"$f":"IF('Schedule 1a-Compensation'!H37>0,'Schedule 1a-Compensation'!K37,0)","v":0},0,0,12,0,0,0,12,0,0,0,0,0,0,0,0,0,0,0]
[null,{"$f":"IF('Schedule 1a-Compensation'!H38>0,'Schedule 1a-Compensation'!B38,0)","v":0},{"$f":"IF('Schedule 1a-Compensation'!H38>0,'Schedule 1a-Compensation'!K38,0)","v":0},0,0,12,0,0,0,12,0,0,0,0,0,0,0,0,0,0,0]
[null,{"$f":"IF('Schedule 1a-Compensation'!H39>0,'Schedule 1a-Compensation'!B39,0)","v":0},{"$f":"IF('Schedule 1a-Compensation'!H39>0,'Schedule 1a-Compensation'!K39,0)","v":0},0,0,12,0,0,0,12,0,0,0,0,0,0,0,0,0,0,0]
[null,{"$f":"IF('Schedule 1a-Compensation'!H40>0,'Schedule 1a-Compensation'!B40,0)","v":0},{"$f":"IF('Schedule 1a-Compensation'!H40>0,'Schedule 1a-Compensation'!K40,0)","v":0},0,0,12,0,0,0,12,0,0,0,0,0,0,0,0,0,0,0]
[null,{"$f":"IF('Schedule 1a-Compensation'!H41>0,'Schedule 1a-Compensation'!B41,0)","v":0},{"$f":"IF('Schedule 1a-Compensation'!H41>0,'Schedule 1a-Compensation'!K41,0)","v":0},0,0,12,0,0,0,12,0,0,0,0,0,0,0,0,0,0,0]
[null,{"$f":"IF('Schedule 1a-Compensation'!H42>0,'Schedule 1a-Compensation'!B42,0)","v":0},{"$f":"IF('Schedule 1a-Compensation'!H42>0,'Schedule 1a-Compensation'!K42,0)","v":0},0,0,12,0,0,0,12,0,0,0,0,0,0,0,0,0,0,0]
[null,{"$f":"IF('Schedule 1a-Compensation'!H43>0,'Schedule 1a-Compensation'!B43,0)","v":0},{"$f":"IF('Schedule 1a-Compensation'!H43>0,'Schedule 1a-Compensation'!K43,0)","v":0},0,0,12,0,0,0,12,0,0,0,0,0,0,0,0,0,0,0]
[null,{"$f":"IF('Schedule 1a-Compensation'!H44>0,'Schedule 1a-Compensation'!B44,0)","v":0},{"$f":"IF('Schedule 1a-Compensation'!H44>0,'Schedule 1a-Compensation'!K44,0)","v":0},0,0,12,0,0,0,12,0,0,0,0,0,0,0,0,0,0,0]
[null,{"$f":"IF('Schedule 1a-Compensation'!H45>0,'Schedule 1a-Compensation'!B45,0)","v":0},{"$f":"IF('Schedule 1a-Compensation'!H45>0,'Schedule 1a-Compensation'!K45,0)","v":0},0,0,12,0,0,0,12,0,0,0,0,0,0,0,0,0,0,0]
[null,{"$f":"IF('Schedule 1a-Compensation'!H46>0,'Schedule 1a-Compensation'!B46,0)","v":0},{"$f":"IF('Schedule 1a-Compensation'!H46>0,'Schedule 1a-Compensation'!K46,0)","v":0},0,0,12,0,0,0,12,0,0,0,0,0,0,0,0,0,0,0]
[null,{"$f":"IF('Schedule 1a-Compensation'!H47>0,'Schedule 1a-Compensation'!B47,0)","v":0},{"$f":"IF('Schedule 1a-Compensation'!H47>0,'Schedule 1a-Compensation'!K47,0)","v":0},0,0,12,0,0,0,12,0,0,0,0,0,0,0,0,0,0,0]
[null,{"$f":"IF('Schedule 1a-Compensation'!H48>0,'Schedule 1a-Compensation'!B48,0)","v":0},{"$f":"IF('Schedule 1a-Compensation'!H48>0,'Schedule 1a-Compensation'!K48,0)","v":0},0,0,12,0,0,0,12,0,0,0,0,0,0,0,0,0,0,0]
[null,{"$f":"IF('Schedule 1a-Compensation'!H49>0,'Schedule 1a-Compensation'!B49,0)","v":0},{"$f":"IF('Schedule 1a-Compensation'!H49>0,'Schedule 1a-Compensation'!K49,0)","v":0},0,0,12,0,0,0,12,0,0,0,0,0,0,0,0,0,0,0]
[null,{"$f":"IF('Schedule 1a-Compensation'!H50>0,'Schedule 1a-Compensation'!B50,0)","v":0},{"$f":"IF('Schedule 1a-Compensation'!H50>0,'Schedule 1a-Compensation'!K50,0)","v":0},0,0,12,0,0,0,12,0,0,0,0,0,0,0,0,0,0,0]
[null,{"$f":"IF('Schedule 1a-Compensation'!H51>0,'Schedule 1a-Compensation'!B51,0)","v":0},{"$f":"IF('Schedule 1a-Compensation'!H51>0,'Schedule 1a-Compensation'!K51,0)","v":0},0,0,12,0,0,0,12,0,0,0,0,0,0,0,0,0,0,0]
[null,{"$f":"IF('Schedule 1a-Compensation'!H52>0,'Schedule 1a-Compensation'!B52,0)","v":0},{"$f":"IF('Schedule 1a-Compensation'!H52>0,'Schedule 1a-Compensation'!K52,0)","v":0},0,0,12,0,0,0,12,0,0,0,0,0,0,0,0,0,0,0]
[null,{"$f":"IF('Schedule 1a-Compensation'!H53>0,'Schedule 1a-Compensation'!B53,0)","v":0},{"$f":"IF('Schedule 1a-Compensation'!H53>0,'Schedule 1a-Compensation'!K53,0)","v":0},0,0,12,0,0,0,12,0,0,0,0,0,0,0,0,0,0,0]
[null,{"$f":"IF('Schedule 1a-Compensation'!H54>0,'Schedule 1a-Compensation'!B54,0)","v":0},{"$f":"IF('Schedule 1a-Compensation'!H54>0,'Schedule 1a-Compensation'!K54,0)","v":0},0,0,12,0,0,0,12,0,0,0,0,0,0,0,0,0,0,0]
[null,{"$f":"IF('Schedule 1a-Compensation'!H55>0,'Schedule 1a-Compensation'!B55,0)","v":0},{"$f":"IF('Schedule 1a-Compensation'!H55>0,'Schedule 1a-Compensation'!K55,0)","v":0},0,0,12,0,0,0,12,0,0,0,0,0,0,0,0,0,0,0]
[null,{"$f":"IF('Schedule 1a-Compensation'!H56>0,'Schedule 1a-Compensation'!B56,0)","v":0},{"$f":"IF('Schedule 1a-Compensation'!H56>0,'Schedule 1a-Compensation'!K56,0)","v":0},0,0,12,0,0,0,12,0,0,0,0,0,0,0,0,0,0,0]
[null,{"$f":"IF('Schedule 1a-Compensation'!H57>0,'Schedule 1a-Compensation'!B57,0)","v":0},{"$f":"IF('Schedule 1a-Compensation'!H57>0,'Schedule 1a-Compensation'!K57,0)","v":0},0,0,12,0,0,0,12,0,0,0,0,0,0,0,0,0,0,0]
[null,{"$f":"IF('Schedule 1a-Compensation'!H58>0,'Schedule 1a-Compensation'!B58,0)","v":0},{"$f":"IF('Schedule 1a-Compensation'!H58>0,'Schedule 1a-Compensation'!K58,0)","v":0},0,0,12,0,0,0,12,0,0,0,0,0,0,0,0,0,0,0]
[null,{"$f":"IF('Schedule 1a-Compensation'!H59>0,'Schedule 1a-Compensation'!B59,0)","v":0},{"$f":"IF('Schedule 1a-Compensation'!H59>0,'Schedule 1a-Compensation'!K59,0)","v":0},0,0,12,0,0,0,12,0,0,0,0,0,0,0,0,0,0,0]
[null,{"$f":"IF('Schedule 1a-Compensation'!H60>0,'Schedule 1a-Compensation'!B60,0)","v":0},{"$f":"IF('Schedule 1a-Compensation'!H60>0,'Schedule 1a-Compensation'!K60,0)","v":0},0,0,12,0,0,0,12,0,0,0,0,0,0,0,0,0,0,0]
[null,{"$f":"IF('Schedule 1a-Compensation'!H61>0,'Schedule 1a-Compensation'!B61,0)","v":0},{"$f":"IF('Schedule 1a-Compensation'!H61>0,'Schedule 1a-Compensation'!K61,0)","v":0},0,0,12,0,0,0,12,0,0,0,0,0,0,0,0,0,0,0]
[null,{"$f":"IF('Schedule 1a-Compensation'!H62>0,'Schedule 1a-Compensation'!B62,0)","v":0},{"$f":"IF('Schedule 1a-Compensation'!H62>0,'Schedule 1a-Compensation'!K62,0)","v":0},0,0,12,0,0,0,12,0,0,0,0,0,0,0,0,0,0,0]
[null,{"$f":"IF('Schedule 1a-Compensation'!H63>0,'Schedule 1a-Compensation'!B63,0)","v":0},{"$f":"IF('Schedule 1a-Compensation'!H63>0,'Schedule 1a-Compensation'!K63,0)","v":0},0,0,12,0,0,0,12,0,0,0,0,0,0,0,0,0,0,0]
[null,{"$f":"IF('Schedule 1a-Compensation'!H64>0,'Schedule 1a-Compensation'!B64,0)","v":0},{"$f":"IF('Schedule 1a-Compensation'!H64>0,'Schedule 1a-Compensation'!K64,0)","v":0},0,0,12,0,0,0,12,0,0,0,0,0,0,0,0,0,0,0]
[null,{"$f":"IF('Schedule 1a-Compensation'!H65>0,'Schedule 1a-Compensation'!B65,0)","v":0},{"$f":"IF('Schedule 1a-Compensation'!H65>0,'Schedule 1a-Compensation'!K65,0)","v":0},0,0,12,0,0,0,12,0,0,0,0,0,0,0,0,0,0,0]
[null,{"$f":"IF('Schedule 1a-Compensation'!H66>0,'Schedule 1a-Compensation'!B66,0)","v":0},{"$f":"IF('Schedule 1a-Compensation'!H66>0,'Schedule 1a-Compensation'!K66,0)","v":0},0,0,12,0,0,0,12,0,0,0,0,0,0,0,0,0,0,0]
[null,{"$f":"IF('Schedule 1a-Compensation'!H67>0,'Schedule 1a-Compensation'!B67,0)","v":0},{"$f":"IF('Schedule 1a-Compensation'!H67>0,'Schedule 1a-Compensation'!K67,0)","v":0},0,0,12,0,0,0,12,0,0,0,0,0,0,0,0,0,0,0]
[null,{"$f":"IF('Schedule 1a-Compensation'!H68>0,'Schedule 1a-Compensation'!B68,0)","v":0},{"$f":"IF('Schedule 1a-Compensation'!H68>0,'Schedule 1a-Compensation'!K68,0)","v":0},0,0,12,0,0,0,12,0,0,0,0,0,0,0,0,0,0,0]
[null,{"$f":"IF('Schedule 1a-Compensation'!H69>0,'Schedule 1a-Compensation'!B69,0)","v":0},{"$f":"IF('Schedule 1a-Compensation'!H69>0,'Schedule 1a-Compensation'!K69,0)","v":0},0,0,12,0,0,0,12,0,0,0,0,0,0,0,0,0,0,0]
[null,{"$f":"IF('Schedule 1a-Compensation'!H70>0,'Schedule 1a-Compensation'!B70,0)","v":0},{"$f":"IF('Schedule 1a-Compensation'!H70>0,'Schedule 1a-Compensation'!K70,0)","v":0},0,0,12,0,0,0,12,0,0,0,0,0,0,0,0,0,0,0]
[null,{"$f":"IF('Schedule 1a-Compensation'!H71>0,'Schedule 1a-Compensation'!B71,0)","v":0},{"$f":"IF('Schedule 1a-Compensation'!H71>0,'Schedule 1a-Compensation'!K71,0)","v":0},0,0,12,0,0,0,12,0,0,0,0,0,0,0,0,0,0,0]
[null,{"$f":"IF('Schedule 1a-Compensation'!H72>0,'Schedule 1a-Compensation'!B72,0)","v":0},{"$f":"IF('Schedule 1a-Compensation'!H72>0,'Schedule 1a-Compensation'!K72,0)","v":0},0,0,12,0,0,0,12,0,0,0,0,0,0,0,0,0,0,0]
[null,{"$f":"IF('Schedule 1a-Compensation'!H73>0,'Schedule 1a-Compensation'!B73,0)","v":0},{"$f":"IF('Schedule 1a-Compensation'!H73>0,'Schedule 1a-Compensation'!K73,0)","v":0},0,0,12,0,0,0,12,0,0,0,0,0,0,0,0,0,0,0]
[null,{"$f":"IF('Schedule 1a-Compensation'!H74>0,'Schedule 1a-Compensation'!B74,0)","v":0},{"$f":"IF('Schedule 1a-Compensation'!H74>0,'Schedule 1a-Compensation'!K74,0)","v":0},0,0,12,0,0,0,12,0,0,0,0,0,0,0,0,0,0,0]
[null,{"$f":"IF('Schedule 1a-Compensation'!H75>0,'Schedule 1a-Compensation'!B75,0)","v":0},{"$f":"IF('Schedule 1a-Compensation'!H75>0,'Schedule 1a-Compensation'!K75,0)","v":0},0,0,12,0,0,0,12,0,0,0,0,0,0,0,0,0,0,0]
[null,{"$f":"IF('Schedule 1a-Compensation'!H76>0,'Schedule 1a-Compensation'!B76,0)","v":0},{"$f":"IF('Schedule 1a-Compensation'!H76>0,'Schedule 1a-Compensation'!K76,0)","v":0},0,0,12,0,0,0,12,0,0,0,0,0,0,0,0,0,0,0]
[null,{"$f":"IF('Schedule 1a-Compensation'!H77>0,'Schedule 1a-Compensation'!B77,0)","v":0},{"$f":"IF('Schedule 1a-Compensation'!H77>0,'Schedule 1a-Compensation'!K77,0)","v":0},0,0,12,0,0,0,12,0,0,0,0,0,0,0,0,0,0,0]
[null,null," ",{"$f":"SUM(D17:D77)","v":0},null,null,{"$f":"SUM(G17:G77)","v":0},{"$f":"SUM(H17:H77)","v":0},{"$f":"SUM(I17:I77)","v":0},null,{"$f":"SUM(K17:K77)","v":0},null,null,{"$f":"SUM(N17:N77)","v":0},{"$f":"SUM(O17:O77)","v":0},{"$f":"SUM(P17:P77)","v":0},null,{"$f":"SUM(R17:R77)","v":0},0,0,0]
[]
[null,"Enter data in columns 3, 4, 5, 9, and 19 to calculate the total of schedule 2b.",null,null,null,null,null,null,null,null,null,null,null,null,null,null,null,null,"Total Allowable Costs to CCFP \n(Columns 20+21 must equal the total in Column 19.)",null,{"$f":"T78+U78","v":0}]
[null,"If this is a budget amendment and there are new benefit rates, enter data in columns 10, 11, 12 and 16. ",null,null,null,null,null,null,null,null,null,null,null,null,null,null,null,null,null,null,{"$f":"S78-U80","v":0}]
[null,"Renewed Rate section will not calculate unless the Summary Worksheet is updated to reflect the amendment number. "]
[null,"The calculation of all the benefits is totaled on the summary worksheet."]
[]
[]
[]
[null,"List any other funding source(s) used by your organization to cover the cost of CCFP employees' benefits."]
[]
[null,"List Other Non-CCFP Administrative Funding Source(s)",null,null,"List Supporting Documentation for Schedule 2a",null,null,null,null,null,"Comments"]

{"sheet":"Schedule 2c-Life Insurance","index":8,"n_rows":89,"n_cols":21,"rows_kept":89,"cut":false,"hidden":true,"merged":[[94,4,94,9],[94,10,94,15],[89,1,89,3],[90,1,90,3],[91,1,91,3],[92,1,92,3],[93,1,93,3],[94,1,94,3],[90,4,90,9],[90,10,90,15],[91,4,91,9],[91,10,91,15],[92,4,92,9],[92,10,92,15],[88,1,88,3],[88,4,88,9],[88,10,88,15],[93,4,93,9],[93,10,93,15],[89,4,89,9],[89,10,89,15],[11,1,12,2],[11,3,12,9],[11,10,12,16],[79,16,80,17],[79,18,80,19],[11,17,12,17],[11,18,11,20],[12,18,12,20]]}
[null,{"$f":"'Summary Worksheet'!$B$1","v":"Automated Budget for Prospective Sponsors of Unaffiliated Centers"}]
[]
[null,"SCHEDULE 2c - LIFE INSURANCE"]
[null,null,"      Fiscal Year:   ",{"$f":"'Summary Worksheet'!$C$4","v":0}]
[]
[null,null,"      Authorization Number:   ",{"$f":"'Summary Worksheet'!$C$6","v":0},null,null,null,null,null,"Please note these error codes:",null,null,null,"Example:"]
[null,null,null,null,null,null,null,null,null,"Total number of months emay not xceed 12"]
[null,null,"Amendment Number:",{"$f":"'Summary Worksheet'!$C$8","v":0},null,null,null,null,null,"Number of CCFP months may not exceed employer months"]
[null,null,null,null,null,null,null,null,null,"You need to delete the data in this this cell:",null,null,null,2000]
[null,null,null,null,null,null,null,null,null,"Do not enter data into this cell"]
[]
[null,"PERSONNEL INFORMATION\n(See Schedule 1a).",null,"ORIGINAL RATE",null,null,null,null,null,null,"NEW RATE\nFill this out ONLY IF this is a budget amendment and the benefit has changed rates.",null,null,null,null,null,null,null,"CCFP TOTALS"]
[null,null,null,null,null,null,null,null,null,null,null,null,null,null,null,null,null,null,"CCFP Administrative Budget Total"]
[null,1,{"$f":"B14+1","v":2},3,4,5,6,7,8,9,10,11,12,13,14,15,16,17,18,19,20]
[null,"Employee Name","CCFP % of Employer Cost","Total Monthly Cost","% Employer Covered","Number of Months","Monthly Employer Cost","Monthly Employee Cost","Monthly CCFP Cost                      ","Number of Months  Charged to CCFP ","Total Monthly Cost","  % Employer Covered","Number of Months","Monthly Employer Cost ","Monthly Employee Cost","Monthly CCFP Cost                        ","Number of Months Charged to CCFP","Total Annual Cost to Employer","Allowable Costs to CCFP Administrative Budget ","Amount to be Charged to CCFP Administrative Budget","Allowable CCFP Costs to CCFP Administrative Budget Covered by Other (Non-CCFP) Funding Source(s) "]
[null,"(Pulled from Schedule 1a)","(Pulled from Schedule 1a)",null,null,null,"(column 2  times\ncolumn 3)",null,"  (column 3 times\ncolumn 7)",null,null,null,null,"(column 11  times\n  column 12)",null,"(column 3 times column 14)",null,null,null,null,"(column 19\n minus\ncolumn 20)"]
[null,{"$f":"IF('Schedule 1a-Compensation'!H17>0,'Schedule 1a-Compensation'!B17,0)","v":0},{"$f":"IF('Schedule 1a-Compensation'!H17>0,'Schedule 1a-Compensation'!K17,0)","v":0},0,0,12,{"$f":"ROUND((D17*E17),2)","v":0},{"$f":"(D17)*(1-E17)","v":0},{"$f":"ROUND((G17*C17),2)","v":0},12,0,0,0,{"$f":"ROUND((K17*L17),2)","v":0},{"$f":"(K17)*(1-L17)","v":0},{"$f":"ROUND((N17*C17),2)","v":0},0,{"$f":"IF(AND(B17<>\"\",C17<>\"\",F17+M17<=12,J17+Q17<=12,J17<=F17,Q17<=M17),ROUND((D17*E17*F17),2)+ROUND((K17*L17*M17),2),0)","v":0},{"$f":"IF(AND(R17>0),(ROUND((I17*J17),2)+ROUND((P17*Q17),2)),0)","v":0},0,{"$f":"(S17-T17)","v":0}]
[null,{"$f":"IF('Schedule 1a-Compensation'!H18>0,'Schedule 1a-Compensation'!B18,0)","v":0},{"$f":"IF('Schedule 1a-Compensation'!H18>0,'Schedule 1a-Compensation'!K18,0)","v":0},0,0,12,{"$f":"ROUND((D18*E18),2)","v":0},{"$f":"(D18)*(1-E18)","v":0},0,12,0,0,0,{"$f":"ROUND((K18*L18),2)","v":0},{"$f":"(K18)*(1-L18)","v":0},0,0,{"$f":"IF(AND(B18<>\"\",C18<>\"\",F18+M18<=12,J18+Q18<=12,J18<=F18,Q18<=M18),ROUND((D18*E18*F18),2)+ROUND((K18*L18*M18),2),0)","v":0},{"$f":"IF(AND(R18>0),(ROUND((I18*J18),2)+ROUND((P18*Q18),2)),0)","v":0},0,{"$f":"(S18-T18)","v":0}]
[null,{"$f":"IF('Schedule 1a-Compensation'!H19>0,'Schedule 1a-Compensation'!B19,0)","v":0},{"$f":"IF('Schedule 1a-Compensation'!H19>0,'Schedule 1a-Compensation'!K19,0)","v":0},0,0,12,0,0,0,12,0,0,0,0,0,0,0,0,0,0,0]
[null,{"$f":"IF('Schedule 1a-Compensation'!H20>0,'Schedule 1a-Compensation'!B20,0)","v":0},{"$f":"IF('Schedule 1a-Compensation'!H20>0,'Schedule 1a-Compensation'!K20,0)","v":0},0,0,12,0,0,0,12,0,0,0,0,0,0,0,0,0,0,0]
[null,{"$f":"IF('Schedule 1a-Compensation'!H21>0,'Schedule 1a-Compensation'!B21,0)","v":0},{"$f":"IF('Schedule 1a-Compensation'!H21>0,'Schedule 1a-Compensation'!K21,0)","v":0},0,0,12,0,0,0,12,0,0,0,0,0,0,0,0,0,0,0]
[null,{"$f":"IF('Schedule 1a-Compensation'!H22>0,'Schedule 1a-Compensation'!B22,0)","v":0},{"$f":"IF('Schedule 1a-Compensation'!H22>0,'Schedule 1a-Compensation'!K22,0)","v":0},0,0,12,0,0,0,12,0,0,0,0,0,0,0,0,0,0,0]
[null,{"$f":"IF('Schedule 1a-Compensation'!H23>0,'Schedule 1a-Compensation'!B23,0)","v":0},{"$f":"IF('Schedule 1a-Compensation'!H23>0,'Schedule 1a-Compensation'!K23,0)","v":0},0,0,12,0,0,0,12,0,0,0,0,0,0,0,0,0,0,0]
[null,{"$f":"IF('Schedule 1a-Compensation'!H24>0,'Schedule 1a-Compensation'!B24,0)","v":0},{"$f":"IF('Schedule 1a-Compensation'!H24>0,'Schedule 1a-Compensation'!K24,0)","v":0},0,0,12,0,0,0,12,0,0,0,0,0,0,0,0,0,0,0]
[null,{"$f":"IF('Schedule 1a-Compensation'!H25>0,'Schedule 1a-Compensation'!B25,0)","v":0},{"$f":"IF('Schedule 1a-Compensation'!H25>0,'Schedule 1a-Compensation'!K25,0)","v":0},0,0,12,0,0,0,12,0,0,0,0,0,0,0,0,0,0,0]
[null,{"$f":"IF('Schedule 1a-Compensation'!H26>0,'Schedule 1a-Compensation'!B26,0)","v":0},{"$f":"IF('Schedule 1a-Compensation'!H26>0,'Schedule 1a-Compensation'!K26,0)","v":0},0,0,12,0,0,0,12,0,0,0,0,0,0,0,0,0,0,0]
[null,{"$f":"IF('Schedule 1a-Compensation'!H27>0,'Schedule 1a-Compensation'!B27,0)","v":0},{"$f":"IF('Schedule 1a-Compensation'!H27>0,'Schedule 1a-Compensation'!K27,0)","v":0},0,0,12,0,0,0,12,0,0,0,0,0,0,0,0,0,0,0]
[null,{"$f":"IF('Schedule 1a-Compensation'!H28>0,'Schedule 1a-Compensation'!B28,0)","v":0},{"$f":"IF('Schedule 1a-Compensation'!H28>0,'Schedule 1a-Compensation'!K28,0)","v":0},0,0,12,0,0,0,12,0,0,0,0,0,0,0,0,0,0,0]
[null,{"$f":"IF('Schedule 1a-Compensation'!H29>0,'Schedule 1a-Compensation'!B29,0)","v":0},{"$f":"IF('Schedule 1a-Compensation'!H29>0,'Schedule 1a-Compensation'!K29,0)","v":0},0,0,12,0,0,0,12,0,0,0,0,0,0,0,0,0,0,0]
[null,{"$f":"IF('Schedule 1a-Compensation'!H30>0,'Schedule 1a-Compensation'!B30,0)","v":0},{"$f":"IF('Schedule 1a-Compensation'!H30>0,'Schedule 1a-Compensation'!K30,0)","v":0},0,0,12,0,0,0,12,0,0,0,0,0,0,0,0,0,0,0]
[null,{"$f":"IF('Schedule 1a-Compensation'!H31>0,'Schedule 1a-Compensation'!B31,0)","v":0},{"$f":"IF('Schedule 1a-Compensation'!H31>0,'Schedule 1a-Compensation'!K31,0)","v":0},0,0,12,0,0,0,12,0,0,0,0,0,0,0,0,0,0,0]
[null,{"$f":"IF('Schedule 1a-Compensation'!H32>0,'Schedule 1a-Compensation'!B32,0)","v":0},{"$f":"IF('Schedule 1a-Compensation'!H32>0,'Schedule 1a-Compensation'!K32,0)","v":0},0,0,12,0,0,0,12,0,0,0,0,0,0,0,0,0,0,0]
[null,{"$f":"IF('Schedule 1a-Compensation'!H33>0,'Schedule 1a-Compensation'!B33,0)","v":0},{"$f":"IF('Schedule 1a-Compensation'!H33>0,'Schedule 1a-Compensation'!K33,0)","v":0},0,0,12,0,0,0,12,0,0,0,0,0,0,0,0,0,0,0]
[null,{"$f":"IF('Schedule 1a-Compensation'!H34>0,'Schedule 1a-Compensation'!B34,0)","v":0},{"$f":"IF('Schedule 1a-Compensation'!H34>0,'Schedule 1a-Compensation'!K34,0)","v":0},0,0,12,0,0,0,12,0,0,0,0,0,0,0,0,0,0,0]
[null,{"$f":"IF('Schedule 1a-Compensation'!H35>0,'Schedule 1a-Compensation'!B35,0)","v":0},{"$f":"IF('Schedule 1a-Compensation'!H35>0,'Schedule 1a-Compensation'!K35,0)","v":0},0,0,12,0,0,0,12,0,0,0,0,0,0,0,0,0,0,0]
[null,{"$f":"IF('Schedule 1a-Compensation'!H36>0,'Schedule 1a-Compensation'!B36,0)","v":0},{"$f":"IF('Schedule 1a-Compensation'!H36>0,'Schedule 1a-Compensation'!K36,0)","v":0},0,0,12,0,0,0,12,0,0,0,0,0,0,0,0,0,0,0]
[null,{"$f":"IF('Schedule 1a-Compensation'!H37>0,'Schedule 1a-Compensation'!B37,0)","v":0},{"$f":"IF('Schedule 1a-Compensation'!H37>0,'Schedule 1a-Compensation'!K37,0)","v":0},0,0,12,0,0,0,12,0,0,0,0,0,0,0,0,0,0,0]
[null,{"$f":"IF('Schedule 1a-Compensation'!H38>0,'Schedule 1a-Compensation'!B38,0)","v":0},{"$f":"IF('Schedule 1a-Compensation'!H38>0,'Schedule 1a-Compensation'!K38,0)","v":0},0,0,12,0,0,0,12,0,0,0,0,0,0,0,0,0,0,0]
[null,{"$f":"IF('Schedule 1a-Compensation'!H39>0,'Schedule 1a-Compensation'!B39,0)","v":0},{"$f":"IF('Schedule 1a-Compensation'!H39>0,'Schedule 1a-Compensation'!K39,0)","v":0},0,0,12,0,0,0,12,0,0,0,0,0,0,0,0,0,0,0]
[null,{"$f":"IF('Schedule 1a-Compensation'!H40>0,'Schedule 1a-Compensation'!B40,0)","v":0},{"$f":"IF('Schedule 1a-Compensation'!H40>0,'Schedule 1a-Compensation'!K40,0)","v":0},0,0,12,0,0,0,12,0,0,0,0,0,0,0,0,0,0,0]
[null,{"$f":"IF('Schedule 1a-Compensation'!H41>0,'Schedule 1a-Compensation'!B41,0)","v":0},{"$f":"IF('Schedule 1a-Compensation'!H41>0,'Schedule 1a-Compensation'!K41,0)","v":0},0,0,12,0,0,0,12,0,0,0,0,0,0,0,0,0,0,0]
[null,{"$f":"IF('Schedule 1a-Compensation'!H42>0,'Schedule 1a-Compensation'!B42,0)","v":0},{"$f":"IF('Schedule 1a-Compensation'!H42>0,'Schedule 1a-Compensation'!K42,0)","v":0},0,0,12,0,0,0,12,0,0,0,0,0,0,0,0,0,0,0]
[null,{"$f":"IF('Schedule 1a-Compensation'!H43>0,'Schedule 1a-Compensation'!B43,0)","v":0},{"$f":"IF('Schedule 1a-Compensation'!H43>0,'Schedule 1a-Compensation'!K43,0)","v":0},0,0,12,0,0,0,12,0,0,0,0,0,0,0,0,0,0,0]
[null,{"$f":"IF('Schedule 1a-Compensation'!H44>0,'Schedule 1a-Compensation'!B44,0)","v":0},{"$f":"IF('Schedule 1a-Compensation'!H44>0,'Schedule 1a-Compensation'!K44,0)","v":0},0,0,12,0,0,0,12,0,0,0,0,0,0,0,0,0,0,0]
[null,{"$f":"IF('Schedule 1a-Compensation'!H45>0,'Schedule 1a-Compensation'!B45,0)","v":0},{"$f":"IF('Schedule 1a-Compensation'!H45>0,'Schedule 1a-Compensation'!K45,0)","v":0},0,0,12,0,0,0,12,0,0,0,0,0,0,0,0,0,0,0]
[null,{"$f":"IF('Schedule 1a-Compensation'!H46>0,'Schedule 1a-Compensation'!B46,0)","v":0},{"$f":"IF('Schedule 1a-Compensation'!H46>0,'Schedule 1a-Compensation'!K46,0)","v":0},0,0,12,0,0,0,12,0,0,0,0,0,0,0,0,0,0,0]
[null,{"$f":"IF('Schedule 1a-Compensation'!H47>0,'Schedule 1a-Compensation'!B47,0)","v":0},{"$f":"IF('Schedule 1a-Compensation'!H47>0,'Schedule 1a-Compensation'!K47,0)","v":0},0,0,12,0,0,0,12,0,0,0,0,0,0,0,0,0,0,0]
[null,{"$f":"IF('Schedule 1a-Compensation'!H48>0,'Schedule 1a-Compensation'!B48,0)","v":0},{"$f":"IF('Schedule 1a-Compensation'!H48>0,'Schedule 1a-Compensation'!K48,0)","v":0},0,0,12,0,0,0,12,0,0,0,0,0,0,0,0,0,0,0]
[null,{"$f":"IF('Schedule 1a-Compensation'!H49>0,'Schedule 1a-Compensation'!B49,0)","v":0},{"$f":"IF('Schedule 1a-Compensation'!H49>0,'Schedule 1a-Compensation'!K49,0)","v":0},0,0,12,0,0,0,12,0,0,0,0,0,0,0,0,0,0,0]
[null,{"$f":"IF('Schedule 1a-Compensation'!H50>0,'Schedule 1a-Compensation'!B50,0)","v":0},{"$f":"IF('Schedule 1a-Compensation'!H50>0,'Schedule 1a-Compensation'!K50,0)","v":0},0,0,12,0,0,0,12,0,0,0,0,0,0,0,0,0,0,0]
[null,{"$f":"IF('Schedule 1a-Compensation'!H51>0,'Schedule 1a-Compensation'!B51,0)","v":0},{"$f":"IF('Schedule 1a-Compensation'!H51>0,'Schedule 1a-Compensation'!K51,0)","v":0},0,0,12,0,0,0,12,0,0,0,0,0,0,0,0,0,0,0]
[null,{"$f":"IF('Schedule 1a-Compensation'!H52>0,'Schedule 1a-Compensation'!B52,0)","v":0},{"$f":"IF('Schedule 1a-Compensation'!H52>0,'Schedule 1a-Compensation'!K52,0)","v":0},0,0,12,0,0,0,12,0,0,0,0,0,0,0,0,0,0,0]
[null,{"$f":"IF('Schedule 1a-Compensation'!H53>0,'Schedule 1a-Compensation'!B53,0)","v":0},{"$f":"IF('Schedule 1a-Compensation'!H53>0,'Schedule 1a-Compensation'!K53,0)","v":0},0,0,12,0,0,0,12,0,0,0,0,0,0,0,0,0,0,0]
[null,{"$f":"IF('Schedule 1a-Compensation'!H54>0,'Schedule 1a-Compensation'!B54,0)","v":0},{"$f":"IF('Schedule 1a-Compensation'!H54>0,'Schedule 1a-Compensation'!K54,0)","v":0},0,0,12,0,0,0,12,0,0,0,0,0,0,0,0,0,0,0]
[null,{"$f":"IF('Schedule 1a-Compensation'!H55>0,'Schedule 1a-Compensation'!B55,0)","v":0},{"$f":"IF('Schedule 1a-Compensation'!H55>0,'Schedule 1a-Compensation'!K55,0)","v":0},0,0,12,0,0,0,12,0,0,0,0,0,0,0,0,0,0,0]
[null,{"$f":"IF('Schedule 1a-Compensation'!H56>0,'Schedule 1a-Compensation'!B56,0)","v":0},{"$f":"IF('Schedule 1a-Compensation'!H56>0,'Schedule 1a-Compensation'!K56,0)","v":0},0,0,12,0,0,0,12,0,0,0,0,0,0,0,0,0,0,0]
[null,{"$f":"IF('Schedule 1a-Compensation'!H57>0,'Schedule 1a-Compensation'!B57,0)","v":0},{"$f":"IF('Schedule 1a-Compensation'!H57>0,'Schedule 1a-Compensation'!K57,0)","v":0},0,0,12,0,0,0,12,0,0,0,0,0,0,0,0,0,0,0]
[null,{"$f":"IF('Schedule 1a-Compensation'!H58>0,'Schedule 1a-Compensation'!B58,0)","v":0},{"$f":"IF('Schedule 1a-Compensation'!H58>0,'Schedule 1a-Compensation'!K58,0)","v":0},0,0,12,0,0,0,12,0,0,0,0,0,0,0,0,0,0,0]
[null,{"$f":"IF('Schedule 1a-Compensation'!H59>0,'Schedule 1a-Compensation'!B59,0)","v":0},{"$f":"IF('Schedule 1a-Compensation'!H59>0,'Schedule 1a-Compensation'!K59,0)","v":0},0,0,12,0,0,0,12,0,0,0,0,0,0,0,0,0,0,0]
[null,{"$f":"IF('Schedule 1a-Compensation'!H60>0,'Schedule 1a-Compensation'!B60,0)","v":0},{"$f":"IF('Schedule 1a-Compensation'!H60>0,'Schedule 1a-Compensation'!K60,0)","v":0},0,0,12,0,0,0,12,0,0,0,0,0,0,0,0,0,0,0]
[null,{"$f":"IF('Schedule 1a-Compensation'!H61>0,'Schedule 1a-Compensation'!B61,0)","v":0},{"$f":"IF('Schedule 1a-Compensation'!H61>0,'Schedule 1a-Compensation'!K61,0)","v":0},0,0,12,0,0,0,12,0,0,0,0,0,0,0,0,0,0,0]
[null,{"$f":"IF('Schedule 1a-Compensation'!H62>0,'Schedule 1a-Compensation'!B62,0)","v":0},{"$f":"IF('Schedule 1a-Compensation'!H62>0,'Schedule 1a-Compensation'!K62,0)","v":0},0,0,12,0,0,0,12,0,0,0,0,0,0,0,0,0,0,0]
[null,{"$f":"IF('Schedule 1a-Compensation'!H63>0,'Schedule 1a-Compensation'!B63,0)","v":0},{"$f":"IF('Schedule 1a-Compensation'!H63>0,'Schedule 1a-Compensation'!K63,0)","v":0},0,0,12,0,0,0,12,0,0,0,0,0,0,0,0,0,0,0]
[null,{"$f":"IF('Schedule 1a-Compensation'!H64>0,'Schedule 1a-Compensation'!B64,0)","v":0},{"$f":"IF('Schedule 1a-Compensation'!H64>0,'Schedule 1a-Compensation'!K64,0)","v":0},0,0,12,0,0,0,12,0,0,0,0,0,0,0,0,0,0,0]
[null,{"$f":"IF('Schedule 1a-Compensation'!H65>0,'Schedule 1a-Compensation'!B65,0)","v":0},{"$f":"IF('Schedule 1a-Compensation'!H65>0,'Schedule 1a-Compensation'!K65,0)","v":0},0,0,12,0,0,0,12,0,0,0,0,0,0,0,0,0,0,0]
[null,{"$f":"IF('Schedule 1a-Compensation'!H66>0,'Schedule 1a-Compensation'!B66,0)","v":0},{"$f":"IF('Schedule 1a-Compensation'!H66>0,'Schedule 1a-Compensation'!K66,0)","v":0},0,0,12,0,0,0,12,0,0,0,0,0,0,0,0,0,0,0]
[null,{"$f":"IF('Schedule 1a-Compensation'!H67>0,'Schedule 1a-Compensation'!B67,0)","v":0},{"$f":"IF('Schedule 1a-Compensation'!H67>0,'Schedule 1a-Compensation'!K67,0)","v":0},0,0,12,0,0,0,12,0,0,0,0,0,0,0,0,0,0,0]
[null,{"$f":"IF('Schedule 1a-Compensation'!H68>0,'Schedule 1a-Compensation'!B68,0)","v":0},{"$f":"IF('Schedule 1a-Compensation'!H68>0,'Schedule 1a-Compensation'!K68,0)","v":0},0,0,12,0,0,0,12,0,0,0,0,0,0,0,0,0,0,0]
[null,{"$f":"IF('Schedule 1a-Compensation'!H69>0,'Schedule 1a-Compensation'!B69,0)","v":0},{"$f":"IF('Schedule 1a-Compensation'!H69>0,'Schedule 1a-Compensation'!K69,0)","v":0},0,0,12,0,0,0,12,0,0,0,0,0,0,0,0,0,0,0]
[null,{"$f":"IF('Schedule 1a-Compensation'!H70>0,'Schedule 1a-Compensation'!B70,0)","v":0},{"$f":"IF('Schedule 1a-Compensation'!H70>0,'Schedule 1a-Compensation'!K70,0)","v":0},0,0,12,0,0,0,12,0,0,0,0,0,0,0,0,0,0,0]
[null,{"$f":"IF('Schedule 1a-Compensation'!H71>0,'Schedule 1a-Compensation'!B71,0)","v":0},{"$f":"IF('Schedule 1a-Compensation'!H71>0,'Schedule 1a-Compensation'!K71,0)","v":0},0,0,12,0,0,0,12,0,0,0,0,0,0,0,0,0,0,0]
[null,{"$f":"IF('Schedule 1a-Compensation'!H72>0,'Schedule 1a-Compensation'!B72,0)","v":0},{"$f":"IF('Schedule 1a-Compensation'!H72>0,'Schedule 1a-Compensation'!K72,0)","v":0},0,0,12,0,0,0,12,0,0,0,0,0,0,0,0,0,0,0]
[null,{"$f":"IF('Schedule 1a-Compensation'!H73>0,'Schedule 1a-Compensation'!B73,0)","v":0},{"$f":"IF('Schedule 1a-Compensation'!H73>0,'Schedule 1a-Compensation'!K73,0)","v":0},0,0,12,0,0,0,12,0,0,0,0,0,0,0,0,0,0,0]
[null,{"$f":"IF('Schedule 1a-Compensation'!H74>0,'Schedule 1a-Compensation'!B74,0)","v":0},{"$f":"IF('Schedule 1a-Compensation'!H74>0,'Schedule 1a-Compensation'!K74,0)","v":0},0,0,12,0,0,0,12,0,0,0,0,0,0,0,0,0,0,0]
[null,{"$f":"IF('Schedule 1a-Compensation'!H75>0,'Schedule 1a-Compensation'!B75,0)","v":0},{"$f":"IF('Schedule 1a-Compensation'!H75>0,'Schedule 1a-Compensation'!K75,0)","v":0},0,0,12,0,0,0,12,0,0,0,0,0,0,0,0,0,0,0]
[null,{"$f":"IF('Schedule 1a-Compensation'!H76>0,'Schedule 1a-Compensation'!B76,0)","v":0},{"$f":"IF('Schedule 1a-Compensation'!H76>0,'Schedule 1a-Compensation'!K76,0)","v":0},0,0,12,0,0,0,12,0,0,0,0,0,0,0,0,0,0,0]
[null,{"$f":"IF('Schedule 1a-Compensation'!H77>0,'Schedule 1a-Compensation'!B77,0)","v":0},{"$f":"IF('Schedule 1a-Compensation'!H77>0,'Schedule 1a-Compensation'!K77,0)","v":0},0,0,12,0,0,0,12,0,0,0,0,0,0,0,0,0,0,0]
[null,null," ",{"$f":"SUM(D17:D77)","v":0},null,null,{"$f":"SUM(G17:G77)","v":0},{"$f":"SUM(H17:H77)","v":0},{"$f":"SUM(I17:I77)","v":0},null,{"$f":"SUM(K17:K77)","v":0},null,null,{"$f":"SUM(N17:N77)","v":0},{"$f":"SUM(O17:O77)","v":0},{"$f":"SUM(P17:P77)","v":0},null,{"$f":"SUM(R17:R77)","v":0},0,0,0]
[]
[null,"Enter data in columns 3, 4, 5, 9, and 19 to calculate the total of schedule 2c.",null,null,null,null,null,null,null,null,null,null,null,null,null,null,null,null,"Total Allowable Costs to CCFP \n(Columns 20+21 must equal the total in Column 19.)",null,{"$f":"T78+U78","v":0}]
[null,"If this is a budget amendment and there are new benefit rates, enter data in columns 10, 11, 12 and 16. ",null,null,null,null,null,null,null,null,null,null,null,null,null,null,null,null,null,null,{"$f":"S78-U80","v":0}]
[null,"Renewed Rate section will not calculate unless the Summary Worksheet is updated to reflect the amendment number. "]
[null,"The calculation of all the benefits is totaled on the summary worksheet."]
[]
[]
[]
[null,"List any other funding source(s) used by your organization to cover the cost of CCFP employees' benefits."]
[]
[null,"List Other Non-CCFP Administrative Funding Source(s)",null,null,"List Supporting Documentation for Schedule 2a",null,null,null,null,null,"Comments"]

{"sheet":"Schedule 2d-Retirement","index":9,"n_rows":89,"n_cols":21,"rows_kept":89,"cut":false,"hidden":true,"merged":[[94,4,94,9],[94,10,94,15],[89,1,89,3],[90,1,90,3],[91,1,91,3],[92,1,92,3],[93,1,93,3],[94,1,94,3],[90,4,90,9],[90,10,90,15],[91,4,91,9],[91,10,91,15],[92,4,92,9],[92,10,92,15],[88,1,88,3],[88,4,88,9],[88,10,88,15],[93,4,93,9],[93,10,93,15],[89,4,89,9],[89,10,89,15],[11,1,12,2],[11,3,12,9],[11,10,12,16],[79,16,80,17],[79,18,80,19],[11,17,12,17],[11,18,11,20],[12,18,12,20]]}
[null,{"$f":"'Summary Worksheet'!$B$1","v":"Automated Budget for Prospective Sponsors of Unaffiliated Centers"}]
[]
[null,"SCHEDULE 2d - RETIREMENT"]
[null,null,"      Fiscal Year:   ",{"$f":"'Summary Worksheet'!$C$4","v":0}]
[]
[null,null,"      Authorization Number:   ",{"$f":"'Summary Worksheet'!$C$6","v":0},null,null,null,null,null,"Please note these error codes:",null,null,null,"Example:"]
[null,null,null,null,null,null,null,null,null,"Total number of months emay not xceed 12"]
[null,null,"Amendment Number:",{"$f":"'Summary Worksheet'!$C$8","v":0},null,null,null,null,null,"Number of CCFP months may not exceed employer months"]
[null,null,null,null,null,null,null,null,null,"You need to delete the data in this this cell:",null,null,null,2000]
[null,null,null,null,null,null,null,null,null,"Do not enter data into this cell"]
[]
[null,"PERSONNEL INFORMATION\n(See Schedule 1a).",null,"ORIGINAL RATE",null,null,null,null,null,null,"NEW RATE\nFill this out ONLY IF this is a budget amendment and the benefit has changed rates.",null,null,null,null,null,null,null,"CCFP TOTALS"]
[null,null,null,null,null,null,null,null,null,null,null,null,null,null,null,null,null,null,"CCFP Administrative Budget Total"]
[null,1,{"$f":"B14+1","v":2},3,4,5,6,7,8,9,10,11,12,13,14,15,16,17,18,19,20]
[null,"Employee Name","CCFP % of Employer Cost","Total Monthly Cost","% Employer Covered","Number of Months","Monthly Employer Cost","Monthly Employee Cost","Monthly CCFP Cost                      ","Number of Months  Charged to CCFP ","Total Monthly Cost","  % Employer Covered","Number of Months","Monthly Employer Cost ","Monthly Employee Cost","Monthly CCFP Cost                        ","Number of Months Charged to CCFP","Total Annual Cost to Employer","Allowable Costs to CCFP Administrative Budget ","Amount to be Charged to CCFP Administrative Budget","Allowable CCFP Costs to CCFP Administrative Budget Covered by Other (Non-CCFP) Funding Source(s) "]
[null,"(Pulled from Schedule 1a)","(Pulled from Schedule 1a)",null,null,null,"(column 2  times\ncolumn 3)",null,"  (column 3 times\ncolumn 7)",null,null,null,null,"(column 11  times\n  column 12)",null,"(column 3 times column 14)",null,null,null,null,"(column 19\n minus\ncolumn 20)"]
[null,{"$f":"IF('Schedule 1a-Compensation'!H17>0,'Schedule 1a-Compensation'!B17,0)","v":0},{"$f":"IF('Schedule 1a-Compensation'!H17>0,'Schedule 1a-Compensation'!K17,0)","v":0},0,0,12,{"$f":"ROUND((D17*E17),2)","v":0},{"$f":"(D17)*(1-E17)","v":0},{"$f":"ROUND((G17*C17),2)","v":0},12,0,0,0,{"$f":"ROUND((K17*L17),2)","v":0},{"$f":"(K17)*(1-L17)","v":0},{"$f":"ROUND((N17*C17),2)","v":0},0,{"$f":"IF(AND(B17<>\"\",C17<>\"\",F17+M17<=12,J17+Q17<=12,J17<=F17,Q17<=M17),ROUND((D17*E17*F17),2)+ROUND((K17*L17*M17),2),0)","v":0},{"$f":"IF(AND(R17>0),(ROUND((I17*J17),2)+ROUND((P17*Q17),2)),0)","v":0},0,{"$f":"(S17-T17)","v":0}]
[null,{"$f":"IF('Schedule 1a-Compensation'!H18>0,'Schedule 1a-Compensation'!B18,0)","v":0},{"$f":"IF('Schedule 1a-Compensation'!H18>0,'Schedule 1a-Compensation'!K18,0)","v":0},0,0,12,{"$f":"ROUND((D18*E18),2)","v":0},{"$f":"(D18)*(1-E18)","v":0},0,12,0,0,0,{"$f":"ROUND((K18*L18),2)","v":0},{"$f":"(K18)*(1-L18)","v":0},0,0,{"$f":"IF(AND(B18<>\"\",C18<>\"\",F18+M18<=12,J18+Q18<=12,J18<=F18,Q18<=M18),ROUND((D18*E18*F18),2)+ROUND((K18*L18*M18),2),0)","v":0},{"$f":"IF(AND(R18>0),(ROUND((I18*J18),2)+ROUND((P18*Q18),2)),0)","v":0},0,{"$f":"(S18-T18)","v":0}]
[null,{"$f":"IF('Schedule 1a-Compensation'!H19>0,'Schedule 1a-Compensation'!B19,0)","v":0},{"$f":"IF('Schedule 1a-Compensation'!H19>0,'Schedule 1a-Compensation'!K19,0)","v":0},0,0,12,0,0,0,12,0,0,0,0,0,0,0,0,0,0,0]
[null,{"$f":"IF('Schedule 1a-Compensation'!H20>0,'Schedule 1a-Compensation'!B20,0)","v":0},{"$f":"IF('Schedule 1a-Compensation'!H20>0,'Schedule 1a-Compensation'!K20,0)","v":0},0,0,12,0,0,0,12,0,0,0,0,0,0,0,0,0,0,0]
[null,{"$f":"IF('Schedule 1a-Compensation'!H21>0,'Schedule 1a-Compensation'!B21,0)","v":0},{"$f":"IF('Schedule 1a-Compensation'!H21>0,'Schedule 1a-Compensation'!K21,0)","v":0},0,0,12,0,0,0,12,0,0,0,0,0,0,0,0,0,0,0]
[null,{"$f":"IF('Schedule 1a-Compensation'!H22>0,'Schedule 1a-Compensation'!B22,0)","v":0},{"$f":"IF('Schedule 1a-Compensation'!H22>0,'Schedule 1a-Compensation'!K22,0)","v":0},0,0,12,0,0,0,12,0,0,0,0,0,0,0,0,0,0,0]
[null,{"$f":"IF('Schedule 1a-Compensation'!H23>0,'Schedule 1a-Compensation'!B23,0)","v":0},{"$f":"IF('Schedule 1a-Compensation'!H23>0,'Schedule 1a-Compensation'!K23,0)","v":0},0,0,12,0,0,0,12,0,0,0,0,0,0,0,0,0,0,0]
[null,{"$f":"IF('Schedule 1a-Compensation'!H24>0,'Schedule 1a-Compensation'!B24,0)","v":0},{"$f":"IF('Schedule 1a-Compensation'!H24>0,'Schedule 1a-Compensation'!K24,0)","v":0},0,0,12,0,0,0,12,0,0,0,0,0,0,0,0,0,0,0]
[null,{"$f":"IF('Schedule 1a-Compensation'!H25>0,'Schedule 1a-Compensation'!B25,0)","v":0},{"$f":"IF('Schedule 1a-Compensation'!H25>0,'Schedule 1a-Compensation'!K25,0)","v":0},0,0,12,0,0,0,12,0,0,0,0,0,0,0,0,0,0,0]
[null,{"$f":"IF('Schedule 1a-Compensation'!H26>0,'Schedule 1a-Compensation'!B26,0)","v":0},{"$f":"IF('Schedule 1a-Compensation'!H26>0,'Schedule 1a-Compensation'!K26,0)","v":0},0,0,12,0,0,0,12,0,0,0,0,0,0,0,0,0,0,0]
[null,{"$f":"IF('Schedule 1a-Compensation'!H27>0,'Schedule 1a-Compensation'!B27,0)","v":0},{"$f":"IF('Schedule 1a-Compensation'!H27>0,'Schedule 1a-Compensation'!K27,0)","v":0},0,0,12,0,0,0,12,0,0,0,0,0,0,0,0,0,0,0]
[null,{"$f":"IF('Schedule 1a-Compensation'!H28>0,'Schedule 1a-Compensation'!B28,0)","v":0},{"$f":"IF('Schedule 1a-Compensation'!H28>0,'Schedule 1a-Compensation'!K28,0)","v":0},0,0,12,0,0,0,12,0,0,0,0,0,0,0,0,0,0,0]
[null,{"$f":"IF('Schedule 1a-Compensation'!H29>0,'Schedule 1a-Compensation'!B29,0)","v":0},{"$f":"IF('Schedule 1a-Compensation'!H29>0,'Schedule 1a-Compensation'!K29,0)","v":0},0,0,12,0,0,0,12,0,0,0,0,0,0,0,0,0,0,0]
[null,{"$f":"IF('Schedule 1a-Compensation'!H30>0,'Schedule 1a-Compensation'!B30,0)","v":0},{"$f":"IF('Schedule 1a-Compensation'!H30>0,'Schedule 1a-Compensation'!K30,0)","v":0},0,0,12,0,0,0,12,0,0,0,0,0,0,0,0,0,0,0]
[null,{"$f":"IF('Schedule 1a-Compensation'!H31>0,'Schedule 1a-Compensation'!B31,0)","v":0},{"$f":"IF('Schedule 1a-Compensation'!H31>0,'Schedule 1a-Compensation'!K31,0)","v":0},0,0,12,0,0,0,12,0,0,0,0,0,0,0,0,0,0,0]
[null,{"$f":"IF('Schedule 1a-Compensation'!H32>0,'Schedule 1a-Compensation'!B32,0)","v":0},{"$f":"IF('Schedule 1a-Compensation'!H32>0,'Schedule 1a-Compensation'!K32,0)","v":0},0,0,12,0,0,0,12,0,0,0,0,0,0,0,0,0,0,0]
[null,{"$f":"IF('Schedule 1a-Compensation'!H33>0,'Schedule 1a-Compensation'!B33,0)","v":0},{"$f":"IF('Schedule 1a-Compensation'!H33>0,'Schedule 1a-Compensation'!K33,0)","v":0},0,0,12,0,0,0,12,0,0,0,0,0,0,0,0,0,0,0]
[null,{"$f":"IF('Schedule 1a-Compensation'!H34>0,'Schedule 1a-Compensation'!B34,0)","v":0},{"$f":"IF('Schedule 1a-Compensation'!H34>0,'Schedule 1a-Compensation'!K34,0)","v":0},0,0,12,0,0,0,12,0,0,0,0,0,0,0,0,0,0,0]
[null,{"$f":"IF('Schedule 1a-Compensation'!H35>0,'Schedule 1a-Compensation'!B35,0)","v":0},{"$f":"IF('Schedule 1a-Compensation'!H35>0,'Schedule 1a-Compensation'!K35,0)","v":0},0,0,12,0,0,0,12,0,0,0,0,0,0,0,0,0,0,0]
[null,{"$f":"IF('Schedule 1a-Compensation'!H36>0,'Schedule 1a-Compensation'!B36,0)","v":0},{"$f":"IF('Schedule 1a-Compensation'!H36>0,'Schedule 1a-Compensation'!K36,0)","v":0},0,0,12,0,0,0,12,0,0,0,0,0,0,0,0,0,0,0]
[null,{"$f":"IF('Schedule 1a-Compensation'!H37>0,'Schedule 1a-Compensation'!B37,0)","v":0},{"$f":"IF('Schedule 1a-Compensation'!H37>0,'Schedule 1a-Compensation'!K37,0)","v":0},0,0,12,0,0,0,12,0,0,0,0,0,0,0,0,0,0,0]
[null,{"$f":"IF('Schedule 1a-Compensation'!H38>0,'Schedule 1a-Compensation'!B38,0)","v":0},{"$f":"IF('Schedule 1a-Compensation'!H38>0,'Schedule 1a-Compensation'!K38,0)","v":0},0,0,12,0,0,0,12,0,0,0,0,0,0,0,0,0,0,0]
[null,{"$f":"IF('Schedule 1a-Compensation'!H39>0,'Schedule 1a-Compensation'!B39,0)","v":0},{"$f":"IF('Schedule 1a-Compensation'!H39>0,'Schedule 1a-Compensation'!K39,0)","v":0},0,0,12,0,0,0,12,0,0,0,0,0,0,0,0,0,0,0]
[null,{"$f":"IF('Schedule 1a-Compensation'!H40>0,'Schedule 1a-Compensation'!B40,0)","v":0},{"$f":"IF('Schedule 1a-Compensation'!H40>0,'Schedule 1a-Compensation'!K40,0)","v":0},0,0,12,0,0,0,12,0,0,0,0,0,0,0,0,0,0,0]
[null,{"$f":"IF('Schedule 1a-Compensation'!H41>0,'Schedule 1a-Compensation'!B41,0)","v":0},{"$f":"IF('Schedule 1a-Compensation'!H41>0,'Schedule 1a-Compensation'!K41,0)","v":0},0,0,12,0,0,0,12,0,0,0,0,0,0,0,0,0,0,0]
[null,{"$f":"IF('Schedule 1a-Compensation'!H42>0,'Schedule 1a-Compensation'!B42,0)","v":0},{"$f":"IF('Schedule 1a-Compensation'!H42>0,'Schedule 1a-Compensation'!K42,0)","v":0},0,0,12,0,0,0,12,0,0,0,0,0,0,0,0,0,0,0]
[null,{"$f":"IF('Schedule 1a-Compensation'!H43>0,'Schedule 1a-Compensation'!B43,0)","v":0},{"$f":"IF('Schedule 1a-Compensation'!H43>0,'Schedule 1a-Compensation'!K43,0)","v":0},0,0,12,0,0,0,12,0,0,0,0,0,0,0,0,0,0,0]
[null,{"$f":"IF('Schedule 1a-Compensation'!H44>0,'Schedule 1a-Compensation'!B44,0)","v":0},{"$f":"IF('Schedule 1a-Compensation'!H44>0,'Schedule 1a-Compensation'!K44,0)","v":0},0,0,12,0,0,0,12,0,0,0,0,0,0,0,0,0,0,0]
[null,{"$f":"IF('Schedule 1a-Compensation'!H45>0,'Schedule 1a-Compensation'!B45,0)","v":0},{"$f":"IF('Schedule 1a-Compensation'!H45>0,'Schedule 1a-Compensation'!K45,0)","v":0},0,0,12,0,0,0,12,0,0,0,0,0,0,0,0,0,0,0]
[null,{"$f":"IF('Schedule 1a-Compensation'!H46>0,'Schedule 1a-Compensation'!B46,0)","v":0},{"$f":"IF('Schedule 1a-Compensation'!H46>0,'Schedule 1a-Compensation'!K46,0)","v":0},0,0,12,0,0,0,12,0,0,0,0,0,0,0,0,0,0,0]
[null,{"$f":"IF('Schedule 1a-Compensation'!H47>0,'Schedule 1a-Compensation'!B47,0)","v":0},{"$f":"IF('Schedule 1a-Compensation'!H47>0,'Schedule 1a-Compensation'!K47,0)","v":0},0,0,12,0,0,0,12,0,0,0,0,0,0,0,0,0,0,0]
[null,{"$f":"IF('Schedule 1a-Compensation'!H48>0,'Schedule 1a-Compensation'!B48,0)","v":0},{"$f":"IF('Schedule 1a-Compensation'!H48>0,'Schedule 1a-Compensation'!K48,0)","v":0},0,0,12,0,0,0,12,0,0,0,0,0,0,0,0,0,0,0]
[null,{"$f":"IF('Schedule 1a-Compensation'!H49>0,'Schedule 1a-Compensation'!B49,0)","v":0},{"$f":"IF('Schedule 1a-Compensation'!H49>0,'Schedule 1a-Compensation'!K49,0)","v":0},0,0,12,0,0,0,12,0,0,0,0,0,0,0,0,0,0,0]
[null,{"$f":"IF('Schedule 1a-Compensation'!H50>0,'Schedule 1a-Compensation'!B50,0)","v":0},{"$f":"IF('Schedule 1a-Compensation'!H50>0,'Schedule 1a-Compensation'!K50,0)","v":0},0,0,12,0,0,0,12,0,0,0,0,0,0,0,0,0,0,0]
[null,{"$f":"IF('Schedule 1a-Compensation'!H51>0,'Schedule 1a-Compensation'!B51,0)","v":0},{"$f":"IF('Schedule 1a-Compensation'!H51>0,'Schedule 1a-Compensation'!K51,0)","v":0},0,0,12,0,0,0,12,0,0,0,0,0,0,0,0,0,0,0]
[null,{"$f":"IF('Schedule 1a-Compensation'!H52>0,'Schedule 1a-Compensation'!B52,0)","v":0},{"$f":"IF('Schedule 1a-Compensation'!H52>0,'Schedule 1a-Compensation'!K52,0)","v":0},0,0,12,0,0,0,12,0,0,0,0,0,0,0,0,0,0,0]
[null,{"$f":"IF('Schedule 1a-Compensation'!H53>0,'Schedule 1a-Compensation'!B53,0)","v":0},{"$f":"IF('Schedule 1a-Compensation'!H53>0,'Schedule 1a-Compensation'!K53,0)","v":0},0,0,12,0,0,0,12,0,0,0,0,0,0,0,0,0,0,0]
[null,{"$f":"IF('Schedule 1a-Compensation'!H54>0,'Schedule 1a-Compensation'!B54,0)","v":0},{"$f":"IF('Schedule 1a-Compensation'!H54>0,'Schedule 1a-Compensation'!K54,0)","v":0},0,0,12,0,0,0,12,0,0,0,0,0,0,0,0,0,0,0]
[null,{"$f":"IF('Schedule 1a-Compensation'!H55>0,'Schedule 1a-Compensation'!B55,0)","v":0},{"$f":"IF('Schedule 1a-Compensation'!H55>0,'Schedule 1a-Compensation'!K55,0)","v":0},0,0,12,0,0,0,12,0,0,0,0,0,0,0,0,0,0,0]
[null,{"$f":"IF('Schedule 1a-Compensation'!H56>0,'Schedule 1a-Compensation'!B56,0)","v":0},{"$f":"IF('Schedule 1a-Compensation'!H56>0,'Schedule 1a-Compensation'!K56,0)","v":0},0,0,12,0,0,0,12,0,0,0,0,0,0,0,0,0,0,0]
[null,{"$f":"IF('Schedule 1a-Compensation'!H57>0,'Schedule 1a-Compensation'!B57,0)","v":0},{"$f":"IF('Schedule 1a-Compensation'!H57>0,'Schedule 1a-Compensation'!K57,0)","v":0},0,0,12,0,0,0,12,0,0,0,0,0,0,0,0,0,0,0]
[null,{"$f":"IF('Schedule 1a-Compensation'!H58>0,'Schedule 1a-Compensation'!B58,0)","v":0},{"$f":"IF('Schedule 1a-Compensation'!H58>0,'Schedule 1a-Compensation'!K58,0)","v":0},0,0,12,0,0,0,12,0,0,0,0,0,0,0,0,0,0,0]
[null,{"$f":"IF('Schedule 1a-Compensation'!H59>0,'Schedule 1a-Compensation'!B59,0)","v":0},{"$f":"IF('Schedule 1a-Compensation'!H59>0,'Schedule 1a-Compensation'!K59,0)","v":0},0,0,12,0,0,0,12,0,0,0,0,0,0,0,0,0,0,0]
[null,{"$f":"IF('Schedule 1a-Compensation'!H60>0,'Schedule 1a-Compensation'!B60,0)","v":0},{"$f":"IF('Schedule 1a-Compensation'!H60>0,'Schedule 1a-Compensation'!K60,0)","v":0},0,0,12,0,0,0,12,0,0,0,0,0,0,0,0,0,0,0]
[null,{"$f":"IF('Schedule 1a-Compensation'!H61>0,'Schedule 1a-Compensation'!B61,0)","v":0},{"$f":"IF('Schedule 1a-Compensation'!H61>0,'Schedule 1a-Compensation'!K61,0)","v":0},0,0,12,0,0,0,12,0,0,0,0,0,0,0,0,0,0,0]
[null,{"$f":"IF('Schedule 1a-Compensation'!H62>0,'Schedule 1a-Compensation'!B62,0)","v":0},{"$f":"IF('Schedule 1a-Compensation'!H62>0,'Schedule 1a-Compensation'!K62,0)","v":0},0,0,12,0,0,0,12,0,0,0,0,0,0,0,0,0,0,0]
[null,{"$f":"IF('Schedule 1a-Compensation'!H63>0,'Schedule 1a-Compensation'!B63,0)","v":0},{"$f":"IF('Schedule 1a-Compensation'!H63>0,'Schedule 1a-Compensation'!K63,0)","v":0},0,0,12,0,0,0,12,0,0,0,0,0,0,0,0,0,0,0]
[null,{"$f":"IF('Schedule 1a-Compensation'!H64>0,'Schedule 1a-Compensation'!B64,0)","v":0},{"$f":"IF('Schedule 1a-Compensation'!H64>0,'Schedule 1a-Compensation'!K64,0)","v":0},0,0,12,0,0,0,12,0,0,0,0,0,0,0,0,0,0,0]
[null,{"$f":"IF('Schedule 1a-Compensation'!H65>0,'Schedule 1a-Compensation'!B65,0)","v":0},{"$f":"IF('Schedule 1a-Compensation'!H65>0,'Schedule 1a-Compensation'!K65,0)","v":0},0,0,12,0,0,0,12,0,0,0,0,0,0,0,0,0,0,0]
[null,{"$f":"IF('Schedule 1a-Compensation'!H66>0,'Schedule 1a-Compensation'!B66,0)","v":0},{"$f":"IF('Schedule 1a-Compensation'!H66>0,'Schedule 1a-Compensation'!K66,0)","v":0},0,0,12,0,0,0,12,0,0,0,0,0,0,0,0,0,0,0]
[null,{"$f":"IF('Schedule 1a-Compensation'!H67>0,'Schedule 1a-Compensation'!B67,0)","v":0},{"$f":"IF('Schedule 1a-Compensation'!H67>0,'Schedule 1a-Compensation'!K67,0)","v":0},0,0,12,0,0,0,12,0,0,0,0,0,0,0,0,0,0,0]
[null,{"$f":"IF('Schedule 1a-Compensation'!H68>0,'Schedule 1a-Compensation'!B68,0)","v":0},{"$f":"IF('Schedule 1a-Compensation'!H68>0,'Schedule 1a-Compensation'!K68,0)","v":0},0,0,12,0,0,0,12,0,0,0,0,0,0,0,0,0,0,0]
[null,{"$f":"IF('Schedule 1a-Compensation'!H69>0,'Schedule 1a-Compensation'!B69,0)","v":0},{"$f":"IF('Schedule 1a-Compensation'!H69>0,'Schedule 1a-Compensation'!K69,0)","v":0},0,0,12,0,0,0,12,0,0,0,0,0,0,0,0,0,0,0]
[null,{"$f":"IF('Schedule 1a-Compensation'!H70>0,'Schedule 1a-Compensation'!B70,0)","v":0},{"$f":"IF('Schedule 1a-Compensation'!H70>0,'Schedule 1a-Compensation'!K70,0)","v":0},0,0,12,0,0,0,12,0,0,0,0,0,0,0,0,0,0,0]
[null,{"$f":"IF('Schedule 1a-Compensation'!H71>0,'Schedule 1a-Compensation'!B71,0)","v":0},{"$f":"IF('Schedule 1a-Compensation'!H71>0,'Schedule 1a-Compensation'!K71,0)","v":0},0,0,12,0,0,0,12,0,0,0,0,0,0,0,0,0,0,0]
[null,{"$f":"IF('Schedule 1a-Compensation'!H72>0,'Schedule 1a-Compensation'!B72,0)","v":0},{"$f":"IF('Schedule 1a-Compensation'!H72>0,'Schedule 1a-Compensation'!K72,0)","v":0},0,0,12,0,0,0,12,0,0,0,0,0,0,0,0,0,0,0]
[null,{"$f":"IF('Schedule 1a-Compensation'!H73>0,'Schedule 1a-Compensation'!B73,0)","v":0},{"$f":"IF('Schedule 1a-Compensation'!H73>0,'Schedule 1a-Compensation'!K73,0)","v":0},0,0,12,0,0,0,12,0,0,0,0,0,0,0,0,0,0,0]
[null,{"$f":"IF('Schedule 1a-Compensation'!H74>0,'Schedule 1a-Compensation'!B74,0)","v":0},{"$f":"IF('Schedule 1a-Compensation'!H74>0,'Schedule 1a-Compensation'!K74,0)","v":0},0,0,12,0,0,0,12,0,0,0,0,0,0,0,0,0,0,0]
[null,{"$f":"IF('Schedule 1a-Compensation'!H75>0,'Schedule 1a-Compensation'!B75,0)","v":0},{"$f":"IF('Schedule 1a-Compensation'!H75>0,'Schedule 1a-Compensation'!K75,0)","v":0},0,0,12,0,0,0,12,0,0,0,0,0,0,0,0,0,0,0]
[null,{"$f":"IF('Schedule 1a-Compensation'!H76>0,'Schedule 1a-Compensation'!B76,0)","v":0},{"$f":"IF('Schedule 1a-Compensation'!H76>0,'Schedule 1a-Compensation'!K76,0)","v":0},0,0,12,0,0,0,12,0,0,0,0,0,0,0,0,0,0,0]
[null,{"$f":"IF('Schedule 1a-Compensation'!H77>0,'Schedule 1a-Compensation'!B77,0)","v":0},{"$f":"IF('Schedule 1a-Compensation'!H77>0,'Schedule 1a-Compensation'!K77,0)","v":0},0,0,12,0,0,0,12,0,0,0,0,0,0,0,0,0,0,0]
[null,null," ",{"$f":"SUM(D17:D77)","v":0},null,null,{"$f":"SUM(G17:G77)","v":0},{"$f":"SUM(H17:H77)","v":0},{"$f":"SUM(I17:I77)","v":0},null,{"$f":"SUM(K17:K77)","v":0},null,null,{"$f":"SUM(N17:N77)","v":0},{"$f":"SUM(O17:O77)","v":0},{"$f":"SUM(P17:P77)","v":0},null,{"$f":"SUM(R17:R77)","v":0},0,0,0]
[]
[null,"Enter data in columns 3, 4, 5, 9, and 19 to calculate the total of schedule 2d.",null,null,null,null,null,null,null,null,null,null,null,null,null,null,null,null,"Total Allowable Costs to CCFP \n(Columns 20+21 must equal the total in Column 19.)",null,{"$f":"T78+U78","v":0}]
[null,"If this is a budget amendment and there are new benefit rates, enter data in columns 10, 11, 12 and 16. ",null,null,null,null,null,null,null,null,null,null,null,null,null,null,null,null,null,null,{"$f":"S78-U80","v":0}]
[null,"Renewed Rate section will not calculate unless the Summary Worksheet is updated to reflect the amendment number. "]
[null,"The calculation of all the benefits is totaled on the summary worksheet."]
[]
[]
[]
[null,"List any other funding source(s) used by your organization to cover the cost of CCFP employees' benefits."]
[]
[null,"List Other Non-CCFP Administrative Funding Source(s)",null,null,"List Supporting Documentation for Schedule 2a",null,null,null,null,null,"Comments"]

{"sheet":"Schedule 2e-Other Benefit 1","index":10,"n_rows":89,"n_cols":21,"rows_kept":89,"cut":false,"hidden":true,"merged":[[92,1,92,3],[93,1,93,3],[94,1,94,3],[93,4,93,9],[93,10,93,15],[94,4,94,9],[94,10,94,15],[9,1,10,3],[89,1,89,3],[90,1,90,3],[91,1,91,3],[90,4,90,9],[89,4,89,9],[90,10,90,15],[91,4,91,9],[91,10,91,15],[92,4,92,9],[92,10,92,15],[11,18,11,20],[12,18,12,20],[89,10,89,15],[11,1,12,2],[11,3,12,9],[11,10,12,16],[11,17,12,17],[79,16,80,17],[79,18,80,19],[88,1,88,3],[88,4,88,9],[88,10,88,15]]}
[null,{"$f":"'Summary Worksheet'!$B$1","v":"Automated Budget for Prospective Sponsors of Unaffiliated Centers"}]
[]
[null,"SCHEDULE 2e - OTHER BENEFIT 1"]
[null,null,"      Fiscal Year:   ",{"$f":"'Summary Worksheet'!$C$4","v":0}]
[]
[null,null,"      Authorization Number:   ",{"$f":"'Summary Worksheet'!$C$6","v":0},null,null,null,null,null,"Please note these error codes:",null,null,null,"Example:"]
[null,null,null,null,null,null,null,null,null,"Total number of months emay not xceed 12"]
[null,null,"Amendment Number:",{"$f":"'Summary Worksheet'!$C$8","v":0},null,null,null,null,null,"Number of CCFP months may not exceed employer months"]
[null,"Type of Benefit:",null,null,null,null,null,null,null,"You need to delete the data in this this cell:",null,null,null,2000]
[null,null,null,null,null,null,null,null,null,"Do not enter data into this cell"]
[]
[null,"PERSONNEL INFORMATION\n(See Schedule 1a).",null,"ORIGINAL RATE",null,null,null,null,null,null,"NEW RATE\nFill this out ONLY IF this is a budget amendment and the benefit has changed rates.",null,null,null,null,null,null,null,"CCFP TOTALS"]
[null,null,null,null,null,null,null,null,null,null,null,null,null,null,null,null,null,null,"CCFP Administrative Budget Total"]
[null,1,{"$f":"B14+1","v":2},3,4,5,6,7,8,9,10,11,12,13,14,15,16,17,18,19,20]
[null,"Employee Name","CCFP % of Employer Cost","Total Monthly Cost","% Employer Covered","Number of Months","Monthly Employer Cost","Monthly Employee Cost","Monthly CCFP Cost                      ","Number of Months  Charged to CCFP ","Total Monthly Cost","  % Employer Covered","Number of Months","Monthly Employer Cost ","Monthly Employee Cost","Monthly CCFP Cost                        ","Number of Months Charged to CCFP","Total Annual Cost to Employer","Allowable Costs to CCFP Administrative Budget ","Amount to be Charged to CCFP Administrative Budget","Allowable CCFP Costs to CCFP Administrative Budget Covered by Other (Non-CCFP) Funding Source(s) "]
[null,"(Pulled from Schedule 1a)","(Pulled from Schedule 1a)",null,null,null,"(column 2  times\ncolumn 3)",null,"  (column 3 times\ncolumn 7)",null,null,null,null,"(column 11  times\n  column 12)",null,"(column 3 times column 14)",null,null,null,null,"(column 19\n minus\ncolumn 20)"]
[null,{"$f":"IF('Schedule 1a-Compensation'!H17>0,'Schedule 1a-Compensation'!B17,0)","v":0},{"$f":"IF('Schedule 1a-Compensation'!H17>0,'Schedule 1a-Compensation'!K17,0)","v":0},0,0,12,{"$f":"ROUND((D17*E17),2)","v":0},{"$f":"(D17)*(1-E17)","v":0},{"$f":"ROUND((G17*C17),2)","v":0},12,0,0,0,{"$f":"ROUND((K17*L17),2)","v":0},{"$f":"(K17)*(1-L17)","v":0},{"$f":"ROUND((N17*C17),2)","v":0},0,{"$f":"IF(AND(B17<>\"\",C17<>\"\",F17+M17<=12,J17+Q17<=12,J17<=F17,Q17<=M17),ROUND((D17*E17*F17),2)+ROUND((K17*L17*M17),2),0)","v":0},{"$f":"IF(AND(R17>0),(ROUND((J17*I17),2)+ROUND((P17*Q17),2)),0)","v":0},0,{"$f":"(S17-T17)","v":0}]
[null,{"$f":"IF('Schedule 1a-Compensation'!H18>0,'Schedule 1a-Compensation'!B18,0)","v":0},{"$f":"IF('Schedule 1a-Compensation'!H18>0,'Schedule 1a-Compensation'!K18,0)","v":0},0,0,12,{"$f":"ROUND((D18*E18),2)","v":0},{"$f":"(D18)*(1-E18)","v":0},0,12,0,0,0,{"$f":"ROUND((K18*L18),2)","v":0},{"$f":"(K18)*(1-L18)","v":0},0,0,{"$f":"IF(AND(B18<>\"\",C18<>\"\",F18+M18<=12,J18+Q18<=12,J18<=F18,Q18<=M18),ROUND((D18*E18*F18),2)+ROUND((K18*L18*M18),2),0)","v":0},{"$f":"IF(AND(R18>0),(ROUND((J18*I18),2)+ROUND((P18*Q18),2)),0)","v":0},0,{"$f":"(S18-T18)","v":0}]
[null,{"$f":"IF('Schedule 1a-Compensation'!H19>0,'Schedule 1a-Compensation'!B19,0)","v":0},{"$f":"IF('Schedule 1a-Compensation'!H19>0,'Schedule 1a-Compensation'!K19,0)","v":0},0,0,12,0,0,0,12,0,0,0,0,0,0,0,0,0,0,0]
[null,{"$f":"IF('Schedule 1a-Compensation'!H20>0,'Schedule 1a-Compensation'!B20,0)","v":0},{"$f":"IF('Schedule 1a-Compensation'!H20>0,'Schedule 1a-Compensation'!K20,0)","v":0},0,0,12,0,0,0,12,0,0,0,0,0,0,0,0,0,0,0]
[null,{"$f":"IF('Schedule 1a-Compensation'!H21>0,'Schedule 1a-Compensation'!B21,0)","v":0},{"$f":"IF('Schedule 1a-Compensation'!H21>0,'Schedule 1a-Compensation'!K21,0)","v":0},0,0,12,0,0,0,12,0,0,0,0,0,0,0,0,0,0,0]
[null,{"$f":"IF('Schedule 1a-Compensation'!H22>0,'Schedule 1a-Compensation'!B22,0)","v":0},{"$f":"IF('Schedule 1a-Compensation'!H22>0,'Schedule 1a-Compensation'!K22,0)","v":0},0,0,12,0,0,0,12,0,0,0,0,0,0,0,0,0,0,0]
[null,{"$f":"IF('Schedule 1a-Compensation'!H23>0,'Schedule 1a-Compensation'!B23,0)","v":0},{"$f":"IF('Schedule 1a-Compensation'!H23>0,'Schedule 1a-Compensation'!K23,0)","v":0},0,0,12,0,0,0,12,0,0,0,0,0,0,0,0,0,0,0]
[null,{"$f":"IF('Schedule 1a-Compensation'!H24>0,'Schedule 1a-Compensation'!B24,0)","v":0},{"$f":"IF('Schedule 1a-Compensation'!H24>0,'Schedule 1a-Compensation'!K24,0)","v":0},0,0,12,0,0,0,12,0,0,0,0,0,0,0,0,0,0,0]
[null,{"$f":"IF('Schedule 1a-Compensation'!H25>0,'Schedule 1a-Compensation'!B25,0)","v":0},{"$f":"IF('Schedule 1a-Compensation'!H25>0,'Schedule 1a-Compensation'!K25,0)","v":0},0,0,12,0,0,0,12,0,0,0,0,0,0,0,0,0,0,0]
[null,{"$f":"IF('Schedule 1a-Compensation'!H26>0,'Schedule 1a-Compensation'!B26,0)","v":0},{"$f":"IF('Schedule 1a-Compensation'!H26>0,'Schedule 1a-Compensation'!K26,0)","v":0},0,0,12,0,0,0,12,0,0,0,0,0,0,0,0,0,0,0]
[null,{"$f":"IF('Schedule 1a-Compensation'!H27>0,'Schedule 1a-Compensation'!B27,0)","v":0},{"$f":"IF('Schedule 1a-Compensation'!H27>0,'Schedule 1a-Compensation'!K27,0)","v":0},0,0,12,0,0,0,12,0,0,0,0,0,0,0,0,0,0,0]
[null,{"$f":"IF('Schedule 1a-Compensation'!H28>0,'Schedule 1a-Compensation'!B28,0)","v":0},{"$f":"IF('Schedule 1a-Compensation'!H28>0,'Schedule 1a-Compensation'!K28,0)","v":0},0,0,12,0,0,0,12,0,0,0,0,0,0,0,0,0,0,0]
[null,{"$f":"IF('Schedule 1a-Compensation'!H29>0,'Schedule 1a-Compensation'!B29,0)","v":0},{"$f":"IF('Schedule 1a-Compensation'!H29>0,'Schedule 1a-Compensation'!K29,0)","v":0},0,0,12,0,0,0,12,0,0,0,0,0,0,0,0,0,0,0]
[null,{"$f":"IF('Schedule 1a-Compensation'!H30>0,'Schedule 1a-Compensation'!B30,0)","v":0},{"$f":"IF('Schedule 1a-Compensation'!H30>0,'Schedule 1a-Compensation'!K30,0)","v":0},0,0,12,0,0,0,12,0,0,0,0,0,0,0,0,0,0,0]
[null,{"$f":"IF('Schedule 1a-Compensation'!H31>0,'Schedule 1a-Compensation'!B31,0)","v":0},{"$f":"IF('Schedule 1a-Compensation'!H31>0,'Schedule 1a-Compensation'!K31,0)","v":0},0,0,12,0,0,0,12,0,0,0,0,0,0,0,0,0,0,0]
[null,{"$f":"IF('Schedule 1a-Compensation'!H32>0,'Schedule 1a-Compensation'!B32,0)","v":0},{"$f":"IF('Schedule 1a-Compensation'!H32>0,'Schedule 1a-Compensation'!K32,0)","v":0},0,0,12,0,0,0,12,0,0,0,0,0,0,0,0,0,0,0]
[null,{"$f":"IF('Schedule 1a-Compensation'!H33>0,'Schedule 1a-Compensation'!B33,0)","v":0},{"$f":"IF('Schedule 1a-Compensation'!H33>0,'Schedule 1a-Compensation'!K33,0)","v":0},0,0,12,0,0,0,12,0,0,0,0,0,0,0,0,0,0,0]
[null,{"$f":"IF('Schedule 1a-Compensation'!H34>0,'Schedule 1a-Compensation'!B34,0)","v":0},{"$f":"IF('Schedule 1a-Compensation'!H34>0,'Schedule 1a-Compensation'!K34,0)","v":0},0,0,12,0,0,0,12,0,0,0,0,0,0,0,0,0,0,0]
[null,{"$f":"IF('Schedule 1a-Compensation'!H35>0,'Schedule 1a-Compensation'!B35,0)","v":0},{"$f":"IF('Schedule 1a-Compensation'!H35>0,'Schedule 1a-Compensation'!K35,0)","v":0},0,0,12,0,0,0,12,0,0,0,0,0,0,0,0,0,0,0]
[null,{"$f":"IF('Schedule 1a-Compensation'!H36>0,'Schedule 1a-Compensation'!B36,0)","v":0},{"$f":"IF('Schedule 1a-Compensation'!H36>0,'Schedule 1a-Compensation'!K36,0)","v":0},0,0,12,0,0,0,12,0,0,0,0,0,0,0,0,0,0,0]
[null,{"$f":"IF('Schedule 1a-Compensation'!H37>0,'Schedule 1a-Compensation'!B37,0)","v":0},{"$f":"IF('Schedule 1a-Compensation'!H37>0,'Schedule 1a-Compensation'!K37,0)","v":0},0,0,12,0,0,0,12,0,0,0,0,0,0,0,0,0,0,0]
[null,{"$f":"IF('Schedule 1a-Compensation'!H38>0,'Schedule 1a-Compensation'!B38,0)","v":0},{"$f":"IF('Schedule 1a-Compensation'!H38>0,'Schedule 1a-Compensation'!K38,0)","v":0},0,0,12,0,0,0,12,0,0,0,0,0,0,0,0,0,0,0]
[null,{"$f":"IF('Schedule 1a-Compensation'!H39>0,'Schedule 1a-Compensation'!B39,0)","v":0},{"$f":"IF('Schedule 1a-Compensation'!H39>0,'Schedule 1a-Compensation'!K39,0)","v":0},0,0,12,0,0,0,12,0,0,0,0,0,0,0,0,0,0,0]
[null,{"$f":"IF('Schedule 1a-Compensation'!H40>0,'Schedule 1a-Compensation'!B40,0)","v":0},{"$f":"IF('Schedule 1a-Compensation'!H40>0,'Schedule 1a-Compensation'!K40,0)","v":0},0,0,12,0,0,0,12,0,0,0,0,0,0,0,0,0,0,0]
[null,{"$f":"IF('Schedule 1a-Compensation'!H41>0,'Schedule 1a-Compensation'!B41,0)","v":0},{"$f":"IF('Schedule 1a-Compensation'!H41>0,'Schedule 1a-Compensation'!K41,0)","v":0},0,0,12,0,0,0,12,0,0,0,0,0,0,0,0,0,0,0]
[null,{"$f":"IF('Schedule 1a-Compensation'!H42>0,'Schedule 1a-Compensation'!B42,0)","v":0},{"$f":"IF('Schedule 1a-Compensation'!H42>0,'Schedule 1a-Compensation'!K42,0)","v":0},0,0,12,0,0,0,12,0,0,0,0,0,0,0,0,0,0,0]
[null,{"$f":"IF('Schedule 1a-Compensation'!H43>0,'Schedule 1a-Compensation'!B43,0)","v":0},{"$f":"IF('Schedule 1a-Compensation'!H43>0,'Schedule 1a-Compensation'!K43,0)","v":0},0,0,12,0,0,0,12,0,0,0,0,0,0,0,0,0,0,0]
[null,{"$f":"IF('Schedule 1a-Compensation'!H44>0,'Schedule 1a-Compensation'!B44,0)","v":0},{"$f":"IF('Schedule 1a-Compensation'!H44>0,'Schedule 1a-Compensation'!K44,0)","v":0},0,0,12,0,0,0,12,0,0,0,0,0,0,0,0,0,0,0]
[null,{"$f":"IF('Schedule 1a-Compensation'!H45>0,'Schedule 1a-Compensation'!B45,0)","v":0},{"$f":"IF('Schedule 1a-Compensation'!H45>0,'Schedule 1a-Compensation'!K45,0)","v":0},0,0,12,0,0,0,12,0,0,0,0,0,0,0,0,0,0,0]
[null,{"$f":"IF('Schedule 1a-Compensation'!H46>0,'Schedule 1a-Compensation'!B46,0)","v":0},{"$f":"IF('Schedule 1a-Compensation'!H46>0,'Schedule 1a-Compensation'!K46,0)","v":0},0,0,12,0,0,0,12,0,0,0,0,0,0,0,0,0,0,0]
[null,{"$f":"IF('Schedule 1a-Compensation'!H47>0,'Schedule 1a-Compensation'!B47,0)","v":0},{"$f":"IF('Schedule 1a-Compensation'!H47>0,'Schedule 1a-Compensation'!K47,0)","v":0},0,0,12,0,0,0,12,0,0,0,0,0,0,0,0,0,0,0]
[null,{"$f":"IF('Schedule 1a-Compensation'!H48>0,'Schedule 1a-Compensation'!B48,0)","v":0},{"$f":"IF('Schedule 1a-Compensation'!H48>0,'Schedule 1a-Compensation'!K48,0)","v":0},0,0,12,0,0,0,12,0,0,0,0,0,0,0,0,0,0,0]
[null,{"$f":"IF('Schedule 1a-Compensation'!H49>0,'Schedule 1a-Compensation'!B49,0)","v":0},{"$f":"IF('Schedule 1a-Compensation'!H49>0,'Schedule 1a-Compensation'!K49,0)","v":0},0,0,12,0,0,0,12,0,0,0,0,0,0,0,0,0,0,0]
[null,{"$f":"IF('Schedule 1a-Compensation'!H50>0,'Schedule 1a-Compensation'!B50,0)","v":0},{"$f":"IF('Schedule 1a-Compensation'!H50>0,'Schedule 1a-Compensation'!K50,0)","v":0},0,0,12,0,0,0,12,0,0,0,0,0,0,0,0,0,0,0]
[null,{"$f":"IF('Schedule 1a-Compensation'!H51>0,'Schedule 1a-Compensation'!B51,0)","v":0},{"$f":"IF('Schedule 1a-Compensation'!H51>0,'Schedule 1a-Compensation'!K51,0)","v":0},0,0,12,0,0,0,12,0,0,0,0,0,0,0,0,0,0,0]
[null,{"$f":"IF('Schedule 1a-Compensation'!H52>0,'Schedule 1a-Compensation'!B52,0)","v":0},{"$f":"IF('Schedule 1a-Compensation'!H52>0,'Schedule 1a-Compensation'!K52,0)","v":0},0,0,12,0,0,0,12,0,0,0,0,0,0,0,0,0,0,0]
[null,{"$f":"IF('Schedule 1a-Compensation'!H53>0,'Schedule 1a-Compensation'!B53,0)","v":0},{"$f":"IF('Schedule 1a-Compensation'!H53>0,'Schedule 1a-Compensation'!K53,0)","v":0},0,0,12,0,0,0,12,0,0,0,0,0,0,0,0,0,0,0]
[null,{"$f":"IF('Schedule 1a-Compensation'!H54>0,'Schedule 1a-Compensation'!B54,0)","v":0},{"$f":"IF('Schedule 1a-Compensation'!H54>0,'Schedule 1a-Compensation'!K54,0)","v":0},0,0,12,0,0,0,12,0,0,0,0,0,0,0,0,0,0,0]
[null,{"$f":"IF('Schedule 1a-Compensation'!H55>0,'Schedule 1a-Compensation'!B55,0)","v":0},{"$f":"IF('Schedule 1a-Compensation'!H55>0,'Schedule 1a-Compensation'!K55,0)","v":0},0,0,12,0,0,0,12,0,0,0,0,0,0,0,0,0,0,0]
[null,{"$f":"IF('Schedule 1a-Compensation'!H56>0,'Schedule 1a-Compensation'!B56,0)","v":0},{"$f":"IF('Schedule 1a-Compensation'!H56>0,'Schedule 1a-Compensation'!K56,0)","v":0},0,0,12,0,0,0,12,0,0,0,0,0,0,0,0,0,0,0]
[null,{"$f":"IF('Schedule 1a-Compensation'!H57>0,'Schedule 1a-Compensation'!B57,0)","v":0},{"$f":"IF('Schedule 1a-Compensation'!H57>0,'Schedule 1a-Compensation'!K57,0)","v":0},0,0,12,0,0,0,12,0,0,0,0,0,0,0,0,0,0,0]
[null,{"$f":"IF('Schedule 1a-Compensation'!H58>0,'Schedule 1a-Compensation'!B58,0)","v":0},{"$f":"IF('Schedule 1a-Compensation'!H58>0,'Schedule 1a-Compensation'!K58,0)","v":0},0,0,12,0,0,0,12,0,0,0,0,0,0,0,0,0,0,0]
[null,{"$f":"IF('Schedule 1a-Compensation'!H59>0,'Schedule 1a-Compensation'!B59,0)","v":0},{"$f":"IF('Schedule 1a-Compensation'!H59>0,'Schedule 1a-Compensation'!K59,0)","v":0},0,0,12,0,0,0,12,0,0,0,0,0,0,0,0,0,0,0]
[null,{"$f":"IF('Schedule 1a-Compensation'!H60>0,'Schedule 1a-Compensation'!B60,0)","v":0},{"$f":"IF('Schedule 1a-Compensation'!H60>0,'Schedule 1a-Compensation'!K60,0)","v":0},0,0,12,0,0,0,12,0,0,0,0,0,0,0,0,0,0,0]
[null,{"$f":"IF('Schedule 1a-Compensation'!H61>0,'Schedule 1a-Compensation'!B61,0)","v":0},{"$f":"IF('Schedule 1a-Compensation'!H61>0,'Schedule 1a-Compensation'!K61,0)","v":0},0,0,12,0,0,0,12,0,0,0,0,0,0,0,0,0,0,0]
[null,{"$f":"IF('Schedule 1a-Compensation'!H62>0,'Schedule 1a-Compensation'!B62,0)","v":0},{"$f":"IF('Schedule 1a-Compensation'!H62>0,'Schedule 1a-Compensation'!K62,0)","v":0},0,0,12,0,0,0,12,0,0,0,0,0,0,0,0,0,0,0]
[null,{"$f":"IF('Schedule 1a-Compensation'!H63>0,'Schedule 1a-Compensation'!B63,0)","v":0},{"$f":"IF('Schedule 1a-Compensation'!H63>0,'Schedule 1a-Compensation'!K63,0)","v":0},0,0,12,0,0,0,12,0,0,0,0,0,0,0,0,0,0,0]
[null,{"$f":"IF('Schedule 1a-Compensation'!H64>0,'Schedule 1a-Compensation'!B64,0)","v":0},{"$f":"IF('Schedule 1a-Compensation'!H64>0,'Schedule 1a-Compensation'!K64,0)","v":0},0,0,12,0,0,0,12,0,0,0,0,0,0,0,0,0,0,0]
[null,{"$f":"IF('Schedule 1a-Compensation'!H65>0,'Schedule 1a-Compensation'!B65,0)","v":0},{"$f":"IF('Schedule 1a-Compensation'!H65>0,'Schedule 1a-Compensation'!K65,0)","v":0},0,0,12,0,0,0,12,0,0,0,0,0,0,0,0,0,0,0]
[null,{"$f":"IF('Schedule 1a-Compensation'!H66>0,'Schedule 1a-Compensation'!B66,0)","v":0},{"$f":"IF('Schedule 1a-Compensation'!H66>0,'Schedule 1a-Compensation'!K66,0)","v":0},0,0,12,0,0,0,12,0,0,0,0,0,0,0,0,0,0,0]
[null,{"$f":"IF('Schedule 1a-Compensation'!H67>0,'Schedule 1a-Compensation'!B67,0)","v":0},{"$f":"IF('Schedule 1a-Compensation'!H67>0,'Schedule 1a-Compensation'!K67,0)","v":0},0,0,12,0,0,0,12,0,0,0,0,0,0,0,0,0,0,0]
[null,{"$f":"IF('Schedule 1a-Compensation'!H68>0,'Schedule 1a-Compensation'!B68,0)","v":0},{"$f":"IF('Schedule 1a-Compensation'!H68>0,'Schedule 1a-Compensation'!K68,0)","v":0},0,0,12,0,0,0,12,0,0,0,0,0,0,0,0,0,0,0]
[null,{"$f":"IF('Schedule 1a-Compensation'!H69>0,'Schedule 1a-Compensation'!B69,0)","v":0},{"$f":"IF('Schedule 1a-Compensation'!H69>0,'Schedule 1a-Compensation'!K69,0)","v":0},0,0,12,0,0,0,12,0,0,0,0,0,0,0,0,0,0,0]
[null,{"$f":"IF('Schedule 1a-Compensation'!H70>0,'Schedule 1a-Compensation'!B70,0)","v":0},{"$f":"IF('Schedule 1a-Compensation'!H70>0,'Schedule 1a-Compensation'!K70,0)","v":0},0,0,12,0,0,0,12,0,0,0,0,0,0,0,0,0,0,0]
[null,{"$f":"IF('Schedule 1a-Compensation'!H71>0,'Schedule 1a-Compensation'!B71,0)","v":0},{"$f":"IF('Schedule 1a-Compensation'!H71>0,'Schedule 1a-Compensation'!K71,0)","v":0},0,0,12,0,0,0,12,0,0,0,0,0,0,0,0,0,0,0]
[null,{"$f":"IF('Schedule 1a-Compensation'!H72>0,'Schedule 1a-Compensation'!B72,0)","v":0},{"$f":"IF('Schedule 1a-Compensation'!H72>0,'Schedule 1a-Compensation'!K72,0)","v":0},0,0,12,0,0,0,12,0,0,0,0,0,0,0,0,0,0,0]
[null,{"$f":"IF('Schedule 1a-Compensation'!H73>0,'Schedule 1a-Compensation'!B73,0)","v":0},{"$f":"IF('Schedule 1a-Compensation'!H73>0,'Schedule 1a-Compensation'!K73,0)","v":0},0,0,12,0,0,0,12,0,0,0,0,0,0,0,0,0,0,0]
[null,{"$f":"IF('Schedule 1a-Compensation'!H74>0,'Schedule 1a-Compensation'!B74,0)","v":0},{"$f":"IF('Schedule 1a-Compensation'!H74>0,'Schedule 1a-Compensation'!K74,0)","v":0},0,0,12,0,0,0,12,0,0,0,0,0,0,0,0,0,0,0]
[null,{"$f":"IF('Schedule 1a-Compensation'!H75>0,'Schedule 1a-Compensation'!B75,0)","v":0},{"$f":"IF('Schedule 1a-Compensation'!H75>0,'Schedule 1a-Compensation'!K75,0)","v":0},0,0,12,0,0,0,12,0,0,0,0,0,0,0,0,0,0,0]
[null,{"$f":"IF('Schedule 1a-Compensation'!H76>0,'Schedule 1a-Compensation'!B76,0)","v":0},{"$f":"IF('Schedule 1a-Compensation'!H76>0,'Schedule 1a-Compensation'!K76,0)","v":0},0,0,12,0,0,0,12,0,0,0,0,0,0,0,0,0,0,0]
[null,{"$f":"IF('Schedule 1a-Compensation'!H77>0,'Schedule 1a-Compensation'!B77,0)","v":0},{"$f":"IF('Schedule 1a-Compensation'!H77>0,'Schedule 1a-Compensation'!K77,0)","v":0},0,0,12,0,0,0,12,0,0,0,0,0,0,0,0,0,0,0]
[null,null," ",{"$f":"SUM(D17:D77)","v":0},null,null,{"$f":"SUM(G17:G77)","v":0},{"$f":"SUM(H17:H77)","v":0},{"$f":"SUM(I17:I77)","v":0},null,{"$f":"SUM(K17:K77)","v":0},null,null,{"$f":"SUM(N17:N77)","v":0},{"$f":"SUM(O17:O77)","v":0},{"$f":"SUM(P17:P77)","v":0},null,{"$f":"SUM(R17:R77)","v":0},0,0,0]
[null,"Detail the type of benefit in cell b10. "]
[null,"Enter data in columns 3, 4, 5, 9, and 19 to calculate the total of schedule 2e.",null,null,null,null,null,null,null,null,null,null,null,null,null,null,null,null,"Total Allowable Costs to CCFP \n(Columns 20+21 must equal the total in Column 19.)",null,{"$f":"T78+U78","v":0}]
[null,"If this is a budget amendment and there are new benefit rates, enter data in columns 10, 11, 12 and 16. ",null,null,null,null,null,null,null,null,null,null,null,null,null,null,null,null,null,null,{"$f":"S78-U80","v":0}]
[null,"Renewed Rate section will not calculate unless the Summary Worksheet is updated to reflect the amendment number. "]
[null,"The calculation of all the benefits is totaled on the summary worksheet."]
[]
[]
[]
[null,"List any other funding source(s) used by your organization to cover the cost of CCFP employees' benefits."]
[]
[null,"List Other Non-CCFP Administrative Funding Source(s)",null,null,"List Supporting Documentation for Schedule 2a",null,null,null,null,null,"Comments"]

{"sheet":"Schedule 2f-Other Benefit 2","index":11,"n_rows":89,"n_cols":21,"rows_kept":89,"cut":false,"hidden":true,"merged":[[94,1,94,3],[94,4,94,9],[94,10,94,15],[92,1,92,3],[92,4,92,9],[92,10,92,15],[93,1,93,3],[93,4,93,9],[93,10,93,15],[90,1,90,3],[90,4,90,9],[90,10,90,15],[91,1,91,3],[91,4,91,9],[91,10,91,15],[9,1,10,3],[11,1,12,2],[11,3,12,9],[11,10,12,16],[79,16,80,17],[11,17,12,17],[11,18,11,20],[12,18,12,20],[89,1,89,3],[89,4,89,9],[89,10,89,15],[79,18,80,19],[88,1,88,3],[88,4,88,9],[88,10,88,15]]}
[null,{"$f":"'Summary Worksheet'!$B$1","v":"Automated Budget for Prospective Sponsors of Unaffiliated Centers"}]
[]
[null,"SCHEDULE 2f - OTHER BENEFIT 2"]
[null,null,"      Fiscal Year:   ",{"$f":"'Summary Worksheet'!$C$4","v":0}]
[]
[null,null,"      Authorization Number:   ",{"$f":"'Summary Worksheet'!$C$6","v":0},null,null,null,null,null,"Please note these error codes:",null,null,null,"Example:"]
[null,null,null,null,null,null,null,null,null,"Total number of months emay not xceed 12"]
[null,null,"Amendment Number:",{"$f":"'Summary Worksheet'!$C$8","v":0},null,null,null,null,null,"Number of CCFP months may not exceed employer months"]
[null,"Type of Benefit:",null,null,null,null,null,null,null,"You need to delete the data in this this cell:",null,null,null,2000]
[null,null,null,null,null,null,null,null,null,"Do not enter data into this cell"]
[]
[null,"PERSONNEL INFORMATION\n(See Schedule 1a).",null,"ORIGINAL RATE",null,null,null,null,null,null,"NEW RATE\nFill this out ONLY IF this is a budget amendment and the benefit has changed rates.",null,null,null,null,null,null,null,"CCFP TOTALS"]
[null,null,null,null,null,null,null,null,null,null,null,null,null,null,null,null,null,null,"CCFP Administrative Budget Total"]
[null,1,{"$f":"B14+1","v":2},3,4,5,6,7,8,9,10,11,12,13,14,15,16,17,18,19,20]
[null,"Employee Name","CCFP % of Employer Cost","Total Monthly Cost","% Employer Covered","Number of Months","Monthly Employer Cost","Monthly Employee Cost","Monthly CCFP Cost                      ","Number of Months  Charged to CCFP ","Total Monthly Cost","  % Employer Covered","Number of Months","Monthly Employer Cost ","Monthly Employee Cost","Monthly CCFP Cost                        ","Number of Months Charged to CCFP","Total Annual Cost to Employer","Allowable Costs to CCFP Administrative Budget ","Amount to be Charged to CCFP Administrative Budget","Allowable CCFP Costs to CCFP Administrative Budget Covered by Other (Non-CCFP) Funding Source(s) "]
[null,"(Pulled from Schedule 1a)","(Pulled from Schedule 1a)",null,null,null,"(column 2  times\ncolumn 3)",null,"  (column 3 times\ncolumn 7)",null,null,null,null,"(column 11  times\n  column 12)",null,"(column 3 times column 14)",null,null,null,null,"(column 19\n minus\ncolumn 20)"]
[null,{"$f":"IF('Schedule 1a-Compensation'!H17>0,'Schedule 1a-Compensation'!B17,0)","v":0},{"$f":"IF('Schedule 1a-Compensation'!H17>0,'Schedule 1a-Compensation'!K17,0)","v":0},0,0,12,{"$f":"ROUND((D17*E17),2)","v":0},{"$f":"(D17)*(1-E17)","v":0},{"$f":"ROUND((G17*C17),2)","v":0},12,0,0,0,{"$f":"ROUND((K17*L17),2)","v":0},{"$f":"(K17)*(1-L17)","v":0},{"$f":"ROUND((N17*C17),2)","v":0},0,{"$f":"IF(AND(B17<>\"\",C17<>\"\",F17+M17<=12,J17+Q17<=12,J17<=F17,Q17<=M17),ROUND((D17*E17*F17),2)+ROUND((K17*L17*M17),2),0)","v":0},{"$f":"IF(AND(R17>0),(ROUND((I17*J17),2)+ROUND((P17*Q17),2)),0)","v":0},0,{"$f":"(S17-T17)","v":0}]
[null,{"$f":"IF('Schedule 1a-Compensation'!H18>0,'Schedule 1a-Compensation'!B18,0)","v":0},{"$f":"IF('Schedule 1a-Compensation'!H18>0,'Schedule 1a-Compensation'!K18,0)","v":0},0,0,12,{"$f":"ROUND((D18*E18),2)","v":0},{"$f":"(D18)*(1-E18)","v":0},0,12,0,0,0,{"$f":"ROUND((K18*L18),2)","v":0},{"$f":"(K18)*(1-L18)","v":0},0,0,{"$f":"IF(AND(B18<>\"\",C18<>\"\",F18+M18<=12,J18+Q18<=12,J18<=F18,Q18<=M18),ROUND((D18*E18*F18),2)+ROUND((K18*L18*M18),2),0)","v":0},{"$f":"IF(AND(R18>0),(ROUND((I18*J18),2)+ROUND((P18*Q18),2)),0)","v":0},0,{"$f":"(S18-T18)","v":0}]
[null,{"$f":"IF('Schedule 1a-Compensation'!H19>0,'Schedule 1a-Compensation'!B19,0)","v":0},{"$f":"IF('Schedule 1a-Compensation'!H19>0,'Schedule 1a-Compensation'!K19,0)","v":0},0,0,12,0,0,0,12,0,0,0,0,0,0,0,0,0,0,0]
[null,{"$f":"IF('Schedule 1a-Compensation'!H20>0,'Schedule 1a-Compensation'!B20,0)","v":0},{"$f":"IF('Schedule 1a-Compensation'!H20>0,'Schedule 1a-Compensation'!K20,0)","v":0},0,0,12,0,0,0,12,0,0,0,0,0,0,0,0,0,0,0]
[null,{"$f":"IF('Schedule 1a-Compensation'!H21>0,'Schedule 1a-Compensation'!B21,0)","v":0},{"$f":"IF('Schedule 1a-Compensation'!H21>0,'Schedule 1a-Compensation'!K21,0)","v":0},0,0,12,0,0,0,12,0,0,0,0,0,0,0,0,0,0,0]
[null,{"$f":"IF('Schedule 1a-Compensation'!H22>0,'Schedule 1a-Compensation'!B22,0)","v":0},{"$f":"IF('Schedule 1a-Compensation'!H22>0,'Schedule 1a-Compensation'!K22,0)","v":0},0,0,12,0,0,0,12,0,0,0,0,0,0,0,0,0,0,0]
[null,{"$f":"IF('Schedule 1a-Compensation'!H23>0,'Schedule 1a-Compensation'!B23,0)","v":0},{"$f":"IF('Schedule 1a-Compensation'!H23>0,'Schedule 1a-Compensation'!K23,0)","v":0},0,0,12,0,0,0,12,0,0,0,0,0,0,0,0,0,0,0]
[null,{"$f":"IF('Schedule 1a-Compensation'!H24>0,'Schedule 1a-Compensation'!B24,0)","v":0},{"$f":"IF('Schedule 1a-Compensation'!H24>0,'Schedule 1a-Compensation'!K24,0)","v":0},0,0,12,0,0,0,12,0,0,0,0,0,0,0,0,0,0,0]
[null,{"$f":"IF('Schedule 1a-Compensation'!H25>0,'Schedule 1a-Compensation'!B25,0)","v":0},{"$f":"IF('Schedule 1a-Compensation'!H25>0,'Schedule 1a-Compensation'!K25,0)","v":0},0,0,12,0,0,0,12,0,0,0,0,0,0,0,0,0,0,0]
[null,{"$f":"IF('Schedule 1a-Compensation'!H26>0,'Schedule 1a-Compensation'!B26,0)","v":0},{"$f":"IF('Schedule 1a-Compensation'!H26>0,'Schedule 1a-Compensation'!K26,0)","v":0},0,0,12,0,0,0,12,0,0,0,0,0,0,0,0,0,0,0]
[null,{"$f":"IF('Schedule 1a-Compensation'!H27>0,'Schedule 1a-Compensation'!B27,0)","v":0},{"$f":"IF('Schedule 1a-Compensation'!H27>0,'Schedule 1a-Compensation'!K27,0)","v":0},0,0,12,0,0,0,12,0,0,0,0,0,0,0,0,0,0,0]
[null,{"$f":"IF('Schedule 1a-Compensation'!H28>0,'Schedule 1a-Compensation'!B28,0)","v":0},{"$f":"IF('Schedule 1a-Compensation'!H28>0,'Schedule 1a-Compensation'!K28,0)","v":0},0,0,12,0,0,0,12,0,0,0,0,0,0,0,0,0,0,0]
[null,{"$f":"IF('Schedule 1a-Compensation'!H29>0,'Schedule 1a-Compensation'!B29,0)","v":0},{"$f":"IF('Schedule 1a-Compensation'!H29>0,'Schedule 1a-Compensation'!K29,0)","v":0},0,0,12,0,0,0,12,0,0,0,0,0,0,0,0,0,0,0]
[null,{"$f":"IF('Schedule 1a-Compensation'!H30>0,'Schedule 1a-Compensation'!B30,0)","v":0},{"$f":"IF('Schedule 1a-Compensation'!H30>0,'Schedule 1a-Compensation'!K30,0)","v":0},0,0,12,0,0,0,12,0,0,0,0,0,0,0,0,0,0,0]
[null,{"$f":"IF('Schedule 1a-Compensation'!H31>0,'Schedule 1a-Compensation'!B31,0)","v":0},{"$f":"IF('Schedule 1a-Compensation'!H31>0,'Schedule 1a-Compensation'!K31,0)","v":0},0,0,12,0,0,0,12,0,0,0,0,0,0,0,0,0,0,0]
[null,{"$f":"IF('Schedule 1a-Compensation'!H32>0,'Schedule 1a-Compensation'!B32,0)","v":0},{"$f":"IF('Schedule 1a-Compensation'!H32>0,'Schedule 1a-Compensation'!K32,0)","v":0},0,0,12,0,0,0,12,0,0,0,0,0,0,0,{"$f":"IF(AND(B32<>\"\",C32<>\"\",F32+M32<=12,J32+Q32<=12,J32<=F32,Q32<=M32),ROUND((D32*E32*F32),2)+ROUND((K32*L32*M32),2),0)","v":0},0,0,0]
[null,{"$f":"IF('Schedule 1a-Compensation'!H33>0,'Schedule 1a-Compensation'!B33,0)","v":0},{"$f":"IF('Schedule 1a-Compensation'!H33>0,'Schedule 1a-Compensation'!K33,0)","v":0},0,0,12,0,0,0,12,0,0,0,0,0,0,0,0,0,0,0]
[null,{"$f":"IF('Schedule 1a-Compensation'!H34>0,'Schedule 1a-Compensation'!B34,0)","v":0},{"$f":"IF('Schedule 1a-Compensation'!H34>0,'Schedule 1a-Compensation'!K34,0)","v":0},0,0,12,0,0,0,12,0,0,0,0,0,0,0,0,0,0,0]
[null,{"$f":"IF('Schedule 1a-Compensation'!H35>0,'Schedule 1a-Compensation'!B35,0)","v":0},{"$f":"IF('Schedule 1a-Compensation'!H35>0,'Schedule 1a-Compensation'!K35,0)","v":0},0,0,12,0,0,0,12,0,0,0,0,0,0,0,0,0,0,0]
[null,{"$f":"IF('Schedule 1a-Compensation'!H36>0,'Schedule 1a-Compensation'!B36,0)","v":0},{"$f":"IF('Schedule 1a-Compensation'!H36>0,'Schedule 1a-Compensation'!K36,0)","v":0},0,0,12,0,0,0,12,0,0,0,0,0,0,0,0,0,0,0]
[null,{"$f":"IF('Schedule 1a-Compensation'!H37>0,'Schedule 1a-Compensation'!B37,0)","v":0},{"$f":"IF('Schedule 1a-Compensation'!H37>0,'Schedule 1a-Compensation'!K37,0)","v":0},0,0,12,0,0,0,12,0,0,0,0,0,0,0,0,0,0,0]
[null,{"$f":"IF('Schedule 1a-Compensation'!H38>0,'Schedule 1a-Compensation'!B38,0)","v":0},{"$f":"IF('Schedule 1a-Compensation'!H38>0,'Schedule 1a-Compensation'!K38,0)","v":0},0,0,12,0,0,0,12,0,0,0,0,0,0,0,0,0,0,0]
[null,{"$f":"IF('Schedule 1a-Compensation'!H39>0,'Schedule 1a-Compensation'!B39,0)","v":0},{"$f":"IF('Schedule 1a-Compensation'!H39>0,'Schedule 1a-Compensation'!K39,0)","v":0},0,0,12,0,0,0,12,0,0,0,0,0,0,0,0,0,0,0]
[null,{"$f":"IF('Schedule 1a-Compensation'!H40>0,'Schedule 1a-Compensation'!B40,0)","v":0},{"$f":"IF('Schedule 1a-Compensation'!H40>0,'Schedule 1a-Compensation'!K40,0)","v":0},0,0,12,0,0,0,12,0,0,0,0,0,0,0,0,0,0,0]
[null,{"$f":"IF('Schedule 1a-Compensation'!H41>0,'Schedule 1a-Compensation'!B41,0)","v":0},{"$f":"IF('Schedule 1a-Compensation'!H41>0,'Schedule 1a-Compensation'!K41,0)","v":0},0,0,12,0,0,0,12,0,0,0,0,0,0,0,0,0,0,0]
[null,{"$f":"IF('Schedule 1a-Compensation'!H42>0,'Schedule 1a-Compensation'!B42,0)","v":0},{"$f":"IF('Schedule 1a-Compensation'!H42>0,'Schedule 1a-Compensation'!K42,0)","v":0},0,0,12,0,0,0,12,0,0,0,0,0,0,0,0,0,0,0]
[null,{"$f":"IF('Schedule 1a-Compensation'!H43>0,'Schedule 1a-Compensation'!B43,0)","v":0},{"$f":"IF('Schedule 1a-Compensation'!H43>0,'Schedule 1a-Compensation'!K43,0)","v":0},0,0,12,0,0,0,12,0,0,0,0,0,0,0,0,0,0,0]
[null,{"$f":"IF('Schedule 1a-Compensation'!H44>0,'Schedule 1a-Compensation'!B44,0)","v":0},{"$f":"IF('Schedule 1a-Compensation'!H44>0,'Schedule 1a-Compensation'!K44,0)","v":0},0,0,12,0,0,0,12,0,0,0,0,0,0,0,0,0,0,0]
[null,{"$f":"IF('Schedule 1a-Compensation'!H45>0,'Schedule 1a-Compensation'!B45,0)","v":0},{"$f":"IF('Schedule 1a-Compensation'!H45>0,'Schedule 1a-Compensation'!K45,0)","v":0},0,0,12,0,0,0,12,0,0,0,0,0,0,0,0,0,0,0]
[null,{"$f":"IF('Schedule 1a-Compensation'!H46>0,'Schedule 1a-Compensation'!B46,0)","v":0},{"$f":"IF('Schedule 1a-Compensation'!H46>0,'Schedule 1a-Compensation'!K46,0)","v":0},0,0,12,0,0,0,12,0,0,0,0,0,0,0,0,0,0,0]
[null,{"$f":"IF('Schedule 1a-Compensation'!H47>0,'Schedule 1a-Compensation'!B47,0)","v":0},{"$f":"IF('Schedule 1a-Compensation'!H47>0,'Schedule 1a-Compensation'!K47,0)","v":0},0,0,12,0,0,0,12,0,0,0,0,0,0,0,0,0,0,0]
[null,{"$f":"IF('Schedule 1a-Compensation'!H48>0,'Schedule 1a-Compensation'!B48,0)","v":0},{"$f":"IF('Schedule 1a-Compensation'!H48>0,'Schedule 1a-Compensation'!K48,0)","v":0},0,0,12,0,0,0,12,0,0,0,0,0,0,0,0,0,0,0]
[null,{"$f":"IF('Schedule 1a-Compensation'!H49>0,'Schedule 1a-Compensation'!B49,0)","v":0},{"$f":"IF('Schedule 1a-Compensation'!H49>0,'Schedule 1a-Compensation'!K49,0)","v":0},0,0,12,0,0,0,12,0,0,0,0,0,0,0,0,0,0,0]
[null,{"$f":"IF('Schedule 1a-Compensation'!H50>0,'Schedule 1a-Compensation'!B50,0)","v":0},{"$f":"IF('Schedule 1a-Compensation'!H50>0,'Schedule 1a-Compensation'!K50,0)","v":0},0,0,12,0,0,0,12,0,0,0,0,0,0,0,0,0,0,0]
[null,{"$f":"IF('Schedule 1a-Compensation'!H51>0,'Schedule 1a-Compensation'!B51,0)","v":0},{"$f":"IF('Schedule 1a-Compensation'!H51>0,'Schedule 1a-Compensation'!K51,0)","v":0},0,0,12,0,0,0,12,0,0,0,0,0,0,0,0,0,0,0]
[null,{"$f":"IF('Schedule 1a-Compensation'!H52>0,'Schedule 1a-Compensation'!B52,0)","v":0},{"$f":"IF('Schedule 1a-Compensation'!H52>0,'Schedule 1a-Compensation'!K52,0)","v":0},0,0,12,0,0,0,12,0,0,0,0,0,0,0,0,0,0,0]
[null,{"$f":"IF('Schedule 1a-Compensation'!H53>0,'Schedule 1a-Compensation'!B53,0)","v":0},{"$f":"IF('Schedule 1a-Compensation'!H53>0,'Schedule 1a-Compensation'!K53,0)","v":0},0,0,12,0,0,0,12,0,0,0,0,0,0,0,0,0,0,0]
[null,{"$f":"IF('Schedule 1a-Compensation'!H54>0,'Schedule 1a-Compensation'!B54,0)","v":0},{"$f":"IF('Schedule 1a-Compensation'!H54>0,'Schedule 1a-Compensation'!K54,0)","v":0},0,0,12,0,0,0,12,0,0,0,0,0,0,0,{"$f":"IF(AND(B54<>\"\",C54<>\"\",F54+M54<=12,J54+Q54<=12,J54<=F54,Q54<=M54),ROUND((D54*E54*F54),2)+ROUND((K54*L54*M54),2),0)","v":0},0,0,0]
[null,{"$f":"IF('Schedule 1a-Compensation'!H55>0,'Schedule 1a-Compensation'!B55,0)","v":0},{"$f":"IF('Schedule 1a-Compensation'!H55>0,'Schedule 1a-Compensation'!K55,0)","v":0},0,0,12,0,0,0,12,0,0,0,0,0,0,0,0,0,0,0]
[null,{"$f":"IF('Schedule 1a-Compensation'!H56>0,'Schedule 1a-Compensation'!B56,0)","v":0},{"$f":"IF('Schedule 1a-Compensation'!H56>0,'Schedule 1a-Compensation'!K56,0)","v":0},0,0,12,0,0,0,12,0,0,0,0,0,0,0,0,0,0,0]
[null,{"$f":"IF('Schedule 1a-Compensation'!H57>0,'Schedule 1a-Compensation'!B57,0)","v":0},{"$f":"IF('Schedule 1a-Compensation'!H57>0,'Schedule 1a-Compensation'!K57,0)","v":0},0,0,12,0,0,0,12,0,0,0,0,0,0,0,0,0,0,0]
[null,{"$f":"IF('Schedule 1a-Compensation'!H58>0,'Schedule 1a-Compensation'!B58,0)","v":0},{"$f":"IF('Schedule 1a-Compensation'!H58>0,'Schedule 1a-Compensation'!K58,0)","v":0},0,0,12,0,0,0,12,0,0,0,0,0,0,0,0,0,0,0]
[null,{"$f":"IF('Schedule 1a-Compensation'!H59>0,'Schedule 1a-Compensation'!B59,0)","v":0},{"$f":"IF('Schedule 1a-Compensation'!H59>0,'Schedule 1a-Compensation'!K59,0)","v":0},0,0,12,0,0,0,12,0,0,0,0,0,0,0,0,0,0,0]
[null,{"$f":"IF('Schedule 1a-Compensation'!H60>0,'Schedule 1a-Compensation'!B60,0)","v":0},{"$f":"IF('Schedule 1a-Compensation'!H60>0,'Schedule 1a-Compensation'!K60,0)","v":0},0,0,12,0,0,0,12,0,0,0,0,0,0,0,0,0,0,0]
[null,{"$f":"IF('Schedule 1a-Compensation'!H61>0,'Schedule 1a-Compensation'!B61,0)","v":0},{"$f":"IF('Schedule 1a-Compensation'!H61>0,'Schedule 1a-Compensation'!K61,0)","v":0},0,0,12,0,0,0,12,0,0,0,0,0,0,0,0,0,0,0]
[null,{"$f":"IF('Schedule 1a-Compensation'!H62>0,'Schedule 1a-Compensation'!B62,0)","v":0},{"$f":"IF('Schedule 1a-Compensation'!H62>0,'Schedule 1a-Compensation'!K62,0)","v":0},0,0,12,0,0,0,12,0,0,0,0,0,0,0,0,0,0,0]
[null,{"$f":"IF('Schedule 1a-Compensation'!H63>0,'Schedule 1a-Compensation'!B63,0)","v":0},{"$f":"IF('Schedule 1a-Compensation'!H63>0,'Schedule 1a-Compensation'!K63,0)","v":0},0,0,12,0,0,0,12,0,0,0,0,0,0,0,0,0,0,0]
[null,{"$f":"IF('Schedule 1a-Compensation'!H64>0,'Schedule 1a-Compensation'!B64,0)","v":0},{"$f":"IF('Schedule 1a-Compensation'!H64>0,'Schedule 1a-Compensation'!K64,0)","v":0},0,0,12,0,0,0,12,0,0,0,0,0,0,0,0,0,0,0]
[null,{"$f":"IF('Schedule 1a-Compensation'!H65>0,'Schedule 1a-Compensation'!B65,0)","v":0},{"$f":"IF('Schedule 1a-Compensation'!H65>0,'Schedule 1a-Compensation'!K65,0)","v":0},0,0,12,0,0,0,12,0,0,0,0,0,0,0,0,0,0,0]
[null,{"$f":"IF('Schedule 1a-Compensation'!H66>0,'Schedule 1a-Compensation'!B66,0)","v":0},{"$f":"IF('Schedule 1a-Compensation'!H66>0,'Schedule 1a-Compensation'!K66,0)","v":0},0,0,12,0,0,0,12,0,0,0,0,0,0,0,0,0,0,0]
[null,{"$f":"IF('Schedule 1a-Compensation'!H67>0,'Schedule 1a-Compensation'!B67,0)","v":0},{"$f":"IF('Schedule 1a-Compensation'!H67>0,'Schedule 1a-Compensation'!K67,0)","v":0},0,0,12,0,0,0,12,0,0,0,0,0,0,0,0,0,0,0]
[null,{"$f":"IF('Schedule 1a-Compensation'!H68>0,'Schedule 1a-Compensation'!B68,0)","v":0},{"$f":"IF('Schedule 1a-Compensation'!H68>0,'Schedule 1a-Compensation'!K68,0)","v":0},0,0,12,0,0,0,12,0,0,0,0,0,0,0,0,0,0,0]
[null,{"$f":"IF('Schedule 1a-Compensation'!H69>0,'Schedule 1a-Compensation'!B69,0)","v":0},{"$f":"IF('Schedule 1a-Compensation'!H69>0,'Schedule 1a-Compensation'!K69,0)","v":0},0,0,12,0,0,0,12,0,0,0,0,0,0,0,0,0,0,0]
[null,{"$f":"IF('Schedule 1a-Compensation'!H70>0,'Schedule 1a-Compensation'!B70,0)","v":0},{"$f":"IF('Schedule 1a-Compensation'!H70>0,'Schedule 1a-Compensation'!K70,0)","v":0},0,0,12,0,0,0,12,0,0,0,0,0,0,0,0,0,0,0]
[null,{"$f":"IF('Schedule 1a-Compensation'!H71>0,'Schedule 1a-Compensation'!B71,0)","v":0},{"$f":"IF('Schedule 1a-Compensation'!H71>0,'Schedule 1a-Compensation'!K71,0)","v":0},0,0,12,0,0,0,12,0,0,0,0,0,0,0,0,0,0,0]
[null,{"$f":"IF('Schedule 1a-Compensation'!H72>0,'Schedule 1a-Compensation'!B72,0)","v":0},{"$f":"IF('Schedule 1a-Compensation'!H72>0,'Schedule 1a-Compensation'!K72,0)","v":0},0,0,12,0,0,0,12,0,0,0,0,0,0,0,0,0,0,0]
[null,{"$f":"IF('Schedule 1a-Compensation'!H73>0,'Schedule 1a-Compensation'!B73,0)","v":0},{"$f":"IF('Schedule 1a-Compensation'!H73>0,'Schedule 1a-Compensation'!K73,0)","v":0},0,0,12,0,0,0,12,0,0,0,0,0,0,0,0,0,0,0]
[null,{"$f":"IF('Schedule 1a-Compensation'!H74>0,'Schedule 1a-Compensation'!B74,0)","v":0},{"$f":"IF('Schedule 1a-Compensation'!H74>0,'Schedule 1a-Compensation'!K74,0)","v":0},0,0,12,0,0,0,12,0,0,0,0,0,0,0,0,0,0,0]
[null,{"$f":"IF('Schedule 1a-Compensation'!H75>0,'Schedule 1a-Compensation'!B75,0)","v":0},{"$f":"IF('Schedule 1a-Compensation'!H75>0,'Schedule 1a-Compensation'!K75,0)","v":0},0,0,12,0,0,0,12,0,0,0,0,0,0,0,0,0,0,0]
[null,{"$f":"IF('Schedule 1a-Compensation'!H76>0,'Schedule 1a-Compensation'!B76,0)","v":0},{"$f":"IF('Schedule 1a-Compensation'!H76>0,'Schedule 1a-Compensation'!K76,0)","v":0},0,0,12,0,0,0,12,0,0,0,0,0,0,0,0,0,0,0]
[null,{"$f":"IF('Schedule 1a-Compensation'!H77>0,'Schedule 1a-Compensation'!B77,0)","v":0},{"$f":"IF('Schedule 1a-Compensation'!H77>0,'Schedule 1a-Compensation'!K77,0)","v":0},0,0,12,0,0,0,12,0,0,0,0,0,0,0,0,0,0,0]
[null,null," ",{"$f":"SUM(D17:D77)","v":0},null,null,{"$f":"SUM(G17:G77)","v":0},{"$f":"SUM(H17:H77)","v":0},{"$f":"SUM(I17:I77)","v":0},null,{"$f":"SUM(K17:K77)","v":0},null,null,{"$f":"SUM(N17:N77)","v":0},{"$f":"SUM(O17:O77)","v":0},{"$f":"SUM(P17:P77)","v":0},null,{"$f":"SUM(R17:R77)","v":0},0,0,0]
[null,"Detail the type of benefit in cell b10. "]
[null,"Enter data in columns 3, 4, 5, 9, and 19 to calculate the total of schedule 2f.",null,null,null,null,null,null,null,null,null,null,null,null,null,null,null,null,"Total Allowable Costs to CCFP \n(Columns 20+21 must equal the total in Column 19.)",null,{"$f":"T78+U78","v":0}]
[null,"If this is a budget amendment and there are new benefit rates, enter data in columns 10, 11, 12 and 16. ",null,null,null,null,null,null,null,null,null,null,null,null,null,null,null,null,null,null,{"$f":"S78-U80","v":0}]
[null,"Renewed Rate section will not calculate unless the Summary Worksheet is updated to reflect the amendment number. "]
[null,"The calculation of all the benefits is totaled on the summary worksheet."]
[]
[]
[]
[null,"List any other funding source(s) used by your organization to cover the cost of CCFP employees' benefits."]
[]
[null,"List Other Non-CCFP Administrative Funding Source(s)",null,null,"List Supporting Documentation for Schedule 2a",null,null,null,null,null,"Comments"]

{"sheet":"Schedule 2g-Other Benefit 3","index":12,"n_rows":89,"n_cols":21,"rows_kept":89,"cut":false,"hidden":true,"merged":[[94,1,94,3],[94,4,94,9],[94,10,94,15],[92,1,92,3],[92,4,92,9],[92,10,92,15],[93,1,93,3],[93,4,93,9],[93,10,93,15],[90,1,90,3],[90,4,90,9],[90,10,90,15],[91,1,91,3],[91,4,91,9],[91,10,91,15],[9,1,10,3],[11,1,12,2],[11,3,12,9],[11,10,12,16],[79,16,80,17],[11,17,12,17],[11,18,11,20],[12,18,12,20],[89,1,89,3],[89,4,89,9],[89,10,89,15],[79,18,80,19],[88,1,88,3],[88,4,88,9],[88,10,88,15]]}
[null,{"$f":"'Summary Worksheet'!$B$1","v":"Automated Budget for Prospective Sponsors of Unaffiliated Centers"}]
[]
[null,"SCHEDULE 2g - OTHER BENEFIT 3"]
[null,null,"      Fiscal Year:   ",{"$f":"'Summary Worksheet'!$C$4","v":0}]
[]
[null,null,"      Authorization Number:   ",{"$f":"'Summary Worksheet'!$C$6","v":0},null,null,null,null,null,"Please note these error codes:",null,null,null,"Example:"]
[null,null,null,null,null,null,null,null,null,"Total number of months emay not xceed 12"]
[null,null,"Amendment Number:",{"$f":"'Summary Worksheet'!$C$8","v":0},null,null,null,null,null,"Number of CCFP months may not exceed employer months"]
[null,"Type of Benefit:",null,null,null,null,null,null,null,"You need to delete the data in this this cell:",null,null,null,2000]
[null,null,null,null,null,null,null,null,null,"Do not enter data into this cell"]
[]
[null,"PERSONNEL INFORMATION\n(See Schedule 1a).",null,"ORIGINAL RATE",null,null,null,null,null,null,"NEW RATE\nFill this out ONLY IF this is a budget amendment and the benefit has changed rates.",null,null,null,null,null,null,null,"CCFP TOTALS"]
[null,null,null,null,null,null,null,null,null,null,null,null,null,null,null,null,null,null,"CCFP Administrative Budget Total"]
[null,1,{"$f":"B14+1","v":2},3,4,5,6,7,8,9,10,11,12,13,14,15,16,17,18,19,20]
[null,"Employee Name","CCFP % of Employer Cost","Total Monthly Cost","% Employer Covered","Number of Months","Monthly Employer Cost","Monthly Employee Cost","Monthly CCFP Cost                      ","Number of Months  Charged to CCFP ","Total Monthly Cost","  % Employer Covered","Number of Months","Monthly Employer Cost ","Monthly Employee Cost","Monthly CCFP Cost                        ","Number of Months Charged to CCFP","Total Annual Cost to Employer","Allowable Costs to CCFP Administrative Budget ","Amount to be Charged to CCFP Administrative Budget","Allowable CCFP Costs to CCFP Administrative Budget Covered by Other (Non-CCFP) Funding Source(s) "]
[null,"(Pulled from Schedule 1a)","(Pulled from Schedule 1a)",null,null,null,"(column 2  times\ncolumn 3)",null,"  (column 3 times\ncolumn 7)",null,null,null,null,"(column 11  times\n  column 12)",null,"(column 3 times column 14)",null,null,null,null,"(column 19\n minus\ncolumn 20)"]
[null,{"$f":"IF('Schedule 1a-Compensation'!H17>0,'Schedule 1a-Compensation'!B17,0)","v":0},{"$f":"IF('Schedule 1a-Compensation'!H17>0,'Schedule 1a-Compensation'!K17,0)","v":0},0,0,12,{"$f":"ROUND((D17*E17),2)","v":0},{"$f":"(D17)*(1-E17)","v":0},{"$f":"ROUND((G17*C17),2)","v":0},12,0,0,0,{"$f":"ROUND((K17*L17),2)","v":0},{"$f":"(K17)*(1-L17)","v":0},{"$f":"ROUND((N17*C17),2)","v":0},0,{"$f":"IF(AND(B17<>\"\",C17<>\"\",F17+M17<=12,J17+Q17<=12,J17<=F17,Q17<=M17),ROUND((D17*E17*F17),2)+ROUND((K17*L17*M17),2),0)","v":0},{"$f":"IF(AND(R17>0),(ROUND((I17*J17),2)+ROUND((P17*Q17),2)),0)","v":0},0,{"$f":"(S17-T17)","v":0}]
[null,{"$f":"IF('Schedule 1a-Compensation'!H18>0,'Schedule 1a-Compensation'!B18,0)","v":0},{"$f":"IF('Schedule 1a-Compensation'!H18>0,'Schedule 1a-Compensation'!K18,0)","v":0},0,0,12,{"$f":"ROUND((D18*E18),2)","v":0},{"$f":"(D18)*(1-E18)","v":0},0,12,0,0,0,{"$f":"ROUND((K18*L18),2)","v":0},{"$f":"(K18)*(1-L18)","v":0},0,0,{"$f":"IF(AND(B18<>\"\",C18<>\"\",F18+M18<=12,J18+Q18<=12,J18<=F18,Q18<=M18),ROUND((D18*E18*F18),2)+ROUND((K18*L18*M18),2),0)","v":0},{"$f":"IF(AND(R18>0),(ROUND((I18*J18),2)+ROUND((P18*Q18),2)),0)","v":0},0,{"$f":"(S18-T18)","v":0}]
[null,{"$f":"IF('Schedule 1a-Compensation'!H19>0,'Schedule 1a-Compensation'!B19,0)","v":0},{"$f":"IF('Schedule 1a-Compensation'!H19>0,'Schedule 1a-Compensation'!K19,0)","v":0},0,0,12,0,0,0,12,0,0,0,0,0,0,0,0,0,0,0]
[null,{"$f":"IF('Schedule 1a-Compensation'!H20>0,'Schedule 1a-Compensation'!B20,0)","v":0},{"$f":"IF('Schedule 1a-Compensation'!H20>0,'Schedule 1a-Compensation'!K20,0)","v":0},0,0,12,0,0,0,12,0,0,0,0,0,0,0,0,0,0,0]
[null,{"$f":"IF('Schedule 1a-Compensation'!H21>0,'Schedule 1a-Compensation'!B21,0)","v":0},{"$f":"IF('Schedule 1a-Compensation'!H21>0,'Schedule 1a-Compensation'!K21,0)","v":0},0,0,12,0,0,0,12,0,0,0,0,0,0,0,0,0,0,0]
[null,{"$f":"IF('Schedule 1a-Compensation'!H22>0,'Schedule 1a-Compensation'!B22,0)","v":0},{"$f":"IF('Schedule 1a-Compensation'!H22>0,'Schedule 1a-Compensation'!K22,0)","v":0},0,0,12,0,0,0,12,0,0,0,0,0,0,0,0,0,0,0]
[null,{"$f":"IF('Schedule 1a-Compensation'!H23>0,'Schedule 1a-Compensation'!B23,0)","v":0},{"$f":"IF('Schedule 1a-Compensation'!H23>0,'Schedule 1a-Compensation'!K23,0)","v":0},0,0,12,0,0,0,12,0,0,0,0,0,0,0,0,0,0,0]
[null,{"$f":"IF('Schedule 1a-Compensation'!H24>0,'Schedule 1a-Compensation'!B24,0)","v":0},{"$f":"IF('Schedule 1a-Compensation'!H24>0,'Schedule 1a-Compensation'!K24,0)","v":0},0,0,12,0,0,0,12,0,0,0,0,0,0,0,0,0,0,0]
[null,{"$f":"IF('Schedule 1a-Compensation'!H25>0,'Schedule 1a-Compensation'!B25,0)","v":0},{"$f":"IF('Schedule 1a-Compensation'!H25>0,'Schedule 1a-Compensation'!K25,0)","v":0},0,0,12,0,0,0,12,0,0,0,0,0,0,0,0,0,0,0]
[null,{"$f":"IF('Schedule 1a-Compensation'!H26>0,'Schedule 1a-Compensation'!B26,0)","v":0},{"$f":"IF('Schedule 1a-Compensation'!H26>0,'Schedule 1a-Compensation'!K26,0)","v":0},0,0,12,0,0,0,12,0,0,0,0,0,0,0,0,0,0,0]
[null,{"$f":"IF('Schedule 1a-Compensation'!H27>0,'Schedule 1a-Compensation'!B27,0)","v":0},{"$f":"IF('Schedule 1a-Compensation'!H27>0,'Schedule 1a-Compensation'!K27,0)","v":0},0,0,12,0,0,0,12,0,0,0,0,0,0,0,0,0,0,0]
[null,{"$f":"IF('Schedule 1a-Compensation'!H28>0,'Schedule 1a-Compensation'!B28,0)","v":0},{"$f":"IF('Schedule 1a-Compensation'!H28>0,'Schedule 1a-Compensation'!K28,0)","v":0},0,0,12,0,0,0,12,0,0,0,0,0,0,0,0,0,0,0]
[null,{"$f":"IF('Schedule 1a-Compensation'!H29>0,'Schedule 1a-Compensation'!B29,0)","v":0},{"$f":"IF('Schedule 1a-Compensation'!H29>0,'Schedule 1a-Compensation'!K29,0)","v":0},0,0,12,0,0,0,12,0,0,0,0,0,0,0,0,0,0,0]
[null,{"$f":"IF('Schedule 1a-Compensation'!H30>0,'Schedule 1a-Compensation'!B30,0)","v":0},{"$f":"IF('Schedule 1a-Compensation'!H30>0,'Schedule 1a-Compensation'!K30,0)","v":0},0,0,12,0,0,0,12,0,0,0,0,0,0,0,0,0,0,0]
[null,{"$f":"IF('Schedule 1a-Compensation'!H31>0,'Schedule 1a-Compensation'!B31,0)","v":0},{"$f":"IF('Schedule 1a-Compensation'!H31>0,'Schedule 1a-Compensation'!K31,0)","v":0},0,0,12,0,0,0,12,0,0,0,0,0,0,0,0,0,0,0]
[null,{"$f":"IF('Schedule 1a-Compensation'!H32>0,'Schedule 1a-Compensation'!B32,0)","v":0},{"$f":"IF('Schedule 1a-Compensation'!H32>0,'Schedule 1a-Compensation'!K32,0)","v":0},0,0,12,0,0,0,12,0,0,0,0,0,0,0,0,0,0,0]
[null,{"$f":"IF('Schedule 1a-Compensation'!H33>0,'Schedule 1a-Compensation'!B33,0)","v":0},{"$f":"IF('Schedule 1a-Compensation'!H33>0,'Schedule 1a-Compensation'!K33,0)","v":0},0,0,12,0,0,0,12,0,0,0,0,0,0,0,0,0,0,0]
[null,{"$f":"IF('Schedule 1a-Compensation'!H34>0,'Schedule 1a-Compensation'!B34,0)","v":0},{"$f":"IF('Schedule 1a-Compensation'!H34>0,'Schedule 1a-Compensation'!K34,0)","v":0},0,0,12,0,0,0,12,0,0,0,0,0,0,0,0,0,0,0]
[null,{"$f":"IF('Schedule 1a-Compensation'!H35>0,'Schedule 1a-Compensation'!B35,0)","v":0},{"$f":"IF('Schedule 1a-Compensation'!H35>0,'Schedule 1a-Compensation'!K35,0)","v":0},0,0,12,0,0,0,12,0,0,0,0,0,0,0,0,0,0,0]
[null,{"$f":"IF('Schedule 1a-Compensation'!H36>0,'Schedule 1a-Compensation'!B36,0)","v":0},{"$f":"IF('Schedule 1a-Compensation'!H36>0,'Schedule 1a-Compensation'!K36,0)","v":0},0,0,12,0,0,0,12,0,0,0,0,0,0,0,0,0,0,0]
[null,{"$f":"IF('Schedule 1a-Compensation'!H37>0,'Schedule 1a-Compensation'!B37,0)","v":0},{"$f":"IF('Schedule 1a-Compensation'!H37>0,'Schedule 1a-Compensation'!K37,0)","v":0},0,0,12,0,0,0,12,0,0,0,0,0,0,0,0,0,0,0]
[null,{"$f":"IF('Schedule 1a-Compensation'!H38>0,'Schedule 1a-Compensation'!B38,0)","v":0},{"$f":"IF('Schedule 1a-Compensation'!H38>0,'Schedule 1a-Compensation'!K38,0)","v":0},0,0,12,0,0,0,12,0,0,0,0,0,0,0,0,0,0,0]
[null,{"$f":"IF('Schedule 1a-Compensation'!H39>0,'Schedule 1a-Compensation'!B39,0)","v":0},{"$f":"IF('Schedule 1a-Compensation'!H39>0,'Schedule 1a-Compensation'!K39,0)","v":0},0,0,12,0,0,0,12,0,0,0,0,0,0,0,0,0,0,0]
[null,{"$f":"IF('Schedule 1a-Compensation'!H40>0,'Schedule 1a-Compensation'!B40,0)","v":0},{"$f":"IF('Schedule 1a-Compensation'!H40>0,'Schedule 1a-Compensation'!K40,0)","v":0},0,0,12,0,0,0,12,0,0,0,0,0,0,0,0,0,0,0]
[null,{"$f":"IF('Schedule 1a-Compensation'!H41>0,'Schedule 1a-Compensation'!B41,0)","v":0},{"$f":"IF('Schedule 1a-Compensation'!H41>0,'Schedule 1a-Compensation'!K41,0)","v":0},0,0,12,0,0,0,12,0,0,0,0,0,0,0,0,0,0,0]
[null,{"$f":"IF('Schedule 1a-Compensation'!H42>0,'Schedule 1a-Compensation'!B42,0)","v":0},{"$f":"IF('Schedule 1a-Compensation'!H42>0,'Schedule 1a-Compensation'!K42,0)","v":0},0,0,12,0,0,0,12,0,0,0,0,0,0,0,0,0,0,0]
[null,{"$f":"IF('Schedule 1a-Compensation'!H43>0,'Schedule 1a-Compensation'!B43,0)","v":0},{"$f":"IF('Schedule 1a-Compensation'!H43>0,'Schedule 1a-Compensation'!K43,0)","v":0},0,0,12,0,0,0,12,0,0,0,0,0,0,0,0,0,0,0]
[null,{"$f":"IF('Schedule 1a-Compensation'!H44>0,'Schedule 1a-Compensation'!B44,0)","v":0},{"$f":"IF('Schedule 1a-Compensation'!H44>0,'Schedule 1a-Compensation'!K44,0)","v":0},0,0,12,0,0,0,12,0,0,0,0,0,0,0,0,0,0,0]
[null,{"$f":"IF('Schedule 1a-Compensation'!H45>0,'Schedule 1a-Compensation'!B45,0)","v":0},{"$f":"IF('Schedule 1a-Compensation'!H45>0,'Schedule 1a-Compensation'!K45,0)","v":0},0,0,12,0,0,0,12,0,0,0,0,0,0,0,0,0,0,0]
[null,{"$f":"IF('Schedule 1a-Compensation'!H46>0,'Schedule 1a-Compensation'!B46,0)","v":0},{"$f":"IF('Schedule 1a-Compensation'!H46>0,'Schedule 1a-Compensation'!K46,0)","v":0},0,0,12,0,0,0,12,0,0,0,0,0,0,0,0,0,0,0]
[null,{"$f":"IF('Schedule 1a-Compensation'!H47>0,'Schedule 1a-Compensation'!B47,0)","v":0},{"$f":"IF('Schedule 1a-Compensation'!H47>0,'Schedule 1a-Compensation'!K47,0)","v":0},0,0,12,0,0,0,12,0,0,0,0,0,0,0,0,0,0,0]
[null,{"$f":"IF('Schedule 1a-Compensation'!H48>0,'Schedule 1a-Compensation'!B48,0)","v":0},{"$f":"IF('Schedule 1a-Compensation'!H48>0,'Schedule 1a-Compensation'!K48,0)","v":0},0,0,12,0,0,0,12,0,0,0,0,0,0,0,0,0,0,0]
[null,{"$f":"IF('Schedule 1a-Compensation'!H49>0,'Schedule 1a-Compensation'!B49,0)","v":0},{"$f":"IF('Schedule 1a-Compensation'!H49>0,'Schedule 1a-Compensation'!K49,0)","v":0},0,0,12,0,0,0,12,0,0,0,0,0,0,0,0,0,0,0]
[null,{"$f":"IF('Schedule 1a-Compensation'!H50>0,'Schedule 1a-Compensation'!B50,0)","v":0},{"$f":"IF('Schedule 1a-Compensation'!H50>0,'Schedule 1a-Compensation'!K50,0)","v":0},0,0,12,0,0,0,12,0,0,0,0,0,0,0,0,0,0,0]
[null,{"$f":"IF('Schedule 1a-Compensation'!H51>0,'Schedule 1a-Compensation'!B51,0)","v":0},{"$f":"IF('Schedule 1a-Compensation'!H51>0,'Schedule 1a-Compensation'!K51,0)","v":0},0,0,12,0,0,0,12,0,0,0,0,0,0,0,0,0,0,0]
[null,{"$f":"IF('Schedule 1a-Compensation'!H52>0,'Schedule 1a-Compensation'!B52,0)","v":0},{"$f":"IF('Schedule 1a-Compensation'!H52>0,'Schedule 1a-Compensation'!K52,0)","v":0},0,0,12,0,0,0,12,0,0,0,0,0,0,0,0,0,0,0]
[null,{"$f":"IF('Schedule 1a-Compensation'!H53>0,'Schedule 1a-Compensation'!B53,0)","v":0},{"$f":"IF('Schedule 1a-Compensation'!H53>0,'Schedule 1a-Compensation'!K53,0)","v":0},0,0,12,0,0,0,12,0,0,0,0,0,0,0,0,0,0,0]
[null,{"$f":"IF('Schedule 1a-Compensation'!H54>0,'Schedule 1a-Compensation'!B54,0)","v":0},{"$f":"IF('Schedule 1a-Compensation'!H54>0,'Schedule 1a-Compensation'!K54,0)","v":0},0,0,12,0,0,0,12,0,0,0,0,0,0,0,0,0,0,0]
[null,{"$f":"IF('Schedule 1a-Compensation'!H55>0,'Schedule 1a-Compensation'!B55,0)","v":0},{"$f":"IF('Schedule 1a-Compensation'!H55>0,'Schedule 1a-Compensation'!K55,0)","v":0},0,0,12,0,0,0,12,0,0,0,0,0,0,0,0,0,0,0]
[null,{"$f":"IF('Schedule 1a-Compensation'!H56>0,'Schedule 1a-Compensation'!B56,0)","v":0},{"$f":"IF('Schedule 1a-Compensation'!H56>0,'Schedule 1a-Compensation'!K56,0)","v":0},0,0,12,0,0,0,12,0,0,0,0,0,0,0,0,0,0,0]
[null,{"$f":"IF('Schedule 1a-Compensation'!H57>0,'Schedule 1a-Compensation'!B57,0)","v":0},{"$f":"IF('Schedule 1a-Compensation'!H57>0,'Schedule 1a-Compensation'!K57,0)","v":0},0,0,12,0,0,0,12,0,0,0,0,0,0,0,0,0,0,0]
[null,{"$f":"IF('Schedule 1a-Compensation'!H58>0,'Schedule 1a-Compensation'!B58,0)","v":0},{"$f":"IF('Schedule 1a-Compensation'!H58>0,'Schedule 1a-Compensation'!K58,0)","v":0},0,0,12,0,0,0,12,0,0,0,0,0,0,0,0,0,0,0]
[null,{"$f":"IF('Schedule 1a-Compensation'!H59>0,'Schedule 1a-Compensation'!B59,0)","v":0},{"$f":"IF('Schedule 1a-Compensation'!H59>0,'Schedule 1a-Compensation'!K59,0)","v":0},0,0,12,0,0,0,12,0,0,0,0,0,0,0,0,0,0,0]
[null,{"$f":"IF('Schedule 1a-Compensation'!H60>0,'Schedule 1a-Compensation'!B60,0)","v":0},{"$f":"IF('Schedule 1a-Compensation'!H60>0,'Schedule 1a-Compensation'!K60,0)","v":0},0,0,12,0,0,0,12,0,0,0,0,0,0,0,0,0,0,0]
[null,{"$f":"IF('Schedule 1a-Compensation'!H61>0,'Schedule 1a-Compensation'!B61,0)","v":0},{"$f":"IF('Schedule 1a-Compensation'!H61>0,'Schedule 1a-Compensation'!K61,0)","v":0},0,0,12,0,0,0,12,0,0,0,0,0,0,0,0,0,0,0]
[null,{"$f":"IF('Schedule 1a-Compensation'!H62>0,'Schedule 1a-Compensation'!B62,0)","v":0},{"$f":"IF('Schedule 1a-Compensation'!H62>0,'Schedule 1a-Compensation'!K62,0)","v":0},0,0,12,0,0,0,12,0,0,0,0,0,0,0,0,0,0,0]
[null,{"$f":"IF('Schedule 1a-Compensation'!H63>0,'Schedule 1a-Compensation'!B63,0)","v":0},{"$f":"IF('Schedule 1a-Compensation'!H63>0,'Schedule 1a-Compensation'!K63,0)","v":0},0,0,12,0,0,0,12,0,0,0,0,0,0,0,0,0,0,0]
[null,{"$f":"IF('Schedule 1a-Compensation'!H64>0,'Schedule 1a-Compensation'!B64,0)","v":0},{"$f":"IF('Schedule 1a-Compensation'!H64>0,'Schedule 1a-Compensation'!K64,0)","v":0},0,0,12,0,0,0,12,0,0,0,0,0,0,0,0,0,0,0]
[null,{"$f":"IF('Schedule 1a-Compensation'!H65>0,'Schedule 1a-Compensation'!B65,0)","v":0},{"$f":"IF('Schedule 1a-Compensation'!H65>0,'Schedule 1a-Compensation'!K65,0)","v":0},0,0,12,0,0,0,12,0,0,0,0,0,0,0,0,0,0,0]
[null,{"$f":"IF('Schedule 1a-Compensation'!H66>0,'Schedule 1a-Compensation'!B66,0)","v":0},{"$f":"IF('Schedule 1a-Compensation'!H66>0,'Schedule 1a-Compensation'!K66,0)","v":0},0,0,12,0,0,0,12,0,0,0,0,0,0,0,0,0,0,0]
[null,{"$f":"IF('Schedule 1a-Compensation'!H67>0,'Schedule 1a-Compensation'!B67,0)","v":0},{"$f":"IF('Schedule 1a-Compensation'!H67>0,'Schedule 1a-Compensation'!K67,0)","v":0},0,0,12,0,0,0,12,0,0,0,0,0,0,0,0,0,0,0]
[null,{"$f":"IF('Schedule 1a-Compensation'!H68>0,'Schedule 1a-Compensation'!B68,0)","v":0},{"$f":"IF('Schedule 1a-Compensation'!H68>0,'Schedule 1a-Compensation'!K68,0)","v":0},0,0,12,0,0,0,12,0,0,0,0,0,0,0,0,0,0,0]
[null,{"$f":"IF('Schedule 1a-Compensation'!H69>0,'Schedule 1a-Compensation'!B69,0)","v":0},{"$f":"IF('Schedule 1a-Compensation'!H69>0,'Schedule 1a-Compensation'!K69,0)","v":0},0,0,12,0,0,0,12,0,0,0,0,0,0,0,0,0,0,0]
[null,{"$f":"IF('Schedule 1a-Compensation'!H70>0,'Schedule 1a-Compensation'!B70,0)","v":0},{"$f":"IF('Schedule 1a-Compensation'!H70>0,'Schedule 1a-Compensation'!K70,0)","v":0},0,0,12,0,0,0,12,0,0,0,0,0,0,0,0,0,0,0]
[null,{"$f":"IF('Schedule 1a-Compensation'!H71>0,'Schedule 1a-Compensation'!B71,0)","v":0},{"$f":"IF('Schedule 1a-Compensation'!H71>0,'Schedule 1a-Compensation'!K71,0)","v":0},0,0,12,0,0,0,12,0,0,0,0,0,0,0,0,0,0,0]
[null,{"$f":"IF('Schedule 1a-Compensation'!H72>0,'Schedule 1a-Compensation'!B72,0)","v":0},{"$f":"IF('Schedule 1a-Compensation'!H72>0,'Schedule 1a-Compensation'!K72,0)","v":0},0,0,12,0,0,0,12,0,0,0,0,0,0,0,0,0,0,0]
[null,{"$f":"IF('Schedule 1a-Compensation'!H73>0,'Schedule 1a-Compensation'!B73,0)","v":0},{"$f":"IF('Schedule 1a-Compensation'!H73>0,'Schedule 1a-Compensation'!K73,0)","v":0},0,0,12,0,0,0,12,0,0,0,0,0,0,0,0,0,0,0]
[null,{"$f":"IF('Schedule 1a-Compensation'!H74>0,'Schedule 1a-Compensation'!B74,0)","v":0},{"$f":"IF('Schedule 1a-Compensation'!H74>0,'Schedule 1a-Compensation'!K74,0)","v":0},0,0,12,0,0,0,12,0,0,0,0,0,0,0,0,0,0,0]
[null,{"$f":"IF('Schedule 1a-Compensation'!H75>0,'Schedule 1a-Compensation'!B75,0)","v":0},{"$f":"IF('Schedule 1a-Compensation'!H75>0,'Schedule 1a-Compensation'!K75,0)","v":0},0,0,12,0,0,0,12,0,0,0,0,0,0,0,0,0,0,0]
[null,{"$f":"IF('Schedule 1a-Compensation'!H76>0,'Schedule 1a-Compensation'!B76,0)","v":0},{"$f":"IF('Schedule 1a-Compensation'!H76>0,'Schedule 1a-Compensation'!K76,0)","v":0},0,0,12,0,0,0,12,0,0,0,0,0,0,0,0,0,0,0]
[null,{"$f":"IF('Schedule 1a-Compensation'!H77>0,'Schedule 1a-Compensation'!B77,0)","v":0},{"$f":"IF('Schedule 1a-Compensation'!H77>0,'Schedule 1a-Compensation'!K77,0)","v":0},0,0,12,0,0,0,12,0,0,0,0,0,0,0,0,0,0,0]
[null,null," ",{"$f":"SUM(D17:D77)","v":0},null,null,{"$f":"SUM(G17:G77)","v":0},{"$f":"SUM(H17:H77)","v":0},{"$f":"SUM(I17:I77)","v":0},null,{"$f":"SUM(K17:K77)","v":0},null,null,{"$f":"SUM(N17:N77)","v":0},{"$f":"SUM(O17:O77)","v":0},{"$f":"SUM(P17:P77)","v":0},null,{"$f":"SUM(R17:R77)","v":0},0,0,0]
[null,"Detail the type of benefit in cell b10. "]
[null,"Enter data in columns 3, 4, 5, 9, and 19 to calculate the total of schedule 2g.",null,null,null,null,null,null,null,null,null,null,null,null,null,null,null,null,"Total Allowable Costs to CCFP \n(Columns 20+21 must equal the total in Column 19.)",null,{"$f":"T78+U78","v":0}]
[null,"If this is a budget amendment and there are new benefit rates, enter data in columns 10, 11, 12 and 16. ",null,null,null,null,null,null,null,null,null,null,null,null,null,null,null,null,null,null,{"$f":"S78-U80","v":0}]
[null,"Renewed Rate section will not calculate unless the Summary Worksheet is updated to reflect the amendment number. "]
[null,"The calculation of all the benefits is totaled on the summary worksheet."]
[]
[]
[]
[null,"List any other funding source(s) used by your organization to cover the cost of CCFP employees' benefits."]
[]
[null,"List Other Non-CCFP Administrative Funding Source(s)",null,null,"List Supporting Documentation for Schedule 2a",null,null,null,null,null,"Comments"]

{"sheet":"Schedule 2h-Other Benefit 4","index":13,"n_rows":89,"n_cols":21,"rows_kept":89,"cut":false,"hidden":true,"merged":[[94,1,94,3],[94,4,94,9],[94,10,94,15],[92,1,92,3],[92,4,92,9],[92,10,92,15],[93,1,93,3],[93,4,93,9],[93,10,93,15],[90,1,90,3],[90,4,90,9],[90,10,90,15],[91,1,91,3],[91,4,91,9],[91,10,91,15],[9,1,10,3],[11,1,12,2],[11,3,12,9],[11,10,12,16],[79,16,80,17],[11,17,12,17],[11,18,11,20],[12,18,12,20],[89,1,89,3],[89,4,89,9],[89,10,89,15],[79,18,80,19],[88,1,88,3],[88,4,88,9],[88,10,88,15]]}
[null,{"$f":"'Summary Worksheet'!$B$1","v":"Automated Budget for Prospective Sponsors of Unaffiliated Centers"}]
[]
[null,"SCHEDULE 2h - OTHER BENEFIT 4"]
[null,null,"      Fiscal Year:   ",{"$f":"'Summary Worksheet'!$C$4","v":0}]
[]
[null,null,"      Authorization Number:   ",{"$f":"'Summary Worksheet'!$C$6","v":0},null,null,null,null,null,"Please note these error codes:",null,null,null,"Example:"]
[null,null,null,null,null,null,null,null,null,"Total number of months emay not xceed 12"]
[null,null,"Amendment Number:",{"$f":"'Summary Worksheet'!$C$8","v":0},null,null,null,null,null,"Number of CCFP months may not exceed employer months"]
[null,"Type of Benefit:",null,null,null,null,null,null,null,"You need to delete the data in this this cell:",null,null,null,2000]
[null,null,null,null,null,null,null,null,null,"Do not enter data into this cell"]
[]
[null,"PERSONNEL INFORMATION\n(See Schedule 1a).",null,"ORIGINAL RATE",null,null,null,null,null,null,"NEW RATE\nFill this out ONLY IF this is a budget amendment and the benefit has changed rates.",null,null,null,null,null,null,null,"CCFP TOTALS"]
[null,null,null,null,null,null,null,null,null,null,null,null,null,null,null,null,null,null,"CCFP Administrative Budget Total"]
[null,1,{"$f":"B14+1","v":2},3,4,5,6,7,8,9,10,11,12,13,14,15,16,17,18,19,20]
[null,"Employee Name","CCFP % of Employer Cost","Total Monthly Cost","% Employer Covered","Number of Months","Monthly Employer Cost","Monthly Employee Cost","Monthly CCFP Cost                      ","Number of Months  Charged to CCFP ","Total Monthly Cost","  % Employer Covered","Number of Months","Monthly Employer Cost ","Monthly Employee Cost","Monthly CCFP Cost                        ","Number of Months Charged to CCFP","Total Annual Cost to Employer","Allowable Costs to CCFP Administrative Budget ","Amount to be Charged to CCFP Administrative Budget","Allowable CCFP Costs to CCFP Administrative Budget Covered by Other (Non-CCFP) Funding Source(s) "]
[null,"(Pulled from Schedule 1a)","(Pulled from Schedule 1a)",null,null,null,"(column 2  times\ncolumn 3)",null,"  (column 3 times\ncolumn 7)",null,null,null,null,"(column 11  times\n  column 12)",null,"(column 3 times column 14)",null,null,null,null,"(column 19\n minus\ncolumn 20)"]
[null,{"$f":"IF('Schedule 1a-Compensation'!H17>0,'Schedule 1a-Compensation'!B17,0)","v":0},{"$f":"IF('Schedule 1a-Compensation'!H17>0,'Schedule 1a-Compensation'!K17,0)","v":0},0,0,12,{"$f":"ROUND((D17*E17),2)","v":0},{"$f":"(D17)*(1-E17)","v":0},{"$f":"ROUND((G17*C17),2)","v":0},12,0,0,0,{"$f":"ROUND((K17*L17),2)","v":0},{"$f":"(K17)*(1-L17)","v":0},{"$f":"ROUND((N17*C17),2)","v":0},0,{"$f":"IF(AND(B17<>\"\",C17<>\"\",F17+M17<=12,J17+Q17<=12,J17<=F17,Q17<=M17),ROUND((D17*E17*F17),2)+ROUND((K17*L17*M17),2),0)","v":0},{"$f":"IF(AND(R17>0),(ROUND((I17*J17),2)+ROUND((P17*Q17),2)),0)","v":0},0,{"$f":"(S17-T17)","v":0}]
[null,{"$f":"IF('Schedule 1a-Compensation'!H18>0,'Schedule 1a-Compensation'!B18,0)","v":0},{"$f":"IF('Schedule 1a-Compensation'!H18>0,'Schedule 1a-Compensation'!K18,0)","v":0},0,0,12,{"$f":"ROUND((D18*E18),2)","v":0},{"$f":"(D18)*(1-E18)","v":0},0,12,0,0,0,{"$f":"ROUND((K18*L18),2)","v":0},{"$f":"(K18)*(1-L18)","v":0},0,0,{"$f":"IF(AND(B18<>\"\",C18<>\"\",F18+M18<=12,J18+Q18<=12,J18<=F18,Q18<=M18),ROUND((D18*E18*F18),2)+ROUND((K18*L18*M18),2),0)","v":0},{"$f":"IF(AND(R18>0),(ROUND((I18*J18),2)+ROUND((P18*Q18),2)),0)","v":0},0,{"$f":"(S18-T18)","v":0}]
[null,{"$f":"IF('Schedule 1a-Compensation'!H19>0,'Schedule 1a-Compensation'!B19,0)","v":0},{"$f":"IF('Schedule 1a-Compensation'!H19>0,'Schedule 1a-Compensation'!K19,0)","v":0},0,0,12,0,0,0,12,0,0,0,0,0,0,0,0,0,0,0]
[null,{"$f":"IF('Schedule 1a-Compensation'!H20>0,'Schedule 1a-Compensation'!B20,0)","v":0},{"$f":"IF('Schedule 1a-Compensation'!H20>0,'Schedule 1a-Compensation'!K20,0)","v":0},0,0,12,0,0,0,12,0,0,0,0,0,0,0,0,0,0,0]
[null,{"$f":"IF('Schedule 1a-Compensation'!H21>0,'Schedule 1a-Compensation'!B21,0)","v":0},{"$f":"IF('Schedule 1a-Compensation'!H21>0,'Schedule 1a-Compensation'!K21,0)","v":0},0,0,12,0,0,0,12,0,0,0,0,0,0,0,0,0,0,0]
[null,{"$f":"IF('Schedule 1a-Compensation'!H22>0,'Schedule 1a-Compensation'!B22,0)","v":0},{"$f":"IF('Schedule 1a-Compensation'!H22>0,'Schedule 1a-Compensation'!K22,0)","v":0},0,0,12,0,0,0,12,0,0,0,0,0,0,0,0,0,0,0]
[null,{"$f":"IF('Schedule 1a-Compensation'!H23>0,'Schedule 1a-Compensation'!B23,0)","v":0},{"$f":"IF('Schedule 1a-Compensation'!H23>0,'Schedule 1a-Compensation'!K23,0)","v":0},0,0,12,0,0,0,12,0,0,0,0,0,0,0,0,0,0,0]
[null,{"$f":"IF('Schedule 1a-Compensation'!H24>0,'Schedule 1a-Compensation'!B24,0)","v":0},{"$f":"IF('Schedule 1a-Compensation'!H24>0,'Schedule 1a-Compensation'!K24,0)","v":0},0,0,12,0,0,0,12,0,0,0,0,0,0,0,0,0,0,0]
[null,{"$f":"IF('Schedule 1a-Compensation'!H25>0,'Schedule 1a-Compensation'!B25,0)","v":0},{"$f":"IF('Schedule 1a-Compensation'!H25>0,'Schedule 1a-Compensation'!K25,0)","v":0},0,0,12,0,0,0,12,0,0,0,0,0,0,0,0,0,0,0]
[null,{"$f":"IF('Schedule 1a-Compensation'!H26>0,'Schedule 1a-Compensation'!B26,0)","v":0},{"$f":"IF('Schedule 1a-Compensation'!H26>0,'Schedule 1a-Compensation'!K26,0)","v":0},0,0,12,0,0,0,12,0,0,0,0,0,0,0,0,0,0,0]
[null,{"$f":"IF('Schedule 1a-Compensation'!H27>0,'Schedule 1a-Compensation'!B27,0)","v":0},{"$f":"IF('Schedule 1a-Compensation'!H27>0,'Schedule 1a-Compensation'!K27,0)","v":0},0,0,12,0,0,0,12,0,0,0,0,0,0,0,0,0,0,0]
[null,{"$f":"IF('Schedule 1a-Compensation'!H28>0,'Schedule 1a-Compensation'!B28,0)","v":0},{"$f":"IF('Schedule 1a-Compensation'!H28>0,'Schedule 1a-Compensation'!K28,0)","v":0},0,0,12,0,0,0,12,0,0,0,0,0,0,0,0,0,0,0]
[null,{"$f":"IF('Schedule 1a-Compensation'!H29>0,'Schedule 1a-Compensation'!B29,0)","v":0},{"$f":"IF('Schedule 1a-Compensation'!H29>0,'Schedule 1a-Compensation'!K29,0)","v":0},0,0,12,0,0,0,12,0,0,0,0,0,0,0,0,0,0,0]
[null,{"$f":"IF('Schedule 1a-Compensation'!H30>0,'Schedule 1a-Compensation'!B30,0)","v":0},{"$f":"IF('Schedule 1a-Compensation'!H30>0,'Schedule 1a-Compensation'!K30,0)","v":0},0,0,12,0,0,0,12,0,0,0,0,0,0,0,0,0,0,0]
[null,{"$f":"IF('Schedule 1a-Compensation'!H31>0,'Schedule 1a-Compensation'!B31,0)","v":0},{"$f":"IF('Schedule 1a-Compensation'!H31>0,'Schedule 1a-Compensation'!K31,0)","v":0},0,0,12,0,0,0,12,0,0,0,0,0,0,0,0,0,0,0]
[null,{"$f":"IF('Schedule 1a-Compensation'!H32>0,'Schedule 1a-Compensation'!B32,0)","v":0},{"$f":"IF('Schedule 1a-Compensation'!H32>0,'Schedule 1a-Compensation'!K32,0)","v":0},0,0,12,0,0,0,12,0,0,0,0,0,0,0,0,0,0,0]
[null,{"$f":"IF('Schedule 1a-Compensation'!H33>0,'Schedule 1a-Compensation'!B33,0)","v":0},{"$f":"IF('Schedule 1a-Compensation'!H33>0,'Schedule 1a-Compensation'!K33,0)","v":0},0,0,12,0,0,0,12,0,0,0,0,0,0,0,0,0,0,0]
[null,{"$f":"IF('Schedule 1a-Compensation'!H34>0,'Schedule 1a-Compensation'!B34,0)","v":0},{"$f":"IF('Schedule 1a-Compensation'!H34>0,'Schedule 1a-Compensation'!K34,0)","v":0},0,0,12,0,0,0,12,0,0,0,0,0,0,0,0,0,0,0]
[null,{"$f":"IF('Schedule 1a-Compensation'!H35>0,'Schedule 1a-Compensation'!B35,0)","v":0},{"$f":"IF('Schedule 1a-Compensation'!H35>0,'Schedule 1a-Compensation'!K35,0)","v":0},0,0,12,0,0,0,12,0,0,0,0,0,0,0,0,0,0,0]
[null,{"$f":"IF('Schedule 1a-Compensation'!H36>0,'Schedule 1a-Compensation'!B36,0)","v":0},{"$f":"IF('Schedule 1a-Compensation'!H36>0,'Schedule 1a-Compensation'!K36,0)","v":0},0,0,12,0,0,0,12,0,0,0,0,0,0,0,0,0,0,0]
[null,{"$f":"IF('Schedule 1a-Compensation'!H37>0,'Schedule 1a-Compensation'!B37,0)","v":0},{"$f":"IF('Schedule 1a-Compensation'!H37>0,'Schedule 1a-Compensation'!K37,0)","v":0},0,0,12,0,0,0,12,0,0,0,0,0,0,0,0,0,0,0]
[null,{"$f":"IF('Schedule 1a-Compensation'!H38>0,'Schedule 1a-Compensation'!B38,0)","v":0},{"$f":"IF('Schedule 1a-Compensation'!H38>0,'Schedule 1a-Compensation'!K38,0)","v":0},0,0,12,0,0,0,12,0,0,0,0,0,0,0,0,0,0,0]
[null,{"$f":"IF('Schedule 1a-Compensation'!H39>0,'Schedule 1a-Compensation'!B39,0)","v":0},{"$f":"IF('Schedule 1a-Compensation'!H39>0,'Schedule 1a-Compensation'!K39,0)","v":0},0,0,12,0,0,0,12,0,0,0,0,0,0,0,0,0,0,0]
[null,{"$f":"IF('Schedule 1a-Compensation'!H40>0,'Schedule 1a-Compensation'!B40,0)","v":0},{"$f":"IF('Schedule 1a-Compensation'!H40>0,'Schedule 1a-Compensation'!K40,0)","v":0},0,0,12,0,0,0,12,0,0,0,0,0,0,0,0,0,0,0]
[null,{"$f":"IF('Schedule 1a-Compensation'!H41>0,'Schedule 1a-Compensation'!B41,0)","v":0},{"$f":"IF('Schedule 1a-Compensation'!H41>0,'Schedule 1a-Compensation'!K41,0)","v":0},0,0,12,0,0,0,12,0,0,0,0,0,0,0,0,0,0,0]
[null,{"$f":"IF('Schedule 1a-Compensation'!H42>0,'Schedule 1a-Compensation'!B42,0)","v":0},{"$f":"IF('Schedule 1a-Compensation'!H42>0,'Schedule 1a-Compensation'!K42,0)","v":0},0,0,12,0,0,0,12,0,0,0,0,0,0,0,0,0,0,0]
[null,{"$f":"IF('Schedule 1a-Compensation'!H43>0,'Schedule 1a-Compensation'!B43,0)","v":0},{"$f":"IF('Schedule 1a-Compensation'!H43>0,'Schedule 1a-Compensation'!K43,0)","v":0},0,0,12,0,0,0,12,0,0,0,0,0,0,0,0,0,0,0]
[null,{"$f":"IF('Schedule 1a-Compensation'!H44>0,'Schedule 1a-Compensation'!B44,0)","v":0},{"$f":"IF('Schedule 1a-Compensation'!H44>0,'Schedule 1a-Compensation'!K44,0)","v":0},0,0,12,0,0,0,12,0,0,0,0,0,0,0,0,0,0,0]
[null,{"$f":"IF('Schedule 1a-Compensation'!H45>0,'Schedule 1a-Compensation'!B45,0)","v":0},{"$f":"IF('Schedule 1a-Compensation'!H45>0,'Schedule 1a-Compensation'!K45,0)","v":0},0,0,12,0,0,0,12,0,0,0,0,0,0,0,0,0,0,0]
[null,{"$f":"IF('Schedule 1a-Compensation'!H46>0,'Schedule 1a-Compensation'!B46,0)","v":0},{"$f":"IF('Schedule 1a-Compensation'!H46>0,'Schedule 1a-Compensation'!K46,0)","v":0},0,0,12,0,0,0,12,0,0,0,0,0,0,0,0,0,0,0]
[null,{"$f":"IF('Schedule 1a-Compensation'!H47>0,'Schedule 1a-Compensation'!B47,0)","v":0},{"$f":"IF('Schedule 1a-Compensation'!H47>0,'Schedule 1a-Compensation'!K47,0)","v":0},0,0,12,0,0,0,12,0,0,0,0,0,0,0,0,0,0,0]
[null,{"$f":"IF('Schedule 1a-Compensation'!H48>0,'Schedule 1a-Compensation'!B48,0)","v":0},{"$f":"IF('Schedule 1a-Compensation'!H48>0,'Schedule 1a-Compensation'!K48,0)","v":0},0,0,12,0,0,0,12,0,0,0,0,0,0,0,0,0,0,0]
[null,{"$f":"IF('Schedule 1a-Compensation'!H49>0,'Schedule 1a-Compensation'!B49,0)","v":0},{"$f":"IF('Schedule 1a-Compensation'!H49>0,'Schedule 1a-Compensation'!K49,0)","v":0},0,0,12,0,0,0,12,0,0,0,0,0,0,0,0,0,0,0]
[null,{"$f":"IF('Schedule 1a-Compensation'!H50>0,'Schedule 1a-Compensation'!B50,0)","v":0},{"$f":"IF('Schedule 1a-Compensation'!H50>0,'Schedule 1a-Compensation'!K50,0)","v":0},0,0,12,0,0,0,12,0,0,0,0,0,0,0,0,0,0,0]
[null,{"$f":"IF('Schedule 1a-Compensation'!H51>0,'Schedule 1a-Compensation'!B51,0)","v":0},{"$f":"IF('Schedule 1a-Compensation'!H51>0,'Schedule 1a-Compensation'!K51,0)","v":0},0,0,12,0,0,0,12,0,0,0,0,0,0,0,0,0,0,0]
[null,{"$f":"IF('Schedule 1a-Compensation'!H52>0,'Schedule 1a-Compensation'!B52,0)","v":0},{"$f":"IF('Schedule 1a-Compensation'!H52>0,'Schedule 1a-Compensation'!K52,0)","v":0},0,0,12,0,0,0,12,0,0,0,0,0,0,0,0,0,0,0]
[null,{"$f":"IF('Schedule 1a-Compensation'!H53>0,'Schedule 1a-Compensation'!B53,0)","v":0},{"$f":"IF('Schedule 1a-Compensation'!H53>0,'Schedule 1a-Compensation'!K53,0)","v":0},0,0,12,0,0,0,12,0,0,0,0,0,0,0,0,0,0,0]
[null,{"$f":"IF('Schedule 1a-Compensation'!H54>0,'Schedule 1a-Compensation'!B54,0)","v":0},{"$f":"IF('Schedule 1a-Compensation'!H54>0,'Schedule 1a-Compensation'!K54,0)","v":0},0,0,12,0,0,0,12,0,0,0,0,0,0,0,0,0,0,0]
[null,{"$f":"IF('Schedule 1a-Compensation'!H55>0,'Schedule 1a-Compensation'!B55,0)","v":0},{"$f":"IF('Schedule 1a-Compensation'!H55>0,'Schedule 1a-Compensation'!K55,0)","v":0},0,0,12,0,0,0,12,0,0,0,0,0,0,0,0,0,0,0]
[null,{"$f":"IF('Schedule 1a-Compensation'!H56>0,'Schedule 1a-Compensation'!B56,0)","v":0},{"$f":"IF('Schedule 1a-Compensation'!H56>0,'Schedule 1a-Compensation'!K56,0)","v":0},0,0,12,0,0,0,12,0,0,0,0,0,0,0,0,0,0,0]
[null,{"$f":"IF('Schedule 1a-Compensation'!H57>0,'Schedule 1a-Compensation'!B57,0)","v":0},{"$f":"IF('Schedule 1a-Compensation'!H57>0,'Schedule 1a-Compensation'!K57,0)","v":0},0,0,12,0,0,0,12,0,0,0,0,0,0,0,0,0,0,0]
[null,{"$f":"IF('Schedule 1a-Compensation'!H58>0,'Schedule 1a-Compensation'!B58,0)","v":0},{"$f":"IF('Schedule 1a-Compensation'!H58>0,'Schedule 1a-Compensation'!K58,0)","v":0},0,0,12,0,0,0,12,0,0,0,0,0,0,0,0,0,0,0]
[null,{"$f":"IF('Schedule 1a-Compensation'!H59>0,'Schedule 1a-Compensation'!B59,0)","v":0},{"$f":"IF('Schedule 1a-Compensation'!H59>0,'Schedule 1a-Compensation'!K59,0)","v":0},0,0,12,0,0,0,12,0,0,0,0,0,0,0,0,0,0,0]
[null,{"$f":"IF('Schedule 1a-Compensation'!H60>0,'Schedule 1a-Compensation'!B60,0)","v":0},{"$f":"IF('Schedule 1a-Compensation'!H60>0,'Schedule 1a-Compensation'!K60,0)","v":0},0,0,12,0,0,0,12,0,0,0,0,0,0,0,0,0,0,0]
[null,{"$f":"IF('Schedule 1a-Compensation'!H61>0,'Schedule 1a-Compensation'!B61,0)","v":0},{"$f":"IF('Schedule 1a-Compensation'!H61>0,'Schedule 1a-Compensation'!K61,0)","v":0},0,0,12,0,0,0,12,0,0,0,0,0,0,0,0,0,0,0]
[null,{"$f":"IF('Schedule 1a-Compensation'!H62>0,'Schedule 1a-Compensation'!B62,0)","v":0},{"$f":"IF('Schedule 1a-Compensation'!H62>0,'Schedule 1a-Compensation'!K62,0)","v":0},0,0,12,0,0,0,12,0,0,0,0,0,0,0,0,0,0,0]
[null,{"$f":"IF('Schedule 1a-Compensation'!H63>0,'Schedule 1a-Compensation'!B63,0)","v":0},{"$f":"IF('Schedule 1a-Compensation'!H63>0,'Schedule 1a-Compensation'!K63,0)","v":0},0,0,12,0,0,0,12,0,0,0,0,0,0,0,0,0,0,0]
[null,{"$f":"IF('Schedule 1a-Compensation'!H64>0,'Schedule 1a-Compensation'!B64,0)","v":0},{"$f":"IF('Schedule 1a-Compensation'!H64>0,'Schedule 1a-Compensation'!K64,0)","v":0},0,0,12,0,0,0,12,0,0,0,0,0,0,0,0,0,0,0]
[null,{"$f":"IF('Schedule 1a-Compensation'!H65>0,'Schedule 1a-Compensation'!B65,0)","v":0},{"$f":"IF('Schedule 1a-Compensation'!H65>0,'Schedule 1a-Compensation'!K65,0)","v":0},0,0,12,0,0,0,12,0,0,0,0,0,0,0,0,0,0,0]
[null,{"$f":"IF('Schedule 1a-Compensation'!H66>0,'Schedule 1a-Compensation'!B66,0)","v":0},{"$f":"IF('Schedule 1a-Compensation'!H66>0,'Schedule 1a-Compensation'!K66,0)","v":0},0,0,12,0,0,0,12,0,0,0,0,0,0,0,0,0,0,0]
[null,{"$f":"IF('Schedule 1a-Compensation'!H67>0,'Schedule 1a-Compensation'!B67,0)","v":0},{"$f":"IF('Schedule 1a-Compensation'!H67>0,'Schedule 1a-Compensation'!K67,0)","v":0},0,0,12,0,0,0,12,0,0,0,0,0,0,0,0,0,0,0]
[null,{"$f":"IF('Schedule 1a-Compensation'!H68>0,'Schedule 1a-Compensation'!B68,0)","v":0},{"$f":"IF('Schedule 1a-Compensation'!H68>0,'Schedule 1a-Compensation'!K68,0)","v":0},0,0,12,0,0,0,12,0,0,0,0,0,0,0,0,0,0,0]
[null,{"$f":"IF('Schedule 1a-Compensation'!H69>0,'Schedule 1a-Compensation'!B69,0)","v":0},{"$f":"IF('Schedule 1a-Compensation'!H69>0,'Schedule 1a-Compensation'!K69,0)","v":0},0,0,12,0,0,0,12,0,0,0,0,0,0,0,0,0,0,0]
[null,{"$f":"IF('Schedule 1a-Compensation'!H70>0,'Schedule 1a-Compensation'!B70,0)","v":0},{"$f":"IF('Schedule 1a-Compensation'!H70>0,'Schedule 1a-Compensation'!K70,0)","v":0},0,0,12,0,0,0,12,0,0,0,0,0,0,0,0,0,0,0]
[null,{"$f":"IF('Schedule 1a-Compensation'!H71>0,'Schedule 1a-Compensation'!B71,0)","v":0},{"$f":"IF('Schedule 1a-Compensation'!H71>0,'Schedule 1a-Compensation'!K71,0)","v":0},0,0,12,0,0,0,12,0,0,0,0,0,0,0,0,0,0,0]
[null,{"$f":"IF('Schedule 1a-Compensation'!H72>0,'Schedule 1a-Compensation'!B72,0)","v":0},{"$f":"IF('Schedule 1a-Compensation'!H72>0,'Schedule 1a-Compensation'!K72,0)","v":0},0,0,12,0,0,0,12,0,0,0,0,0,0,0,0,0,0,0]
[null,{"$f":"IF('Schedule 1a-Compensation'!H73>0,'Schedule 1a-Compensation'!B73,0)","v":0},{"$f":"IF('Schedule 1a-Compensation'!H73>0,'Schedule 1a-Compensation'!K73,0)","v":0},0,0,12,0,0,0,12,0,0,0,0,0,0,0,0,0,0,0]
[null,{"$f":"IF('Schedule 1a-Compensation'!H74>0,'Schedule 1a-Compensation'!B74,0)","v":0},{"$f":"IF('Schedule 1a-Compensation'!H74>0,'Schedule 1a-Compensation'!K74,0)","v":0},0,0,12,0,0,0,12,0,0,0,0,0,0,0,0,0,0,0]
[null,{"$f":"IF('Schedule 1a-Compensation'!H75>0,'Schedule 1a-Compensation'!B75,0)","v":0},{"$f":"IF('Schedule 1a-Compensation'!H75>0,'Schedule 1a-Compensation'!K75,0)","v":0},0,0,12,0,0,0,12,0,0,0,0,0,0,0,0,0,0,0]
[null,{"$f":"IF('Schedule 1a-Compensation'!H76>0,'Schedule 1a-Compensation'!B76,0)","v":0},{"$f":"IF('Schedule 1a-Compensation'!H76>0,'Schedule 1a-Compensation'!K76,0)","v":0},0,0,12,0,0,0,12,0,0,0,0,0,0,0,0,0,0,0]
[null,{"$f":"IF('Schedule 1a-Compensation'!H77>0,'Schedule 1a-Compensation'!B77,0)","v":0},{"$f":"IF('Schedule 1a-Compensation'!H77>0,'Schedule 1a-Compensation'!K77,0)","v":0},0,0,12,0,0,0,12,0,0,0,0,0,0,0,0,0,0,0]
[null,null," ",{"$f":"SUM(D17:D77)","v":0},null,null,{"$f":"SUM(G17:G77)","v":0},{"$f":"SUM(H17:H77)","v":0},{"$f":"SUM(I17:I77)","v":0},null,{"$f":"SUM(K17:K77)","v":0},null,null,{"$f":"SUM(N17:N77)","v":0},{"$f":"SUM(O17:O77)","v":0},{"$f":"SUM(P17:P77)","v":0},null,{"$f":"SUM(R17:R77)","v":0},0,0,0]
[null,"Detail the type of benefit in cell b10. "]
[null,"Enter data in columns 3, 4, 5, 9, and 19 to calculate the total of schedule 2h.",null,null,null,null,null,null,null,null,null,null,null,null,null,null,null,null,"Total Allowable Costs to CCFP \n(Columns 20+21 must equal the total in Column 19.)",null,{"$f":"T78+U78","v":0}]
[null,"If this is a budget amendment and there are new benefit rates, enter data in columns 10, 11, 12 and 16. ",null,null,null,null,null,null,null,null,null,null,null,null,null,null,null,null,null,null,{"$f":"S78-U80","v":0}]
[null,"Renewed Rate section will not calculate unless the Summary Worksheet is updated to reflect the amendment number. "]
[null,"The calculation of all the benefits is totaled on the summary worksheet."]
[]
[]
[]
[null,"List any other funding source(s) used by your organization to cover the cost of CCFP employees' benefits."]
[]
[null,"List Other Non-CCFP Administrative Funding Source(s)",null,null,"List Supporting Documentation for Schedule 2a",null,null,null,null,null,"Comments"]

{"sheet":"Schedule 2i-Other Benefit 5","index":14,"n_rows":89,"n_cols":21,"rows_kept":89,"cut":false,"hidden":true,"merged":[[94,1,94,3],[94,4,94,9],[94,10,94,15],[92,1,92,3],[92,4,92,9],[92,10,92,15],[93,1,93,3],[93,4,93,9],[93,10,93,15],[90,1,90,3],[90,4,90,9],[90,10,90,15],[91,1,91,3],[91,4,91,9],[91,10,91,15],[9,1,10,3],[11,1,12,2],[11,3,12,9],[11,10,12,16],[79,16,80,17],[11,17,12,17],[11,18,11,20],[12,18,12,20],[89,1,89,3],[89,4,89,9],[89,10,89,15],[79,18,80,19],[88,1,88,3],[88,4,88,9],[88,10,88,15]]}
[null,{"$f":"'Summary Worksheet'!$B$1","v":"Automated Budget for Prospective Sponsors of Unaffiliated Centers"}]
[]
[null,"SCHEDULE 2i - OTHER BENEFIT 5"]
[null,null,"      Fiscal Year:   ",{"$f":"'Summary Worksheet'!$C$4","v":0}]
[]
[null,null,"      Authorization Number:   ",{"$f":"'Summary Worksheet'!$C$6","v":0},null,null,null,null,null,"Please note these error codes:",null,null,null,"Example:"]
[null,null,null,null,null,null,null,null,null,"Total number of months emay not xceed 12"]
[null,null,"Amendment Number:",{"$f":"'Summary Worksheet'!$C$8","v":0},null,null,null,null,null,"Number of CCFP months may not exceed employer months"]
[null,"Type of Benefit:",null,null,null,null,null,null,null,"You need to delete the data in this this cell:",null,null,null,2000]
[null,null,null,null,null,null,null,null,null,"Do not enter data into this cell"]
[]
[null,"PERSONNEL INFORMATION\n(See Schedule 1a).",null,"ORIGINAL RATE",null,null,null,null,null,null,"NEW RATE\nFill this out ONLY IF this is a budget amendment and the benefit has changed rates.",null,null,null,null,null,null,null,"CCFP TOTALS"]
[null,null,null,null,null,null,null,null,null,null,null,null,null,null,null,null,null,null,"CCFP Administrative Budget Total"]
[null,1,{"$f":"B14+1","v":2},3,4,5,6,7,8,9,10,11,12,13,14,15,16,17,18,19,20]
[null,"Employee Name","CCFP % of Employer Cost","Total Monthly Cost","% Employer Covered","Number of Months","Monthly Employer Cost","Monthly Employee Cost","Monthly CCFP Cost                      ","Number of Months  Charged to CCFP ","Total Monthly Cost","  % Employer Covered","Number of Months","Monthly Employer Cost ","Monthly Employee Cost","Monthly CCFP Cost                        ","Number of Months Charged to CCFP","Total Annual Cost to Employer","Allowable Costs to CCFP Administrative Budget ","Amount to be Charged to CCFP Administrative Budget","Allowable CCFP Costs to CCFP Administrative Budget Covered by Other (Non-CCFP) Funding Source(s) "]
[null,"(Pulled from Schedule 1a)","(Pulled from Schedule 1a)",null,null,null,"(column 2  times\ncolumn 3)",null,"  (column 3 times\ncolumn 7)",null,null,null,null,"(column 11  times\n  column 12)",null,"(column 3 times column 14)",null,null,null,null,"(column 19\n minus\ncolumn 20)"]
[null,{"$f":"IF('Schedule 1a-Compensation'!H17>0,'Schedule 1a-Compensation'!B17,0)","v":0},{"$f":"IF('Schedule 1a-Compensation'!H17>0,'Schedule 1a-Compensation'!K17,0)","v":0},0,0,12,{"$f":"ROUND((D17*E17),2)","v":0},{"$f":"(D17)*(1-E17)","v":0},{"$f":"ROUND((G17*C17),2)","v":0},12,0,0,0,{"$f":"ROUND((K17*L17),2)","v":0},{"$f":"(K17)*(1-L17)","v":0},{"$f":"ROUND((N17*C17),2)","v":0},0,{"$f":"IF(AND(B17<>\"\",C17<>\"\",F17+M17<=12,J17+Q17<=12,J17<=F17,Q17<=M17),ROUND((D17*E17*F17),2)+ROUND((K17*L17*M17),2),0)","v":0},{"$f":"IF(AND(R17>0),(ROUND((I17*J17),2)+ROUND((P17*Q17),2)),0)","v":0},0,{"$f":"(S17-T17)","v":0}]
[null,{"$f":"IF('Schedule 1a-Compensation'!H18>0,'Schedule 1a-Compensation'!B18,0)","v":0},{"$f":"IF('Schedule 1a-Compensation'!H18>0,'Schedule 1a-Compensation'!K18,0)","v":0},0,0,12,{"$f":"ROUND((D18*E18),2)","v":0},{"$f":"(D18)*(1-E18)","v":0},0,12,0,0,0,{"$f":"ROUND((K18*L18),2)","v":0},{"$f":"(K18)*(1-L18)","v":0},0,0,{"$f":"IF(AND(B18<>\"\",C18<>\"\",F18+M18<=12,J18+Q18<=12,J18<=F18,Q18<=M18),ROUND((D18*E18*F18),2)+ROUND((K18*L18*M18),2),0)","v":0},{"$f":"IF(AND(R18>0),(ROUND((I18*J18),2)+ROUND((P18*Q18),2)),0)","v":0},0,{"$f":"(S18-T18)","v":0}]
[null,{"$f":"IF('Schedule 1a-Compensation'!H19>0,'Schedule 1a-Compensation'!B19,0)","v":0},{"$f":"IF('Schedule 1a-Compensation'!H19>0,'Schedule 1a-Compensation'!K19,0)","v":0},0,0,12,0,0,0,12,0,0,0,0,0,0,0,0,0,0,0]
[null,{"$f":"IF('Schedule 1a-Compensation'!H20>0,'Schedule 1a-Compensation'!B20,0)","v":0},{"$f":"IF('Schedule 1a-Compensation'!H20>0,'Schedule 1a-Compensation'!K20,0)","v":0},0,0,12,0,0,0,12,0,0,0,0,0,0,0,0,0,0,0]
[null,{"$f":"IF('Schedule 1a-Compensation'!H21>0,'Schedule 1a-Compensation'!B21,0)","v":0},{"$f":"IF('Schedule 1a-Compensation'!H21>0,'Schedule 1a-Compensation'!K21,0)","v":0},0,0,12,0,0,0,12,0,0,0,0,0,0,0,0,0,0,0]
[null,{"$f":"IF('Schedule 1a-Compensation'!H22>0,'Schedule 1a-Compensation'!B22,0)","v":0},{"$f":"IF('Schedule 1a-Compensation'!H22>0,'Schedule 1a-Compensation'!K22,0)","v":0},0,0,12,0,0,0,12,0,0,0,0,0,0,0,0,0,0,0]
[null,{"$f":"IF('Schedule 1a-Compensation'!H23>0,'Schedule 1a-Compensation'!B23,0)","v":0},{"$f":"IF('Schedule 1a-Compensation'!H23>0,'Schedule 1a-Compensation'!K23,0)","v":0},0,0,12,0,0,0,12,0,0,0,0,0,0,0,0,0,0,0]
[null,{"$f":"IF('Schedule 1a-Compensation'!H24>0,'Schedule 1a-Compensation'!B24,0)","v":0},{"$f":"IF('Schedule 1a-Compensation'!H24>0,'Schedule 1a-Compensation'!K24,0)","v":0},0,0,12,0,0,0,12,0,0,0,0,0,0,0,0,0,0,0]
[null,{"$f":"IF('Schedule 1a-Compensation'!H25>0,'Schedule 1a-Compensation'!B25,0)","v":0},{"$f":"IF('Schedule 1a-Compensation'!H25>0,'Schedule 1a-Compensation'!K25,0)","v":0},0,0,12,0,0,0,12,0,0,0,0,0,0,0,0,0,0,0]
[null,{"$f":"IF('Schedule 1a-Compensation'!H26>0,'Schedule 1a-Compensation'!B26,0)","v":0},{"$f":"IF('Schedule 1a-Compensation'!H26>0,'Schedule 1a-Compensation'!K26,0)","v":0},0,0,12,0,0,0,12,0,0,0,0,0,0,0,0,0,0,0]
[null,{"$f":"IF('Schedule 1a-Compensation'!H27>0,'Schedule 1a-Compensation'!B27,0)","v":0},{"$f":"IF('Schedule 1a-Compensation'!H27>0,'Schedule 1a-Compensation'!K27,0)","v":0},0,0,12,0,0,0,12,0,0,0,0,0,0,0,0,0,0,0]
[null,{"$f":"IF('Schedule 1a-Compensation'!H28>0,'Schedule 1a-Compensation'!B28,0)","v":0},{"$f":"IF('Schedule 1a-Compensation'!H28>0,'Schedule 1a-Compensation'!K28,0)","v":0},0,0,12,0,0,0,12,0,0,0,0,0,0,0,0,0,0,0]
[null,{"$f":"IF('Schedule 1a-Compensation'!H29>0,'Schedule 1a-Compensation'!B29,0)","v":0},{"$f":"IF('Schedule 1a-Compensation'!H29>0,'Schedule 1a-Compensation'!K29,0)","v":0},0,0,12,0,0,0,12,0,0,0,0,0,0,0,0,0,0,0]
[null,{"$f":"IF('Schedule 1a-Compensation'!H30>0,'Schedule 1a-Compensation'!B30,0)","v":0},{"$f":"IF('Schedule 1a-Compensation'!H30>0,'Schedule 1a-Compensation'!K30,0)","v":0},0,0,12,0,0,0,12,0,0,0,0,0,0,0,0,0,0,0]
[null,{"$f":"IF('Schedule 1a-Compensation'!H31>0,'Schedule 1a-Compensation'!B31,0)","v":0},{"$f":"IF('Schedule 1a-Compensation'!H31>0,'Schedule 1a-Compensation'!K31,0)","v":0},0,0,12,0,0,0,12,0,0,0,0,0,0,0,0,0,0,0]
[null,{"$f":"IF('Schedule 1a-Compensation'!H32>0,'Schedule 1a-Compensation'!B32,0)","v":0},{"$f":"IF('Schedule 1a-Compensation'!H32>0,'Schedule 1a-Compensation'!K32,0)","v":0},0,0,12,0,0,0,12,0,0,0,0,0,0,0,0,0,0,0]
[null,{"$f":"IF('Schedule 1a-Compensation'!H33>0,'Schedule 1a-Compensation'!B33,0)","v":0},{"$f":"IF('Schedule 1a-Compensation'!H33>0,'Schedule 1a-Compensation'!K33,0)","v":0},0,0,12,0,0,0,12,0,0,0,0,0,0,0,0,0,0,0]
[null,{"$f":"IF('Schedule 1a-Compensation'!H34>0,'Schedule 1a-Compensation'!B34,0)","v":0},{"$f":"IF('Schedule 1a-Compensation'!H34>0,'Schedule 1a-Compensation'!K34,0)","v":0},0,0,12,0,0,0,12,0,0,0,0,0,0,0,0,0,0,0]
[null,{"$f":"IF('Schedule 1a-Compensation'!H35>0,'Schedule 1a-Compensation'!B35,0)","v":0},{"$f":"IF('Schedule 1a-Compensation'!H35>0,'Schedule 1a-Compensation'!K35,0)","v":0},0,0,12,0,0,0,12,0,0,0,0,0,0,0,0,0,0,0]
[null,{"$f":"IF('Schedule 1a-Compensation'!H36>0,'Schedule 1a-Compensation'!B36,0)","v":0},{"$f":"IF('Schedule 1a-Compensation'!H36>0,'Schedule 1a-Compensation'!K36,0)","v":0},0,0,12,0,0,0,12,0,0,0,0,0,0,0,0,0,0,0]
[null,{"$f":"IF('Schedule 1a-Compensation'!H37>0,'Schedule 1a-Compensation'!B37,0)","v":0},{"$f":"IF('Schedule 1a-Compensation'!H37>0,'Schedule 1a-Compensation'!K37,0)","v":0},0,0,12,0,0,0,12,0,0,0,0,0,0,0,0,0,0,0]
[null,{"$f":"IF('Schedule 1a-Compensation'!H38>0,'Schedule 1a-Compensation'!B38,0)","v":0},{"$f":"IF('Schedule 1a-Compensation'!H38>0,'Schedule 1a-Compensation'!K38,0)","v":0},0,0,12,0,0,0,12,0,0,0,0,0,0,0,0,0,0,0]
[null,{"$f":"IF('Schedule 1a-Compensation'!H39>0,'Schedule 1a-Compensation'!B39,0)","v":0},{"$f":"IF('Schedule 1a-Compensation'!H39>0,'Schedule 1a-Compensation'!K39,0)","v":0},0,0,12,0,0,0,12,0,0,0,0,0,0,0,0,0,0,0]
[null,{"$f":"IF('Schedule 1a-Compensation'!H40>0,'Schedule 1a-Compensation'!B40,0)","v":0},{"$f":"IF('Schedule 1a-Compensation'!H40>0,'Schedule 1a-Compensation'!K40,0)","v":0},0,0,12,0,0,0,12,0,0,0,0,0,0,0,0,0,0,0]
[null,{"$f":"IF('Schedule 1a-Compensation'!H41>0,'Schedule 1a-Compensation'!B41,0)","v":0},{"$f":"IF('Schedule 1a-Compensation'!H41>0,'Schedule 1a-Compensation'!K41,0)","v":0},0,0,12,0,0,0,12,0,0,0,0,0,0,0,0,0,0,0]
[null,{"$f":"IF('Schedule 1a-Compensation'!H42>0,'Schedule 1a-Compensation'!B42,0)","v":0},{"$f":"IF('Schedule 1a-Compensation'!H42>0,'Schedule 1a-Compensation'!K42,0)","v":0},0,0,12,0,0,0,12,0,0,0,0,0,0,0,0,0,0,0]
[null,{"$f":"IF('Schedule 1a-Compensation'!H43>0,'Schedule 1a-Compensation'!B43,0)","v":0},{"$f":"IF('Schedule 1a-Compensation'!H43>0,'Schedule 1a-Compensation'!K43,0)","v":0},0,0,12,0,0,0,12,0,0,0,0,0,0,0,0,0,0,0]
[null,{"$f":"IF('Schedule 1a-Compensation'!H44>0,'Schedule 1a-Compensation'!B44,0)","v":0},{"$f":"IF('Schedule 1a-Compensation'!H44>0,'Schedule 1a-Compensation'!K44,0)","v":0},0,0,12,0,0,0,12,0,0,0,0,0,0,0,0,0,0,0]
[null,{"$f":"IF('Schedule 1a-Compensation'!H45>0,'Schedule 1a-Compensation'!B45,0)","v":0},{"$f":"IF('Schedule 1a-Compensation'!H45>0,'Schedule 1a-Compensation'!K45,0)","v":0},0,0,12,0,0,0,12,0,0,0,0,0,0,0,0,0,0,0]
[null,{"$f":"IF('Schedule 1a-Compensation'!H46>0,'Schedule 1a-Compensation'!B46,0)","v":0},{"$f":"IF('Schedule 1a-Compensation'!H46>0,'Schedule 1a-Compensation'!K46,0)","v":0},0,0,12,0,0,0,12,0,0,0,0,0,0,0,0,0,0,0]
[null,{"$f":"IF('Schedule 1a-Compensation'!H47>0,'Schedule 1a-Compensation'!B47,0)","v":0},{"$f":"IF('Schedule 1a-Compensation'!H47>0,'Schedule 1a-Compensation'!K47,0)","v":0},0,0,12,0,0,0,12,0,0,0,0,0,0,0,0,0,0,0]
[null,{"$f":"IF('Schedule 1a-Compensation'!H48>0,'Schedule 1a-Compensation'!B48,0)","v":0},{"$f":"IF('Schedule 1a-Compensation'!H48>0,'Schedule 1a-Compensation'!K48,0)","v":0},0,0,12,0,0,0,12,0,0,0,0,0,0,0,0,0,0,0]
[null,{"$f":"IF('Schedule 1a-Compensation'!H49>0,'Schedule 1a-Compensation'!B49,0)","v":0},{"$f":"IF('Schedule 1a-Compensation'!H49>0,'Schedule 1a-Compensation'!K49,0)","v":0},0,0,12,0,0,0,12,0,0,0,0,0,0,0,0,0,0,0]
[null,{"$f":"IF('Schedule 1a-Compensation'!H50>0,'Schedule 1a-Compensation'!B50,0)","v":0},{"$f":"IF('Schedule 1a-Compensation'!H50>0,'Schedule 1a-Compensation'!K50,0)","v":0},0,0,12,0,0,0,12,0,0,0,0,0,0,0,0,0,0,0]
[null,{"$f":"IF('Schedule 1a-Compensation'!H51>0,'Schedule 1a-Compensation'!B51,0)","v":0},{"$f":"IF('Schedule 1a-Compensation'!H51>0,'Schedule 1a-Compensation'!K51,0)","v":0},0,0,12,0,0,0,12,0,0,0,0,0,0,0,0,0,0,0]
[null,{"$f":"IF('Schedule 1a-Compensation'!H52>0,'Schedule 1a-Compensation'!B52,0)","v":0},{"$f":"IF('Schedule 1a-Compensation'!H52>0,'Schedule 1a-Compensation'!K52,0)","v":0},0,0,12,0,0,0,12,0,0,0,0,0,0,0,0,0,0,0]
[null,{"$f":"IF('Schedule 1a-Compensation'!H53>0,'Schedule 1a-Compensation'!B53,0)","v":0},{"$f":"IF('Schedule 1a-Compensation'!H53>0,'Schedule 1a-Compensation'!K53,0)","v":0},0,0,12,0,0,0,12,0,0,0,0,0,0,0,0,0,0,0]
[null,{"$f":"IF('Schedule 1a-Compensation'!H54>0,'Schedule 1a-Compensation'!B54,0)","v":0},{"$f":"IF('Schedule 1a-Compensation'!H54>0,'Schedule 1a-Compensation'!K54,0)","v":0},0,0,12,0,0,0,12,0,0,0,0,0,0,0,0,0,0,0]
[null,{"$f":"IF('Schedule 1a-Compensation'!H55>0,'Schedule 1a-Compensation'!B55,0)","v":0},{"$f":"IF('Schedule 1a-Compensation'!H55>0,'Schedule 1a-Compensation'!K55,0)","v":0},0,0,12,0,0,0,12,0,0,0,0,0,0,0,0,0,0,0]
[null,{"$f":"IF('Schedule 1a-Compensation'!H56>0,'Schedule 1a-Compensation'!B56,0)","v":0},{"$f":"IF('Schedule 1a-Compensation'!H56>0,'Schedule 1a-Compensation'!K56,0)","v":0},0,0,12,0,0,0,12,0,0,0,0,0,0,0,0,0,0,0]
[null,{"$f":"IF('Schedule 1a-Compensation'!H57>0,'Schedule 1a-Compensation'!B57,0)","v":0},{"$f":"IF('Schedule 1a-Compensation'!H57>0,'Schedule 1a-Compensation'!K57,0)","v":0},0,0,12,0,0,0,12,0,0,0,0,0,0,0,0,0,0,0]
[null,{"$f":"IF('Schedule 1a-Compensation'!H58>0,'Schedule 1a-Compensation'!B58,0)","v":0},{"$f":"IF('Schedule 1a-Compensation'!H58>0,'Schedule 1a-Compensation'!K58,0)","v":0},0,0,12,0,0,0,12,0,0,0,0,0,0,0,0,0,0,0]
[null,{"$f":"IF('Schedule 1a-Compensation'!H59>0,'Schedule 1a-Compensation'!B59,0)","v":0},{"$f":"IF('Schedule 1a-Compensation'!H59>0,'Schedule 1a-Compensation'!K59,0)","v":0},0,0,12,0,0,0,12,0,0,0,0,0,0,0,0,0,0,0]
[null,{"$f":"IF('Schedule 1a-Compensation'!H60>0,'Schedule 1a-Compensation'!B60,0)","v":0},{"$f":"IF('Schedule 1a-Compensation'!H60>0,'Schedule 1a-Compensation'!K60,0)","v":0},0,0,12,0,0,0,12,0,0,0,0,0,0,0,0,0,0,0]
[null,{"$f":"IF('Schedule 1a-Compensation'!H61>0,'Schedule 1a-Compensation'!B61,0)","v":0},{"$f":"IF('Schedule 1a-Compensation'!H61>0,'Schedule 1a-Compensation'!K61,0)","v":0},0,0,12,0,0,0,12,0,0,0,0,0,0,0,0,0,0,0]
[null,{"$f":"IF('Schedule 1a-Compensation'!H62>0,'Schedule 1a-Compensation'!B62,0)","v":0},{"$f":"IF('Schedule 1a-Compensation'!H62>0,'Schedule 1a-Compensation'!K62,0)","v":0},0,0,12,0,0,0,12,0,0,0,0,0,0,0,0,0,0,0]
[null,{"$f":"IF('Schedule 1a-Compensation'!H63>0,'Schedule 1a-Compensation'!B63,0)","v":0},{"$f":"IF('Schedule 1a-Compensation'!H63>0,'Schedule 1a-Compensation'!K63,0)","v":0},0,0,12,0,0,0,12,0,0,0,0,0,0,0,0,0,0,0]
[null,{"$f":"IF('Schedule 1a-Compensation'!H64>0,'Schedule 1a-Compensation'!B64,0)","v":0},{"$f":"IF('Schedule 1a-Compensation'!H64>0,'Schedule 1a-Compensation'!K64,0)","v":0},0,0,12,0,0,0,12,0,0,0,0,0,0,0,0,0,0,0]
[null,{"$f":"IF('Schedule 1a-Compensation'!H65>0,'Schedule 1a-Compensation'!B65,0)","v":0},{"$f":"IF('Schedule 1a-Compensation'!H65>0,'Schedule 1a-Compensation'!K65,0)","v":0},0,0,12,0,0,0,12,0,0,0,0,0,0,0,0,0,0,0]
[null,{"$f":"IF('Schedule 1a-Compensation'!H66>0,'Schedule 1a-Compensation'!B66,0)","v":0},{"$f":"IF('Schedule 1a-Compensation'!H66>0,'Schedule 1a-Compensation'!K66,0)","v":0},0,0,12,0,0,0,12,0,0,0,0,0,0,0,0,0,0,0]
[null,{"$f":"IF('Schedule 1a-Compensation'!H67>0,'Schedule 1a-Compensation'!B67,0)","v":0},{"$f":"IF('Schedule 1a-Compensation'!H67>0,'Schedule 1a-Compensation'!K67,0)","v":0},0,0,12,0,0,0,12,0,0,0,0,0,0,0,0,0,0,0]
[null,{"$f":"IF('Schedule 1a-Compensation'!H68>0,'Schedule 1a-Compensation'!B68,0)","v":0},{"$f":"IF('Schedule 1a-Compensation'!H68>0,'Schedule 1a-Compensation'!K68,0)","v":0},0,0,12,0,0,0,12,0,0,0,0,0,0,0,0,0,0,0]
[null,{"$f":"IF('Schedule 1a-Compensation'!H69>0,'Schedule 1a-Compensation'!B69,0)","v":0},{"$f":"IF('Schedule 1a-Compensation'!H69>0,'Schedule 1a-Compensation'!K69,0)","v":0},0,0,12,0,0,0,12,0,0,0,0,0,0,0,0,0,0,0]
[null,{"$f":"IF('Schedule 1a-Compensation'!H70>0,'Schedule 1a-Compensation'!B70,0)","v":0},{"$f":"IF('Schedule 1a-Compensation'!H70>0,'Schedule 1a-Compensation'!K70,0)","v":0},0,0,12,0,0,0,12,0,0,0,0,0,0,0,0,0,0,0]
[null,{"$f":"IF('Schedule 1a-Compensation'!H71>0,'Schedule 1a-Compensation'!B71,0)","v":0},{"$f":"IF('Schedule 1a-Compensation'!H71>0,'Schedule 1a-Compensation'!K71,0)","v":0},0,0,12,0,0,0,12,0,0,0,0,0,0,0,0,0,0,0]
[null,{"$f":"IF('Schedule 1a-Compensation'!H72>0,'Schedule 1a-Compensation'!B72,0)","v":0},{"$f":"IF('Schedule 1a-Compensation'!H72>0,'Schedule 1a-Compensation'!K72,0)","v":0},0,0,12,0,0,0,12,0,0,0,0,0,0,0,0,0,0,0]
[null,{"$f":"IF('Schedule 1a-Compensation'!H73>0,'Schedule 1a-Compensation'!B73,0)","v":0},{"$f":"IF('Schedule 1a-Compensation'!H73>0,'Schedule 1a-Compensation'!K73,0)","v":0},0,0,12,0,0,0,12,0,0,0,0,0,0,0,0,0,0,0]
[null,{"$f":"IF('Schedule 1a-Compensation'!H74>0,'Schedule 1a-Compensation'!B74,0)","v":0},{"$f":"IF('Schedule 1a-Compensation'!H74>0,'Schedule 1a-Compensation'!K74,0)","v":0},0,0,12,0,0,0,12,0,0,0,0,0,0,0,0,0,0,0]
[null,{"$f":"IF('Schedule 1a-Compensation'!H75>0,'Schedule 1a-Compensation'!B75,0)","v":0},{"$f":"IF('Schedule 1a-Compensation'!H75>0,'Schedule 1a-Compensation'!K75,0)","v":0},0,0,12,0,0,0,12,0,0,0,0,0,0,0,0,0,0,0]
[null,{"$f":"IF('Schedule 1a-Compensation'!H76>0,'Schedule 1a-Compensation'!B76,0)","v":0},{"$f":"IF('Schedule 1a-Compensation'!H76>0,'Schedule 1a-Compensation'!K76,0)","v":0},0,0,12,0,0,0,12,0,0,0,0,0,0,0,0,0,0,0]
[null,{"$f":"IF('Schedule 1a-Compensation'!H77>0,'Schedule 1a-Compensation'!B77,0)","v":0},{"$f":"IF('Schedule 1a-Compensation'!H77>0,'Schedule 1a-Compensation'!K77,0)","v":0},0,0,12,0,0,0,12,0,0,0,0,0,0,0,0,0,0,0]
[null,null," ",{"$f":"SUM(D17:D77)","v":0},null,null,{"$f":"SUM(G17:G77)","v":0},{"$f":"SUM(H17:H77)","v":0},{"$f":"SUM(I17:I77)","v":0},null,{"$f":"SUM(K17:K77)","v":0},null,null,{"$f":"SUM(N17:N77)","v":0},{"$f":"SUM(O17:O77)","v":0},{"$f":"SUM(P17:P77)","v":0},null,{"$f":"SUM(R17:R77)","v":0},0,0,0]
[null,"Detail the type of benefit in cell b10. "]
[null,"Enter data in columns 3, 4, 5, 9, and 19 to calculate the total of schedule 2i.",null,null,null,null,null,null,null,null,null,null,null,null,null,null,null,null,"Total Allowable Costs to CCFP \n(Columns 20+21 must equal the total in Column 19.)",null,{"$f":"T78+U78","v":0}]
[null,"If this is a budget amendment and there are new benefit rates, enter data in columns 10, 11, 12 and 16. ",null,null,null,null,null,null,null,null,null,null,null,null,null,null,null,null,null,null,{"$f":"S78-U80","v":0}]
[null,"Renewed Rate section will not calculate unless the Summary Worksheet is updated to reflect the amendment number. "]
[null,"The calculation of all the benefits is totaled on the summary worksheet."]
[]
[]
[]
[null,"List any other funding source(s) used by your organization to cover the cost of CCFP employees' benefits."]
[]
[null,"List Other Non-CCFP Administrative Funding Source(s)",null,null,"List Supporting Documentation for Schedule 2a",null,null,null,null,null,"Comments"]

{"sheet":"Schedule 3-Equipment Over $5000","index":15,"n_rows":46,"n_cols":11,"rows_kept":46,"cut":false,"hidden":true,"merged":[[39,1,39,7],[48,7,48,10],[47,3,47,6],[48,3,48,6],[49,3,49,6],[49,7,49,10],[47,1,47,2],[43,7,43,10],[45,7,45,10],[46,7,46,10],[45,1,45,2],[46,1,46,2],[49,1,49,2],[43,1,44,2],[9,2,9,8],[12,1,12,6],[14,3,15,3],[12,7,12,9],[35,1,35,7],[14,9,15,9],[35,8,37,9],[51,7,51,10],[45,3,45,6],[46,3,46,6],[51,1,51,2],[48,1,48,2],[50,1,50,2],[47,7,47,10],[50,3,50,6],[50,7,50,10],[51,3,51,6]]}
[null,{"$f":"'Summary Worksheet'!B1","v":"Automated Budget for Prospective Sponsors of Unaffiliated Centers"}]
[]
[null,"SCHEDULE 3 - Equipment Over $5,000         "]
[null,null,"      Fiscal Year:   ",{"$f":"'Summary Worksheet'!C4","v":0}]
[]
[null,null,"      Authorization Number:   ",{"$f":"'Summary Worksheet'!C6","v":0}]
[]
[null,null,"     Amendment #:  ",{"$f":"'Summary Worksheet'!C8","v":0}]
[]
[]
[null,null,"(Depreciation Expense for Existing Equipment and Proposed Equipment Purchases)"]
[]
[null,"Equipment Purchased $5000 and Over",null,null,null,null,null,"CCFP Total",null,null,"Other Funding Sources"]
[null,1,2,3,4,5,6,7,8,9,10]
[null,"Item Description (Including model and serial numbers)  ","Purchase Date","Total Acquisition Cost of Item","Depreciation Method * ","Life Expectancy","Annual Depreciation","% Allocated to CCFP","CCFP Annual  Depreciation","Amount to be Charged to CCFP ","Allowable CCFP Costs Covered by Other (Non-CCFP) Funding Source(s) "]
[null,null,null,null,null,null,null,null," (column 6                    times                     column 7)",null,"(column 8 minus      column 9)"]
[null,null,null,0,null,null,0,0,{"$f":"ROUND((G17*H17),2)","v":0},0,{"$f":"I17-J17","v":0}]
[null,null,null,0,null,null,0,0,0,0,{"$f":"I18-J18","v":0}]
[null,null,null,0,null,null,0,0,0,0,0]
[null,null,null,0,null,null,0,0,0,0,0]
[null,null,null,0,null,null,0,0,0,0,0]
[null,null,null,0,null,null,0,0,0,0,0]
[null,null,null,0,null,null,0,0,0,0,0]
[null,null,null,0,null,null,0,0,0,0,0]
[null,null,null,0,null,null,0,0,0,0,0]
[null,null,null,0,null,null,0,0,0,0,0]
[null,null,null,0,null,null,0,0,0,0,0]
[null,null,null,0,null,null,0,0,0,0,0]
[null,null,null,0,null,null,0,0,0,0,0]
[null,null,null,0,null,null,0,0,0,0,0]
[null,null,null,0,null,null,0,0,0,0,0]
[null,null,null,0,null,null,0,0,0,0,0]
[]
[null,null,null,null,null,"Totals ",{"$f":"SUM(G17:G32)","v":0},null,{"$f":"SUM(I17:I32)","v":0},{"$f":"SUM(J17:J32)","v":0},{"$f":"SUM(K17:K32)","v":0}]
[]
[null,"* Enter 15-year straight line for equipment, 5-year straight line for Automatic Data Processing (ADP) equipment, or IRS approved method.",null,null,null,null,null,null,"Total Allowable Costs to CCFP  (Columns 9 +10 must equal the total in Column 8.)",null,{"$f":"J34+K34","v":0}]
[null,null,null,null,null,null,null,null,null,null,{"$f":"I34-K36","v":0}]
[null," - Enter data in columns 1, 2, 3, 4, 5, 6, 7 and 9 to calculate total of schedule 3."]
[null," - The maximum annual rate for use allowances for equipment cannot exceed 6.67 % of the acquisition cost."]
[null," - Fill out Continuous Property Record (CPR) form for depreciated items when any equipment costing $5,000 or more per unit is purchased."]
[]
[null,"Note: Any entries on this page require completion of the Supplemental Budget For Special Cost Items and copies of the contracts."]
[]
[null,"List any other funding source(s) used by your organization to cover the purchase of CCFP equipment.",null,null,null,null,null,"Provide a description of the cost methodology used to determine the % allocated to CCFP."]
[]
[null,"List Other Non-CCFP Funding Source(s)",null,"List Supporting Documentation for Schedule 3",null,null,null,"Comments"]

{"sheet":"Schedule 4-Equip. Under $5000","index":16,"n_rows":52,"n_cols":8,"rows_kept":52,"cut":false,"hidden":true,"merged":[[57,7,57,10],[51,4,51,6],[12,1,12,3],[12,4,12,6],[51,7,51,10],[51,1,51,3],[49,7,49,10],[49,1,49,3],[52,7,52,10],[53,7,53,10],[54,7,54,10],[56,4,56,6],[55,7,55,10],[56,7,56,10],[44,5,46,6],[56,1,56,3],[57,1,57,3],[52,4,52,6],[52,1,52,3],[53,1,53,3],[54,1,54,3],[55,1,55,3],[53,4,53,6],[54,4,54,6],[55,4,55,6],[57,4,57,6]]}
[null,{"$f":"'Summary Worksheet'!B1","v":"Automated Budget for Prospective Sponsors of Unaffiliated Centers"}]
[]
[null,"SCHEDULE 4 -Equipment Under $5,000"]
[null,null,"      Fiscal Year:   ",{"$f":"'Summary Worksheet'!C4","v":0}]
[]
[null,null,"      Authorization Number:   ",{"$f":"'Summary Worksheet'!C6","v":0}]
[]
[null,null,"     Amendment #:  ",{"$f":"'Summary Worksheet'!C8","v":0}]
[]
[]
[]
[]
[null,"Equipment/Furniture Purchased Under $5000- Expensed",null,null,"CCFP Totals",null,null,"OTHER FUNDING SOURCE"]
[null,1,2,3,4,5,6,7]
[null,"Type of Equipment","Purchase Date","Total Acquisition Cost of Item","% Allocated to CCFP","Total Acquisition Cost to  CCFP                             ","Amount to be Charged to CCFP ","Allowable CCFP Costs Covered by Other (Non-CCFP) Funding Source(s)                                                                                                                        "]
[null,null,null,null,null,"(column 3                  times column 4) ",null," (Column 5                                       minus                           column 6)"]
[null,"Equipment:",null,0,0,{"$f":"ROUND((D17*E17),2)","v":0},0,{"$f":"F17-G17","v":0}]
[null,null,null,0,0,{"$f":"ROUND((D18*E18),2)","v":0},0,{"$f":"F18-G18","v":0}]
[null,null,null,0,0,0,0,0]
[null,null,null,0,0,0,0,0]
[null,null,null,0,0,0,0,0]
[null,null,null,0,0,0,0,0]
[null,null,null,0,0,0,0,0]
[null,null,null,0,0,0,0,0]
[null,null,null,0,0,0,0,0]
[null,"Other (specify)",null,0,0,0,0,0]
[null,null,null,0,0,0,0,0]
[null,null,null,0,0,0,0,0]
[null,null,null,0,0,0,0,0]
[null,null,null,0,0,0,0,0]
[null,null,null,0,0,0,0,0]
[null,null,null,0,0,0,0,0]
[null,"Furniture:",null,0,0,0,0,0]
[null,null,null,0,0,0,0,0]
[null,null,null,0,0,0,0,0]
[null,null,null,0,0,0,0,0]
[null,null,null,0,0,0,0,0]
[null,null,null,0,0,0,0,0]
[null,null,null,0,0,0,0,0]
[null,null,null,0,0,0,0,0]
[null,null,null,0,0,0,0,0]
[]
[null,null,"Totals",{"$f":"SUM(D17:D41)","v":0},null,{"$f":"SUM(F17:F41)","v":0},{"$f":"SUM(G17:G41)","v":0},{"$f":"F43-G43","v":0}]
[]
[null,"Enter data in columns 1, 2, 3, 4 and 6 to calculate the total of schedule 4.",null,null,null,"Total Acquisition Cost to CCFP                                                        (Columns 6 + 7 must equal the total in Column 5.)",null,{"$f":"G43+H43","v":0}]
[null,null,null,null,null,null,null,{"$f":"F43-H45","v":0}]
[]
[]
[null,"Fill out Continuous Property Record (CPR) form for expensed items when purchasing equipment costing $1,000 to less than $5,000 per unit or any computer under $5,000."]
[null,"List any other funding source(s) used by your organization to cover the purchase of CCFP equipment/furniture.",null,null,null,null,null,"Provide a description of the cost methodology used to determine the % allocated to CCFP."]
[]
[null,"List Other Non-CCFP Funding Source(s)",null,null,"List Supporting Documentation for Schedule 4",null,null,"Comments"]

{"sheet":"Schedule 5-Office Supplies","index":17,"n_rows":60,"n_cols":13,"rows_kept":60,"cut":false,"hidden":true,"merged":[[57,1,57,3],[59,8,59,12],[59,1,59,3],[64,1,64,3],[64,4,64,7],[63,1,63,3],[62,1,62,3],[9,3,9,10],[14,9,15,9],[60,1,60,3],[61,1,61,3],[61,8,61,12],[60,8,60,12],[61,4,61,7],[60,4,60,7],[14,11,15,11],[12,7,12,11],[12,1,12,4],[59,4,59,7],[53,10,55,11],[57,8,57,12],[14,5,15,5],[14,2,15,2],[65,4,65,7],[62,4,62,7],[65,1,65,3],[65,8,65,12],[63,4,63,7],[62,8,62,12],[63,8,63,12],[64,8,64,12]]}
[null,{"$f":"'Summary Worksheet'!B1","v":"Automated Budget for Prospective Sponsors of Unaffiliated Centers"}]
[]
[null,"SCHEDULE 5 - Office Supplies"]
[null,null,"      Fiscal Year:   ",{"$f":"'Summary Worksheet'!C4","v":0}]
[]
[null,null,"      Authorization Number:   ",{"$f":"'Summary Worksheet'!C6","v":0}]
[]
[null,null,"     Amendment #:  ",{"$f":"'Summary Worksheet'!C8","v":0}]
[]
[null,null,null," "]
[]
[]
[null,"Office Supplies",null,null,null,null,null,"CCFP Totals",null,null,null,null,"OTHER FUNDING SOURCE"]
[null,1,2,3,4,5,6,7,8,9,10,11,12]
[null,"Item ","Projected Monthly Quantity","Cost per Unit","Total Monthly Cost","Number of Months to be charged","Total Costs to the Sponsor              ","% Allocated to CCFP","Monthly Cost to CCFP            ","Number of Months to be charged to CCFP","Total Allowable Costs to CCFP                     ","Amount to be Charged to CCFP ","Allowable CCFP Costs Covered by Other (Non-CCFP) Funding Source(s)                                                                                                                        "]
[null,null,null,null," (column 2                    times                              column 3",null,"(column 4                      times                    column 5)",null,"(column 4                           times                            column 7)",null,"(column 8                      times             column 9)",null,"(column 10                     minus                              column 11)"]
[null,null,0,0,{"$f":"ROUND((C17*D17),2)","v":0},12,{"$f":"ROUND((E17*F17),2)","v":0},0,{"$f":"ROUND((E17*H17),2)","v":0},12,{"$f":"ROUND((I17*J17),2)","v":0},0,{"$f":"K17-L17","v":0}]
[null,null,0,0,{"$f":"ROUND((C18*D18),2)","v":0},12,{"$f":"ROUND((E18*F18),2)","v":0},0,{"$f":"ROUND((E18*H18),2)","v":0},12,{"$f":"ROUND((I18*J18),2)","v":0},0,{"$f":"K18-L18","v":0}]
[null,null,0,0,0,12,0,0,0,12,0,0,0]
[null,null,0,0,0,12,0,0,0,12,0,0,0]
[null,null,0,0,0,12,0,0,0,12,0,0,0]
[null,null,0,0,0,12,0,0,0,12,0,0,0]
[null,null,0,0,0,12,0,0,0,12,0,0,0]
[null,null,0,0,0,12,0,0,0,12,0,0,0]
[null,null,0,0,0,12,0,0,0,12,0,0,0]
[null,null,0,0,0,12,0,0,0,12,0,0,0]
[null,null,0,0,0,12,0,0,0,12,0,0,0]
[null,null,0,0,0,12,0,0,0,12,0,0,0]
[null,null,0,0,0,12,0,0,0,12,0,0,0]
[null,null,0,0,0,12,0,0,0,12,0,0,0]
[null,null,0,0,0,12,0,0,0,12,0,0,0]
[null,null,0,0,0,12,0,0,0,12,0,0,0]
[null,null,0,0,0,12,0,0,0,12,0,0,0]
[null,null,0,0,0,12,0,0,0,12,0,0,0]
[null,null,0,0,0,12,0,0,0,12,0,0,0]
[null,null,0,0,0,12,0,0,0,12,0,0,0]
[null,null,0,0,0,12,0,0,0,12,0,0,0]
[null,null,0,0,0,12,0,0,0,12,0,0,0]
[null,null,0,0,0,12,0,0,0,12,0,0,0]
[null,null,0,0,0,12,0,0,0,12,0,0,0]
[null,null,0,0,0,12,0,0,0,12,0,0,0]
[null,null,0,0,0,12,0,0,0,12,0,0,0]
[null,null,0,0,0,12,0,0,0,12,0,0,0]
[null,null,0,0,0,12,0,0,0,12,0,0,0]
[null,null,0,0,0,12,0,0,0,12,0,0,0]
[null,null,0,0,0,12,0,0,0,12,0,0,0]
[null,null,0,0,0,12,0,0,0,12,0,0,0]
[null,null,0,0,0,12,0,0,0,12,0,0,0]
[null,null,0,0,0,12,0,0,0,12,0,0,0]
[null,null,0,0,0,12,0,0,0,12,0,0,0]
[]
[null,null,null,null,null,"Totals",{"$f":"SUM(G17:G50)","v":0},null,{"$f":"SUM(I17:I50)","v":0},null,{"$f":"SUM(K17:K50)","v":0},{"$f":"SUM(L17:L50)","v":0},{"$f":"SUM(M17:M50)","v":0}]
[]
[null,"Enter data in columns 1, 2, 3, 5, 7, 9 and 11 to calculate the total of schedule 5.",null,null,null,null,null,null,null,null,"Total Allowable Costs to CCFP                          (Columns 11 + 12 must equal the total in Column 10.)",null,{"$f":"L52+M52","v":0}]
[null,null,null,null,null,null,null,null,null,null,null,null,{"$f":"K52-M54","v":0}]
[]
[]
[null,"List any other funding source(s) used by your organization to cover the cost of CCFP office supplies.",null,null,null,null,null,null,"Provide a description of the cost methodology used to determine the % allocated to CCFP."]
[]
[null,"List Other Non-CCFP Funding Source(s)",null,null,"List Supporting Documentation for Schedule 5",null,null,null,"Comments"]

{"sheet":"Schedule 6-Printing & Postage","index":18,"n_rows":57,"n_cols":13,"rows_kept":57,"cut":false,"hidden":true,"merged":[[51,10,53,11],[59,4,59,7],[54,8,54,12],[54,1,54,3],[59,8,59,12],[56,1,56,3],[56,4,56,7],[56,8,56,12],[57,1,57,3],[57,8,57,12],[57,4,57,7],[9,3,9,10],[12,1,12,4],[14,2,15,2],[14,9,15,9],[14,5,15,5],[12,7,12,11],[62,1,62,3],[62,4,62,7],[62,8,62,12],[58,1,58,3],[58,4,58,7],[58,8,58,12],[61,1,61,3],[61,4,61,7],[61,8,61,12],[59,1,59,3],[60,1,60,3],[60,4,60,7],[60,8,60,12]]}
[null,{"$f":"'Summary Worksheet'!B1","v":"Automated Budget for Prospective Sponsors of Unaffiliated Centers"}]
[]
[null,"SCHEDULE 6 - Printing & Postage"]
[null,null,"      Fiscal Year:   ",{"$f":"'Summary Worksheet'!C4","v":0}]
[]
[null,null,"      Authorization Number:   ",{"$f":"'Summary Worksheet'!C6","v":0}]
[]
[null,null,"     Amendment #:  ",{"$f":"'Summary Worksheet'!C8","v":0}]
[]
[null,null,null," "]
[]
[]
[null,"Printing and Postage",null,null,null,null,null,"CCFP Total",null,null,null,null,"OTHER FUNDING SOURCES"]
[null,1,2,3,4,5,6,7,8,9,10,11,12]
[null,"Item ","Projected Monthly Quantity","Cost per Unit","Total Monthy Cost","Number of Months to be charged","Total Cost to the Sponsor              ","% Allocated to CCFP","Monthly Cost to CCFP            ","Number of Months to be charged to CCFP","Total Allowable Costs to CCFP                     ","Amount to be Charged to CCFP","Allowable CCFP Costs Covered by Other (Non-CCFP) Funding Source(s)                                                                                                                        "]
[null,null,null,null," (column 2                    times                       column 3",null,"(column 4                      times             column 5)",null,"(column 4                           times                            column 7)",null,"(column 8                      times             Column 9)",null,"(column 10                     minus                              column 11)"]
[null,"Printing:",0,0,{"$f":"ROUND((C17*D17),2)","v":0},12,{"$f":"ROUND((E17*F17),2)","v":0},0,{"$f":"ROUND((E17*H17),2)","v":0},12,{"$f":"ROUND((I17*J17),2)","v":0},0,{"$f":"K17-L17","v":0}]
[null,null,0,0,{"$f":"ROUND((C18*D18),2)","v":0},12,{"$f":"ROUND((E18*F18),2)","v":0},0,{"$f":"ROUND((E18*H18),2)","v":0},12,{"$f":"ROUND((I18*J18),2)","v":0},0,{"$f":"K18-L18","v":0}]
[null,null,0,0,0,12,0,0,0,12,0,0,0]
[null,null,0,0,0,12,0,0,0,12,0,0,0]
[null,null,0,0,0,12,0,0,0,12,0,0,0]
[null,null,0,0,0,12,0,0,0,12,0,0,0]
[null,null,0,0,0,12,0,0,0,12,0,0,0]
[null,null,0,0,0,12,0,0,0,12,0,0,0]
[null,null,0,0,0,12,0,0,0,12,0,0,0]
[null,null,0,0,0,12,0,0,0,12,0,0,0]
[null,null,0,0,0,12,0,0,0,12,0,0,0]
[null,null,0,0,0,12,0,0,0,12,0,0,0]
[null,null,0,0,0,12,0,0,0,12,0,0,0]
[null,null,0,0,0,12,0,0,0,12,0,0,0]
[null,null,0,0,0,12,0,0,0,12,0,0,0]
[null,null,0,0,0,12,0,0,0,12,0,0,0]
[null,null,0,0,0,12,0,0,0,12,0,0,0]
[null,"Postage:",0,0,0,12,0,0,0,12,0,0,0]
[null,null,0,0,0,12,0,0,0,12,0,0,0]
[null,null,0,0,0,12,0,0,0,12,0,0,0]
[null,null,0,0,0,12,0,0,0,12,0,0,0]
[null,null,0,0,0,12,0,0,0,12,0,0,0]
[null,null,0,0,0,12,0,0,0,12,0,0,0]
[null,null,0,0,0,12,0,0,0,12,0,0,0]
[null,null,0,0,0,12,0,0,0,12,0,0,0]
[null,null,0,0,0,12,0,0,0,12,0,0,0]
[null,null,0,0,0,12,0,0,0,12,0,0,0]
[null,null,0,0,0,12,0,0,0,12,0,0,0]
[null,null,0,0,0,12,0,0,0,12,0,0,0]
[null,null,0,0,0,12,0,0,0,12,0,0,0]
[null,null,0,0,0,12,0,0,0,12,0,0,0]
[null,null,0,0,0,12,0,0,{"$f":"ROUND((E48*H48),2)","v":0},12,0,0,0]
[]
[null,null,null,null,null,"Totals",{"$f":"SUM(G17:G48)","v":0},null,{"$f":"SUM(I17:I48)","v":0},null,{"$f":"SUM(K17:K48)","v":0},{"$f":"SUM(L17:L48)","v":0},{"$f":"SUM(M17:M48)","v":0}]
[]
[null,"Enter data in columns 1, 2, 3, 5, 7, 9 and 11 to calculate the total of schedule 6.",null,null,null,null,null,null,null,null,"Total Allowable Costs to CCFP                          (Columns 11 + 12 must equal the total in Column 10.)",null,{"$f":"L50+M50","v":0}]
[null,null,null,null,null,null,null,null,null,null,null,null,{"$f":"K50-M52","v":0}]
[]
[null,"List any other funding source(s) used by your organization to cover CCFP printing and postage costs.",null,null,null,null,null,null,"Provide a description of the cost methodology used to determine the % allocated to CCFP."]
[]
[null,"List Other Non-CCFP Funding Source(s)",null,null,"List Supporting Documentation for Schedule 6",null,null,null,"Comments"]

{"sheet":"Schedule 7-Office Space Rental","index":19,"n_rows":53,"n_cols":9,"rows_kept":53,"cut":false,"hidden":true,"merged":[[11,1,12,2],[32,7,33,7],[46,6,48,7],[28,1,28,8],[30,1,30,4],[30,5,30,7],[20,1,20,2],[20,3,20,4],[18,1,18,2],[18,3,18,5],[55,4,55,6],[55,7,55,10],[52,7,52,10],[53,1,53,3],[53,4,53,6],[53,7,53,10],[52,1,52,3],[52,4,52,6],[50,7,50,10],[50,1,50,3],[50,4,50,6],[58,1,58,3],[58,4,58,6],[58,7,58,10],[56,1,56,3],[56,4,56,6],[56,7,56,10],[57,1,57,3],[57,4,57,6],[57,7,57,10],[54,1,54,3],[54,4,54,6],[54,7,54,10],[55,1,55,3]]}
[null,{"$f":"'Summary Worksheet'!B1","v":"Automated Budget for Prospective Sponsors of Unaffiliated Centers"}]
[]
[null,"SCHEDULE 7 - Office Space Rental or Lease"]
[null,null,"      Fiscal Year:   ",{"$f":"'Summary Worksheet'!C4","v":0}]
[]
[null,null,"      Authorization Number:   ",{"$f":"'Summary Worksheet'!C6","v":0}]
[]
[null,null,"     Amendment #:  ",{"$f":"'Summary Worksheet'!C8","v":0}]
[]
[null,"A. Indicate if office:  (Please put an \"X\" in the appropriate boxes.)"]
[]
[null,"1.  Is rented or leased (If more than one office is leased, provide information on each.)",null,"Leased",null,"Rented"]
[]
[null,"2.  Maintenance is included in rental or lease agreement.",null,"Yes",null,"No"]
[]
[null,"3.  Utilities are included in rental or lease agreement.",null,"Yes",null,"No"]
[]
[null,"B.  Please complete rental/lease information below:"]
[]
[null,"LESSOR NAME",null,"             RELATIONSHIP TO LESSEE"]
[]
[null,"STREET ADDRESS",null,"CITY, STATE, ZIP         ",null," PHONE NUMBER"]
[]
[null,"Length of rental or lease agreement:"]
[null,null,"From (date)",null,"To (date)"]
[]
[null,null,"Total square footage of office space "]
[]
[null,"C.  If office space also is utilized for non-CCFP purposes, attach the description of the allocation method used."]
[]
[null,"Office Space Rental",null,null,null,"CCFP Total",null,null,"OTHER FUNDING SOURCES"]
[null,1,2,3,4,5,6,7,8]
[null,"Monthly Rental Amount","(or) Quarterly Rental Amount","Enter the number of months or quarters","Annual Rental Amount","% Allocated to CCFP","Total Allowable Costs to CCFP                     ","Amount to be Charged to CCFP Current Fiscal Year Funding","Allowable CCFP Costs Covered by Other (Non-CCFP) Funding Source(s)                                                                                                                        "]
[null,null,null,null," (column 1  or 2                  times  column 3)",null,"(column 4              times                 column 5)",null,"(column 6              minus                 column 7)"]
[null,null,null,null,{"$f":"ROUND((IF(B35>0,B35*D35,C35*D35)),2)","v":0},0,{"$f":"ROUND((E35*F35),2)","v":0},0,{"$f":"G35-H35","v":0}]
[null,null,null,null,{"$f":"ROUND((IF(B36>0,B36*D36,C36*D36)),2)","v":0},0,{"$f":"ROUND((E36*F36),2)","v":0},0,{"$f":"G36-H36","v":0}]
[null,null,null,null,0,0,0,0,0]
[null,null,null,null,0,0,0,0,0]
[null,null,null,null,0,0,0,0,0]
[null,null,null,null,0,0,0,0,0]
[null,null,null,null,0,0,0,0,0]
[null,null,null,null,0,0,0,0,0]
[null,null,null,null,0,0,0,0,0]
[]
[null,null,null,"Totals",{"$f":"SUM(E35:E43)","v":0},null,{"$f":"SUM(G35:G43)","v":0},{"$f":"SUM(H35:H43)","v":0},{"$f":"SUM(I35:I43)","v":0}]
[]
[null,null,null,null,null,null,"Total Allowable Costs to CCFP                          (Columns 7 + 8 must equal the total in Column 6.)",null,{"$f":"H45+I45","v":0}]
[null,"Enter data in columns 1 if monthly, or 2 if quarterly, 3, 5 and 7 to calculate the total of schedule 7.",null,null,null,null,null,null,{"$f":"G45-I47","v":0}]
[]
[]
[null,"List any other funding source used by your organization to cover the cost of CCFP office space.",null,null,"Provide a copy of each new, renewed, or revised lease and identify each with an attachment number. ",null,null,"Provide a description of the cost methodology used to determine the % allocated to CCFP."]
[]
[null,"List Other Non-CCFP Funding Source(s)",null,null,"List Supporting Documentation for Schedule 7",null,null,"Comments"]

{"sheet":"Schedule 7a-Office Space Owned","index":20,"n_rows":46,"n_cols":9,"rows_kept":46,"cut":false,"hidden":true,"merged":[[48,7,48,10],[48,4,48,6],[48,1,48,3],[51,1,51,3],[51,4,51,6],[51,7,51,10],[49,1,49,3],[49,4,49,6],[50,4,50,6],[50,7,50,10],[50,1,50,3],[49,7,49,10],[47,4,47,6],[46,1,46,3],[43,7,43,10],[47,7,47,10],[45,1,45,3],[46,4,46,6],[46,7,46,10],[47,1,47,3],[45,4,45,6],[45,7,45,10],[17,1,17,6],[19,6,19,7],[19,1,19,5],[39,7,41,7],[43,4,43,6],[43,1,43,3],[40,1,40,5]]}
[null,{"$f":"'Summary Worksheet'!B1","v":"Automated Budget for Prospective Sponsors of Unaffiliated Centers"}]
[]
[null,"SCHEDULE  7a - Office Space Owned Partially or Fully Owned by the Sponsoring Organization"]
[null,null,"      Fiscal Year:   ",{"$f":"'Summary Worksheet'!C4","v":0}]
[]
[null,null,"      Authorization Number:   ",{"$f":"'Summary Worksheet'!C6","v":0}]
[]
[null,null,"     Amendment #:  ",{"$f":"'Summary Worksheet'!C8","v":0}]
[]
[null,"Cost associated with less than arms-length lease arrangements are limited to depreciation or use allowance."]
[]
[null,"Indicate depreciation method used to calculate this expense in column 3:"]
[]
[null,"1 - Thirty-year straight line"]
[]
[null,"2 - IRS Method"]
[]
[null,"3 - Other method: please attach a description and explanation of the method used to calculate this budget item; and complete section IV. A. of the CCFP Supplemental Budget Information for Special Cost Items form."]
[]
[null,"Office Space Partially or Fully Owned by the Sponsoring Organization",null,null,null,null,"CCFP Totals",null,"OTHER FUNDING SOURCES"]
[null,1,2,3,4,5,6,7,8]
[null,"Purchase Date","Total Cost (less land)","Depreciation Method","Annual Depreciation Value of Structure","% Space Allocated to CCFP","Total Depreciation Costs to CCFP","Amount to be Charged to CCFP ","Allowable CCFP Costs Covered by Other (Non-CCFP) Funding Source(s)                                                                                                                               "]
[null,null,null,null,null,null,"(column 4              times                 column 5)",null,"                                            (column 6 minus column 7)"]
[null,null,0,null,0,0,{"$f":"E24*F24","v":0},0,{"$f":"G24-H24","v":0}]
[null,null,0,null,0,0,{"$f":"E25*F25","v":0},0,{"$f":"G25-H25","v":0}]
[null,null,0,null,0,0,0,0,0]
[null,null,0,null,0,0,0,0,0]
[null,null,0,null,0,0,0,0,0]
[null,null,0,null,0,0,0,0,0]
[null,null,0,null,0,0,0,0,0]
[null,null,0,null,0,0,0,0,0]
[null,null,0,null,0,0,0,0,0]
[null,null,0,null,0,0,0,0,0]
[null,null,0,null,0,0,0,0,0]
[null,null,0,null,0,0,0,0,0]
[null,null,0,null,0,0,0,0,0]
[null,null,0,null,0,0,0,0,0]
[null,null,null,"Totals",{"$f":"SUM(E24:E37)","v":0},null,{"$f":"SUM(G24:G37)","v":0},{"$f":"SUM(H24:H37)","v":0},{"$f":"SUM(I24:I37)","v":0}]
[]
[null,null,null,null,null,null,null,"Total Depreciation Costs to CCFP     (Columns 7+8 must equal the total in Column 6.)",{"$f":"H38+I38","v":0}]
[null,"The maximum annual rate for use allowances for the building cannot exceed 2 % of the acquisition cost less the value of land in column 2.",null,null,null,null,null,null,{"$f":"G38-I40","v":0}]
[]
[]
[null,"List any other funding source(s) used by your organization to cover CCFP office space depreciation or use allowance.",null,null,"Provide a copy of each building ownership agreement.",null,null,"Provide a description of the cost methodology used to determine the % allocated to CCFP."]
[]
[null,"List Other Non-CCFP Funding Source(s)",null,null,"List Supporting Documentation for Schedule 7a",null,null,"Comments"]

{"sheet":"Schedule 8-Utilities","index":21,"n_rows":59,"n_cols":11,"rows_kept":59,"cut":false,"hidden":true,"merged":[[12,1,12,2],[12,5,12,9],[14,9,15,9],[14,3,15,3],[14,7,15,7],[59,7,59,10],[61,4,61,6],[61,7,61,10],[51,8,53,9],[58,1,58,3],[58,4,58,6],[58,7,58,10],[56,1,56,3],[56,7,56,10],[59,1,59,3],[59,4,59,6],[64,1,64,3],[64,4,64,6],[64,7,64,10],[60,1,60,3],[60,4,60,6],[60,7,60,10],[63,1,63,3],[63,4,63,6],[63,7,63,10],[61,1,61,3],[62,1,62,3],[62,4,62,6],[62,7,62,10]]}
[null,{"$f":"'Summary Worksheet'!B1","v":"Automated Budget for Prospective Sponsors of Unaffiliated Centers"}]
[]
[null,"SCHEDULE 8 - Utilities"]
[null,null,"      Fiscal Year:   ",{"$f":"'Summary Worksheet'!C4","v":0}]
[]
[null,null,"      Authorization Number:   ",{"$f":"'Summary Worksheet'!C6","v":0}]
[]
[null,null,"     Amendment #:  ",{"$f":"'Summary Worksheet'!C8","v":0}]
[]
[]
[]
[]
[null,"UTILITIES",null,null,null,"CCFP Total",null,null,null,null,"OTHER FUNDING SOURCES"]
[null,1,2,3,4,5,6,7,8,9,10]
[null,"Utility Charges","Average Monthly Cost","Number of Months to be charged","Total Cost to the Sponsor              ","% Allocated to CCFP","Monthly Cost to CCFP                      ","Number of Months to be charged to CCFP","Total Allowable Costs to CCFP                             ","Amount to be Charged to CCFP","Allowable CCFP Costs Covered by Other (Non-CCFP) Funding Source(s)                                                                                                                        "]
[null,null,null,null,"(column 2                      times column 3)",null,"  (column 2                    times                                column 5)",null,"  (column 6                                times column 7) ",null,"   (column 8 minus column 9)"]
[null,"Electricity",0,12,{"$f":"ROUND((C17*D17),2)","v":0},0,{"$f":"ROUND((C17*F17),2)","v":0},12,{"$f":"ROUND((G17*H17),2)","v":0},0,{"$f":"I17-J17","v":0}]
[null,"Electricity",0,12,{"$f":"ROUND((C18*D18),2)","v":0},0,{"$f":"ROUND((C18*F18),2)","v":0},12,{"$f":"ROUND((G18*H18),2)","v":0},0,{"$f":"I18-J18","v":0}]
[null,"Gas",0,12,0,0,0,12,0,0,0]
[null,"Gas",0,12,0,0,0,12,0,0,{"$f":"I20-J20","v":0}]
[null,"Water/Sewer/Garbage",0,12,0,0,0,12,0,0,{"$f":"I21-J21","v":0}]
[null,"Water/Sewer/Garbage",0,12,0,0,0,12,0,0,0]
[null,"Other (Specify)",0,12,0,0,0,12,0,0,0]
[null,null,0,12,0,0,0,12,0,0,{"$f":"I24-J24","v":0}]
[null,null,0,12,0,0,0,12,0,0,0]
[null,null,0,12,0,0,0,12,0,0,0]
[null,null,0,12,0,0,0,12,0,0,0]
[null,null,0,12,0,0,0,12,0,0,0]
[null,null,0,12,0,0,0,12,0,0,0]
[null,null,0,12,0,0,0,12,0,0,0]
[null,null,0,12,0,0,0,12,0,0,0]
[null,null,0,12,0,0,0,12,0,0,0]
[null,null,0,12,0,0,0,12,0,0,0]
[null,null,0,12,0,0,0,12,0,0,0]
[null,null,0,12,0,0,0,12,0,0,0]
[null,null,0,12,0,0,0,12,0,0,0]
[null,null,0,12,0,0,0,12,0,0,0]
[null,null,0,12,0,0,0,12,0,0,0]
[null,null,0,12,0,0,0,12,0,0,0]
[null,null,0,12,0,0,0,12,0,0,0]
[null,null,0,12,0,0,0,12,0,0,0]
[null,null,0,12,0,0,0,12,0,0,0]
[null,null,0,12,0,0,0,12,0,0,0]
[null,null,0,12,0,0,0,12,0,0,0]
[null,null,0,12,0,0,0,12,0,0,0]
[null,null,0,12,0,0,0,12,0,0,0]
[null,null,0,12,0,0,0,12,0,0,0]
[null,null,0,12,0,0,0,12,0,0,0]
[]
[null,null,null,"Totals",{"$f":"SUM(E17:E48)","v":0},null,{"$f":"SUM(G17:G48)","v":0},null,{"$f":"SUM(I17:I48)","v":0},{"$f":"SUM(J17:J48)","v":0},{"$f":"SUM(K17:K48)","v":0}]
[]
[null,"Enter data in columns 1, 2, 3, 5, 7 and 9 to calculate the total of schedule 8.",null,null,null,null,null,null,"Total Allowable Costs to CCFP                            (Columns 9+10 must equal the total in Column 8.)",null,{"$f":"J50+K50","v":0}]
[null,null,null,null,null,null,null,null,null,null,{"$f":"I50-K52","v":0}]
[]
[]
[]
[null,"List any other funding source used by your organization to cover CCFP utilities costs.",null,null,null,null,null,"Provide a description of the cost methodology used to determine the % allocated to CCFP."]
[]
[null,"List Other Non-CCFP Funding Source(s)",null,null,"List Supporting Documentation for Schedule 8",null,null,"Comments"]

{"sheet":"Schedule 9-Insurance Premiums","index":22,"n_rows":60,"n_cols":13,"rows_kept":60,"cut":false,"hidden":true,"merged":[[65,1,65,3],[65,4,65,7],[65,8,65,12],[63,1,63,3],[63,4,63,7],[63,8,63,12],[64,8,64,12],[10,2,10,10],[12,1,12,4],[14,5,15,5],[61,8,61,12],[60,1,60,3],[12,7,12,11],[57,8,57,12],[59,8,59,12],[51,10,53,11],[57,1,57,3],[14,9,15,9],[14,11,15,11],[57,4,57,7],[62,1,62,3],[64,1,64,3],[62,8,62,12],[59,4,59,7],[64,4,64,7],[61,4,61,7],[60,4,60,7],[62,4,62,7],[61,1,61,3],[60,8,60,12],[59,1,59,3]]}
[null,{"$f":"'Summary Worksheet'!B1","v":"Automated Budget for Prospective Sponsors of Unaffiliated Centers"}]
[]
[null,"SCHEDULE 9 - Insurance Premiums"]
[null,null,"      Fiscal Year:   ",{"$f":"'Summary Worksheet'!C4","v":0}]
[]
[null,null,"      Authorization Number:   ",{"$f":"'Summary Worksheet'!C6","v":0}]
[]
[null,null,"     Amendment #:  ",{"$f":"'Summary Worksheet'!C8","v":0}]
[]
[]
[]
[]
[null,"INSURANCE PREMIUMS",null,null,null,null,null,"CCFP Total",null,null,null,null,"OTHER FUNDING SOURCES"]
[null,1,2,3,4,5,6,7,8,9,10,11,12]
[null,"Type of Insurance","Name of Company","Policy Number","Monthly Cost of Insurance","Number of Months to be charged","Total Cost to the Sponsor              ","% Allocated to CCFP","Monthly Cost to CCFP   ","Number of Months to be charged to CCFP","Total Allowable Costs to CCFP        ","Amount to be Charged to CCFP","Allowable CCFP Costs Covered by Other (Non-CCFP) Funding Source(s)                                                                                                                        "]
[null,null,null,null,null,null,"(column 4                      times             column 5)",null," (column 4                          times               column 7) ",null," (column 8                          times               column 9) ",null,"(column 10                     minus                              column 11)"]
[null,"Fire Insurance",null,null,0,12,{"$f":"ROUND((E17*F17),2)","v":0},0,{"$f":"ROUND((E17*H17),2)","v":0},12,{"$f":"ROUND((I17*J17),2)","v":0},0,{"$f":"K17-L17","v":0}]
[null,"Fire Insurance",null,null,0,12,{"$f":"ROUND((E18*F18),2)","v":0},0,{"$f":"ROUND((E18*H18),2)","v":0},12,{"$f":"ROUND((I18*J18),2)","v":0},0,{"$f":"K18-L18","v":0}]
[null,"Fire Insurance",null,null,0,12,0,0,0,12,0,0,0]
[null,"Liability Insurance",null,null,0,12,0,0,0,12,0,0,0]
[null,"Liability Insurance",null,null,0,12,0,0,0,12,0,0,0]
[null,"Liability Insurance",null,null,0,12,0,0,0,12,0,0,0]
[null,"Other (Specify)",null,null,0,12,0,0,0,12,0,0,0]
[null,null,null,null,0,12,0,0,0,12,0,0,0]
[null,null,null,null,0,12,0,0,0,12,0,0,0]
[null,null,null,null,0,12,0,0,0,12,0,0,0]
[null,null,null,null,0,12,0,0,0,12,0,0,0]
[null,null,null,null,0,12,0,0,0,12,0,0,0]
[null,null,null,null,0,12,0,0,0,12,0,0,0]
[null,null,null,null,0,12,0,0,0,12,0,0,0]
[null,null,null,null,0,12,0,0,0,12,0,0,0]
[null,null,null,null,0,12,0,0,0,12,0,0,0]
[null,null,null,null,0,12,0,0,0,12,0,0,0]
[null,null,null,null,0,12,0,0,0,12,0,0,0]
[null,null,null,null,0,12,0,0,0,12,0,0,0]
[null,null,null,null,0,12,0,0,0,12,0,0,0]
[null,null,null,null,0,12,0,0,0,12,0,0,0]
[null,null,null,null,0,12,0,0,0,12,0,0,0]
[null,null,null,null,0,12,0,0,0,12,0,0,0]
[null,null,null,null,0,12,0,0,0,12,0,0,0]
[null,null,null,null,0,12,0,0,0,12,0,0,0]
[null,null,null,null,0,12,0,0,0,12,0,0,0]
[null,null,null,null,0,12,0,0,0,12,0,0,0]
[null,null,null,null,0,12,0,0,0,12,0,0,0]
[null,null,null,null,0,12,0,0,0,12,0,0,0]
[null,null,null,null,0,12,0,0,0,12,0,0,0]
[null,null,null,null,0,12,0,0,0,12,0,0,0]
[null,null,null,null,0,12,{"$f":"ROUND((E48*F48),2)","v":0},0,0,12,0,0,0]
[]
[null,null,null,null,null,"Totals",{"$f":"SUM(G17:G48)","v":0},null,{"$f":"SUM(I17:I48)","v":0},null,{"$f":"SUM(K17:K48)","v":0},{"$f":"SUM(L17:L48)","v":0},{"$f":"SUM(M17:M48)","v":0}]
[]
[null,"Enter data in columns 1, 2, 3, 4, 5, 7, 9 and 11 to calculate the total of schedule 9.",null,null,null,null,null,null,null,null,"Total Allowable Costs to CCFP                           (Columns 11+12 must equal the total in Column 10.)",null,{"$f":"L50+M50","v":0}]
[null,null,null,null,null,null,null,null,null,null,null,null,{"$f":"K50-M52","v":0}]
[null,"*Please send copies of all policies."]
[]
[null,"*Employee/officer performance costs are not allowable."]
[]
[null,"List any other funding source(s) used by your organization to cover CCFP insurance premiums.",null,null,"Provide a copy of the policies or renewed policies.",null,null,null,"Provide a description of the cost methodology used to determine the % allocated to CCFP."]
[]
[null,"List Other Non-CCFP Funding Source(s)",null,null,"List Supporting Documentation for Schedule 9",null,null,null,"Comments"]

{"sheet":"Schedule 10-Contracted Serv","index":23,"n_rows":60,"n_cols":11,"rows_kept":60,"cut":false,"hidden":true,"merged":[[12,5,12,9],[14,3,15,3],[14,9,15,9],[52,8,54,9],[12,1,12,2],[14,7,15,7],[65,1,65,3],[65,4,65,6],[65,7,65,10],[57,1,57,3],[57,4,57,6],[57,7,57,10],[63,1,63,3],[63,4,63,6],[63,7,63,10],[64,1,64,3],[64,4,64,6],[64,7,64,10],[61,1,61,3],[61,4,61,6],[61,7,61,10],[59,7,59,10],[62,1,62,3],[62,4,62,6],[62,7,62,10],[59,1,59,3],[59,4,59,6],[60,1,60,3],[60,4,60,6],[60,7,60,10]]}
[null,{"$f":"'Summary Worksheet'!B1","v":"Automated Budget for Prospective Sponsors of Unaffiliated Centers"}]
[]
[null,"SCHEDULE 10 - Contracted/Professional Services "]
[null,null,"      Fiscal Year:   ",{"$f":"'Summary Worksheet'!C4","v":0}]
[]
[null,null,"      Authorization Number:   ",{"$f":"'Summary Worksheet'!C6","v":0}]
[]
[null,null,"     Amendment #:  ",{"$f":"'Summary Worksheet'!C8","v":0}]
[]
[]
[]
[]
[null,"CONTRACTED/PROFESSIONAL SERVICES",null,null,null,"CCFP Total",null,null,null,null,"OTHER FUNDING SOURCES"]
[null,1,2,3,4,5,6,7,8,9,10]
[null,"Type of Service","Average Monthly Cost","Number of Months to be charged","Total Cost to the Sponsor              ","% Allocated to CCFP","Monthly Cost to CCFP                      ","Number of Months to be charged to CCFP","Total Allowable Costs to CCFP                             ","Amount to be Charged to CCFP","Allowable CCFP Costs Covered by Other (Non-CCFP) Funding Source(s)                                                                                                                        "]
[null,null,null,null,"(column 2                      times                                     column 3)",null,"  (column 2                    times                                column 5)",null,"  (column 6                                times                               column 7) ",null,"   (column 8                                          minus                                      column 9)"]
[null,"Office Maintenance",0,12,{"$f":"ROUND((C17*D17),2)","v":0},0,{"$f":"ROUND((C17*F17),2)","v":0},12,{"$f":"ROUND((G17*H17),2)","v":0},0,{"$f":"I17-J17","v":0}]
[null,"Office Maintenance",0,12,{"$f":"ROUND((C18*D18),2)","v":0},0,{"$f":"ROUND((C18*F18),2)","v":0},12,{"$f":"ROUND((G18*H18),2)","v":0},0,{"$f":"I18-J18","v":0}]
[null,"Data Processing",0,12,0,0,0,12,0,0,0]
[null,"Data Processing",0,12,0,0,0,12,0,0,0]
[null,"Computer Network Hardware",0,12,0,0,0,12,0,0,0]
[null,"Computer Network Hardware",0,12,0,0,0,12,0,0,0]
[null,"Business Machine Maintenance Contractor",0,12,0,0,0,12,0,0,0]
[null,"Business Machine Maintenance Contractor",0,12,0,0,0,12,0,0,0]
[null,"Accounting",0,12,0,0,0,12,0,0,0]
[null,"Accounting",0,12,0,0,0,12,0,0,0]
[null,"Security",0,12,0,0,0,12,0,0,0]
[null,"Security",0,12,0,0,0,12,0,0,0]
[null,"Pest Control",0,12,0,0,0,12,0,0,0]
[null,"Pest Control",0,12,0,0,0,12,0,0,0]
[null,"Other (Specify):",0,12,0,0,0,12,0,0,0]
[null,null,0,12,0,0,0,12,0,0,0]
[null,null,0,12,0,0,0,12,0,0,0]
[null,null,0,12,0,0,0,12,0,0,0]
[null,null,0,12,0,0,0,12,0,0,0]
[null,null,0,12,0,0,0,12,0,0,0]
[null,null,0,12,0,0,0,12,0,0,0]
[null,null,0,12,0,0,0,12,0,0,0]
[null,null,0,12,0,0,0,12,0,0,0]
[null,null,0,12,0,0,0,12,0,0,0]
[null,null,0,12,0,0,0,12,0,0,0]
[null,null,0,12,0,0,0,12,0,0,0]
[null,null,0,12,0,0,0,12,0,0,0]
[null,null,0,12,0,0,0,12,0,0,0]
[null,null,0,12,0,0,0,12,0,0,0]
[null,null,0,12,0,0,0,12,0,0,0]
[null,null,0,12,0,0,0,12,0,0,0]
[null,null,0,12,0,0,0,12,0,0,0]
[null,null,0,12,0,0,0,12,0,0,0]
[]
[null,null,null,"Totals",{"$f":"SUM(E17:E49)","v":0},null,{"$f":"SUM(G17:G49)","v":0},null,{"$f":"SUM(I17:I49)","v":0},{"$f":"SUM(J17:J49)","v":0},{"$f":"SUM(K17:K49)","v":0}]
[]
[null,"Enter data in columns 1, 2, 3, 5, 7 and 9 to calculate the total of schedule 10.",null,null,null,null,null,null,"Total Allowable Costs to CCFP                            (Columns 9+10 must equal the total in Column 8.)",null,{"$f":"J51+K51","v":0}]
[null,null,null,null,null,null,null,null,null,null,{"$f":"I51-K53","v":0}]
[]
[]
[]
[null,"List any other funding source used by your organization to cover CCFP Contracted/Professional Services",null,null,"Provide copies of all contracts against which CCFP costs will be charged.",null,null,"Provide a description of the cost methodology used to determine the % allocated to CCFP."]
[]
[null,"List Other Non-CCFP Funding Source(s)",null,null,"List Supporting Documentation for Schedule 10",null,null,"Comments"]

{"sheet":"Schedule 11-Equip-Rental","index":24,"n_rows":59,"n_cols":11,"rows_kept":59,"cut":false,"hidden":true,"merged":[[64,1,64,3],[64,4,64,6],[64,7,64,10],[60,1,60,3],[60,4,60,6],[60,7,60,10],[63,1,63,3],[63,4,63,6],[63,7,63,10],[61,1,61,3],[61,4,61,6],[61,7,61,10],[62,1,62,3],[62,4,62,6],[62,7,62,10],[59,1,59,3],[59,4,59,6],[59,7,59,10],[12,5,12,9],[14,3,15,3],[14,7,15,7],[14,9,15,9],[56,1,56,3],[56,4,56,6],[56,7,56,10],[12,1,12,2],[58,1,58,3],[58,4,58,6],[58,7,58,10],[51,8,53,9]]}
[null,{"$f":"'Summary Worksheet'!B1","v":"Automated Budget for Prospective Sponsors of Unaffiliated Centers"}]
[]
[null,"SCHEDULE 11 -Equipment Rental/Lease"]
[null,null,"      Fiscal Year:   ",{"$f":"'Summary Worksheet'!C4","v":0}]
[]
[null,null,"      Authorization Number:   ",{"$f":"'Summary Worksheet'!C6","v":0}]
[]
[null,null,"     Amendment #:  ",{"$f":"'Summary Worksheet'!C8","v":0}]
[]
[]
[]
[]
[null,"EQUIPMENT RENTAL/LEASE",null,null,null,"CCFP Total",null,null,null,null,"OTHER FUNDING SOURCES"]
[null,1,2,3,4,5,6,7,8,9,10]
[null,"Type of Equipment","Average Monthly Cost","Number of Months to be charged","Total Cost to the Sponsor              ","% Allocated to CCFP","Monthly Cost to CCFP                      ","Number of Months to be charged to CCFP","Total Allowable Costs to CCFP                             ","Amount to be Charged to CCFP","Allowable CCFP Costs Covered by Other (Non-CCFP) Funding Source(s)                                                                                                                        "]
[null,null,null,null,"(column 2                      times                                     column 3)",null,"  (column 2                    times                                column 5)",null,"  (column 6                                times                               column 7) ",null,"   (column 8                                          minus                                      column 9)"]
[null,"Postage Meter",0,12,{"$f":"ROUND((C17*D17),2)","v":0},0,{"$f":"ROUND((C17*F17),2)","v":0},12,{"$f":"ROUND((G17*H17),2)","v":0},0,{"$f":"I17-J17","v":0}]
[null,"Postage Meter",0,12,{"$f":"ROUND((C18*D18),2)","v":0},0,{"$f":"ROUND((C18*F18),2)","v":0},12,{"$f":"ROUND((G18*H18),2)","v":0},0,{"$f":"I18-J18","v":0}]
[null,"Postage Meter",0,12,0,0,0,12,0,0,0]
[null,"Copy Machine",0,12,0,0,0,12,0,0,0]
[null,"Copy Machine",0,12,0,0,0,12,0,0,0]
[null,"Copy Machine",0,12,0,0,0,12,0,0,0]
[null,"Other (Specify):",0,12,0,0,0,12,0,0,0]
[null,null,0,12,0,0,0,12,0,0,0]
[null,null,0,12,0,0,0,12,0,0,0]
[null,null,0,12,0,0,0,12,0,0,0]
[null,null,0,12,0,0,0,12,0,0,0]
[null,null,0,12,0,0,0,12,0,0,0]
[null,null,0,12,0,0,0,12,0,0,0]
[null,null,0,12,0,0,0,12,0,0,0]
[null,null,0,12,0,0,0,12,0,0,0]
[null,null,0,12,0,0,0,12,0,0,0]
[null,null,0,12,0,0,0,12,0,0,0]
[null,null,0,12,0,0,0,12,0,0,0]
[null,null,0,12,0,0,0,12,0,0,0]
[null,null,0,12,0,0,0,12,0,0,0]
[null,null,0,12,0,0,0,12,0,0,0]
[null,null,0,12,0,0,0,12,0,0,0]
[null,null,0,12,0,0,0,12,0,0,0]
[null,null,0,12,0,0,0,12,0,0,0]
[null,null,0,12,0,0,0,12,0,0,0]
[null,null,0,12,0,0,0,12,0,0,0]
[null,null,0,12,0,0,0,12,0,0,0]
[null,null,0,12,0,0,0,12,0,0,0]
[null,null,0,12,0,0,0,12,0,0,0]
[null,null,0,12,0,0,0,12,0,0,0]
[null,null,0,12,0,0,0,12,0,0,0]
[null,null,0,12,{"$f":"ROUND((C48*D48),2)","v":0},0,0,12,0,0,0]
[]
[null,null,null,"Totals",{"$f":"SUM(E17:E48)","v":0},null,{"$f":"SUM(G17:G48)","v":0},null,{"$f":"SUM(I17:I48)","v":0},{"$f":"SUM(J17:J48)","v":0},{"$f":"SUM(K17:K48)","v":0}]
[]
[null,"Enter data in columns 1, 2, 3, 5, 7 and 9 to calculate the total of schedule 11.",null,null,null,null,null,null,"Total Allowable Costs to CCFP                            (Columns 9+10 must equal the total in Column 8.)",null,{"$f":"J50+K50","v":0}]
[null,null,null,null,null,null,null,null,null,null,{"$f":"I50-K52","v":0}]
[]
[]
[]
[null,"List any other funding source used by your organization to cover CCFP Equipment Rental/Lease.",null,null,"Provide copies of all leases or rental agreements against which CCFP costs will be charged.",null,null,"Provide a description of the cost methodology used to determine the % allocated to CCFP."]
[]
[null,"List Other Non-CCFP Funding Source(s)",null,null,"List Supporting Documentation for Schedule 11",null,null,"Comments"]

{"sheet":"Schedule 12-Communications","index":25,"n_rows":64,"n_cols":11,"rows_kept":64,"cut":false,"hidden":true,"merged":[[61,4,61,6],[57,8,59,9],[2,1,2,8],[14,7,15,7],[12,1,12,2],[12,5,12,9],[14,3,15,3],[61,1,61,3],[61,7,61,10],[63,1,63,3],[63,4,63,6],[63,7,63,10],[64,1,64,3],[64,4,64,6],[64,7,64,10],[65,1,65,3],[65,4,65,6],[65,7,65,10],[66,1,66,3],[66,4,66,6],[66,7,66,10],[69,1,69,3],[69,4,69,6],[69,7,69,10],[67,1,67,3],[67,4,67,6],[67,7,67,10],[68,1,68,3],[68,4,68,6],[68,7,68,10]]}
[null,{"$f":"'Summary Worksheet'!B1","v":"Automated Budget for Prospective Sponsors of Unaffiliated Centers"}]
[]
[null,"SCHEDULE 12 - Communications"]
[null,null,"      Fiscal Year:   ",{"$f":"'Summary Worksheet'!C4","v":0}]
[]
[null,null,"      Authorization Number:   ",{"$f":"'Summary Worksheet'!C6","v":0}]
[]
[null,null,"     Amendment #:  ",{"$f":"'Summary Worksheet'!C8","v":0}]
[]
[]
[]
[]
[null,"COMMUNCATIONS",null,null,null,"CCFP Total",null,null,null,null,"OTHER FUNDING SOURCES"]
[null,1,2,3,4,5,6,7,8,9,10]
[null,null,"Total Monthly Cost","Number of Months to be charged","Total Cost to the Sponsor              ","% Allocated to CCFP","Monthly Cost to CCFP   ","Number of Months to be charged to CCFP","Total Allowable Costs to CCFP","Amount to be Charged to CCFP","Allowable CCFP Costs Covered by Other (Non-CCFP) Funding Source(s)                                                                                                                        "]
[null,null,null,null,"(column 2                      times                                               column 3)",null,"(column 2                      times                          column 5)",null,"(column 6                              times                               column 7) ",null,"(column 8                                              minus                                                          column 9)"]
[null,"Telephone:"]
[null,"Monthly Service Charges",0,12,{"$f":"ROUND((C18*D18),2)","v":0},0,{"$f":"ROUND((C18*F18),2)","v":0},12,{"$f":"ROUND((G18*H18),2)","v":0},0,{"$f":"I18-J18","v":0}]
[null,"Monthly Service Charges",0,12,0,0,0,12,0,0,0]
[null,"Monthly Service Charges",0,12,0,0,0,12,0,0,0]
[null,"Long Distance Charges",0,12,0,0,0,12,0,0,0]
[null,"Long Distance Charges",0,12,0,0,0,12,0,0,0]
[null,"Long Distance Charges",0,12,0,0,0,12,0,0,0]
[null,"Cellular Phones:"]
[null,"Cell (list by employee)       ",0,12,{"$f":"ROUND((C25*D25),2)","v":0},0,{"$f":"ROUND((C25*F25),2)","v":0},12,{"$f":"ROUND((G25*H25),2)","v":0},0,{"$f":"I25-J25","v":0}]
[null,"Cell (list by employee)       ",0,12,0,0,0,12,0,0,0]
[null,"Cell (list by employee)       ",0,12,0,0,0,12,0,0,0]
[null,"Cell (list by employee)       ",0,12,0,0,0,12,0,0,0]
[null,"Cell (list by employee)       ",0,12,0,0,0,12,0,0,0]
[null,"Cell (list by employee)       ",0,12,0,0,0,12,0,0,0]
[null,"Cell (list by employee)       ",0,12,0,0,0,12,0,0,0]
[null,"Cell (list by employee)       ",0,12,0,0,0,12,0,0,0]
[null,"Cell (list by employee)       ",0,12,{"$f":"ROUND((C33*D33),2)","v":0},0,{"$f":"ROUND((C33*F33),2)","v":0},12,{"$f":"ROUND((G33*H33),2)","v":0},0,{"$f":"I33-J33","v":0}]
[null,"Cell (list by employee)       ",0,12,0,0,0,12,0,0,0]
[null,"Cell (list by employee)       ",0,12,0,0,0,12,0,0,0]
[null,"Cell (list by employee)       ",0,12,0,0,0,12,0,0,0]
[null,"Cell (list by employee)       ",0,12,0,0,0,12,0,0,0]
[null,"Cell (list by employee)       ",0,12,0,0,0,12,0,0,0]
[null,"Cell (list by employee)       ",0,12,0,0,0,12,0,0,0]
[null,"Cell (list by employee)       ",0,12,0,0,0,12,0,0,0]
[null,"Internet:"]
[null,"Website Hosting",0,12,{"$f":"ROUND((C42*D42),2)","v":0},0,{"$f":"ROUND((C42*F42),2)","v":0},12,{"$f":"ROUND((G42*H42),2)","v":0},0,{"$f":"I42-J42","v":0}]
[null,"Website Hosting",0,12,0,0,0,12,0,0,0]
[null,"Website Hosting",0,12,0,0,{"$f":"ROUND((C44*F44),2)","v":0},12,{"$f":"ROUND((G44*H44),2)","v":0},0,0]
[null,"Internet/Data Services",0,12,0,0,{"$f":"ROUND((C45*F45),2)","v":0},12,{"$f":"ROUND((G45*H45),2)","v":0},0,0]
[null,"Internet/Data Services",0,12,0,0,{"$f":"ROUND((C46*F46),2)","v":0},12,{"$f":"ROUND((G46*H46),2)","v":0},0,0]
[null,"Internet/Data Services",0,12,0,0,{"$f":"ROUND((C47*F47),2)","v":0},12,{"$f":"ROUND((G47*H47),2)","v":0},0,0]
[null,"Other (Specify):"]
[null,null,0,12,{"$f":"ROUND((C49*D49),2)","v":0},0,{"$f":"ROUND((C49*F49),2)","v":0},12,{"$f":"ROUND((G49*H49),2)","v":0},0,{"$f":"I49-J49","v":0}]
[null,null,0,12,0,0,0,12,0,0,0]
[null,null,0,12,0,0,0,12,0,0,0]
[null,null,0,12,0,0,0,12,0,0,0]
[null,null,0,12,0,0,0,12,0,0,0]
[null,null,0,12,0,0,0,12,0,0,0]
[]
[null,null,null,"Totals",{"$f":"SUM(E17:E54)","v":0},null,{"$f":"SUM(G17:G54)","v":0},null,{"$f":"SUM(I17:I54)","v":0},{"$f":"SUM(J17:J54)","v":0},{"$f":"SUM(K17:K54)","v":0}]
[]
[null,"Enter data in columns 1, 2, 3, 5, 7 and 9 to calculate the total of schedule 12.",null,null,null,null,null,null,"Total Allowable Costs to CCFP                               (Columns 9+10 must equal the total in Column 8.)",null,{"$f":"J56+K56","v":0}]
[null,null,null,null,null,null,null,null,null,null,{"$f":"I56-K58","v":0}]
[]
[]
[null,"List any other funding source(s) used by your organization to cover CCFP communication costs.",null,null,"Provide documentation to support the costs that will be charged to CCFP.",null,null,"Provide a description of the cost methodology used to determine the % allocated to CCFP."]
[]
[null,"List Other Non-CCFP Funding Source(s)",null,null,"List Supporting Documentation for Schedule 12",null,null,"Comments"]

{"sheet":"Schedule 13-Advertising","index":26,"n_rows":51,"n_cols":12,"rows_kept":51,"cut":false,"hidden":true,"merged":[[55,9,55,12],[56,9,56,12],[55,1,55,3],[56,1,56,3],[55,4,55,8],[56,4,56,8],[50,9,50,12],[50,1,50,3],[50,4,50,8],[48,9,48,12],[48,1,48,3],[9,2,9,9],[12,1,12,5],[12,6,12,10],[14,8,15,8],[44,9,46,10],[54,9,54,12],[53,1,53,3],[51,9,51,12],[52,9,52,12],[51,1,51,3],[52,1,52,3],[51,4,51,8],[52,4,52,8],[54,1,54,3],[53,4,53,8],[54,4,54,8],[53,9,53,12]]}
[null,{"$f":"'Summary Worksheet'!B1","v":"Automated Budget for Prospective Sponsors of Unaffiliated Centers"}]
[]
[null,"SCHEDULE 13 - Advertising/Public Informaiton Service"]
[null,null,"      Fiscal Year:   ",{"$f":"'Summary Worksheet'!C4","v":0}]
[]
[null,null,"      Authorization Number:   ",{"$f":"'Summary Worksheet'!C6","v":0}]
[]
[null,null,"     Amendment #:  ",{"$f":"'Summary Worksheet'!C8","v":0}]
[]
[]
[]
[]
[null,"ADVERTISING/PUBLIC INFORMATION SERVICE",null,null,null,null,"CCFP Total",null,null,null,null,"OTHER FUNDING SOURCES"]
[null,1,2,3,4,5,6,7,8,9,10,11]
[null,"Type ","Purpose","Total Monthly Cost","Number of Months to be charged","Total Cost to the Sponsor","% Allocated to CCFP","Monthly Cost to CCFP                          ","Number of Months to be charged to CCFP","Total Allowable Costs to CCFP                  ","Amount to be Charged to CCFP ","Allowable CCFP Costs Covered by Other (Non-CCFP) Funding Source(s)                                                                                                                        "]
[null,null,null,null,null,"(column 3                         times                               column 4)",null,"(column 3                         times                               column 6)",null,"(column 7                        times         column 8) ",null,"(column 9              minus                                                 column 10)"]
[null,"Newspaper","Employment",0,12,{"$f":"ROUND((D17*E17),0)","v":0},0,{"$f":"ROUND((D17*G17),2)","v":0},12,{"$f":"ROUND((H17*I17),2)","v":0},0,{"$f":"J17-K17","v":0}]
[null,"Newspaper","Employment",0,12,{"$f":"ROUND((D18*E18),0)","v":0},0,{"$f":"ROUND((D18*G18),2)","v":0},12,{"$f":"ROUND((H18*I18),2)","v":0},0,{"$f":"J18-K18","v":0}]
[null,"Newspaper","Caterer Notice",0,12,{"$f":"ROUND((D19*E19),0)","v":0},0,{"$f":"ROUND((D19*G19),2)","v":0},12,{"$f":"ROUND((H19*I19),2)","v":0},0,{"$f":"J19-K19","v":0}]
[null,"Newspaper","Caterer Notice",0,12,{"$f":"ROUND((D20*E20),0)","v":0},0,{"$f":"ROUND((D20*G20),2)","v":0},12,{"$f":"ROUND((H20*I20),2)","v":0},0,{"$f":"J20-K20","v":0}]
[null,"Other (Specify):",null,null,12,0,0,0,12,0,0,0]
[null,null,null,0,12,0,0,0,12,0,0,0]
[null,null,null,0,12,0,0,0,12,0,0,0]
[null,null,null,0,12,0,0,0,12,0,0,0]
[null,null,null,0,12,0,0,0,12,0,0,0]
[null,null,null,0,12,0,0,0,12,0,0,0]
[null,null,null,0,12,0,0,0,12,0,0,0]
[null,null,null,0,12,0,0,0,12,0,0,0]
[null,null,null,0,12,0,0,0,12,0,0,0]
[null,null,null,0,12,0,0,0,12,0,0,0]
[null,null,null,0,12,{"$f":"ROUND((D31*E31),0)","v":0},0,{"$f":"ROUND((D31*G31),2)","v":0},12,{"$f":"ROUND((H31*I31),2)","v":0},0,{"$f":"J31-K31","v":0}]
[null,null,null,0,12,0,0,0,12,0,0,0]
[null,null,null,0,12,0,0,0,12,0,0,0]
[null,null,null,0,12,0,0,0,12,0,0,0]
[null,null,null,0,12,0,0,0,12,0,0,0]
[null,null,null,0,12,0,0,0,12,0,0,0]
[null,null,null,0,12,0,0,0,12,0,0,0]
[null,null,null,0,12,0,0,0,12,0,0,0]
[null,null,null,0,12,0,0,0,12,0,0,0]
[null,null,null,0,12,0,0,0,12,0,0,0]
[null,null,null,0,12,0,0,0,12,{"$f":"ROUND((H41*I41),2)","v":0},0,0]
[]
[null,null,"Totals",null,null,{"$f":"SUM(F17:F41)","v":0},null,{"$f":"SUM(H17:H41)","v":0},null,{"$f":"SUM(J17:J41)","v":0},{"$f":"SUM(K17:K41)","v":0},{"$f":"SUM(L17:L41)","v":0}]
[]
[null,"Enter data in columns 1, 2, 3, 4, 6, 8 and 10 to calculate the total of schedule 13.",null,null,null,null,null,null,null,"Total Allowable Costs to CCFP                                 (Columns 10+11 must equal the total in Column 9.)",null,{"$f":"K43+L43","v":0}]
[null,null,null,null,null,null,null,null,null,null,null,{"$f":"J43-L45","v":0}]
[]
[]
[null,"List any other funding source used by your organization to cover CCFP advertising/public information service costs.",null,null,null,null,null,null,null,"Provide a description of the cost methodology used to determine the % allocated to CCFP."]
[]
[null,"List Other Non-CCFP Funding Source(s)",null,null,"List Supporting Documentation for Schedule 13",null,null,null,null,"Comments"]

{"sheet":"Schedule 14-Dues","index":27,"n_rows":53,"n_cols":13,"rows_kept":53,"cut":false,"hidden":true,"merged":[[58,1,58,3],[58,4,58,7],[58,8,58,12],[56,1,56,3],[56,4,56,7],[56,8,56,12],[57,1,57,3],[57,4,57,7],[57,8,57,12],[54,1,54,3],[54,4,54,7],[54,8,54,12],[55,1,55,3],[55,4,55,7],[55,8,55,12],[53,1,53,3],[53,4,53,7],[53,8,53,12],[10,3,10,10],[12,1,12,6],[12,7,12,11],[14,9,15,9],[14,11,15,11],[46,10,48,11],[50,1,50,3],[50,8,50,12],[52,1,52,3],[52,4,52,7],[52,8,52,12]]}
[null,{"$f":"'Summary Worksheet'!$B$1","v":"Automated Budget for Prospective Sponsors of Unaffiliated Centers"}]
[]
[null,"SCHEDULE 14 - Dues/Membership/Subscriptions"]
[null,null,"      Fiscal Year:   ",{"$f":"'Summary Worksheet'!C4","v":0}]
[]
[null,null,"      Authorization Number:   ",{"$f":"'Summary Worksheet'!C6","v":0}]
[]
[null,null,"     Amendment #:  ",{"$f":"'Summary Worksheet'!C8","v":0}]
[]
[]
[]
[]
[null,"DUES/MEMBERSHIPS/SUBSCRIPTIONS",null,null,null,null,null,"CCFP Total",null,null,null,null,"OTHER FUNDING SOURCES"]
[null,1,2,3,4,5,6,7,8,9,10,11,12]
[null,"Membership to:","Purpose","Indicate if Group or Individual","Total Monthly Cost","Number of Months to be charged","Total Cost to the Sponsor","% Allocated to CCFP","Monthly Cost to CCFP                      ","Number of Months to be charged to CCFP","Total Allowable Costs to CCFP                      ","Amount to be Charged to CCFP","Allowable CCFP Costs Covered by Other (Non-CCFP) Funding Source(s)                                                                                                                        "]
[null,null,null,null,null,null,null,null,"(column 4               times                                column 7)",null,"(column 8                         times          column 9)",null,"(column 8              minus                                                 column 9)"]
[null,null,null,null,0,12,{"$f":"E17*F17","v":0},0,{"$f":"ROUND((E17*H17),2)","v":0},12,{"$f":"ROUND((I17*J17),2)","v":0},0,{"$f":"K17-L17","v":0}]
[null,null,null,null,0,12,{"$f":"E18*F18","v":0},0,{"$f":"ROUND((E18*H18),2)","v":0},12,{"$f":"ROUND((I18*J18),2)","v":0},0,{"$f":"K18-L18","v":0}]
[null,null,null,null,0,12,0,0,0,12,0,0,0]
[null,null,null,null,0,12,0,0,0,12,0,0,0]
[null,null,null,null,0,12,0,0,0,12,0,0,0]
[null,null,null,null,0,12,0,0,0,12,0,0,0]
[null,null,null,null,0,12,0,0,0,12,0,0,0]
[null,null,null,null,0,12,0,0,0,12,0,0,0]
[null,null,null,null,0,12,0,0,0,12,0,0,0]
[null,null,null,null,0,12,0,0,0,12,0,0,0]
[null,null,null,null,0,12,0,0,0,12,0,0,0]
[null,null,null,null,0,12,0,0,0,12,0,0,0]
[null,null,null,null,0,12,0,0,0,12,0,0,0]
[null,null,null,null,0,12,0,0,0,12,0,0,0]
[null,null,null,null,0,12,{"$f":"E31*F31","v":0},0,{"$f":"ROUND((E31*H31),2)","v":0},12,{"$f":"ROUND((I31*J31),2)","v":0},0,{"$f":"K31-L31","v":0}]
[null,null,null,null,0,12,0,0,0,12,0,0,0]
[null,null,null,null,0,12,0,0,0,12,0,0,0]
[null,null,null,null,0,12,0,0,0,12,0,0,0]
[null,null,null,null,0,12,0,0,0,12,0,0,0]
[null,null,null,null,0,12,0,0,0,12,0,0,0]
[null,null,null,null,0,12,0,0,0,12,0,0,0]
[null,null,null,null,0,12,0,0,0,12,0,0,0]
[null,null,null,null,0,12,0,0,0,12,0,0,0]
[null,null,null,null,0,12,0,0,0,12,0,0,0]
[null,null,null,null,0,12,0,0,0,12,0,0,0]
[null,null,null,null,0,12,0,0,0,12,0,0,0]
[null,null,null,null,0,12,0,0,0,12,0,0,0]
[]
[null,null,null,"Totals",null,null,{"$f":"SUM(G17:G43)","v":0},null,{"$f":"SUM(I17:I43)","v":0},null,{"$f":"SUM(K17:K43)","v":0},{"$f":"SUM(L17:L43)","v":0},{"$f":"SUM(M17:M43)","v":0}]
[]
[null,"Enter data in columns 1, 2, 3, 4, 5, 7, 9 and 11 to calculate the total of schedule 14.",null,null,null,null,null,null,null,null,"Total Allowable Costs to CCFP                                (Columns 11+12 must equal the total in Column 10.)",null,{"$f":"L45+M45","v":0}]
[null,null,null,null,null,null,null,null,null,null,null,null,{"$f":"K45-M47","v":0}]
[]
[]
[null,"List any other funding source used by your organization to cover the cost of dues/memberships/subscriptions related to the CCFP.",null,null,null,null,null,null,"Provide a description of the cost methodology used to determine the % allocated to CCFP."]
[]
[null,"List Other Non-CCFP Funding Source(s)",null,null,"List Supporting Documentation for Schedule 14",null,null,null,"Comments"]

{"sheet":"Schedule 15-Other Admin.","index":28,"n_rows":61,"n_cols":11,"rows_kept":61,"cut":false,"hidden":true,"merged":[[62,1,62,3],[63,1,63,3],[60,8,60,12],[61,4,61,7],[58,4,58,7],[58,1,58,3],[58,8,58,12],[61,1,61,3],[66,1,66,3],[65,4,65,7],[66,4,66,7],[60,4,60,7],[61,8,61,12],[62,8,62,12],[63,8,63,12],[64,8,64,12],[65,8,65,12],[66,8,66,12],[64,1,64,3],[60,1,60,3],[62,4,62,7],[63,4,63,7],[64,4,64,7],[65,1,65,3],[12,5,12,9],[14,9,15,9],[56,1,56,10],[14,7,15,7],[52,8,54,9],[12,1,12,4]]}
[null,{"$f":"'Summary Worksheet'!B1","v":"Automated Budget for Prospective Sponsors of Unaffiliated Centers"}]
[]
[null,"SCHEDULE  15 - Other Administrative Services"]
[null,null,"      Fiscal Year:   ",{"$f":"'Summary Worksheet'!C4","v":0}]
[]
[null,null,"      Authorization Number:   ",{"$f":"'Summary Worksheet'!C6","v":0}]
[]
[null,null,"     Amendment #:  ",{"$f":"'Summary Worksheet'!C8","v":0}]
[]
[]
[]
[]
[null,"OTHER ADMINISTRATIVE SERVICES",null,null,null,"CCFP Total",null,null,null,null,"OTHER FUNDING SOURCES"]
[null,1,2,3,4,5,6,7,8,9,10]
[null,"Item","Total Monthly Cost","Number of Months to be charged","Total Cost to the Sponsor","% Allocated to CCFP","Monthly Cost to CCFP                 ","Number of Months to be charged to CCFP","Total Allowable Costs to CCFP                                    ","Amount to be Charged to CCFP","Allowable CCFP Costs Covered by Other (Non-CCFP) Funding Source(s)                                                                                                                        "]
[null,null,null,null,null,null,"[(column 2                          times                                column 3)/12]",null,"(column 4                         times column 5) ",null,"(column 6 minus column 7)"]
[null,null,0,12,{"$f":"ROUND((C17*D17),2)","v":0},0,{"$f":"ROUND((C17*F17),2)","v":0},12,{"$f":"ROUND((G17*H17),2)","v":0},0,{"$f":"I17-J17","v":0}]
[null,null,0,12,{"$f":"ROUND((C18*D18),2)","v":0},0,{"$f":"ROUND((C18*F18),2)","v":0},12,{"$f":"ROUND((G18*H18),2)","v":0},0,{"$f":"I18-J18","v":0}]
[null,null,0,12,0,0,0,12,0,0,0]
[null,null,0,12,0,0,0,12,0,0,0]
[null,null,0,12,0,0,0,12,0,0,0]
[null,null,0,12,0,0,0,12,0,0,0]
[null,null,0,12,0,0,0,12,0,0,0]
[null,null,0,12,0,0,0,12,0,0,0]
[null,null,0,12,0,0,0,12,0,0,0]
[null,null,0,12,{"$f":"ROUND((C26*D26),2)","v":0},0,{"$f":"ROUND((C26*F26),2)","v":0},12,{"$f":"ROUND((G26*H26),2)","v":0},0,{"$f":"I26-J26","v":0}]
[null,null,0,12,{"$f":"ROUND((C27*D27),2)","v":0},0,{"$f":"ROUND((C27*F27),2)","v":0},12,{"$f":"ROUND((G27*H27),2)","v":0},0,{"$f":"I27-J27","v":0}]
[null,null,0,12,0,0,0,12,0,0,0]
[null,null,0,12,0,0,0,12,0,0,0]
[null,null,0,12,0,0,0,12,0,0,0]
[null,null,0,12,{"$f":"ROUND((C31*D31),2)","v":0},0,{"$f":"ROUND((C31*F31),2)","v":0},12,{"$f":"ROUND((G31*H31),2)","v":0},0,{"$f":"I31-J31","v":0}]
[null,null,0,12,{"$f":"ROUND((C32*D32),2)","v":0},0,{"$f":"ROUND((C32*F32),2)","v":0},12,{"$f":"ROUND((G32*H32),2)","v":0},0,{"$f":"I32-J32","v":0}]
[null,null,0,12,0,0,0,12,0,0,0]
[null,null,0,12,0,0,0,12,0,0,0]
[null,null,0,12,0,0,0,12,0,0,0]
[null,null,0,12,0,0,0,12,0,0,0]
[null,null,0,12,0,0,0,12,0,0,0]
[null,null,0,12,0,0,0,12,0,0,0]
[null,null,0,12,0,0,0,12,0,0,0]
[null,null,0,12,0,0,0,12,0,0,0]
[null,null,0,12,0,0,0,12,0,0,0]
[null,null,0,12,0,0,0,12,0,0,0]
[null,null,0,12,0,0,0,12,0,0,0]
[null,null,0,12,0,0,0,12,0,0,0]
[null,null,0,12,0,0,0,12,0,0,0]
[null,null,0,12,0,0,0,12,0,0,0]
[null,null,0,12,0,0,0,12,0,0,0]
[null,null,0,12,0,0,0,12,0,0,0]
[null,null,0,12,0,0,0,12,0,0,0]
[]
[null,"Totals",null,null,{"$f":"SUM(E17:E49)","v":0},null,{"$f":"SUM(G17:G49)","v":0},null,{"$f":"SUM(I17:I49)","v":0},{"$f":"SUM(J17:J49)","v":0},{"$f":"SUM(K17:K49)","v":0}]
[]
[null,"Enter data in columns 1, 2, 3, 5, 7 and 9 to calculate the total of schedule 15.",null,null,null,null,null,null,"Annual CCFP Cost                                 (Columns 9+10 must equal the total in Column 8.)",null,{"$f":"J51+K51","v":0}]
[null,null,null,null,null,null,null,null,null,null,{"$f":"I51-K53","v":0}]
[]
[]
[null,"Note: Any entries on this page require completion of the Supplemental Budget For Special Cost Items. "]
[]
[null,"List any other funding source(s) used by your organization to cover the cost of other CCFP administrative services.",null,null,"Provide copies of the contracts against which CCFP costs will be charged.",null,null,null,"Provide a description of the cost methodology used to determine the % allocated to CCFP."]
[]
[null,"List Other Non-CCFP Funding Source(s)",null,null,"List Supporting Documentation for Schedule 14",null,null,null,"Comments"]

{"sheet":"Schedule 16-Pro.Ops-Travel","index":29,"n_rows":52,"n_cols":23,"rows_kept":52,"cut":false,"hidden":true,"merged":[[9,3,10,3],[9,4,10,4],[9,7,10,7],[12,6,12,8],[9,6,10,6],[12,3,12,5],[14,21,15,21],[14,19,15,19],[14,7,15,7],[12,10,12,12],[12,13,12,15],[12,17,12,21],[56,16,56,22],[54,16,54,22],[56,1,56,5],[45,20,47,21],[47,1,47,15],[49,1,49,5],[52,16,52,22],[49,16,49,22],[51,16,51,22],[57,16,57,22],[53,1,53,5],[54,1,54,5],[51,1,51,5],[52,1,52,5],[51,7,51,15],[52,7,52,15],[53,7,53,15],[54,7,54,15],[57,1,57,5],[55,7,55,15],[56,7,56,15],[57,7,57,15],[55,1,55,5],[53,16,53,22],[55,16,55,22]]}
[null,{"$f":"'Summary Worksheet'!B1","v":"Automated Budget for Prospective Sponsors of Unaffiliated Centers"}]
[]
[null,"SCHEDULE 16 - Program Operations Travel"]
[null,null,"      Fiscal Year:   ",{"$f":"'Summary Worksheet'!C4","v":0}]
[]
[null,null,"      Authorization Number:   ",{"$f":"'Summary Worksheet'!C6","v":0}]
[]
[null,null,"     Amendment #:  ",{"$f":"'Summary Worksheet'!C8","v":0}]
[]
[null,null,null,"Original Mileage Rate",null,null,"New Mileage Rate",null,null,"Please note these error codes:",null,null,null,"Example:"]
[null,null,null,null,null,"/mile",null,null,"/mile","Total number of months emay not xceed 12"]
[]
[null,null,null,"Original Mileage Rate",null,null,"New Mileage Rate",null,null,null,"Lodging",null,null,"Meals",null,null,null,"CCFP Total"]
[null,1,{"$f":"B14+1","v":2},3,4,5,6,7,8,9,10,11,12,13,14,15,16,17,18,19,20,21,22]
[null,"Employee Name","Travel Purpose","Estimate Monthly Miles ","Number of Months","Estimated Monthly Mileage Cost","Estimated Monthly Miles","Number of Months","Estimated Monthly Mileage Cost","Estimated Annual Mileage Cost             ","Estimated Lodging Cost per Night","Estimated Annual Number of Nights","Estimated Annual Lodging Cost","Estimated Meal Cost per Day","Estimated Annual Number of Days","Estimated Annual Meal Cost","Total Annual Cost to the Sponsor   ","% Allocated to CCFP","Monthly Cost to CCFP   ","Number of Months to be charged to CCFP","Total Allowable Costs to CCFP                                    ","Amount to be Charged to CCFP","Allowable CCFP Costs Covered by Other (Non-CCFP) Funding Source(s)                                                                                                                        "]
[null,null,null,null,null,null,null,null,null,"(column 5                                  times column 6)",null,null,"(column 8                                  times column 9)",null,null,"(column 11                                  times column 12)"," (column 7                   plus                             column 10                                 plus                                             column 13)",null,"(column 14                      times                          column 15/12)",null,"(column 16                         times            column 17) ",null,"(column 18              minus                                                 column 19)"]
[null,null,null,0,12,{"$f":"ROUND((D17*$E$10),2)","v":0},0,0,{"$f":"ROUND((G17*$H$10),2)","v":0},{"$f":"IF(E17+H17<=12,ROUND((E17*F17),2)+ROUND((H17*I17),2),0)","v":0},0,0,{"$f":"ROUND((K17*L17),2)","v":0},0,0,{"$f":"ROUND((N17*O17),2)","v":0},{"$f":"ROUND((J17+M17+P17),2)","v":0},0,{"$f":"(Q17*R17)/12","v":0},0,{"$f":"ROUND((S17*T17),2)","v":0},0,{"$f":"U17-V17","v":0}]
[null," "," ",0,12,{"$f":"ROUND((D18*$E$10),2)","v":0},0,0,{"$f":"ROUND((G18*$H$10),2)","v":0},{"$f":"IF(E18+H18<=12,ROUND((E18*F18),2)+ROUND((H18*I18),2),0)","v":0},0,0,{"$f":"ROUND((K18*L18),2)","v":0},0,0,{"$f":"ROUND((N18*O18),2)","v":0},0,0,{"$f":"(Q18*R18)/12","v":0},0,{"$f":"ROUND((S18*T18),2)","v":0},0,{"$f":"U18-V18","v":0}]
[null," "," ",0,12,0,0,0,0,0,0,0,0,0,0,0,0,0,0,0,0,0,0]
[null,null," ",0,12,0,0,0,0,0,0,0,0,0,0,0,0,0,0,0,0,0,0]
[null," "," ",0,12,0,0,0,0,0,0,0,0,0,0,0,0,0,0,0,0,0,0]
[null," "," ",0,12,0,0,0,0,0,0,0,0,0,0,0,0,0,0,0,0,0,0]
[null,null,null,0,12,0,0,0,0,0,0,0,0,0,0,0,0,0,0,0,0,0,0]
[null,null,null,0,12,0,0,0,0,0,0,0,0,0,0,0,0,0,0,0,0,0,0]
[null,null,null,0,12,0,0,0,0,0,0,0,0,0,0,0,0,0,0,0,0,0,0]
[null,null,null,0,12,0,0,0,0,0,0,0,0,0,0,0,0,0,0,0,0,0,0]
[null,null,null,0,12,0,0,0,0,0,0,0,0,0,0,0,0,0,0,0,0,0,0]
[null,null,null,0,12,0,0,0,0,0,0,0,0,0,0,0,0,0,0,0,0,0,0]
[null,null,null,0,12,0,0,0,0,0,0,0,0,0,0,0,0,0,0,0,0,0,0]
[null,null,null,0,12,0,0,0,0,0,0,0,0,0,0,0,0,0,0,0,0,0,0]
[null,null,null,0,12,0,0,0,0,0,0,0,0,0,0,0,0,0,0,0,0,0,0]
[null,null,null,0,12,0,0,0,0,0,0,0,0,0,0,0,0,0,0,0,0,0,0]
[null,null,null,0,12,0,0,0,0,0,0,0,0,0,0,0,0,0,0,0,0,0,0]
[null,null,null,0,12,0,0,0,0,0,0,0,0,0,0,0,0,0,0,0,0,0,0]
[null," "," ",0,12,0,0,0,0,0,0,0,0,0,0,0,0,0,0,0,0,0,0]
[null,null,null,0,12,0,0,0,0,0,0,0,0,0,0,0,0,0,0,0,0,0,0]
[null,null,null,0,12,0,0,0,0,0,0,0,0,0,0,0,0,0,0,0,0,0,0]
[null,null,null,0,12,0,0,0,0,0,0,0,0,0,0,0,0,0,0,0,0,0,0]
[null," "," ",0,12,0,0,0,0,0,0,0,0,0,0,0,0,0,0,0,0,0,0]
[null,null,"  ",0,12,0,0,0,0,0,0,0,0,0,0,0,0,0,0,0,0,0,0]
[null,null," ",0,12,0,0,0,0,0,0,0,0,0,0,0,0,0,0,0,0,0,0]
[null,null," ",0,12,0,0,0,0,0,0,0,0,0,0,0,0,0,0,0,0,0,0]
[]
[null,null,null,null,null,null,null,null,null,{"$f":"SUM(J17:J42)","v":0},null,null,{"$f":"SUM(M17:M42)","v":0},null,null,{"$f":"SUM(P17:P42)","v":0},{"$f":"SUM(Q17:Q42)","v":0},null,null,null,{"$f":"SUM(U17:U42)","v":0},{"$f":"SUM(V17:V42)","v":0},{"$f":"SUM(W17:W42)","v":0}]
[]
[null,"Enter data in columns 1, 2, 3, 4, 10, 11, 13, 14 17, 19, and 21 to calculate the total of schedule 15.",null,null,null,null,null,null,null,null,null,null,null,null,null,null,null,null,null,null,"Total Allowable Costs to CCFP                                (Columns 19+20 must equal the total in Column 18.)",null,{"$f":"V44+W44","v":0}]
[null,"If this is a budgmetn amendment and there are new mileage rates, enter data in columns 6 and 7.",null,null,null,null,null,null,null,null,null,null,null,null,null,null,null,null,null,null,null,null,{"$f":"U44-W46","v":0}]
[null,"* The mileage allowance (rate per mile) cannot exceed the greater of the applicable State of Florida or federal government mileage allowances."]
[]
[null,"List any other funding source used by your organization to cover the cost of CCFP program operations travel.",null,null,null,null,null,null,null,null,null,null,null,null,null,null,"Provide a description of the cost methodology used to determine the % allocated to CCFP."]
[]
[null,"List Other Non-CCFP Funding Source(s)",null,null,null,null,null,null,null,null,null,null,null,null,null,null,"Comments"]

{"sheet":"Schedule 17-Instate Travel","index":30,"n_rows":46,"n_cols":18,"rows_kept":46,"cut":false,"hidden":true,"merged":[[36,1,36,4],[36,5,36,11],[36,12,36,17],[12,1,12,11],[12,12,12,16],[14,14,15,14],[14,16,15,16],[30,15,32,16],[33,1,33,4],[33,12,33,17],[35,1,35,4],[35,5,35,11],[35,12,35,17],[37,1,37,4],[37,5,37,11],[37,12,37,17],[38,1,38,4],[38,5,38,11],[38,12,38,17],[41,1,41,4],[41,5,41,11],[41,12,41,17],[39,1,39,4],[39,5,39,11],[39,12,39,17],[40,1,40,4],[40,5,40,11],[40,12,40,17]]}
[null,{"$f":"'Summary Worksheet'!$B$1","v":"Automated Budget for Prospective Sponsors of Unaffiliated Centers"}]
[]
[null,"SCHEDULE 17   -   INSTATE TRAVEL"]
[null,"          Fiscal Year:  ",{"$f":"'Summary Worksheet'!$C$4","v":0}]
[]
[null," Authorization Number:  ",{"$f":"'Summary Worksheet'!$C$6","v":0}]
[]
[null,"     Amendment #:  ",{"$f":"'Summary Worksheet'!$C$8","v":0}]
[]
[]
[]
[]
[null,"IN-STATE TRAVEL FOR CCFP WORKSHOPS AND RELATED STAFF TRAINING",null,null,null,null,null,null,null,null,null,null,"CCFP Total",null,null,null,null,"OTHER FUNDING SOURCES"]
[null,1,2,3,4,5,6,7,8,9,10,12,13,14,15,16,17,18]
[null,"Conference/Class","Employee Name","Total Registration Fee","Total Annual Mileage, Airfare, Ground Transportation","Estimated Lodging Cost per Night","Estimated Annual Number of Nights","Estimated Annual Lodging Cost ","Estimated Meal Cost per Day","Estimated Annual Number of Days ","Estimated Annual Meal Cost  ","Annual Cost to the Sponsor              ","% Allocated to CCFP","Monthly Cost to CCFP   ","Number of Months to be charged to CCFP","Total Allowable Costs to CCFP                                    ","Amount to be Charged to CCFP ","Allowable CCFP Costs Covered by Other (Non-CCFP) Funding Source(s)                                                                                                                        "]
[null,null,null,null,null,null,null,"(column 5                                 times column  6)",null,null,"(column 8                                 times column 9)","(add columns 3, 4, 7, and 10)",null,"(column 12                      times                          column 13/12)",null,"(column 14                         times            column 15) ",null,"                                      (column 16              minus                                                 column 17)"]
[null,"Annual DOH Training",null,0,0,0,0,{"$f":"ROUND((F17*G17),2)","v":0},0,0,{"$f":"ROUND((I17*J17),2)","v":0},{"$f":"ROUND((D17+E17+H17+K17),2)","v":0},0,{"$f":"(L17*M17)/12","v":0},12,{"$f":"ROUND((N17*O17),2)","v":0},0,{"$f":"P17-Q17","v":0}]
[null,null,null,0,0,0,0,{"$f":"ROUND((F18*G18),2)","v":0},0,0,{"$f":"ROUND((I18*J18),2)","v":0},{"$f":"ROUND((D18+E18+H18+K18),2)","v":0},0,{"$f":"(L18*M18)/12","v":0},12,{"$f":"ROUND((N18*O18),2)","v":0},0,{"$f":"P18-Q18","v":0}]
[null,null,null,0,0,0,0,0,0,0,0,0,0,0,12,0,0,0]
[null,null,null,0,0,0,0,0,0,0,0,0,0,0,12,0,0,0]
[null,null,null,0,0,0,0,0,0,0,0,0,0,0,12,0,0,0]
[null,null,null,0,0,0,0,0,0,0,0,0,0,0,12,0,0,0]
[null,null,null,0,0,0,0,0,0,0,0,0,0,0,12,0,0,0]
[null,null,null,0,0,0,0,0,0,0,0,0,0,0,12,0,0,0]
[null,null,null,0,0,0,0,0,0,0,0,0,0,0,12,0,0,0]
[null,null,null,0,0,0,0,0,0,0,0,0,0,0,12,0,0,0]
[null,null,null,0,0,0,0,0,0,0,0,0,0,0,12,0,0,0]
[]
[null,null,"Totals",{"$f":"SUM(D17:D27)","v":0},{"$f":"SUM(E17:E27)","v":0},null,null,{"$f":"SUM(H17:H27)","v":0},null,null,{"$f":"SUM(K17:K27)","v":0},{"$f":"SUM(L17:L27)","v":0},null,{"$f":"SUM(N17:N27)","v":0},null,{"$f":"SUM(P17:P27)","v":0},{"$f":"SUM(Q17:Q27)","v":0},{"$f":"SUM(R17:R27)","v":0}]
[]
[null,"Enter columns 1, 2, 3, 4, 5, 6, 8, 9, 13, 15 and 17 to calculate the total of schedule 17.",null,null,null,null,null,null,null,null,null,null,null,null,null,"Total Allowable Costs to CCFP                               (Columns 17+18 must equal the total in Column 16.)",null,{"$f":"Q29+R29","v":0}]
[null,null,null,null,null,null,null,null,null,null,null,null,null,null,null,null,null,{"$f":"P29-R31","v":0}]
[]
[null,"List any other funding source used by your organization to cover the cost of in-state travel for CCFP workshops and related staff training.",null,null,null,null,null,null,null,null,null,null,"Provide a description of the cost methodology used to determine the % allocated to CCFP."]
[]
[null,"List Other Non-CCFP Funding Source(s)",null,null,null,"List Supporting Documentation for Schedule 17",null,null,null,null,null,null,"Comments"]
[]
[]
[]
[]
[]
[]
[]
[]
[]
[null,null,null,null,null,"`"]

{"sheet":"Schedule 18-Project. OutofState","index":31,"n_rows":39,"n_cols":18,"rows_kept":39,"cut":false,"hidden":true,"merged":[[36,1,36,4],[36,12,36,17],[10,1,10,8],[12,1,12,11],[12,12,12,16],[14,14,15,14],[30,15,33,16],[38,1,38,4],[38,5,38,11],[38,12,38,17],[39,1,39,4],[39,5,39,11],[39,12,39,17],[40,1,40,4],[40,5,40,11],[40,12,40,17],[41,1,41,4],[41,5,41,11],[41,12,41,17],[44,1,44,4],[44,5,44,11],[44,12,44,17],[42,1,42,4],[42,5,42,11],[42,12,42,17],[43,1,43,4],[43,5,43,11],[43,12,43,17]]}
[null,{"$f":"'Summary Worksheet'!$B$1","v":"Automated Budget for Prospective Sponsors of Unaffiliated Centers"}]
[]
[null,"SCHEDULE 18   -   PROJECTED OUT OF STATE TRAVEL"]
[null,null,"          Fiscal Year:  ",{"$f":"'Summary Worksheet'!$C$4","v":0}]
[]
[null,null," Authorization Number:  ",{"$f":"'Summary Worksheet'!$C$6","v":0}]
[]
[null,null,"     Amendment #:  ",{"$f":"'Summary Worksheet'!$C$8","v":0}]
[]
[]
[]
[]
[null,"PROJECTED OUT-OF-STATE TRAVEL FOR CCFP RELATED CONFERENCE",null,null,null,null,null,null,null,null,null,null,"CCFP Total",null,null,null,null,"OTHER FUNDING SOURCES"]
[null,1,2,3,4,5,6,7,8,9,10,12,13,14,15,16,17,18]
[null,"Conference/Seminar  ","Employee Name","Total Registration Fee","Total Annual Mileage, Airfare, Ground Transportation","Estimated Lodging Cost per Night","Estimated Annual Number of Nights","Estimated Annual Lodging Cost ","Estimated Meal Cost per Day","Estimated Annual Number of Days ","Estimated Annual Meal Cost  ","Annual                        Total                   ","% Allocated to CCFP","Monthly Cost to CCFP   ","Number of Months to be charged to CCFP","Total Allowable Costs to CCFP                                    ","Amount to be Charged to CCFP ","Allowable CCFP Costs Covered by Other (Non-CCFP) Funding Source(s)                                                                                                                        "]
[null,"(enter name of proposed Seminar/Conference, State and Date)**",null,null,null,null,null,"(column 5                                 times column  6)",null,null,"(column 8                                 times column 9)","(add columns 3, 4, 7, and 10)",null,"(column 12                      times                          column 13/12)",null,"(column 14                         times            column 15) ",null,"(column 16 minus                                                 column 17)"]
[null,null,null,0,0,0,0,{"$f":"ROUND((F17*G17),2)","v":0},0,0,{"$f":"ROUND((I17*J17),2)","v":0},{"$f":"ROUND((D17+E17+H17+K17),2)","v":0},0,{"$f":"(L17*M17)/12","v":0},12,{"$f":"ROUND((N17*O17),2)","v":0},0,{"$f":"P17-Q17","v":0}]
[null," ",null,0,0,0,0,{"$f":"ROUND((F18*G18),2)","v":0},0,0,{"$f":"ROUND((I18*J18),2)","v":0},{"$f":"ROUND((D18+E18+H18+K18),2)","v":0},0,{"$f":"(L18*M18)/12","v":0},12,{"$f":"ROUND((N18*O18),2)","v":0},0,{"$f":"P18-Q18","v":0}]
[null,null,null,0,0,0,0,0,0,0,0,0,0,0,12,0,0,0]
[null,null,null,0,0,0,0,0,0,0,0,0,0,0,12,0,0,0]
[null,null,null,0,0,0,0,0,0,0,0,0,0,0,12,0,0,0]
[null,null,null,0,0,0,0,0,0,0,0,0,0,0,12,0,0,0]
[null,null,null,0,0,0,0,0,0,0,0,0,0,0,12,0,0,0]
[null,null,null,0,0,0,0,0,0,0,0,0,0,0,12,0,0,0]
[null,null,null,0,0,0,0,0,0,0,0,0,0,0,12,0,0,0]
[null,null,null,0,0,0,0,0,0,0,0,0,0,0,12,0,0,0]
[null,null,null,0,0,0,0,0,0,0,0,0,0,0,12,0,0,0]
[]
[null,null,"Totals",{"$f":"SUM(D17:D27)","v":0},{"$f":"SUM(E17:E27)","v":0},null,null,{"$f":"SUM(H17:H27)","v":0},null,null,{"$f":"SUM(K17:K27)","v":0},{"$f":"SUM(L17:L27)","v":0},null,null,null,{"$f":"SUM(P17:P27)","v":0},{"$f":"SUM(Q17:Q27)","v":0},{"$f":"SUM(R17:R27)","v":0}]
[]
[null,"Out-of-State travel costs must only be claimed for employees who dedicate at least 40% of their work time to CCFP.",null,null,null,null,null,null,null,null,null,null,null,null,null,"Annual CCFP Cost                                 (Columns 17+18 must equal the total in Column 16.)",null,{"$f":"Q29+R29","v":0}]
[null,null,null,null,null,null,null,null,null,null,null,null,null,null,null,null,null,{"$f":"P29-R31","v":0}]
[null,"Enter data in columns 1, 2, 3, 4, 5, 6, 8, 9, 13, 15 and 17 to calculate the total of schedule 18."]
[]
[null,"** Submit a copy of proposed seminar/conference agenda."]
[]
[null,"List any other funding source used by your organization to cover the cost of out-of-state travel for CCFP related conferences.",null,null,null,null,null,null,null,null,null,null,"Provide a description of the cost methodology used to determine the % allocated to CCFP."]
[]
[null,"List Other Non-CCFP Funding Source(s)",null,null,null,"List Supporting Documentation for Schedule 18",null,null,null,null,null,null,"Comments"]

{"sheet":"Schedule 19-Staff & Site Trng","index":32,"n_rows":56,"n_cols":11,"rows_kept":56,"cut":false,"hidden":true,"merged":[[58,8,58,12],[59,8,59,12],[60,8,60,12],[61,8,61,12],[55,1,55,3],[56,1,56,3],[57,1,57,3],[58,1,58,3],[59,1,59,3],[60,1,60,3],[61,1,61,3],[57,4,57,7],[53,8,53,12],[61,4,61,7],[53,1,53,3],[2,1,2,8],[14,7,15,7],[49,8,50,9],[12,1,12,4],[12,5,12,9],[60,4,60,7],[55,8,55,12],[56,4,56,7],[58,4,58,7],[59,4,59,7],[55,4,55,7],[56,8,56,12],[57,8,57,12]]}
[null,{"$f":"'Summary Worksheet'!B1","v":"Automated Budget for Prospective Sponsors of Unaffiliated Centers"}]
[]
[null,"SCHEDULE 19 - Staff & Site Training"]
[null,null,"      Fiscal Year:   ",{"$f":"'Summary Worksheet'!C4","v":0}]
[]
[null,null,"      Authorization Number:   ",{"$f":"'Summary Worksheet'!C6","v":0}]
[]
[null,null,"     Amendment #:  ",{"$f":"'Summary Worksheet'!C8","v":0}]
[]
[]
[]
[]
[null,"Staff and Site Training",null,null,null,"CCFP Total",null,null,null,null,"OTHER FUNDING SOURCES"]
[null,1,2,3,4,5,6,7,8,9,10]
[null,"Description","Total Monthly Costs","Number of Months to be charged","Total Costs to the Sponsor","% Allocated to CCFP","Monthly  Cost to CCFP ","Number of Months to be charged to CCFP","Total Allowable Costs to  CCFP  ","Amount to be Charged to CCFP ","Allowable CCFP Costs Covered by Other (Non-CCFP) Funding Source(s)                                                                                                                        "]
[null,null,null,null,"(column 2 times column 3)",null," [(column 2                            times                                column 5)]",null,"(column 4                        times                      column 5) ",null,"(column 6                          minus                                                 column 7)"]
[null,"Staff Training:"]
[null,"Facility Rental",0,12,0,0,{"$f":"ROUND((C18*F18),2)","v":0},12,{"$f":"ROUND((G18*H18),2)","v":0},0,{"$f":"I18-J18","v":0}]
[null,"Training Materials (Specify)",0,12,{"$f":"ROUND((C19*D19),2)","v":0},0,{"$f":"ROUND((C19*F19),2)","v":0},12,{"$f":"ROUND((G19*H19),2)","v":0},0,{"$f":"I19-J19","v":0}]
[null,"Training Equipment",0,12,0,0,0,12,0,0,0]
[null,"Computer Training",0,12,0,0,0,12,0,0,0]
[null,"Other (Specify):",0,12,0,0,0,12,0,0,0]
[null,null,0,12,0,0,0,12,0,0,0]
[null,null,0,12,0,0,0,12,0,0,0]
[null,null,0,12,0,0,0,12,0,0,0]
[null,null,0,12,0,0,0,12,0,0,0]
[null,"Site Training:"]
[null,"Facility Rental ",0,12,{"$f":"ROUND((C28*D28),2)","v":0},0,{"$f":"ROUND((C28*F28),2)","v":0},12,{"$f":"ROUND((G28*H28),2)","v":0},0,{"$f":"I28-J28","v":0}]
[null,"Training Equipment",0,12,0,0,0,12,{"$f":"ROUND((G29*H29),2)","v":0},0,0]
[null,null,0,12,0,0,0,12,0,0,0]
[null,null,0,12,0,0,0,12,0,0,0]
[null,null,0,12,0,0,0,12,0,0,0]
[null,null,0,12,0,0,0,12,0,0,0]
[null,null,0,12,0,0,0,12,0,0,0]
[null,null,0,12,{"$f":"ROUND((C35*D35),2)","v":0},0,0,12,0,0,{"$f":"I35-J35","v":0}]
[null,null,0,12,0,0,0,12,0,0,0]
[null,null,0,12,0,0,0,12,0,0,0]
[null,null,0,12,0,0,0,12,0,0,0]
[null,null,0,12,0,0,0,12,0,0,0]
[null,null,0,12,0,0,{"$f":"ROUND((C40*F40),2)","v":0},12,{"$f":"ROUND((G40*H40),2)","v":0},0,0]
[null,null,0,12,0,0,0,12,0,0,0]
[null,null,0,12,{"$f":"ROUND((C42*D42),2)","v":0},0,0,12,0,0,{"$f":"I42-J42","v":0}]
[null,null,0,12,0,0,0,12,0,0,0]
[null,null,0,12,0,0,0,12,0,0,0]
[null,null,0,12,0,0,0,12,0,0,0]
[null,null,0,12,0,0,0,12,0,0,0]
[]
[null,"Totals",null,null,{"$f":"SUM(E18:E46)","v":0},null,{"$f":"SUM(G18:G46)","v":0},null,{"$f":"SUM(I18:I46)","v":0},{"$f":"SUM(J18:J46)","v":0},{"$f":"SUM(K18:K46)","v":0}]
[]
[null,"Enter columns 1, 2, 3 5, 7, and 9 to calculate the total of schedule 16.",null,null,null,null,null,null,"Total Allowable Costs to CCFP                                 (Columns 9+10 must equal the total in Column 8.)",null,{"$f":"J48+K48","v":0}]
[null,null,null,null,null,null,null,null,null,null,{"$f":"I48-K50","v":0}]
[]
[]
[null,"List any other funding source used by your organization to cover the cost of CCFP staff and site training.",null,null,null,null,null,null,"Provide a description of the cost methodology used to determine the % allocated to CCFP."]
[]
[null,"List Other Non-CCFP Funding Source(s)",null,null,"List Supporting Documentation for Schedule 16",null,null,null,"Comments"]

{"sheet":"Schedule 20-Indirect Costs","index":33,"n_rows":33,"n_cols":6,"rows_kept":33,"cut":false,"hidden":true,"merged":[[38,1,38,8],[39,1,39,8],[34,1,34,8],[35,1,35,8],[36,1,36,8],[37,1,37,8],[32,1,32,8],[33,1,33,8],[30,1,30,8],[10,1,10,8],[12,1,12,7],[11,1,11,7],[27,1,27,8],[13,1,14,8]]}
[null,{"$f":"'Summary Worksheet'!B1","v":"Automated Budget for Prospective Sponsors of Unaffiliated Centers"}]
[]
[null,"SCHEDULE 20 - Indirect Costs"]
[null,null,"      Fiscal Year:   ",{"$f":"'Summary Worksheet'!C4","v":0}]
[]
[null,null,"      Authorization Number:   ",{"$f":"'Summary Worksheet'!C6","v":0}]
[]
[null,null,"     Amendment #:  ",{"$f":"'Summary Worksheet'!C8","v":0}]
[]
[]
[" ","Schedule 17 - Indirect Costs"]
[]
[null,"IF CLAIMING INDIRECT COSTS, A COPY OF THE  APPROVED INDIRECT COST PLAN MUST BE PROVIDED."]
[null,"Attach the Indirect Cost Plan as the last page to this budget. Please ensure that the Indirect Costs Plan from your cognizant ageny is the most current and has not expired. "]
[]
[]
[null,null,null,"Total Allowable Costs to CCFP          ","Total Amount Charged to CCFP ","Allowable CCFP Costs Covered by Other (Non-CCFP) Funding Source(s) "]
[]
[]
[null,null,"Indirect Costs ",null,null,{"$f":"D20-E20","v":0}]
[]
[]
[]
[]
[]
[]
[]
[null,"IMPORTANT INFORMATION RELATED TO CCFP FUNDING"]
[]
[]
[null,"Other Required Funding Information"]
[]
[null,"If no other Non-CCFP Funding Sources have been identified to pay for CCFP costs in this budget, please list other funding sources available to pay for disallowed items and potential over payments."]